Workbook

Sheet 使い方
B2: 住宅ローンシミュレーションの使い方

Sheet あなたの買える額計算
B2: 私の「買える額」計算書
B4: マンションを買うときに先立つものはなんといっても予算です。
B5: いくらぐらいのマンションが買えるのかが分からなければ選びようがありません。
B6: まず自分の収入から考えてみましょう。
B8: Step 1 : ローンを支払える額から考える
B9: 一般的に、無理なくローンを返していけるのは「収入の20％まで」と言われています。
B10: 下記の自分の年収をいれてみましょう。
B12: 私の年収 | C12: 1000 | D12: 万円
B13: 年収負担率 | C13: 0.2
B15: 一年間に返済できる額（上限） | C15: =C12*C13 -> 200 | D15: 万円
B16: 毎月返済できる額（上限） | C16: =C15/12 -> 16.66666667 | D16: 万円
B18: Step 2 : 月々の管理費や貯蓄額も計算に入れる
B19: マンションを買うとローン返済のほかに管理費や修繕積立金を毎月支払うことになります。
B20: 金額はケースにより異なりますが、合わせて2万円程度が一般的です。この金額は差し引いて考える必要があります。
B21: ただしこれまで住宅購入用に貯金を積み立てていた人なら、住宅購入後はその分の貯金が不要になるので支払える金額に加えることが可能です。
B23: 管理費・修繕積立金（月） | C23: 2 | D23: 万円
B24: これまでの住宅購入用貯蓄額（月） | C24: 2 | D24: 万円
B25: 月々支払える金額 | C25: =C16-C23+C24 -> 16.66666667 | D25: 万円
B26: ※【計算式】月々支払える金額＝年収（税込み）×20％÷12（カ月）－管理費・修繕積立金（2万円程度）＋住宅購入用貯蓄額
B29: Step 3 : 返済額早見表から借りられる額を計算する
B30: 月々支払える金額が分かったら、次にその金額でいくらの住宅ローンが借りられるかを計算します。
B31: 正確に計算するには金融電卓などが必要ですが、ここではより簡単な方法として返済額早見表を使います。
B32: 下の表は、借入額100万円当たりの毎月返済額を、金利と返済期間に応じて表にしたものです。
B33: 例えば100万円を金利3.0％、35年返済で借りた場合の毎月返済額は3,848円です。
B34: 支払える金額から借りられる金額を計算するには、月々支払える金額を早見表の該当する金額で割って100万円をかければよいのです。
B37: ■100万円当たりの返済額早見表
C38: 毎月返済額
B39: 金利 | C39: 20年返済 | D39: 25年返済 | E39: 30年返済 | F39: 35年返済
B40: 0.005 | C40: 4379 | D40: 3546 | E40: 2991 | F40: 2595
B41: 0.01 | C41: 4598 | D41: 3768 | E41: 3216 | F41: 2822
B42: 0.015 | C42: 4825 | D42: 3999 | E42: 3451 | F42: 3061
B43: 0.02 | C43: 5058 | D43: 4238 | E43: 3696 | F43: 3312
B44: 0.025 | C44: 5299 | D44: 4486 | E44: 3951 | F44: 3574
B45: 0.03 | C45: 5545 | D45: 4742 | E45: 4216 | F45: 3848
B46: 0.035 | C46: 5799 | D46: 5006 | E46: 4490 | F46: 4132
B47: 0.04 | C47: 6059 | D47: 5278 | E47: 4774 | F47: 4427
B49: 返済期間 | C49: 35年返済
B50: 住宅ローン金利 | C50: 0.005
B51: ※現在の金利は銀行HPなどで確認
C52: 月々支払える金額 | E52: 100万円あたりの毎月返済額 | I52: 借りられる額
C53: =C25 -> 16.66666667 | D53: ÷ | E53: =OFFSET(C40,MATCH(C50,B40:B47,0)-1,MATCH(C49,C39:F39,0)-1,1,1) -> 2595 | F53: × | G53: 100 | H53: ＝ | I53: =C53/E53*1000000 -> 6422.607579
C54: 万円 | E54: 円 | G54: 万円 | I54: 万円
B56: Step 4 : 借りられる額に頭金をプラスする
B57: 借りられる額が計算できたら、その金額に頭金を足せば「買える額」になります。
B58: 頭金は諸費用や手元に残す生活費分を差し引いて考えましょう。
B59: 目安は、諸費用は物件価格の3～5%、生活費は3～6か月分です。
B61: 現在の貯蓄額（合計） | C61: 1000 | D61: 万円
B62: 贈与額 | C62: 0 | D62: 万円
B63: 購入後手元に残す額 | C63: 500 | D63: 万円
B64: 頭金額 | C64: =C61+C62-C63 -> 500 | D64: 万円
B67: あなたの買える額 | C67: =I53+C64 -> 6922.607579 | E67: 万円
B69: ※【計算式】買える金額＝借りられる金額＋頭金（貯蓄+贈与額－諸費用－手元に残す生活費）
B72: Step 5 : 実際にローンの支払額をシミレーションしてみましょう
B74: ●固定金利でシミレーションする場合はここをクリック
B76: ●変動金利でシミレーションする場合はここをクリック

Sheet 固定金利設定
B2: 金利設定（固定）
B3: ここでは、固定金利の場合の銀行別の金利が設定できます。まずは下の [ 銀行別 金利メモ ] の赤字部分から入力しましょう。 ※設定上、ローン期間は最大35年（420か月）までのシミレーションが可能です。
C5: 金利タイプ | D5: 通算期間(ヶ月) | E5: 開始日 | F5: 金利(%) | G5: 銀行を選ぶ
C6: 全期間固定金利 | D6: 0 | E6: 2017-04-01 | F6: 0.015 | G6: みずほ
B8: 銀行別 金利メモ
B9: 銀行名、金利を入力することで、上記金利設定の「銀行を選ぶ」コンボボックスから、その項目を呼び出すことが出来ます。
B13: 金利メモ | C13: 銀行名 | F13: 金利（％） | G13: 開始日
C14: 三井住友 | F14: 0.015 | G14: 2017-04-01
C15: みずほ | F15: 0.015 | G15: 2017-04-01
C16: 三菱東京UFJ | F16: 0.015 | G16: 2017-05-01
C17: りそな | F17: 0.015 | G17: 2017-04-01
C18: 三菱UFJ信託 | F18: 0.015 | G18: 2017-04-01
C19: 三井住友信託 | F19: 0.015 | G19: 2017-04-01

Sheet 住宅ローン計算シート（固定）
B2: 住宅ローン計算シート（固定金利） ※全期間固定金利の場合のみの試算です。
B3: 入力項目 | D3: 物件価格 | E3: 50000000 | G3: 基本統計 | I3: 毎月のローン返済額 | K3: =IF(ValuesEntered,IF($E$20="全期間固定",IF(ValuesEntered,ROUND(-PMT(InterestRate/12,DurationOfLoan,LoanAmount-BonusAmount),0)),"返済額は変動します"),0) -> 110226 | M3: オプション | O3: ローン開始日 | Q3: =固定金利設定!E6 -> 2017-04-01
I5: ボーナス月の加算額 | K5: =IF(ValuesEntered,IF($E$20="全期間固定",IF(ValuesEntered,ROUND(-PMT(InterestRate/COUNT($E$16:$E$18),DurationofBonus,BonusAmount,0),0)),"返済額は変動します"),0) -> 257805
D6: 金利 ※「固定金利設定」で入力 | E6: =IF($E$20="全期間固定",固定金利設定!$F$6,"金利は変動") -> 0.015 | Q6: 0.014
I7: ※概算金額ですので、実際の返済額は銀行へお問い合わせください。
D8: ローン期間 (月) ※最大35年まで | E8: =E10*12 -> 420 | K8: =IF(ValuesEntered,SUM(total_payments),0) -> 62719573
I9: ローン返済額合計 | K9: =IF(ValuesEntered,SUM(E27:H446,J27:J446),0) -> 62719573
D10: ローン期間（年） ※最大35年まで | E10: 35 | Q10: =Q6*E3/12 -> 58333.33333
D12: ローン借入額 | E12: 50000000
I13: 支払利息合計 | K13: =IF(ValuesEntered,SUM(interest),0) -> 12719573 | O13: 銀行名 | Q13: =固定金利設定!G6 -> みずほ
D15: ボーナス返済額 | E15: 200000 | I15: 繰上げ返済により減少した月数 | K15: =IF(AND(ValuesEntered,$E$19="時間短縮"),DurationOfLoan-COUNTIF(NoPaymentsRemaining,">0")-1,0) -> 7 | O15: 年収負担率 | Q15: =(K9/E10)/(あなたの買える額計算!C12*10000) -> 0.17919878
D16: ボーナス返済月① | E16: 4
D17: ボーナス返済月② | E17: 7 | I17: 繰上げ返済合計 | K17: =IF(ValuesEntered,SUM(extra_payments,),0) -> 200000
D18: ボーナス返済月③
D19: 繰り上げ返済方式 | E19: 時間短縮 | I19: ボーナス返済・繰り上げ返済で減少した利息 | K19: =IF(ISERROR(IF(ValuesEntered,IF($E$20="全期間固定",ROUNDDOWN(CUMIPMT(InterestRate/12,DurationOfLoan,LoanAmount-BonusAmount,1,DurationOfLoan,0)*-1+IF(E15="",0,CUMIPMT(InterestRate/COUNT($E$16:$E$18),DurationofBonus,BonusAmount,1,DurationofBonus,0))*-1-$K$13,0),"節約利息は変動します"),0))=TRUE,"0",IF(ValuesEntered,IF($E$20="全期間固定",ROUNDDOWN(CUMIPMT(InterestRate/12,DurationOfLoan,LoanAmount-BonusAmount,1,DurationOfLoan,0)*-1+IF(E15="",0,CUMIPMT(InterestRate/COUNT($E$16:$E$18),DurationofBonus,BonusAmount,1,DurationofBonus,0))*-1-$K$13,0),"節約利息は変動します"),0)) -> 1621860
D20: 金利タイプ | E20: 全期間固定
A26: 年 | B26: 経過月 | C26: 返済日 | D26: 期首残高 | E26: 利息 | F26: 元金 | I26: ボーナス返済額 | J26: 繰り上げ返済 | L26: 返済額合計 | O26: ローン残高 | R26: 残り月数
A27: =ABS(YEAR($C$27)-YEAR(C27)) -> 0 | B27: =ROWS($B$27:B27) -> 1 | C27: =IF(ValuesEntered,LoanStart,"") -> 2017-04-01 | D27: =$E$12 -> 50000000 | E27: =IF(AND(ValuesEntered,ISNUMBER(C27)),IF($E$19="時間短縮",ROUND(IPMT(VLOOKUP($C27,Rate_table,2,TRUE)/12,1,DurationOfLoan,$D27-BonusAmount)*-1,0),ROUND(IPMT(VLOOKUP($C27,Rate_table,2,TRUE)/12,$B27,DurationOfLoan,LoanAmount-BonusAmount-SUM(extra_payments))*-1,0))+IF($I27=0,0,ROUND(IPMT(VLOOKUP($C27,Rate_table,2,TRUE)/12,COUNTIF($I$27:I27,">0"),DurationofBonus,BonusAmount)*-1,0)),"") -> 62500 | F27: =IF(AND(ValuesEntered,ISNUMBER($C27)),IF($E$19="時間短縮",ROUND(PPMT(VLOOKUP($C27,Rate_table,2,TRUE)/12,1,DurationOfLoan,$D27-BonusAmount)*-1,0),ROUND(PPMT(VLOOKUP($C27,Rate_table,2,TRUE)/12,$B27,DurationOfLoan,LoanAmount-BonusAmount-SUM(extra_payments))*-1,0))+IF(I27=0,0,ROUND(PPMT(VLOOKUP($C27,Rate_table,2,TRUE)/12,COUNTIF($I$27:I27,">0"),DurationofBonus,BonusAmount)*-1,0)),"") -> 256728 | I27: =IF(ISNUMBER(C27)=FALSE,"",IF(AND(D27>$E$15,OR(MONTH(C27)=$E$16,MONTH(C27)=$E$17,MONTH(C27)=$E$18)),$E$15,0)) -> 200000 | L27: =IF(AND(ValuesEntered,ISNUMBER($C27)),SUM(E27:H27,J27:K27),"") -> 319228 | O27: =IF(AND(ValuesEntered,ISNUMBER($C27)),D27-F27-J27,"") -> 49743272 | R27: =IF(AND($J27>0,$E$19="時間短縮"),Remain_Month,DurationOfLoan-1) -> 419
A28: =ABS(YEAR($C$27)-YEAR(C28)) -> 0 | B28: =ROWS($B$27:B28) -> 2 | C28: =IF(AND(ValuesEntered,R27>0),IF(AND(ISNUMBER(O27),R27>0),EDATE(C27,1),""),"") -> 2017-05-01 | D28: =IF(C28="",0,O27) -> 49743272 | E28: =IF(AND(ValuesEntered,ISNUMBER(C28)),IF($E$19="時間短縮",ROUND(IPMT(VLOOKUP($C28,Rate_table,2,TRUE)/12,1,$R27,$D28)*-1,0),ROUND(IPMT(VLOOKUP($C28,Rate_table,2,TRUE)/12,$B28,DurationOfLoan,LoanAmount-BonusAmount-SUM(extra_payments))*-1,0))+IF($I28=0,0,ROUND(IPMT(VLOOKUP($C28,Rate_table,2,TRUE)/12,COUNTIF($I$27:I28,">0"),DurationofBonus,BonusAmount)*-1,0)),"") -> 62179 | F28: =IF(AND(ValuesEntered,ISNUMBER($C28)),IF($E$19="時間短縮",ROUND(PPMT(VLOOKUP($C28,Rate_table,2,TRUE)/12,1,$R27,$D28)*-1,0),ROUND(PPMT(VLOOKUP($C28,Rate_table,2,TRUE)/12,$B28,DurationOfLoan,LoanAmount-BonusAmount-SUM(extra_payments))*-1,0))+IF(I28=0,0,ROUND(PPMT(VLOOKUP($C28,Rate_table,2,TRUE)/12,COUNTIF($I$27:I28,">0"),DurationofBonus,BonusAmount)*-1,0)),"") -> 90404 | I28: =IF(ISNUMBER(C28)=FALSE,"",IF(AND(D28>$E$15,OR(MONTH(C28)=$E$16,MONTH(C28)=$E$17,MONTH(C28)=$E$18)),$E$15,0)) -> 0 | L28: =IF(AND(ValuesEntered,ISNUMBER($C28)),SUM(E28:H28,J28:K28),"") -> 152583 | O28: =IF(AND(ValuesEntered,ISNUMBER($C28)),D28-F28-J28,"") -> 49652868 | R28: =IF(AND($J28>0,$E$19="時間短縮"),Remain_Month,$R27-1) -> 418
A29: 0 | B29: =ROWS($B$27:B29) -> 3 | C29: =IF(AND(ValuesEntered,R28>0),IF(AND(ISNUMBER(O28),R28>0),EDATE(C28,1),""),"") -> 2017-06-01 | D29: =IF(C29="",0,O28) -> 49652868 | E29: =IF(AND(ValuesEntered,ISNUMBER(C29)),IF($E$19="時間短縮",ROUND(IPMT(VLOOKUP($C29,Rate_table,2,TRUE)/12,1,$R28,$D29)*-1,0),ROUND(IPMT(VLOOKUP($C29,Rate_table,2,TRUE)/12,$B29,DurationOfLoan,LoanAmount-BonusAmount-SUM(extra_payments))*-1,0))+IF($I29=0,0,ROUND(IPMT(VLOOKUP($C29,Rate_table,2,TRUE)/12,COUNTIF($I$27:I29,">0"),DurationofBonus,BonusAmount)*-1,0)),"") -> 62066 | F29: =IF(AND(ValuesEntered,ISNUMBER($C29)),IF($E$19="時間短縮",ROUND(PPMT(VLOOKUP($C29,Rate_table,2,TRUE)/12,1,$R28,$D29)*-1,0),ROUND(PPMT(VLOOKUP($C29,Rate_table,2,TRUE)/12,$B29,DurationOfLoan,LoanAmount-BonusAmount-SUM(extra_payments))*-1,0))+IF(I29=0,0,ROUND(PPMT(VLOOKUP($C29,Rate_table,2,TRUE)/12,COUNTIF($I$27:I29,">0"),DurationofBonus,BonusAmount)*-1,0)),"") -> 90517 | I29: 0 | L29: =IF(AND(ValuesEntered,ISNUMBER($C29)),SUM(E29:H29,J29:K29),"") -> 152583 | O29: =IF(AND(ValuesEntered,ISNUMBER($C29)),D29-F29-J29,"") -> 49562351 | R29: 417
A30: 0 | B30: =ROWS($B$27:B30) -> 4 | C30: =IF(AND(ValuesEntered,R29>0),IF(AND(ISNUMBER(O29),R29>0),EDATE(C29,1),""),"") -> 2017-07-01 | D30: 49562351 | E30: =IF(AND(ValuesEntered,ISNUMBER(C30)),IF($E$19="時間短縮",ROUND(IPMT(VLOOKUP($C30,Rate_table,2,TRUE)/12,1,$R29,$D30)*-1,0),ROUND(IPMT(VLOOKUP($C30,Rate_table,2,TRUE)/12,$B30,DurationOfLoan,LoanAmount-BonusAmount-SUM(extra_payments))*-1,0))+IF($I30=0,0,ROUND(IPMT(VLOOKUP($C30,Rate_table,2,TRUE)/12,COUNTIF($I$27:I30,">0"),DurationofBonus,BonusAmount)*-1,0)),"") -> 79214 | F30: =IF(AND(ValuesEntered,ISNUMBER($C30)),IF($E$19="時間短縮",ROUND(PPMT(VLOOKUP($C30,Rate_table,2,TRUE)/12,1,$R29,$D30)*-1,0),ROUND(PPMT(VLOOKUP($C30,Rate_table,2,TRUE)/12,$B30,DurationOfLoan,LoanAmount-BonusAmount-SUM(extra_payments))*-1,0))+IF(I30=0,0,ROUND(PPMT(VLOOKUP($C30,Rate_table,2,TRUE)/12,COUNTIF($I$27:I30,">0"),DurationofBonus,BonusAmount)*-1,0)),"") -> 282372 | I30: 200000 | L30: =IF(AND(ValuesEntered,ISNUMBER($C30)),SUM(E30:H30,J30:K30),"") -> 361586 | O30: =IF(AND(ValuesEntered,ISNUMBER($C30)),D30-F30-J30,"") -> 49279979 | R30: 416
A31: 0 | B31: =ROWS($B$27:B31) -> 5 | C31: =IF(AND(ValuesEntered,R30>0),IF(AND(ISNUMBER(O30),R30>0),EDATE(C30,1),""),"") -> 2017-08-01 | D31: 49279979 | E31: =IF(AND(ValuesEntered,ISNUMBER(C31)),IF($E$19="時間短縮",ROUND(IPMT(VLOOKUP($C31,Rate_table,2,TRUE)/12,1,$R30,$D31)*-1,0),ROUND(IPMT(VLOOKUP($C31,Rate_table,2,TRUE)/12,$B31,DurationOfLoan,LoanAmount-BonusAmount-SUM(extra_payments))*-1,0))+IF($I31=0,0,ROUND(IPMT(VLOOKUP($C31,Rate_table,2,TRUE)/12,COUNTIF($I$27:I31,">0"),DurationofBonus,BonusAmount)*-1,0)),"") -> 61600 | F31: =IF(AND(ValuesEntered,ISNUMBER($C31)),IF($E$19="時間短縮",ROUND(PPMT(VLOOKUP($C31,Rate_table,2,TRUE)/12,1,$R30,$D31)*-1,0),ROUND(PPMT(VLOOKUP($C31,Rate_table,2,TRUE)/12,$B31,DurationOfLoan,LoanAmount-BonusAmount-SUM(extra_payments))*-1,0))+IF(I31=0,0,ROUND(PPMT(VLOOKUP($C31,Rate_table,2,TRUE)/12,COUNTIF($I$27:I31,">0"),DurationofBonus,BonusAmount)*-1,0)),"") -> 90391 | I31: 0 | L31: =IF(AND(ValuesEntered,ISNUMBER($C31)),SUM(E31:H31,J31:K31),"") -> 151991 | O31: =IF(AND(ValuesEntered,ISNUMBER($C31)),D31-F31-J31,"") -> 49189588 | R31: 415
A32: 0 | B32: =ROWS($B$27:B32) -> 6 | C32: =IF(AND(ValuesEntered,R31>0),IF(AND(ISNUMBER(O31),R31>0),EDATE(C31,1),""),"") -> 2017-09-01 | D32: 49189588 | E32: =IF(AND(ValuesEntered,ISNUMBER(C32)),IF($E$19="時間短縮",ROUND(IPMT(VLOOKUP($C32,Rate_table,2,TRUE)/12,1,$R31,$D32)*-1,0),ROUND(IPMT(VLOOKUP($C32,Rate_table,2,TRUE)/12,$B32,DurationOfLoan,LoanAmount-BonusAmount-SUM(extra_payments))*-1,0))+IF($I32=0,0,ROUND(IPMT(VLOOKUP($C32,Rate_table,2,TRUE)/12,COUNTIF($I$27:I32,">0"),DurationofBonus,BonusAmount)*-1,0)),"") -> 61487 | F32: =IF(AND(ValuesEntered,ISNUMBER($C32)),IF($E$19="時間短縮",ROUND(PPMT(VLOOKUP($C32,Rate_table,2,TRUE)/12,1,$R31,$D32)*-1,0),ROUND(PPMT(VLOOKUP($C32,Rate_table,2,TRUE)/12,$B32,DurationOfLoan,LoanAmount-BonusAmount-SUM(extra_payments))*-1,0))+IF(I32=0,0,ROUND(PPMT(VLOOKUP($C32,Rate_table,2,TRUE)/12,COUNTIF($I$27:I32,">0"),DurationofBonus,BonusAmount)*-1,0)),"") -> 90504 | I32: 0 | J32: 200000 | L32: =IF(AND(ValuesEntered,ISNUMBER($C32)),SUM(E32:H32,J32:K32),"") -> 351991 | O32: =IF(AND(ValuesEntered,ISNUMBER($C32)),D32-F32-J32,"") -> 48899084 | R32: 407
A33: 0 | B33: =ROWS($B$27:B33) -> 7 | C33: =IF(AND(ValuesEntered,R32>0),IF(AND(ISNUMBER(O32),R32>0),EDATE(C32,1),""),"") -> 2017-10-01 | D33: 48899084 | E33: =IF(AND(ValuesEntered,ISNUMBER(C33)),IF($E$19="時間短縮",ROUND(IPMT(VLOOKUP($C33,Rate_table,2,TRUE)/12,1,$R32,$D33)*-1,0),ROUND(IPMT(VLOOKUP($C33,Rate_table,2,TRUE)/12,$B33,DurationOfLoan,LoanAmount-BonusAmount-SUM(extra_payments))*-1,0))+IF($I33=0,0,ROUND(IPMT(VLOOKUP($C33,Rate_table,2,TRUE)/12,COUNTIF($I$27:I33,">0"),DurationofBonus,BonusAmount)*-1,0)),"") -> 61124 | F33: =IF(AND(ValuesEntered,ISNUMBER($C33)),IF($E$19="時間短縮",ROUND(PPMT(VLOOKUP($C33,Rate_table,2,TRUE)/12,1,$R32,$D33)*-1,0),ROUND(PPMT(VLOOKUP($C33,Rate_table,2,TRUE)/12,$B33,DurationOfLoan,LoanAmount-BonusAmount-SUM(extra_payments))*-1,0))+IF(I33=0,0,ROUND(PPMT(VLOOKUP($C33,Rate_table,2,TRUE)/12,COUNTIF($I$27:I33,">0"),DurationofBonus,BonusAmount)*-1,0)),"") -> 92237 | I33: 0 | L33: =IF(AND(ValuesEntered,ISNUMBER($C33)),SUM(E33:H33,J33:K33),"") -> 153361 | O33: =IF(AND(ValuesEntered,ISNUMBER($C33)),D33-F33-J33,"") -> 48806847 | R33: 406
A34: 0 | B34: =ROWS($B$27:B34) -> 8 | C34: =IF(AND(ValuesEntered,R33>0),IF(AND(ISNUMBER(O33),R33>0),EDATE(C33,1),""),"") -> 2017-11-01 | D34: 48806847 | E34: =IF(AND(ValuesEntered,ISNUMBER(C34)),IF($E$19="時間短縮",ROUND(IPMT(VLOOKUP($C34,Rate_table,2,TRUE)/12,1,$R33,$D34)*-1,0),ROUND(IPMT(VLOOKUP($C34,Rate_table,2,TRUE)/12,$B34,DurationOfLoan,LoanAmount-BonusAmount-SUM(extra_payments))*-1,0))+IF($I34=0,0,ROUND(IPMT(VLOOKUP($C34,Rate_table,2,TRUE)/12,COUNTIF($I$27:I34,">0"),DurationofBonus,BonusAmount)*-1,0)),"") -> 61009 | F34: =IF(AND(ValuesEntered,ISNUMBER($C34)),IF($E$19="時間短縮",ROUND(PPMT(VLOOKUP($C34,Rate_table,2,TRUE)/12,1,$R33,$D34)*-1,0),ROUND(PPMT(VLOOKUP($C34,Rate_table,2,TRUE)/12,$B34,DurationOfLoan,LoanAmount-BonusAmount-SUM(extra_payments))*-1,0))+IF(I34=0,0,ROUND(PPMT(VLOOKUP($C34,Rate_table,2,TRUE)/12,COUNTIF($I$27:I34,">0"),DurationofBonus,BonusAmount)*-1,0)),"") -> 92352 | I34: 0 | L34: =IF(AND(ValuesEntered,ISNUMBER($C34)),SUM(E34:H34,J34:K34),"") -> 153361 | O34: =IF(AND(ValuesEntered,ISNUMBER($C34)),D34-F34-J34,"") -> 48714495 | R34: 405
A35: 0 | B35: =ROWS($B$27:B35) -> 9 | C35: =IF(AND(ValuesEntered,R34>0),IF(AND(ISNUMBER(O34),R34>0),EDATE(C34,1),""),"") -> 2017-12-01 | D35: 48714495 | E35: =IF(AND(ValuesEntered,ISNUMBER(C35)),IF($E$19="時間短縮",ROUND(IPMT(VLOOKUP($C35,Rate_table,2,TRUE)/12,1,$R34,$D35)*-1,0),ROUND(IPMT(VLOOKUP($C35,Rate_table,2,TRUE)/12,$B35,DurationOfLoan,LoanAmount-BonusAmount-SUM(extra_payments))*-1,0))+IF($I35=0,0,ROUND(IPMT(VLOOKUP($C35,Rate_table,2,TRUE)/12,COUNTIF($I$27:I35,">0"),DurationofBonus,BonusAmount)*-1,0)),"") -> 60893 | F35: =IF(AND(ValuesEntered,ISNUMBER($C35)),IF($E$19="時間短縮",ROUND(PPMT(VLOOKUP($C35,Rate_table,2,TRUE)/12,1,$R34,$D35)*-1,0),ROUND(PPMT(VLOOKUP($C35,Rate_table,2,TRUE)/12,$B35,DurationOfLoan,LoanAmount-BonusAmount-SUM(extra_payments))*-1,0))+IF(I35=0,0,ROUND(PPMT(VLOOKUP($C35,Rate_table,2,TRUE)/12,COUNTIF($I$27:I35,">0"),DurationofBonus,BonusAmount)*-1,0)),"") -> 92468 | I35: 0 | L35: =IF(AND(ValuesEntered,ISNUMBER($C35)),SUM(E35:H35,J35:K35),"") -> 153361 | O35: =IF(AND(ValuesEntered,ISNUMBER($C35)),D35-F35-J35,"") -> 48622027 | R35: 404
A36: 1 | B36: =ROWS($B$27:B36) -> 10 | C36: =IF(AND(ValuesEntered,R35>0),IF(AND(ISNUMBER(O35),R35>0),EDATE(C35,1),""),"") -> 2018-01-01 | D36: 48622027 | E36: =IF(AND(ValuesEntered,ISNUMBER(C36)),IF($E$19="時間短縮",ROUND(IPMT(VLOOKUP($C36,Rate_table,2,TRUE)/12,1,$R35,$D36)*-1,0),ROUND(IPMT(VLOOKUP($C36,Rate_table,2,TRUE)/12,$B36,DurationOfLoan,LoanAmount-BonusAmount-SUM(extra_payments))*-1,0))+IF($I36=0,0,ROUND(IPMT(VLOOKUP($C36,Rate_table,2,TRUE)/12,COUNTIF($I$27:I36,">0"),DurationofBonus,BonusAmount)*-1,0)),"") -> 60778 | F36: =IF(AND(ValuesEntered,ISNUMBER($C36)),IF($E$19="時間短縮",ROUND(PPMT(VLOOKUP($C36,Rate_table,2,TRUE)/12,1,$R35,$D36)*-1,0),ROUND(PPMT(VLOOKUP($C36,Rate_table,2,TRUE)/12,$B36,DurationOfLoan,LoanAmount-BonusAmount-SUM(extra_payments))*-1,0))+IF(I36=0,0,ROUND(PPMT(VLOOKUP($C36,Rate_table,2,TRUE)/12,COUNTIF($I$27:I36,">0"),DurationofBonus,BonusAmount)*-1,0)),"") -> 92583 | I36: 0 | L36: =IF(AND(ValuesEntered,ISNUMBER($C36)),SUM(E36:H36,J36:K36),"") -> 153361 | O36: =IF(AND(ValuesEntered,ISNUMBER($C36)),D36-F36-J36,"") -> 48529444 | R36: 403
A37: 1 | B37: =ROWS($B$27:B37) -> 11 | C37: =IF(AND(ValuesEntered,R36>0),IF(AND(ISNUMBER(O36),R36>0),EDATE(C36,1),""),"") -> 2018-02-01 | D37: 48529444 | E37: =IF(AND(ValuesEntered,ISNUMBER(C37)),IF($E$19="時間短縮",ROUND(IPMT(VLOOKUP($C37,Rate_table,2,TRUE)/12,1,$R36,$D37)*-1,0),ROUND(IPMT(VLOOKUP($C37,Rate_table,2,TRUE)/12,$B37,DurationOfLoan,LoanAmount-BonusAmount-SUM(extra_payments))*-1,0))+IF($I37=0,0,ROUND(IPMT(VLOOKUP($C37,Rate_table,2,TRUE)/12,COUNTIF($I$27:I37,">0"),DurationofBonus,BonusAmount)*-1,0)),"") -> 60662 | F37: =IF(AND(ValuesEntered,ISNUMBER($C37)),IF($E$19="時間短縮",ROUND(PPMT(VLOOKUP($C37,Rate_table,2,TRUE)/12,1,$R36,$D37)*-1,0),ROUND(PPMT(VLOOKUP($C37,Rate_table,2,TRUE)/12,$B37,DurationOfLoan,LoanAmount-BonusAmount-SUM(extra_payments))*-1,0))+IF(I37=0,0,ROUND(PPMT(VLOOKUP($C37,Rate_table,2,TRUE)/12,COUNTIF($I$27:I37,">0"),DurationofBonus,BonusAmount)*-1,0)),"") -> 92699 | I37: 0 | L37: =IF(AND(ValuesEntered,ISNUMBER($C37)),SUM(E37:H37,J37:K37),"") -> 153361 | O37: =IF(AND(ValuesEntered,ISNUMBER($C37)),D37-F37-J37,"") -> 48436745 | R37: 402
A38: 1 | B38: =ROWS($B$27:B38) -> 12 | C38: =IF(AND(ValuesEntered,R37>0),IF(AND(ISNUMBER(O37),R37>0),EDATE(C37,1),""),"") -> 2018-03-01 | D38: 48436745 | E38: =IF(AND(ValuesEntered,ISNUMBER(C38)),IF($E$19="時間短縮",ROUND(IPMT(VLOOKUP($C38,Rate_table,2,TRUE)/12,1,$R37,$D38)*-1,0),ROUND(IPMT(VLOOKUP($C38,Rate_table,2,TRUE)/12,$B38,DurationOfLoan,LoanAmount-BonusAmount-SUM(extra_payments))*-1,0))+IF($I38=0,0,ROUND(IPMT(VLOOKUP($C38,Rate_table,2,TRUE)/12,COUNTIF($I$27:I38,">0"),DurationofBonus,BonusAmount)*-1,0)),"") -> 60546 | F38: =IF(AND(ValuesEntered,ISNUMBER($C38)),IF($E$19="時間短縮",ROUND(PPMT(VLOOKUP($C38,Rate_table,2,TRUE)/12,1,$R37,$D38)*-1,0),ROUND(PPMT(VLOOKUP($C38,Rate_table,2,TRUE)/12,$B38,DurationOfLoan,LoanAmount-BonusAmount-SUM(extra_payments))*-1,0))+IF(I38=0,0,ROUND(PPMT(VLOOKUP($C38,Rate_table,2,TRUE)/12,COUNTIF($I$27:I38,">0"),DurationofBonus,BonusAmount)*-1,0)),"") -> 92815 | I38: 0 | L38: =IF(AND(ValuesEntered,ISNUMBER($C38)),SUM(E38:H38,J38:K38),"") -> 153361 | O38: =IF(AND(ValuesEntered,ISNUMBER($C38)),D38-F38-J38,"") -> 48343930 | R38: 401
A39: 1 | B39: =ROWS($B$27:B39) -> 13 | C39: =IF(AND(ValuesEntered,R38>0),IF(AND(ISNUMBER(O38),R38>0),EDATE(C38,1),""),"") -> 2018-04-01 | D39: 48343930 | E39: =IF(AND(ValuesEntered,ISNUMBER(C39)),IF($E$19="時間短縮",ROUND(IPMT(VLOOKUP($C39,Rate_table,2,TRUE)/12,1,$R38,$D39)*-1,0),ROUND(IPMT(VLOOKUP($C39,Rate_table,2,TRUE)/12,$B39,DurationOfLoan,LoanAmount-BonusAmount-SUM(extra_payments))*-1,0))+IF($I39=0,0,ROUND(IPMT(VLOOKUP($C39,Rate_table,2,TRUE)/12,COUNTIF($I$27:I39,">0"),DurationofBonus,BonusAmount)*-1,0)),"") -> 77451 | F39: =IF(AND(ValuesEntered,ISNUMBER($C39)),IF($E$19="時間短縮",ROUND(PPMT(VLOOKUP($C39,Rate_table,2,TRUE)/12,1,$R38,$D39)*-1,0),ROUND(PPMT(VLOOKUP($C39,Rate_table,2,TRUE)/12,$B39,DurationOfLoan,LoanAmount-BonusAmount-SUM(extra_payments))*-1,0))+IF(I39=0,0,ROUND(PPMT(VLOOKUP($C39,Rate_table,2,TRUE)/12,COUNTIF($I$27:I39,">0"),DurationofBonus,BonusAmount)*-1,0)),"") -> 284913 | I39: 200000 | L39: =IF(AND(ValuesEntered,ISNUMBER($C39)),SUM(E39:H39,J39:K39),"") -> 362364 | O39: =IF(AND(ValuesEntered,ISNUMBER($C39)),D39-F39-J39,"") -> 48059017 | R39: 400
A40: 1 | B40: =ROWS($B$27:B40) -> 14 | C40: =IF(AND(ValuesEntered,R39>0),IF(AND(ISNUMBER(O39),R39>0),EDATE(C39,1),""),"") -> 2018-05-01 | D40: 48059017 | E40: =IF(AND(ValuesEntered,ISNUMBER(C40)),IF($E$19="時間短縮",ROUND(IPMT(VLOOKUP($C40,Rate_table,2,TRUE)/12,1,$R39,$D40)*-1,0),ROUND(IPMT(VLOOKUP($C40,Rate_table,2,TRUE)/12,$B40,DurationOfLoan,LoanAmount-BonusAmount-SUM(extra_payments))*-1,0))+IF($I40=0,0,ROUND(IPMT(VLOOKUP($C40,Rate_table,2,TRUE)/12,COUNTIF($I$27:I40,">0"),DurationofBonus,BonusAmount)*-1,0)),"") -> 60074 | F40: =IF(AND(ValuesEntered,ISNUMBER($C40)),IF($E$19="時間短縮",ROUND(PPMT(VLOOKUP($C40,Rate_table,2,TRUE)/12,1,$R39,$D40)*-1,0),ROUND(PPMT(VLOOKUP($C40,Rate_table,2,TRUE)/12,$B40,DurationOfLoan,LoanAmount-BonusAmount-SUM(extra_payments))*-1,0))+IF(I40=0,0,ROUND(PPMT(VLOOKUP($C40,Rate_table,2,TRUE)/12,COUNTIF($I$27:I40,">0"),DurationofBonus,BonusAmount)*-1,0)),"") -> 92677 | I40: 0 | L40: =IF(AND(ValuesEntered,ISNUMBER($C40)),SUM(E40:H40,J40:K40),"") -> 152751 | O40: =IF(AND(ValuesEntered,ISNUMBER($C40)),D40-F40-J40,"") -> 47966340 | R40: 399
A41: 1 | B41: =ROWS($B$27:B41) -> 15 | C41: =IF(AND(ValuesEntered,R40>0),IF(AND(ISNUMBER(O40),R40>0),EDATE(C40,1),""),"") -> 2018-06-01 | D41: 47966340 | E41: =IF(AND(ValuesEntered,ISNUMBER(C41)),IF($E$19="時間短縮",ROUND(IPMT(VLOOKUP($C41,Rate_table,2,TRUE)/12,1,$R40,$D41)*-1,0),ROUND(IPMT(VLOOKUP($C41,Rate_table,2,TRUE)/12,$B41,DurationOfLoan,LoanAmount-BonusAmount-SUM(extra_payments))*-1,0))+IF($I41=0,0,ROUND(IPMT(VLOOKUP($C41,Rate_table,2,TRUE)/12,COUNTIF($I$27:I41,">0"),DurationofBonus,BonusAmount)*-1,0)),"") -> 59958 | F41: =IF(AND(ValuesEntered,ISNUMBER($C41)),IF($E$19="時間短縮",ROUND(PPMT(VLOOKUP($C41,Rate_table,2,TRUE)/12,1,$R40,$D41)*-1,0),ROUND(PPMT(VLOOKUP($C41,Rate_table,2,TRUE)/12,$B41,DurationOfLoan,LoanAmount-BonusAmount-SUM(extra_payments))*-1,0))+IF(I41=0,0,ROUND(PPMT(VLOOKUP($C41,Rate_table,2,TRUE)/12,COUNTIF($I$27:I41,">0"),DurationofBonus,BonusAmount)*-1,0)),"") -> 92793 | I41: 0 | L41: =IF(AND(ValuesEntered,ISNUMBER($C41)),SUM(E41:H41,J41:K41),"") -> 152751 | O41: =IF(AND(ValuesEntered,ISNUMBER($C41)),D41-F41-J41,"") -> 47873547 | R41: 398
A42: 1 | B42: =ROWS($B$27:B42) -> 16 | C42: =IF(AND(ValuesEntered,R41>0),IF(AND(ISNUMBER(O41),R41>0),EDATE(C41,1),""),"") -> 2018-07-01 | D42: 47873547 | E42: =IF(AND(ValuesEntered,ISNUMBER(C42)),IF($E$19="時間短縮",ROUND(IPMT(VLOOKUP($C42,Rate_table,2,TRUE)/12,1,$R41,$D42)*-1,0),ROUND(IPMT(VLOOKUP($C42,Rate_table,2,TRUE)/12,$B42,DurationOfLoan,LoanAmount-BonusAmount-SUM(extra_payments))*-1,0))+IF($I42=0,0,ROUND(IPMT(VLOOKUP($C42,Rate_table,2,TRUE)/12,COUNTIF($I$27:I42,">0"),DurationofBonus,BonusAmount)*-1,0)),"") -> 76623 | F42: =IF(AND(ValuesEntered,ISNUMBER($C42)),IF($E$19="時間短縮",ROUND(PPMT(VLOOKUP($C42,Rate_table,2,TRUE)/12,1,$R41,$D42)*-1,0),ROUND(PPMT(VLOOKUP($C42,Rate_table,2,TRUE)/12,$B42,DurationOfLoan,LoanAmount-BonusAmount-SUM(extra_payments))*-1,0))+IF(I42=0,0,ROUND(PPMT(VLOOKUP($C42,Rate_table,2,TRUE)/12,COUNTIF($I$27:I42,">0"),DurationofBonus,BonusAmount)*-1,0)),"") -> 285131 | I42: 200000 | L42: =IF(AND(ValuesEntered,ISNUMBER($C42)),SUM(E42:H42,J42:K42),"") -> 361754 | O42: =IF(AND(ValuesEntered,ISNUMBER($C42)),D42-F42-J42,"") -> 47588416 | R42: 397
A43: 1 | B43: =ROWS($B$27:B43) -> 17 | C43: =IF(AND(ValuesEntered,R42>0),IF(AND(ISNUMBER(O42),R42>0),EDATE(C42,1),""),"") -> 2018-08-01 | D43: 47588416 | E43: =IF(AND(ValuesEntered,ISNUMBER(C43)),IF($E$19="時間短縮",ROUND(IPMT(VLOOKUP($C43,Rate_table,2,TRUE)/12,1,$R42,$D43)*-1,0),ROUND(IPMT(VLOOKUP($C43,Rate_table,2,TRUE)/12,$B43,DurationOfLoan,LoanAmount-BonusAmount-SUM(extra_payments))*-1,0))+IF($I43=0,0,ROUND(IPMT(VLOOKUP($C43,Rate_table,2,TRUE)/12,COUNTIF($I$27:I43,">0"),DurationofBonus,BonusAmount)*-1,0)),"") -> 59486 | F43: =IF(AND(ValuesEntered,ISNUMBER($C43)),IF($E$19="時間短縮",ROUND(PPMT(VLOOKUP($C43,Rate_table,2,TRUE)/12,1,$R42,$D43)*-1,0),ROUND(PPMT(VLOOKUP($C43,Rate_table,2,TRUE)/12,$B43,DurationOfLoan,LoanAmount-BonusAmount-SUM(extra_payments))*-1,0))+IF(I43=0,0,ROUND(PPMT(VLOOKUP($C43,Rate_table,2,TRUE)/12,COUNTIF($I$27:I43,">0"),DurationofBonus,BonusAmount)*-1,0)),"") -> 92651 | I43: 0 | L43: =IF(AND(ValuesEntered,ISNUMBER($C43)),SUM(E43:H43,J43:K43),"") -> 152137 | O43: =IF(AND(ValuesEntered,ISNUMBER($C43)),D43-F43-J43,"") -> 47495765 | R43: 396
A44: 1 | B44: =ROWS($B$27:B44) -> 18 | C44: =IF(AND(ValuesEntered,R43>0),IF(AND(ISNUMBER(O43),R43>0),EDATE(C43,1),""),"") -> 2018-09-01 | D44: 47495765 | E44: =IF(AND(ValuesEntered,ISNUMBER(C44)),IF($E$19="時間短縮",ROUND(IPMT(VLOOKUP($C44,Rate_table,2,TRUE)/12,1,$R43,$D44)*-1,0),ROUND(IPMT(VLOOKUP($C44,Rate_table,2,TRUE)/12,$B44,DurationOfLoan,LoanAmount-BonusAmount-SUM(extra_payments))*-1,0))+IF($I44=0,0,ROUND(IPMT(VLOOKUP($C44,Rate_table,2,TRUE)/12,COUNTIF($I$27:I44,">0"),DurationofBonus,BonusAmount)*-1,0)),"") -> 59370 | F44: =IF(AND(ValuesEntered,ISNUMBER($C44)),IF($E$19="時間短縮",ROUND(PPMT(VLOOKUP($C44,Rate_table,2,TRUE)/12,1,$R43,$D44)*-1,0),ROUND(PPMT(VLOOKUP($C44,Rate_table,2,TRUE)/12,$B44,DurationOfLoan,LoanAmount-BonusAmount-SUM(extra_payments))*-1,0))+IF(I44=0,0,ROUND(PPMT(VLOOKUP($C44,Rate_table,2,TRUE)/12,COUNTIF($I$27:I44,">0"),DurationofBonus,BonusAmount)*-1,0)),"") -> 92766 | I44: 0 | L44: =IF(AND(ValuesEntered,ISNUMBER($C44)),SUM(E44:H44,J44:K44),"") -> 152136 | O44: =IF(AND(ValuesEntered,ISNUMBER($C44)),D44-F44-J44,"") -> 47402999 | R44: 395
A45: 1 | B45: =ROWS($B$27:B45) -> 19 | C45: =IF(AND(ValuesEntered,R44>0),IF(AND(ISNUMBER(O44),R44>0),EDATE(C44,1),""),"") -> 2018-10-01 | D45: 47402999 | E45: =IF(AND(ValuesEntered,ISNUMBER(C45)),IF($E$19="時間短縮",ROUND(IPMT(VLOOKUP($C45,Rate_table,2,TRUE)/12,1,$R44,$D45)*-1,0),ROUND(IPMT(VLOOKUP($C45,Rate_table,2,TRUE)/12,$B45,DurationOfLoan,LoanAmount-BonusAmount-SUM(extra_payments))*-1,0))+IF($I45=0,0,ROUND(IPMT(VLOOKUP($C45,Rate_table,2,TRUE)/12,COUNTIF($I$27:I45,">0"),DurationofBonus,BonusAmount)*-1,0)),"") -> 59254 | F45: =IF(AND(ValuesEntered,ISNUMBER($C45)),IF($E$19="時間短縮",ROUND(PPMT(VLOOKUP($C45,Rate_table,2,TRUE)/12,1,$R44,$D45)*-1,0),ROUND(PPMT(VLOOKUP($C45,Rate_table,2,TRUE)/12,$B45,DurationOfLoan,LoanAmount-BonusAmount-SUM(extra_payments))*-1,0))+IF(I45=0,0,ROUND(PPMT(VLOOKUP($C45,Rate_table,2,TRUE)/12,COUNTIF($I$27:I45,">0"),DurationofBonus,BonusAmount)*-1,0)),"") -> 92882 | I45: 0 | L45: =IF(AND(ValuesEntered,ISNUMBER($C45)),SUM(E45:H45,J45:K45),"") -> 152136 | O45: =IF(AND(ValuesEntered,ISNUMBER($C45)),D45-F45-J45,"") -> 47310117 | R45: 394
A46: 1 | B46: =ROWS($B$27:B46) -> 20 | C46: =IF(AND(ValuesEntered,R45>0),IF(AND(ISNUMBER(O45),R45>0),EDATE(C45,1),""),"") -> 2018-11-01 | D46: 47310117 | E46: =IF(AND(ValuesEntered,ISNUMBER(C46)),IF($E$19="時間短縮",ROUND(IPMT(VLOOKUP($C46,Rate_table,2,TRUE)/12,1,$R45,$D46)*-1,0),ROUND(IPMT(VLOOKUP($C46,Rate_table,2,TRUE)/12,$B46,DurationOfLoan,LoanAmount-BonusAmount-SUM(extra_payments))*-1,0))+IF($I46=0,0,ROUND(IPMT(VLOOKUP($C46,Rate_table,2,TRUE)/12,COUNTIF($I$27:I46,">0"),DurationofBonus,BonusAmount)*-1,0)),"") -> 59138 | F46: =IF(AND(ValuesEntered,ISNUMBER($C46)),IF($E$19="時間短縮",ROUND(PPMT(VLOOKUP($C46,Rate_table,2,TRUE)/12,1,$R45,$D46)*-1,0),ROUND(PPMT(VLOOKUP($C46,Rate_table,2,TRUE)/12,$B46,DurationOfLoan,LoanAmount-BonusAmount-SUM(extra_payments))*-1,0))+IF(I46=0,0,ROUND(PPMT(VLOOKUP($C46,Rate_table,2,TRUE)/12,COUNTIF($I$27:I46,">0"),DurationofBonus,BonusAmount)*-1,0)),"") -> 92999 | I46: 0 | L46: =IF(AND(ValuesEntered,ISNUMBER($C46)),SUM(E46:H46,J46:K46),"") -> 152137 | O46: =IF(AND(ValuesEntered,ISNUMBER($C46)),D46-F46-J46,"") -> 47217118 | R46: 393
A47: 1 | B47: =ROWS($B$27:B47) -> 21 | C47: =IF(AND(ValuesEntered,R46>0),IF(AND(ISNUMBER(O46),R46>0),EDATE(C46,1),""),"") -> 2018-12-01 | D47: 47217118 | E47: =IF(AND(ValuesEntered,ISNUMBER(C47)),IF($E$19="時間短縮",ROUND(IPMT(VLOOKUP($C47,Rate_table,2,TRUE)/12,1,$R46,$D47)*-1,0),ROUND(IPMT(VLOOKUP($C47,Rate_table,2,TRUE)/12,$B47,DurationOfLoan,LoanAmount-BonusAmount-SUM(extra_payments))*-1,0))+IF($I47=0,0,ROUND(IPMT(VLOOKUP($C47,Rate_table,2,TRUE)/12,COUNTIF($I$27:I47,">0"),DurationofBonus,BonusAmount)*-1,0)),"") -> 59021 | F47: =IF(AND(ValuesEntered,ISNUMBER($C47)),IF($E$19="時間短縮",ROUND(PPMT(VLOOKUP($C47,Rate_table,2,TRUE)/12,1,$R46,$D47)*-1,0),ROUND(PPMT(VLOOKUP($C47,Rate_table,2,TRUE)/12,$B47,DurationOfLoan,LoanAmount-BonusAmount-SUM(extra_payments))*-1,0))+IF(I47=0,0,ROUND(PPMT(VLOOKUP($C47,Rate_table,2,TRUE)/12,COUNTIF($I$27:I47,">0"),DurationofBonus,BonusAmount)*-1,0)),"") -> 93115 | I47: 0 | L47: =IF(AND(ValuesEntered,ISNUMBER($C47)),SUM(E47:H47,J47:K47),"") -> 152136 | O47: =IF(AND(ValuesEntered,ISNUMBER($C47)),D47-F47-J47,"") -> 47124003 | R47: 392
A48: 2 | B48: =ROWS($B$27:B48) -> 22 | C48: =IF(AND(ValuesEntered,R47>0),IF(AND(ISNUMBER(O47),R47>0),EDATE(C47,1),""),"") -> 2019-01-01 | D48: 47124003 | E48: =IF(AND(ValuesEntered,ISNUMBER(C48)),IF($E$19="時間短縮",ROUND(IPMT(VLOOKUP($C48,Rate_table,2,TRUE)/12,1,$R47,$D48)*-1,0),ROUND(IPMT(VLOOKUP($C48,Rate_table,2,TRUE)/12,$B48,DurationOfLoan,LoanAmount-BonusAmount-SUM(extra_payments))*-1,0))+IF($I48=0,0,ROUND(IPMT(VLOOKUP($C48,Rate_table,2,TRUE)/12,COUNTIF($I$27:I48,">0"),DurationofBonus,BonusAmount)*-1,0)),"") -> 58905 | F48: =IF(AND(ValuesEntered,ISNUMBER($C48)),IF($E$19="時間短縮",ROUND(PPMT(VLOOKUP($C48,Rate_table,2,TRUE)/12,1,$R47,$D48)*-1,0),ROUND(PPMT(VLOOKUP($C48,Rate_table,2,TRUE)/12,$B48,DurationOfLoan,LoanAmount-BonusAmount-SUM(extra_payments))*-1,0))+IF(I48=0,0,ROUND(PPMT(VLOOKUP($C48,Rate_table,2,TRUE)/12,COUNTIF($I$27:I48,">0"),DurationofBonus,BonusAmount)*-1,0)),"") -> 93231 | I48: 0 | L48: =IF(AND(ValuesEntered,ISNUMBER($C48)),SUM(E48:H48,J48:K48),"") -> 152136 | O48: =IF(AND(ValuesEntered,ISNUMBER($C48)),D48-F48-J48,"") -> 47030772 | R48: 391
A49: 2 | B49: =ROWS($B$27:B49) -> 23 | C49: =IF(AND(ValuesEntered,R48>0),IF(AND(ISNUMBER(O48),R48>0),EDATE(C48,1),""),"") -> 2019-02-01 | D49: 47030772 | E49: =IF(AND(ValuesEntered,ISNUMBER(C49)),IF($E$19="時間短縮",ROUND(IPMT(VLOOKUP($C49,Rate_table,2,TRUE)/12,1,$R48,$D49)*-1,0),ROUND(IPMT(VLOOKUP($C49,Rate_table,2,TRUE)/12,$B49,DurationOfLoan,LoanAmount-BonusAmount-SUM(extra_payments))*-1,0))+IF($I49=0,0,ROUND(IPMT(VLOOKUP($C49,Rate_table,2,TRUE)/12,COUNTIF($I$27:I49,">0"),DurationofBonus,BonusAmount)*-1,0)),"") -> 58788 | F49: =IF(AND(ValuesEntered,ISNUMBER($C49)),IF($E$19="時間短縮",ROUND(PPMT(VLOOKUP($C49,Rate_table,2,TRUE)/12,1,$R48,$D49)*-1,0),ROUND(PPMT(VLOOKUP($C49,Rate_table,2,TRUE)/12,$B49,DurationOfLoan,LoanAmount-BonusAmount-SUM(extra_payments))*-1,0))+IF(I49=0,0,ROUND(PPMT(VLOOKUP($C49,Rate_table,2,TRUE)/12,COUNTIF($I$27:I49,">0"),DurationofBonus,BonusAmount)*-1,0)),"") -> 93348 | I49: 0 | L49: =IF(AND(ValuesEntered,ISNUMBER($C49)),SUM(E49:H49,J49:K49),"") -> 152136 | O49: =IF(AND(ValuesEntered,ISNUMBER($C49)),D49-F49-J49,"") -> 46937424 | R49: 390
A50: 2 | B50: =ROWS($B$27:B50) -> 24 | C50: =IF(AND(ValuesEntered,R49>0),IF(AND(ISNUMBER(O49),R49>0),EDATE(C49,1),""),"") -> 2019-03-01 | D50: 46937424 | E50: =IF(AND(ValuesEntered,ISNUMBER(C50)),IF($E$19="時間短縮",ROUND(IPMT(VLOOKUP($C50,Rate_table,2,TRUE)/12,1,$R49,$D50)*-1,0),ROUND(IPMT(VLOOKUP($C50,Rate_table,2,TRUE)/12,$B50,DurationOfLoan,LoanAmount-BonusAmount-SUM(extra_payments))*-1,0))+IF($I50=0,0,ROUND(IPMT(VLOOKUP($C50,Rate_table,2,TRUE)/12,COUNTIF($I$27:I50,">0"),DurationofBonus,BonusAmount)*-1,0)),"") -> 58672 | F50: =IF(AND(ValuesEntered,ISNUMBER($C50)),IF($E$19="時間短縮",ROUND(PPMT(VLOOKUP($C50,Rate_table,2,TRUE)/12,1,$R49,$D50)*-1,0),ROUND(PPMT(VLOOKUP($C50,Rate_table,2,TRUE)/12,$B50,DurationOfLoan,LoanAmount-BonusAmount-SUM(extra_payments))*-1,0))+IF(I50=0,0,ROUND(PPMT(VLOOKUP($C50,Rate_table,2,TRUE)/12,COUNTIF($I$27:I50,">0"),DurationofBonus,BonusAmount)*-1,0)),"") -> 93464 | I50: 0 | L50: =IF(AND(ValuesEntered,ISNUMBER($C50)),SUM(E50:H50,J50:K50),"") -> 152136 | O50: =IF(AND(ValuesEntered,ISNUMBER($C50)),D50-F50-J50,"") -> 46843960 | R50: 389
A51: 2 | B51: =ROWS($B$27:B51) -> 25 | C51: =IF(AND(ValuesEntered,R50>0),IF(AND(ISNUMBER(O50),R50>0),EDATE(C50,1),""),"") -> 2019-04-01 | D51: 46843960 | E51: =IF(AND(ValuesEntered,ISNUMBER(C51)),IF($E$19="時間短縮",ROUND(IPMT(VLOOKUP($C51,Rate_table,2,TRUE)/12,1,$R50,$D51)*-1,0),ROUND(IPMT(VLOOKUP($C51,Rate_table,2,TRUE)/12,$B51,DurationOfLoan,LoanAmount-BonusAmount-SUM(extra_payments))*-1,0))+IF($I51=0,0,ROUND(IPMT(VLOOKUP($C51,Rate_table,2,TRUE)/12,COUNTIF($I$27:I51,">0"),DurationofBonus,BonusAmount)*-1,0)),"") -> 75096 | F51: =IF(AND(ValuesEntered,ISNUMBER($C51)),IF($E$19="時間短縮",ROUND(PPMT(VLOOKUP($C51,Rate_table,2,TRUE)/12,1,$R50,$D51)*-1,0),ROUND(PPMT(VLOOKUP($C51,Rate_table,2,TRUE)/12,$B51,DurationOfLoan,LoanAmount-BonusAmount-SUM(extra_payments))*-1,0))+IF(I51=0,0,ROUND(PPMT(VLOOKUP($C51,Rate_table,2,TRUE)/12,COUNTIF($I$27:I51,">0"),DurationofBonus,BonusAmount)*-1,0)),"") -> 286043 | I51: 200000 | L51: =IF(AND(ValuesEntered,ISNUMBER($C51)),SUM(E51:H51,J51:K51),"") -> 361139 | O51: =IF(AND(ValuesEntered,ISNUMBER($C51)),D51-F51-J51,"") -> 46557917 | R51: 388
A52: 2 | B52: =ROWS($B$27:B52) -> 26 | C52: =IF(AND(ValuesEntered,R51>0),IF(AND(ISNUMBER(O51),R51>0),EDATE(C51,1),""),"") -> 2019-05-01 | D52: 46557917 | E52: =IF(AND(ValuesEntered,ISNUMBER(C52)),IF($E$19="時間短縮",ROUND(IPMT(VLOOKUP($C52,Rate_table,2,TRUE)/12,1,$R51,$D52)*-1,0),ROUND(IPMT(VLOOKUP($C52,Rate_table,2,TRUE)/12,$B52,DurationOfLoan,LoanAmount-BonusAmount-SUM(extra_payments))*-1,0))+IF($I52=0,0,ROUND(IPMT(VLOOKUP($C52,Rate_table,2,TRUE)/12,COUNTIF($I$27:I52,">0"),DurationofBonus,BonusAmount)*-1,0)),"") -> 58197 | F52: =IF(AND(ValuesEntered,ISNUMBER($C52)),IF($E$19="時間短縮",ROUND(PPMT(VLOOKUP($C52,Rate_table,2,TRUE)/12,1,$R51,$D52)*-1,0),ROUND(PPMT(VLOOKUP($C52,Rate_table,2,TRUE)/12,$B52,DurationOfLoan,LoanAmount-BonusAmount-SUM(extra_payments))*-1,0))+IF(I52=0,0,ROUND(PPMT(VLOOKUP($C52,Rate_table,2,TRUE)/12,COUNTIF($I$27:I52,">0"),DurationofBonus,BonusAmount)*-1,0)),"") -> 93312 | I52: 0 | L52: =IF(AND(ValuesEntered,ISNUMBER($C52)),SUM(E52:H52,J52:K52),"") -> 151509 | O52: =IF(AND(ValuesEntered,ISNUMBER($C52)),D52-F52-J52,"") -> 46464605 | R52: 387
A53: 2 | B53: =ROWS($B$27:B53) -> 27 | C53: =IF(AND(ValuesEntered,R52>0),IF(AND(ISNUMBER(O52),R52>0),EDATE(C52,1),""),"") -> 2019-06-01 | D53: 46464605 | E53: =IF(AND(ValuesEntered,ISNUMBER(C53)),IF($E$19="時間短縮",ROUND(IPMT(VLOOKUP($C53,Rate_table,2,TRUE)/12,1,$R52,$D53)*-1,0),ROUND(IPMT(VLOOKUP($C53,Rate_table,2,TRUE)/12,$B53,DurationOfLoan,LoanAmount-BonusAmount-SUM(extra_payments))*-1,0))+IF($I53=0,0,ROUND(IPMT(VLOOKUP($C53,Rate_table,2,TRUE)/12,COUNTIF($I$27:I53,">0"),DurationofBonus,BonusAmount)*-1,0)),"") -> 58081 | F53: =IF(AND(ValuesEntered,ISNUMBER($C53)),IF($E$19="時間短縮",ROUND(PPMT(VLOOKUP($C53,Rate_table,2,TRUE)/12,1,$R52,$D53)*-1,0),ROUND(PPMT(VLOOKUP($C53,Rate_table,2,TRUE)/12,$B53,DurationOfLoan,LoanAmount-BonusAmount-SUM(extra_payments))*-1,0))+IF(I53=0,0,ROUND(PPMT(VLOOKUP($C53,Rate_table,2,TRUE)/12,COUNTIF($I$27:I53,">0"),DurationofBonus,BonusAmount)*-1,0)),"") -> 93429 | I53: 0 | L53: =IF(AND(ValuesEntered,ISNUMBER($C53)),SUM(E53:H53,J53:K53),"") -> 151510 | O53: =IF(AND(ValuesEntered,ISNUMBER($C53)),D53-F53-J53,"") -> 46371176 | R53: 386
A54: 2 | B54: =ROWS($B$27:B54) -> 28 | C54: =IF(AND(ValuesEntered,R53>0),IF(AND(ISNUMBER(O53),R53>0),EDATE(C53,1),""),"") -> 2019-07-01 | D54: 46371176 | E54: =IF(AND(ValuesEntered,ISNUMBER(C54)),IF($E$19="時間短縮",ROUND(IPMT(VLOOKUP($C54,Rate_table,2,TRUE)/12,1,$R53,$D54)*-1,0),ROUND(IPMT(VLOOKUP($C54,Rate_table,2,TRUE)/12,$B54,DurationOfLoan,LoanAmount-BonusAmount-SUM(extra_payments))*-1,0))+IF($I54=0,0,ROUND(IPMT(VLOOKUP($C54,Rate_table,2,TRUE)/12,COUNTIF($I$27:I54,">0"),DurationofBonus,BonusAmount)*-1,0)),"") -> 74264 | F54: =IF(AND(ValuesEntered,ISNUMBER($C54)),IF($E$19="時間短縮",ROUND(PPMT(VLOOKUP($C54,Rate_table,2,TRUE)/12,1,$R53,$D54)*-1,0),ROUND(PPMT(VLOOKUP($C54,Rate_table,2,TRUE)/12,$B54,DurationOfLoan,LoanAmount-BonusAmount-SUM(extra_payments))*-1,0))+IF(I54=0,0,ROUND(PPMT(VLOOKUP($C54,Rate_table,2,TRUE)/12,COUNTIF($I$27:I54,">0"),DurationofBonus,BonusAmount)*-1,0)),"") -> 286248 | I54: 200000 | L54: =IF(AND(ValuesEntered,ISNUMBER($C54)),SUM(E54:H54,J54:K54),"") -> 360512 | O54: =IF(AND(ValuesEntered,ISNUMBER($C54)),D54-F54-J54,"") -> 46084928 | R54: 385
A55: 2 | B55: =ROWS($B$27:B55) -> 29 | C55: =IF(AND(ValuesEntered,R54>0),IF(AND(ISNUMBER(O54),R54>0),EDATE(C54,1),""),"") -> 2019-08-01 | D55: 46084928 | E55: =IF(AND(ValuesEntered,ISNUMBER(C55)),IF($E$19="時間短縮",ROUND(IPMT(VLOOKUP($C55,Rate_table,2,TRUE)/12,1,$R54,$D55)*-1,0),ROUND(IPMT(VLOOKUP($C55,Rate_table,2,TRUE)/12,$B55,DurationOfLoan,LoanAmount-BonusAmount-SUM(extra_payments))*-1,0))+IF($I55=0,0,ROUND(IPMT(VLOOKUP($C55,Rate_table,2,TRUE)/12,COUNTIF($I$27:I55,">0"),DurationofBonus,BonusAmount)*-1,0)),"") -> 57606 | F55: =IF(AND(ValuesEntered,ISNUMBER($C55)),IF($E$19="時間短縮",ROUND(PPMT(VLOOKUP($C55,Rate_table,2,TRUE)/12,1,$R54,$D55)*-1,0),ROUND(PPMT(VLOOKUP($C55,Rate_table,2,TRUE)/12,$B55,DurationOfLoan,LoanAmount-BonusAmount-SUM(extra_payments))*-1,0))+IF(I55=0,0,ROUND(PPMT(VLOOKUP($C55,Rate_table,2,TRUE)/12,COUNTIF($I$27:I55,">0"),DurationofBonus,BonusAmount)*-1,0)),"") -> 93273 | I55: 0 | L55: =IF(AND(ValuesEntered,ISNUMBER($C55)),SUM(E55:H55,J55:K55),"") -> 150879 | O55: =IF(AND(ValuesEntered,ISNUMBER($C55)),D55-F55-J55,"") -> 45991655 | R55: 384
A56: 2 | B56: =ROWS($B$27:B56) -> 30 | C56: =IF(AND(ValuesEntered,R55>0),IF(AND(ISNUMBER(O55),R55>0),EDATE(C55,1),""),"") -> 2019-09-01 | D56: 45991655 | E56: =IF(AND(ValuesEntered,ISNUMBER(C56)),IF($E$19="時間短縮",ROUND(IPMT(VLOOKUP($C56,Rate_table,2,TRUE)/12,1,$R55,$D56)*-1,0),ROUND(IPMT(VLOOKUP($C56,Rate_table,2,TRUE)/12,$B56,DurationOfLoan,LoanAmount-BonusAmount-SUM(extra_payments))*-1,0))+IF($I56=0,0,ROUND(IPMT(VLOOKUP($C56,Rate_table,2,TRUE)/12,COUNTIF($I$27:I56,">0"),DurationofBonus,BonusAmount)*-1,0)),"") -> 57490 | F56: =IF(AND(ValuesEntered,ISNUMBER($C56)),IF($E$19="時間短縮",ROUND(PPMT(VLOOKUP($C56,Rate_table,2,TRUE)/12,1,$R55,$D56)*-1,0),ROUND(PPMT(VLOOKUP($C56,Rate_table,2,TRUE)/12,$B56,DurationOfLoan,LoanAmount-BonusAmount-SUM(extra_payments))*-1,0))+IF(I56=0,0,ROUND(PPMT(VLOOKUP($C56,Rate_table,2,TRUE)/12,COUNTIF($I$27:I56,">0"),DurationofBonus,BonusAmount)*-1,0)),"") -> 93389 | I56: 0 | L56: =IF(AND(ValuesEntered,ISNUMBER($C56)),SUM(E56:H56,J56:K56),"") -> 150879 | O56: =IF(AND(ValuesEntered,ISNUMBER($C56)),D56-F56-J56,"") -> 45898266 | R56: 383
A57: 2 | B57: =ROWS($B$27:B57) -> 31 | C57: =IF(AND(ValuesEntered,R56>0),IF(AND(ISNUMBER(O56),R56>0),EDATE(C56,1),""),"") -> 2019-10-01 | D57: 45898266 | E57: =IF(AND(ValuesEntered,ISNUMBER(C57)),IF($E$19="時間短縮",ROUND(IPMT(VLOOKUP($C57,Rate_table,2,TRUE)/12,1,$R56,$D57)*-1,0),ROUND(IPMT(VLOOKUP($C57,Rate_table,2,TRUE)/12,$B57,DurationOfLoan,LoanAmount-BonusAmount-SUM(extra_payments))*-1,0))+IF($I57=0,0,ROUND(IPMT(VLOOKUP($C57,Rate_table,2,TRUE)/12,COUNTIF($I$27:I57,">0"),DurationofBonus,BonusAmount)*-1,0)),"") -> 57373 | F57: =IF(AND(ValuesEntered,ISNUMBER($C57)),IF($E$19="時間短縮",ROUND(PPMT(VLOOKUP($C57,Rate_table,2,TRUE)/12,1,$R56,$D57)*-1,0),ROUND(PPMT(VLOOKUP($C57,Rate_table,2,TRUE)/12,$B57,DurationOfLoan,LoanAmount-BonusAmount-SUM(extra_payments))*-1,0))+IF(I57=0,0,ROUND(PPMT(VLOOKUP($C57,Rate_table,2,TRUE)/12,COUNTIF($I$27:I57,">0"),DurationofBonus,BonusAmount)*-1,0)),"") -> 93506 | I57: 0 | L57: =IF(AND(ValuesEntered,ISNUMBER($C57)),SUM(E57:H57,J57:K57),"") -> 150879 | O57: =IF(AND(ValuesEntered,ISNUMBER($C57)),D57-F57-J57,"") -> 45804760 | R57: 382
A58: 2 | B58: =ROWS($B$27:B58) -> 32 | C58: =IF(AND(ValuesEntered,R57>0),IF(AND(ISNUMBER(O57),R57>0),EDATE(C57,1),""),"") -> 2019-11-01 | D58: 45804760 | E58: =IF(AND(ValuesEntered,ISNUMBER(C58)),IF($E$19="時間短縮",ROUND(IPMT(VLOOKUP($C58,Rate_table,2,TRUE)/12,1,$R57,$D58)*-1,0),ROUND(IPMT(VLOOKUP($C58,Rate_table,2,TRUE)/12,$B58,DurationOfLoan,LoanAmount-BonusAmount-SUM(extra_payments))*-1,0))+IF($I58=0,0,ROUND(IPMT(VLOOKUP($C58,Rate_table,2,TRUE)/12,COUNTIF($I$27:I58,">0"),DurationofBonus,BonusAmount)*-1,0)),"") -> 57256 | F58: =IF(AND(ValuesEntered,ISNUMBER($C58)),IF($E$19="時間短縮",ROUND(PPMT(VLOOKUP($C58,Rate_table,2,TRUE)/12,1,$R57,$D58)*-1,0),ROUND(PPMT(VLOOKUP($C58,Rate_table,2,TRUE)/12,$B58,DurationOfLoan,LoanAmount-BonusAmount-SUM(extra_payments))*-1,0))+IF(I58=0,0,ROUND(PPMT(VLOOKUP($C58,Rate_table,2,TRUE)/12,COUNTIF($I$27:I58,">0"),DurationofBonus,BonusAmount)*-1,0)),"") -> 93623 | I58: 0 | L58: =IF(AND(ValuesEntered,ISNUMBER($C58)),SUM(E58:H58,J58:K58),"") -> 150879 | O58: =IF(AND(ValuesEntered,ISNUMBER($C58)),D58-F58-J58,"") -> 45711137 | R58: 381
A59: 2 | B59: =ROWS($B$27:B59) -> 33 | C59: =IF(AND(ValuesEntered,R58>0),IF(AND(ISNUMBER(O58),R58>0),EDATE(C58,1),""),"") -> 2019-12-01 | D59: 45711137 | E59: =IF(AND(ValuesEntered,ISNUMBER(C59)),IF($E$19="時間短縮",ROUND(IPMT(VLOOKUP($C59,Rate_table,2,TRUE)/12,1,$R58,$D59)*-1,0),ROUND(IPMT(VLOOKUP($C59,Rate_table,2,TRUE)/12,$B59,DurationOfLoan,LoanAmount-BonusAmount-SUM(extra_payments))*-1,0))+IF($I59=0,0,ROUND(IPMT(VLOOKUP($C59,Rate_table,2,TRUE)/12,COUNTIF($I$27:I59,">0"),DurationofBonus,BonusAmount)*-1,0)),"") -> 57139 | F59: =IF(AND(ValuesEntered,ISNUMBER($C59)),IF($E$19="時間短縮",ROUND(PPMT(VLOOKUP($C59,Rate_table,2,TRUE)/12,1,$R58,$D59)*-1,0),ROUND(PPMT(VLOOKUP($C59,Rate_table,2,TRUE)/12,$B59,DurationOfLoan,LoanAmount-BonusAmount-SUM(extra_payments))*-1,0))+IF(I59=0,0,ROUND(PPMT(VLOOKUP($C59,Rate_table,2,TRUE)/12,COUNTIF($I$27:I59,">0"),DurationofBonus,BonusAmount)*-1,0)),"") -> 93740 | I59: 0 | L59: =IF(AND(ValuesEntered,ISNUMBER($C59)),SUM(E59:H59,J59:K59),"") -> 150879 | O59: =IF(AND(ValuesEntered,ISNUMBER($C59)),D59-F59-J59,"") -> 45617397 | R59: 380
A60: 3 | B60: =ROWS($B$27:B60) -> 34 | C60: =IF(AND(ValuesEntered,R59>0),IF(AND(ISNUMBER(O59),R59>0),EDATE(C59,1),""),"") -> 2020-01-01 | D60: 45617397 | E60: =IF(AND(ValuesEntered,ISNUMBER(C60)),IF($E$19="時間短縮",ROUND(IPMT(VLOOKUP($C60,Rate_table,2,TRUE)/12,1,$R59,$D60)*-1,0),ROUND(IPMT(VLOOKUP($C60,Rate_table,2,TRUE)/12,$B60,DurationOfLoan,LoanAmount-BonusAmount-SUM(extra_payments))*-1,0))+IF($I60=0,0,ROUND(IPMT(VLOOKUP($C60,Rate_table,2,TRUE)/12,COUNTIF($I$27:I60,">0"),DurationofBonus,BonusAmount)*-1,0)),"") -> 57022 | F60: =IF(AND(ValuesEntered,ISNUMBER($C60)),IF($E$19="時間短縮",ROUND(PPMT(VLOOKUP($C60,Rate_table,2,TRUE)/12,1,$R59,$D60)*-1,0),ROUND(PPMT(VLOOKUP($C60,Rate_table,2,TRUE)/12,$B60,DurationOfLoan,LoanAmount-BonusAmount-SUM(extra_payments))*-1,0))+IF(I60=0,0,ROUND(PPMT(VLOOKUP($C60,Rate_table,2,TRUE)/12,COUNTIF($I$27:I60,">0"),DurationofBonus,BonusAmount)*-1,0)),"") -> 93857 | I60: 0 | L60: =IF(AND(ValuesEntered,ISNUMBER($C60)),SUM(E60:H60,J60:K60),"") -> 150879 | O60: =IF(AND(ValuesEntered,ISNUMBER($C60)),D60-F60-J60,"") -> 45523540 | R60: 379
A61: 3 | B61: =ROWS($B$27:B61) -> 35 | C61: =IF(AND(ValuesEntered,R60>0),IF(AND(ISNUMBER(O60),R60>0),EDATE(C60,1),""),"") -> 2020-02-01 | D61: 45523540 | E61: =IF(AND(ValuesEntered,ISNUMBER(C61)),IF($E$19="時間短縮",ROUND(IPMT(VLOOKUP($C61,Rate_table,2,TRUE)/12,1,$R60,$D61)*-1,0),ROUND(IPMT(VLOOKUP($C61,Rate_table,2,TRUE)/12,$B61,DurationOfLoan,LoanAmount-BonusAmount-SUM(extra_payments))*-1,0))+IF($I61=0,0,ROUND(IPMT(VLOOKUP($C61,Rate_table,2,TRUE)/12,COUNTIF($I$27:I61,">0"),DurationofBonus,BonusAmount)*-1,0)),"") -> 56904 | F61: =IF(AND(ValuesEntered,ISNUMBER($C61)),IF($E$19="時間短縮",ROUND(PPMT(VLOOKUP($C61,Rate_table,2,TRUE)/12,1,$R60,$D61)*-1,0),ROUND(PPMT(VLOOKUP($C61,Rate_table,2,TRUE)/12,$B61,DurationOfLoan,LoanAmount-BonusAmount-SUM(extra_payments))*-1,0))+IF(I61=0,0,ROUND(PPMT(VLOOKUP($C61,Rate_table,2,TRUE)/12,COUNTIF($I$27:I61,">0"),DurationofBonus,BonusAmount)*-1,0)),"") -> 93975 | I61: 0 | L61: =IF(AND(ValuesEntered,ISNUMBER($C61)),SUM(E61:H61,J61:K61),"") -> 150879 | O61: =IF(AND(ValuesEntered,ISNUMBER($C61)),D61-F61-J61,"") -> 45429565 | R61: 378
A62: 3 | B62: =ROWS($B$27:B62) -> 36 | C62: =IF(AND(ValuesEntered,R61>0),IF(AND(ISNUMBER(O61),R61>0),EDATE(C61,1),""),"") -> 2020-03-01 | D62: 45429565 | E62: =IF(AND(ValuesEntered,ISNUMBER(C62)),IF($E$19="時間短縮",ROUND(IPMT(VLOOKUP($C62,Rate_table,2,TRUE)/12,1,$R61,$D62)*-1,0),ROUND(IPMT(VLOOKUP($C62,Rate_table,2,TRUE)/12,$B62,DurationOfLoan,LoanAmount-BonusAmount-SUM(extra_payments))*-1,0))+IF($I62=0,0,ROUND(IPMT(VLOOKUP($C62,Rate_table,2,TRUE)/12,COUNTIF($I$27:I62,">0"),DurationofBonus,BonusAmount)*-1,0)),"") -> 56787 | F62: =IF(AND(ValuesEntered,ISNUMBER($C62)),IF($E$19="時間短縮",ROUND(PPMT(VLOOKUP($C62,Rate_table,2,TRUE)/12,1,$R61,$D62)*-1,0),ROUND(PPMT(VLOOKUP($C62,Rate_table,2,TRUE)/12,$B62,DurationOfLoan,LoanAmount-BonusAmount-SUM(extra_payments))*-1,0))+IF(I62=0,0,ROUND(PPMT(VLOOKUP($C62,Rate_table,2,TRUE)/12,COUNTIF($I$27:I62,">0"),DurationofBonus,BonusAmount)*-1,0)),"") -> 94092 | I62: 0 | L62: =IF(AND(ValuesEntered,ISNUMBER($C62)),SUM(E62:H62,J62:K62),"") -> 150879 | O62: =IF(AND(ValuesEntered,ISNUMBER($C62)),D62-F62-J62,"") -> 45335473 | R62: 377
A63: 3 | B63: =ROWS($B$27:B63) -> 37 | C63: =IF(AND(ValuesEntered,R62>0),IF(AND(ISNUMBER(O62),R62>0),EDATE(C62,1),""),"") -> 2020-04-01 | D63: 45335473 | E63: =IF(AND(ValuesEntered,ISNUMBER(C63)),IF($E$19="時間短縮",ROUND(IPMT(VLOOKUP($C63,Rate_table,2,TRUE)/12,1,$R62,$D63)*-1,0),ROUND(IPMT(VLOOKUP($C63,Rate_table,2,TRUE)/12,$B63,DurationOfLoan,LoanAmount-BonusAmount-SUM(extra_payments))*-1,0))+IF($I63=0,0,ROUND(IPMT(VLOOKUP($C63,Rate_table,2,TRUE)/12,COUNTIF($I$27:I63,">0"),DurationofBonus,BonusAmount)*-1,0)),"") -> 72728 | F63: =IF(AND(ValuesEntered,ISNUMBER($C63)),IF($E$19="時間短縮",ROUND(PPMT(VLOOKUP($C63,Rate_table,2,TRUE)/12,1,$R62,$D63)*-1,0),ROUND(PPMT(VLOOKUP($C63,Rate_table,2,TRUE)/12,$B63,DurationOfLoan,LoanAmount-BonusAmount-SUM(extra_payments))*-1,0))+IF(I63=0,0,ROUND(PPMT(VLOOKUP($C63,Rate_table,2,TRUE)/12,COUNTIF($I$27:I63,">0"),DurationofBonus,BonusAmount)*-1,0)),"") -> 287153 | I63: 200000 | L63: =IF(AND(ValuesEntered,ISNUMBER($C63)),SUM(E63:H63,J63:K63),"") -> 359881 | O63: =IF(AND(ValuesEntered,ISNUMBER($C63)),D63-F63-J63,"") -> 45048320 | R63: 376
A64: 3 | B64: =ROWS($B$27:B64) -> 38 | C64: =IF(AND(ValuesEntered,R63>0),IF(AND(ISNUMBER(O63),R63>0),EDATE(C63,1),""),"") -> 2020-05-01 | D64: 45048320 | E64: =IF(AND(ValuesEntered,ISNUMBER(C64)),IF($E$19="時間短縮",ROUND(IPMT(VLOOKUP($C64,Rate_table,2,TRUE)/12,1,$R63,$D64)*-1,0),ROUND(IPMT(VLOOKUP($C64,Rate_table,2,TRUE)/12,$B64,DurationOfLoan,LoanAmount-BonusAmount-SUM(extra_payments))*-1,0))+IF($I64=0,0,ROUND(IPMT(VLOOKUP($C64,Rate_table,2,TRUE)/12,COUNTIF($I$27:I64,">0"),DurationofBonus,BonusAmount)*-1,0)),"") -> 56310 | F64: =IF(AND(ValuesEntered,ISNUMBER($C64)),IF($E$19="時間短縮",ROUND(PPMT(VLOOKUP($C64,Rate_table,2,TRUE)/12,1,$R63,$D64)*-1,0),ROUND(PPMT(VLOOKUP($C64,Rate_table,2,TRUE)/12,$B64,DurationOfLoan,LoanAmount-BonusAmount-SUM(extra_payments))*-1,0))+IF(I64=0,0,ROUND(PPMT(VLOOKUP($C64,Rate_table,2,TRUE)/12,COUNTIF($I$27:I64,">0"),DurationofBonus,BonusAmount)*-1,0)),"") -> 93925 | I64: 0 | L64: =IF(AND(ValuesEntered,ISNUMBER($C64)),SUM(E64:H64,J64:K64),"") -> 150235 | O64: =IF(AND(ValuesEntered,ISNUMBER($C64)),D64-F64-J64,"") -> 44954395 | R64: 375
A65: 3 | B65: =ROWS($B$27:B65) -> 39 | C65: =IF(AND(ValuesEntered,R64>0),IF(AND(ISNUMBER(O64),R64>0),EDATE(C64,1),""),"") -> 2020-06-01 | D65: 44954395 | E65: =IF(AND(ValuesEntered,ISNUMBER(C65)),IF($E$19="時間短縮",ROUND(IPMT(VLOOKUP($C65,Rate_table,2,TRUE)/12,1,$R64,$D65)*-1,0),ROUND(IPMT(VLOOKUP($C65,Rate_table,2,TRUE)/12,$B65,DurationOfLoan,LoanAmount-BonusAmount-SUM(extra_payments))*-1,0))+IF($I65=0,0,ROUND(IPMT(VLOOKUP($C65,Rate_table,2,TRUE)/12,COUNTIF($I$27:I65,">0"),DurationofBonus,BonusAmount)*-1,0)),"") -> 56193 | F65: =IF(AND(ValuesEntered,ISNUMBER($C65)),IF($E$19="時間短縮",ROUND(PPMT(VLOOKUP($C65,Rate_table,2,TRUE)/12,1,$R64,$D65)*-1,0),ROUND(PPMT(VLOOKUP($C65,Rate_table,2,TRUE)/12,$B65,DurationOfLoan,LoanAmount-BonusAmount-SUM(extra_payments))*-1,0))+IF(I65=0,0,ROUND(PPMT(VLOOKUP($C65,Rate_table,2,TRUE)/12,COUNTIF($I$27:I65,">0"),DurationofBonus,BonusAmount)*-1,0)),"") -> 94042 | I65: 0 | L65: =IF(AND(ValuesEntered,ISNUMBER($C65)),SUM(E65:H65,J65:K65),"") -> 150235 | O65: =IF(AND(ValuesEntered,ISNUMBER($C65)),D65-F65-J65,"") -> 44860353 | R65: 374
A66: 3 | B66: =ROWS($B$27:B66) -> 40 | C66: =IF(AND(ValuesEntered,R65>0),IF(AND(ISNUMBER(O65),R65>0),EDATE(C65,1),""),"") -> 2020-07-01 | D66: 44860353 | E66: =IF(AND(ValuesEntered,ISNUMBER(C66)),IF($E$19="時間短縮",ROUND(IPMT(VLOOKUP($C66,Rate_table,2,TRUE)/12,1,$R65,$D66)*-1,0),ROUND(IPMT(VLOOKUP($C66,Rate_table,2,TRUE)/12,$B66,DurationOfLoan,LoanAmount-BonusAmount-SUM(extra_payments))*-1,0))+IF($I66=0,0,ROUND(IPMT(VLOOKUP($C66,Rate_table,2,TRUE)/12,COUNTIF($I$27:I66,">0"),DurationofBonus,BonusAmount)*-1,0)),"") -> 71893 | F66: =IF(AND(ValuesEntered,ISNUMBER($C66)),IF($E$19="時間短縮",ROUND(PPMT(VLOOKUP($C66,Rate_table,2,TRUE)/12,1,$R65,$D66)*-1,0),ROUND(PPMT(VLOOKUP($C66,Rate_table,2,TRUE)/12,$B66,DurationOfLoan,LoanAmount-BonusAmount-SUM(extra_payments))*-1,0))+IF(I66=0,0,ROUND(PPMT(VLOOKUP($C66,Rate_table,2,TRUE)/12,COUNTIF($I$27:I66,">0"),DurationofBonus,BonusAmount)*-1,0)),"") -> 287344 | I66: 200000 | L66: =IF(AND(ValuesEntered,ISNUMBER($C66)),SUM(E66:H66,J66:K66),"") -> 359237 | O66: =IF(AND(ValuesEntered,ISNUMBER($C66)),D66-F66-J66,"") -> 44573009 | R66: 373
A67: 3 | B67: =ROWS($B$27:B67) -> 41 | C67: =IF(AND(ValuesEntered,R66>0),IF(AND(ISNUMBER(O66),R66>0),EDATE(C66,1),""),"") -> 2020-08-01 | D67: 44573009 | E67: =IF(AND(ValuesEntered,ISNUMBER(C67)),IF($E$19="時間短縮",ROUND(IPMT(VLOOKUP($C67,Rate_table,2,TRUE)/12,1,$R66,$D67)*-1,0),ROUND(IPMT(VLOOKUP($C67,Rate_table,2,TRUE)/12,$B67,DurationOfLoan,LoanAmount-BonusAmount-SUM(extra_payments))*-1,0))+IF($I67=0,0,ROUND(IPMT(VLOOKUP($C67,Rate_table,2,TRUE)/12,COUNTIF($I$27:I67,">0"),DurationofBonus,BonusAmount)*-1,0)),"") -> 55716 | F67: =IF(AND(ValuesEntered,ISNUMBER($C67)),IF($E$19="時間短縮",ROUND(PPMT(VLOOKUP($C67,Rate_table,2,TRUE)/12,1,$R66,$D67)*-1,0),ROUND(PPMT(VLOOKUP($C67,Rate_table,2,TRUE)/12,$B67,DurationOfLoan,LoanAmount-BonusAmount-SUM(extra_payments))*-1,0))+IF(I67=0,0,ROUND(PPMT(VLOOKUP($C67,Rate_table,2,TRUE)/12,COUNTIF($I$27:I67,">0"),DurationofBonus,BonusAmount)*-1,0)),"") -> 93871 | I67: 0 | L67: =IF(AND(ValuesEntered,ISNUMBER($C67)),SUM(E67:H67,J67:K67),"") -> 149587 | O67: =IF(AND(ValuesEntered,ISNUMBER($C67)),D67-F67-J67,"") -> 44479138 | R67: 372
A68: 3 | B68: =ROWS($B$27:B68) -> 42 | C68: =IF(AND(ValuesEntered,R67>0),IF(AND(ISNUMBER(O67),R67>0),EDATE(C67,1),""),"") -> 2020-09-01 | D68: 44479138 | E68: =IF(AND(ValuesEntered,ISNUMBER(C68)),IF($E$19="時間短縮",ROUND(IPMT(VLOOKUP($C68,Rate_table,2,TRUE)/12,1,$R67,$D68)*-1,0),ROUND(IPMT(VLOOKUP($C68,Rate_table,2,TRUE)/12,$B68,DurationOfLoan,LoanAmount-BonusAmount-SUM(extra_payments))*-1,0))+IF($I68=0,0,ROUND(IPMT(VLOOKUP($C68,Rate_table,2,TRUE)/12,COUNTIF($I$27:I68,">0"),DurationofBonus,BonusAmount)*-1,0)),"") -> 55599 | F68: =IF(AND(ValuesEntered,ISNUMBER($C68)),IF($E$19="時間短縮",ROUND(PPMT(VLOOKUP($C68,Rate_table,2,TRUE)/12,1,$R67,$D68)*-1,0),ROUND(PPMT(VLOOKUP($C68,Rate_table,2,TRUE)/12,$B68,DurationOfLoan,LoanAmount-BonusAmount-SUM(extra_payments))*-1,0))+IF(I68=0,0,ROUND(PPMT(VLOOKUP($C68,Rate_table,2,TRUE)/12,COUNTIF($I$27:I68,">0"),DurationofBonus,BonusAmount)*-1,0)),"") -> 93988 | I68: 0 | L68: =IF(AND(ValuesEntered,ISNUMBER($C68)),SUM(E68:H68,J68:K68),"") -> 149587 | O68: =IF(AND(ValuesEntered,ISNUMBER($C68)),D68-F68-J68,"") -> 44385150 | R68: 371
A69: 3 | B69: =ROWS($B$27:B69) -> 43 | C69: =IF(AND(ValuesEntered,R68>0),IF(AND(ISNUMBER(O68),R68>0),EDATE(C68,1),""),"") -> 2020-10-01 | D69: 44385150 | E69: =IF(AND(ValuesEntered,ISNUMBER(C69)),IF($E$19="時間短縮",ROUND(IPMT(VLOOKUP($C69,Rate_table,2,TRUE)/12,1,$R68,$D69)*-1,0),ROUND(IPMT(VLOOKUP($C69,Rate_table,2,TRUE)/12,$B69,DurationOfLoan,LoanAmount-BonusAmount-SUM(extra_payments))*-1,0))+IF($I69=0,0,ROUND(IPMT(VLOOKUP($C69,Rate_table,2,TRUE)/12,COUNTIF($I$27:I69,">0"),DurationofBonus,BonusAmount)*-1,0)),"") -> 55481 | F69: =IF(AND(ValuesEntered,ISNUMBER($C69)),IF($E$19="時間短縮",ROUND(PPMT(VLOOKUP($C69,Rate_table,2,TRUE)/12,1,$R68,$D69)*-1,0),ROUND(PPMT(VLOOKUP($C69,Rate_table,2,TRUE)/12,$B69,DurationOfLoan,LoanAmount-BonusAmount-SUM(extra_payments))*-1,0))+IF(I69=0,0,ROUND(PPMT(VLOOKUP($C69,Rate_table,2,TRUE)/12,COUNTIF($I$27:I69,">0"),DurationofBonus,BonusAmount)*-1,0)),"") -> 94106 | I69: 0 | L69: =IF(AND(ValuesEntered,ISNUMBER($C69)),SUM(E69:H69,J69:K69),"") -> 149587 | O69: =IF(AND(ValuesEntered,ISNUMBER($C69)),D69-F69-J69,"") -> 44291044 | R69: 370
A70: 3 | B70: =ROWS($B$27:B70) -> 44 | C70: =IF(AND(ValuesEntered,R69>0),IF(AND(ISNUMBER(O69),R69>0),EDATE(C69,1),""),"") -> 2020-11-01 | D70: 44291044 | E70: =IF(AND(ValuesEntered,ISNUMBER(C70)),IF($E$19="時間短縮",ROUND(IPMT(VLOOKUP($C70,Rate_table,2,TRUE)/12,1,$R69,$D70)*-1,0),ROUND(IPMT(VLOOKUP($C70,Rate_table,2,TRUE)/12,$B70,DurationOfLoan,LoanAmount-BonusAmount-SUM(extra_payments))*-1,0))+IF($I70=0,0,ROUND(IPMT(VLOOKUP($C70,Rate_table,2,TRUE)/12,COUNTIF($I$27:I70,">0"),DurationofBonus,BonusAmount)*-1,0)),"") -> 55364 | F70: =IF(AND(ValuesEntered,ISNUMBER($C70)),IF($E$19="時間短縮",ROUND(PPMT(VLOOKUP($C70,Rate_table,2,TRUE)/12,1,$R69,$D70)*-1,0),ROUND(PPMT(VLOOKUP($C70,Rate_table,2,TRUE)/12,$B70,DurationOfLoan,LoanAmount-BonusAmount-SUM(extra_payments))*-1,0))+IF(I70=0,0,ROUND(PPMT(VLOOKUP($C70,Rate_table,2,TRUE)/12,COUNTIF($I$27:I70,">0"),DurationofBonus,BonusAmount)*-1,0)),"") -> 94223 | I70: 0 | L70: =IF(AND(ValuesEntered,ISNUMBER($C70)),SUM(E70:H70,J70:K70),"") -> 149587 | O70: =IF(AND(ValuesEntered,ISNUMBER($C70)),D70-F70-J70,"") -> 44196821 | R70: 369
A71: 3 | B71: =ROWS($B$27:B71) -> 45 | C71: =IF(AND(ValuesEntered,R70>0),IF(AND(ISNUMBER(O70),R70>0),EDATE(C70,1),""),"") -> 2020-12-01 | D71: 44196821 | E71: =IF(AND(ValuesEntered,ISNUMBER(C71)),IF($E$19="時間短縮",ROUND(IPMT(VLOOKUP($C71,Rate_table,2,TRUE)/12,1,$R70,$D71)*-1,0),ROUND(IPMT(VLOOKUP($C71,Rate_table,2,TRUE)/12,$B71,DurationOfLoan,LoanAmount-BonusAmount-SUM(extra_payments))*-1,0))+IF($I71=0,0,ROUND(IPMT(VLOOKUP($C71,Rate_table,2,TRUE)/12,COUNTIF($I$27:I71,">0"),DurationofBonus,BonusAmount)*-1,0)),"") -> 55246 | F71: =IF(AND(ValuesEntered,ISNUMBER($C71)),IF($E$19="時間短縮",ROUND(PPMT(VLOOKUP($C71,Rate_table,2,TRUE)/12,1,$R70,$D71)*-1,0),ROUND(PPMT(VLOOKUP($C71,Rate_table,2,TRUE)/12,$B71,DurationOfLoan,LoanAmount-BonusAmount-SUM(extra_payments))*-1,0))+IF(I71=0,0,ROUND(PPMT(VLOOKUP($C71,Rate_table,2,TRUE)/12,COUNTIF($I$27:I71,">0"),DurationofBonus,BonusAmount)*-1,0)),"") -> 94341 | I71: 0 | L71: =IF(AND(ValuesEntered,ISNUMBER($C71)),SUM(E71:H71,J71:K71),"") -> 149587 | O71: =IF(AND(ValuesEntered,ISNUMBER($C71)),D71-F71-J71,"") -> 44102480 | R71: 368
A72: 4 | B72: =ROWS($B$27:B72) -> 46 | C72: =IF(AND(ValuesEntered,R71>0),IF(AND(ISNUMBER(O71),R71>0),EDATE(C71,1),""),"") -> 2021-01-01 | D72: 44102480 | E72: =IF(AND(ValuesEntered,ISNUMBER(C72)),IF($E$19="時間短縮",ROUND(IPMT(VLOOKUP($C72,Rate_table,2,TRUE)/12,1,$R71,$D72)*-1,0),ROUND(IPMT(VLOOKUP($C72,Rate_table,2,TRUE)/12,$B72,DurationOfLoan,LoanAmount-BonusAmount-SUM(extra_payments))*-1,0))+IF($I72=0,0,ROUND(IPMT(VLOOKUP($C72,Rate_table,2,TRUE)/12,COUNTIF($I$27:I72,">0"),DurationofBonus,BonusAmount)*-1,0)),"") -> 55128 | F72: =IF(AND(ValuesEntered,ISNUMBER($C72)),IF($E$19="時間短縮",ROUND(PPMT(VLOOKUP($C72,Rate_table,2,TRUE)/12,1,$R71,$D72)*-1,0),ROUND(PPMT(VLOOKUP($C72,Rate_table,2,TRUE)/12,$B72,DurationOfLoan,LoanAmount-BonusAmount-SUM(extra_payments))*-1,0))+IF(I72=0,0,ROUND(PPMT(VLOOKUP($C72,Rate_table,2,TRUE)/12,COUNTIF($I$27:I72,">0"),DurationofBonus,BonusAmount)*-1,0)),"") -> 94459 | I72: 0 | L72: =IF(AND(ValuesEntered,ISNUMBER($C72)),SUM(E72:H72,J72:K72),"") -> 149587 | O72: =IF(AND(ValuesEntered,ISNUMBER($C72)),D72-F72-J72,"") -> 44008021 | R72: 367
A73: 4 | B73: =ROWS($B$27:B73) -> 47 | C73: =IF(AND(ValuesEntered,R72>0),IF(AND(ISNUMBER(O72),R72>0),EDATE(C72,1),""),"") -> 2021-02-01 | D73: 44008021 | E73: =IF(AND(ValuesEntered,ISNUMBER(C73)),IF($E$19="時間短縮",ROUND(IPMT(VLOOKUP($C73,Rate_table,2,TRUE)/12,1,$R72,$D73)*-1,0),ROUND(IPMT(VLOOKUP($C73,Rate_table,2,TRUE)/12,$B73,DurationOfLoan,LoanAmount-BonusAmount-SUM(extra_payments))*-1,0))+IF($I73=0,0,ROUND(IPMT(VLOOKUP($C73,Rate_table,2,TRUE)/12,COUNTIF($I$27:I73,">0"),DurationofBonus,BonusAmount)*-1,0)),"") -> 55010 | F73: =IF(AND(ValuesEntered,ISNUMBER($C73)),IF($E$19="時間短縮",ROUND(PPMT(VLOOKUP($C73,Rate_table,2,TRUE)/12,1,$R72,$D73)*-1,0),ROUND(PPMT(VLOOKUP($C73,Rate_table,2,TRUE)/12,$B73,DurationOfLoan,LoanAmount-BonusAmount-SUM(extra_payments))*-1,0))+IF(I73=0,0,ROUND(PPMT(VLOOKUP($C73,Rate_table,2,TRUE)/12,COUNTIF($I$27:I73,">0"),DurationofBonus,BonusAmount)*-1,0)),"") -> 94577 | I73: 0 | L73: =IF(AND(ValuesEntered,ISNUMBER($C73)),SUM(E73:H73,J73:K73),"") -> 149587 | O73: =IF(AND(ValuesEntered,ISNUMBER($C73)),D73-F73-J73,"") -> 43913444 | R73: 366
A74: 4 | B74: =ROWS($B$27:B74) -> 48 | C74: =IF(AND(ValuesEntered,R73>0),IF(AND(ISNUMBER(O73),R73>0),EDATE(C73,1),""),"") -> 2021-03-01 | D74: 43913444 | E74: =IF(AND(ValuesEntered,ISNUMBER(C74)),IF($E$19="時間短縮",ROUND(IPMT(VLOOKUP($C74,Rate_table,2,TRUE)/12,1,$R73,$D74)*-1,0),ROUND(IPMT(VLOOKUP($C74,Rate_table,2,TRUE)/12,$B74,DurationOfLoan,LoanAmount-BonusAmount-SUM(extra_payments))*-1,0))+IF($I74=0,0,ROUND(IPMT(VLOOKUP($C74,Rate_table,2,TRUE)/12,COUNTIF($I$27:I74,">0"),DurationofBonus,BonusAmount)*-1,0)),"") -> 54892 | F74: =IF(AND(ValuesEntered,ISNUMBER($C74)),IF($E$19="時間短縮",ROUND(PPMT(VLOOKUP($C74,Rate_table,2,TRUE)/12,1,$R73,$D74)*-1,0),ROUND(PPMT(VLOOKUP($C74,Rate_table,2,TRUE)/12,$B74,DurationOfLoan,LoanAmount-BonusAmount-SUM(extra_payments))*-1,0))+IF(I74=0,0,ROUND(PPMT(VLOOKUP($C74,Rate_table,2,TRUE)/12,COUNTIF($I$27:I74,">0"),DurationofBonus,BonusAmount)*-1,0)),"") -> 94695 | I74: 0 | L74: =IF(AND(ValuesEntered,ISNUMBER($C74)),SUM(E74:H74,J74:K74),"") -> 149587 | O74: =IF(AND(ValuesEntered,ISNUMBER($C74)),D74-F74-J74,"") -> 43818749 | R74: 365
A75: 4 | B75: =ROWS($B$27:B75) -> 49 | C75: =IF(AND(ValuesEntered,R74>0),IF(AND(ISNUMBER(O74),R74>0),EDATE(C74,1),""),"") -> 2021-04-01 | D75: 43818749 | E75: =IF(AND(ValuesEntered,ISNUMBER(C75)),IF($E$19="時間短縮",ROUND(IPMT(VLOOKUP($C75,Rate_table,2,TRUE)/12,1,$R74,$D75)*-1,0),ROUND(IPMT(VLOOKUP($C75,Rate_table,2,TRUE)/12,$B75,DurationOfLoan,LoanAmount-BonusAmount-SUM(extra_payments))*-1,0))+IF($I75=0,0,ROUND(IPMT(VLOOKUP($C75,Rate_table,2,TRUE)/12,COUNTIF($I$27:I75,">0"),DurationofBonus,BonusAmount)*-1,0)),"") -> 70350 | F75: =IF(AND(ValuesEntered,ISNUMBER($C75)),IF($E$19="時間短縮",ROUND(PPMT(VLOOKUP($C75,Rate_table,2,TRUE)/12,1,$R74,$D75)*-1,0),ROUND(PPMT(VLOOKUP($C75,Rate_table,2,TRUE)/12,$B75,DurationOfLoan,LoanAmount-BonusAmount-SUM(extra_payments))*-1,0))+IF(I75=0,0,ROUND(PPMT(VLOOKUP($C75,Rate_table,2,TRUE)/12,COUNTIF($I$27:I75,">0"),DurationofBonus,BonusAmount)*-1,0)),"") -> 288240 | I75: 200000 | L75: =IF(AND(ValuesEntered,ISNUMBER($C75)),SUM(E75:H75,J75:K75),"") -> 358590 | O75: =IF(AND(ValuesEntered,ISNUMBER($C75)),D75-F75-J75,"") -> 43530509 | R75: 364
A76: 4 | B76: =ROWS($B$27:B76) -> 50 | C76: =IF(AND(ValuesEntered,R75>0),IF(AND(ISNUMBER(O75),R75>0),EDATE(C75,1),""),"") -> 2021-05-01 | D76: 43530509 | E76: =IF(AND(ValuesEntered,ISNUMBER(C76)),IF($E$19="時間短縮",ROUND(IPMT(VLOOKUP($C76,Rate_table,2,TRUE)/12,1,$R75,$D76)*-1,0),ROUND(IPMT(VLOOKUP($C76,Rate_table,2,TRUE)/12,$B76,DurationOfLoan,LoanAmount-BonusAmount-SUM(extra_payments))*-1,0))+IF($I76=0,0,ROUND(IPMT(VLOOKUP($C76,Rate_table,2,TRUE)/12,COUNTIF($I$27:I76,">0"),DurationofBonus,BonusAmount)*-1,0)),"") -> 54413 | F76: =IF(AND(ValuesEntered,ISNUMBER($C76)),IF($E$19="時間短縮",ROUND(PPMT(VLOOKUP($C76,Rate_table,2,TRUE)/12,1,$R75,$D76)*-1,0),ROUND(PPMT(VLOOKUP($C76,Rate_table,2,TRUE)/12,$B76,DurationOfLoan,LoanAmount-BonusAmount-SUM(extra_payments))*-1,0))+IF(I76=0,0,ROUND(PPMT(VLOOKUP($C76,Rate_table,2,TRUE)/12,COUNTIF($I$27:I76,">0"),DurationofBonus,BonusAmount)*-1,0)),"") -> 94512 | I76: 0 | L76: =IF(AND(ValuesEntered,ISNUMBER($C76)),SUM(E76:H76,J76:K76),"") -> 148925 | O76: =IF(AND(ValuesEntered,ISNUMBER($C76)),D76-F76-J76,"") -> 43435997 | R76: 363
A77: 4 | B77: =ROWS($B$27:B77) -> 51 | C77: =IF(AND(ValuesEntered,R76>0),IF(AND(ISNUMBER(O76),R76>0),EDATE(C76,1),""),"") -> 2021-06-01 | D77: 43435997 | E77: =IF(AND(ValuesEntered,ISNUMBER(C77)),IF($E$19="時間短縮",ROUND(IPMT(VLOOKUP($C77,Rate_table,2,TRUE)/12,1,$R76,$D77)*-1,0),ROUND(IPMT(VLOOKUP($C77,Rate_table,2,TRUE)/12,$B77,DurationOfLoan,LoanAmount-BonusAmount-SUM(extra_payments))*-1,0))+IF($I77=0,0,ROUND(IPMT(VLOOKUP($C77,Rate_table,2,TRUE)/12,COUNTIF($I$27:I77,">0"),DurationofBonus,BonusAmount)*-1,0)),"") -> 54295 | F77: =IF(AND(ValuesEntered,ISNUMBER($C77)),IF($E$19="時間短縮",ROUND(PPMT(VLOOKUP($C77,Rate_table,2,TRUE)/12,1,$R76,$D77)*-1,0),ROUND(PPMT(VLOOKUP($C77,Rate_table,2,TRUE)/12,$B77,DurationOfLoan,LoanAmount-BonusAmount-SUM(extra_payments))*-1,0))+IF(I77=0,0,ROUND(PPMT(VLOOKUP($C77,Rate_table,2,TRUE)/12,COUNTIF($I$27:I77,">0"),DurationofBonus,BonusAmount)*-1,0)),"") -> 94630 | I77: 0 | L77: =IF(AND(ValuesEntered,ISNUMBER($C77)),SUM(E77:H77,J77:K77),"") -> 148925 | O77: =IF(AND(ValuesEntered,ISNUMBER($C77)),D77-F77-J77,"") -> 43341367 | R77: 362
A78: 4 | B78: =ROWS($B$27:B78) -> 52 | C78: =IF(AND(ValuesEntered,R77>0),IF(AND(ISNUMBER(O77),R77>0),EDATE(C77,1),""),"") -> 2021-07-01 | D78: 43341367 | E78: =IF(AND(ValuesEntered,ISNUMBER(C78)),IF($E$19="時間短縮",ROUND(IPMT(VLOOKUP($C78,Rate_table,2,TRUE)/12,1,$R77,$D78)*-1,0),ROUND(IPMT(VLOOKUP($C78,Rate_table,2,TRUE)/12,$B78,DurationOfLoan,LoanAmount-BonusAmount-SUM(extra_payments))*-1,0))+IF($I78=0,0,ROUND(IPMT(VLOOKUP($C78,Rate_table,2,TRUE)/12,COUNTIF($I$27:I78,">0"),DurationofBonus,BonusAmount)*-1,0)),"") -> 69512 | F78: =IF(AND(ValuesEntered,ISNUMBER($C78)),IF($E$19="時間短縮",ROUND(PPMT(VLOOKUP($C78,Rate_table,2,TRUE)/12,1,$R77,$D78)*-1,0),ROUND(PPMT(VLOOKUP($C78,Rate_table,2,TRUE)/12,$B78,DurationOfLoan,LoanAmount-BonusAmount-SUM(extra_payments))*-1,0))+IF(I78=0,0,ROUND(PPMT(VLOOKUP($C78,Rate_table,2,TRUE)/12,COUNTIF($I$27:I78,">0"),DurationofBonus,BonusAmount)*-1,0)),"") -> 288417 | I78: 200000 | L78: =IF(AND(ValuesEntered,ISNUMBER($C78)),SUM(E78:H78,J78:K78),"") -> 357929 | O78: =IF(AND(ValuesEntered,ISNUMBER($C78)),D78-F78-J78,"") -> 43052950 | R78: 361
A79: 4 | B79: =ROWS($B$27:B79) -> 53 | C79: =IF(AND(ValuesEntered,R78>0),IF(AND(ISNUMBER(O78),R78>0),EDATE(C78,1),""),"") -> 2021-08-01 | D79: 43052950 | E79: =IF(AND(ValuesEntered,ISNUMBER(C79)),IF($E$19="時間短縮",ROUND(IPMT(VLOOKUP($C79,Rate_table,2,TRUE)/12,1,$R78,$D79)*-1,0),ROUND(IPMT(VLOOKUP($C79,Rate_table,2,TRUE)/12,$B79,DurationOfLoan,LoanAmount-BonusAmount-SUM(extra_payments))*-1,0))+IF($I79=0,0,ROUND(IPMT(VLOOKUP($C79,Rate_table,2,TRUE)/12,COUNTIF($I$27:I79,">0"),DurationofBonus,BonusAmount)*-1,0)),"") -> 53816 | F79: =IF(AND(ValuesEntered,ISNUMBER($C79)),IF($E$19="時間短縮",ROUND(PPMT(VLOOKUP($C79,Rate_table,2,TRUE)/12,1,$R78,$D79)*-1,0),ROUND(PPMT(VLOOKUP($C79,Rate_table,2,TRUE)/12,$B79,DurationOfLoan,LoanAmount-BonusAmount-SUM(extra_payments))*-1,0))+IF(I79=0,0,ROUND(PPMT(VLOOKUP($C79,Rate_table,2,TRUE)/12,COUNTIF($I$27:I79,">0"),DurationofBonus,BonusAmount)*-1,0)),"") -> 94442 | I79: 0 | L79: =IF(AND(ValuesEntered,ISNUMBER($C79)),SUM(E79:H79,J79:K79),"") -> 148258 | O79: =IF(AND(ValuesEntered,ISNUMBER($C79)),D79-F79-J79,"") -> 42958508 | R79: 360
A80: 4 | B80: =ROWS($B$27:B80) -> 54 | C80: =IF(AND(ValuesEntered,R79>0),IF(AND(ISNUMBER(O79),R79>0),EDATE(C79,1),""),"") -> 2021-09-01 | D80: 42958508 | E80: =IF(AND(ValuesEntered,ISNUMBER(C80)),IF($E$19="時間短縮",ROUND(IPMT(VLOOKUP($C80,Rate_table,2,TRUE)/12,1,$R79,$D80)*-1,0),ROUND(IPMT(VLOOKUP($C80,Rate_table,2,TRUE)/12,$B80,DurationOfLoan,LoanAmount-BonusAmount-SUM(extra_payments))*-1,0))+IF($I80=0,0,ROUND(IPMT(VLOOKUP($C80,Rate_table,2,TRUE)/12,COUNTIF($I$27:I80,">0"),DurationofBonus,BonusAmount)*-1,0)),"") -> 53698 | F80: =IF(AND(ValuesEntered,ISNUMBER($C80)),IF($E$19="時間短縮",ROUND(PPMT(VLOOKUP($C80,Rate_table,2,TRUE)/12,1,$R79,$D80)*-1,0),ROUND(PPMT(VLOOKUP($C80,Rate_table,2,TRUE)/12,$B80,DurationOfLoan,LoanAmount-BonusAmount-SUM(extra_payments))*-1,0))+IF(I80=0,0,ROUND(PPMT(VLOOKUP($C80,Rate_table,2,TRUE)/12,COUNTIF($I$27:I80,">0"),DurationofBonus,BonusAmount)*-1,0)),"") -> 94560 | I80: 0 | L80: =IF(AND(ValuesEntered,ISNUMBER($C80)),SUM(E80:H80,J80:K80),"") -> 148258 | O80: =IF(AND(ValuesEntered,ISNUMBER($C80)),D80-F80-J80,"") -> 42863948 | R80: 359
A81: 4 | B81: =ROWS($B$27:B81) -> 55 | C81: =IF(AND(ValuesEntered,R80>0),IF(AND(ISNUMBER(O80),R80>0),EDATE(C80,1),""),"") -> 2021-10-01 | D81: 42863948 | E81: =IF(AND(ValuesEntered,ISNUMBER(C81)),IF($E$19="時間短縮",ROUND(IPMT(VLOOKUP($C81,Rate_table,2,TRUE)/12,1,$R80,$D81)*-1,0),ROUND(IPMT(VLOOKUP($C81,Rate_table,2,TRUE)/12,$B81,DurationOfLoan,LoanAmount-BonusAmount-SUM(extra_payments))*-1,0))+IF($I81=0,0,ROUND(IPMT(VLOOKUP($C81,Rate_table,2,TRUE)/12,COUNTIF($I$27:I81,">0"),DurationofBonus,BonusAmount)*-1,0)),"") -> 53580 | F81: =IF(AND(ValuesEntered,ISNUMBER($C81)),IF($E$19="時間短縮",ROUND(PPMT(VLOOKUP($C81,Rate_table,2,TRUE)/12,1,$R80,$D81)*-1,0),ROUND(PPMT(VLOOKUP($C81,Rate_table,2,TRUE)/12,$B81,DurationOfLoan,LoanAmount-BonusAmount-SUM(extra_payments))*-1,0))+IF(I81=0,0,ROUND(PPMT(VLOOKUP($C81,Rate_table,2,TRUE)/12,COUNTIF($I$27:I81,">0"),DurationofBonus,BonusAmount)*-1,0)),"") -> 94679 | I81: 0 | L81: =IF(AND(ValuesEntered,ISNUMBER($C81)),SUM(E81:H81,J81:K81),"") -> 148259 | O81: =IF(AND(ValuesEntered,ISNUMBER($C81)),D81-F81-J81,"") -> 42769269 | R81: 358
A82: 4 | B82: =ROWS($B$27:B82) -> 56 | C82: =IF(AND(ValuesEntered,R81>0),IF(AND(ISNUMBER(O81),R81>0),EDATE(C81,1),""),"") -> 2021-11-01 | D82: 42769269 | E82: =IF(AND(ValuesEntered,ISNUMBER(C82)),IF($E$19="時間短縮",ROUND(IPMT(VLOOKUP($C82,Rate_table,2,TRUE)/12,1,$R81,$D82)*-1,0),ROUND(IPMT(VLOOKUP($C82,Rate_table,2,TRUE)/12,$B82,DurationOfLoan,LoanAmount-BonusAmount-SUM(extra_payments))*-1,0))+IF($I82=0,0,ROUND(IPMT(VLOOKUP($C82,Rate_table,2,TRUE)/12,COUNTIF($I$27:I82,">0"),DurationofBonus,BonusAmount)*-1,0)),"") -> 53462 | F82: =IF(AND(ValuesEntered,ISNUMBER($C82)),IF($E$19="時間短縮",ROUND(PPMT(VLOOKUP($C82,Rate_table,2,TRUE)/12,1,$R81,$D82)*-1,0),ROUND(PPMT(VLOOKUP($C82,Rate_table,2,TRUE)/12,$B82,DurationOfLoan,LoanAmount-BonusAmount-SUM(extra_payments))*-1,0))+IF(I82=0,0,ROUND(PPMT(VLOOKUP($C82,Rate_table,2,TRUE)/12,COUNTIF($I$27:I82,">0"),DurationofBonus,BonusAmount)*-1,0)),"") -> 94797 | I82: 0 | L82: =IF(AND(ValuesEntered,ISNUMBER($C82)),SUM(E82:H82,J82:K82),"") -> 148259 | O82: =IF(AND(ValuesEntered,ISNUMBER($C82)),D82-F82-J82,"") -> 42674472 | R82: 357
A83: 4 | B83: =ROWS($B$27:B83) -> 57 | C83: =IF(AND(ValuesEntered,R82>0),IF(AND(ISNUMBER(O82),R82>0),EDATE(C82,1),""),"") -> 2021-12-01 | D83: 42674472 | E83: =IF(AND(ValuesEntered,ISNUMBER(C83)),IF($E$19="時間短縮",ROUND(IPMT(VLOOKUP($C83,Rate_table,2,TRUE)/12,1,$R82,$D83)*-1,0),ROUND(IPMT(VLOOKUP($C83,Rate_table,2,TRUE)/12,$B83,DurationOfLoan,LoanAmount-BonusAmount-SUM(extra_payments))*-1,0))+IF($I83=0,0,ROUND(IPMT(VLOOKUP($C83,Rate_table,2,TRUE)/12,COUNTIF($I$27:I83,">0"),DurationofBonus,BonusAmount)*-1,0)),"") -> 53343 | F83: =IF(AND(ValuesEntered,ISNUMBER($C83)),IF($E$19="時間短縮",ROUND(PPMT(VLOOKUP($C83,Rate_table,2,TRUE)/12,1,$R82,$D83)*-1,0),ROUND(PPMT(VLOOKUP($C83,Rate_table,2,TRUE)/12,$B83,DurationOfLoan,LoanAmount-BonusAmount-SUM(extra_payments))*-1,0))+IF(I83=0,0,ROUND(PPMT(VLOOKUP($C83,Rate_table,2,TRUE)/12,COUNTIF($I$27:I83,">0"),DurationofBonus,BonusAmount)*-1,0)),"") -> 94915 | I83: 0 | L83: =IF(AND(ValuesEntered,ISNUMBER($C83)),SUM(E83:H83,J83:K83),"") -> 148258 | O83: =IF(AND(ValuesEntered,ISNUMBER($C83)),D83-F83-J83,"") -> 42579557 | R83: 356
A84: 5 | B84: =ROWS($B$27:B84) -> 58 | C84: =IF(AND(ValuesEntered,R83>0),IF(AND(ISNUMBER(O83),R83>0),EDATE(C83,1),""),"") -> 2022-01-01 | D84: 42579557 | E84: =IF(AND(ValuesEntered,ISNUMBER(C84)),IF($E$19="時間短縮",ROUND(IPMT(VLOOKUP($C84,Rate_table,2,TRUE)/12,1,$R83,$D84)*-1,0),ROUND(IPMT(VLOOKUP($C84,Rate_table,2,TRUE)/12,$B84,DurationOfLoan,LoanAmount-BonusAmount-SUM(extra_payments))*-1,0))+IF($I84=0,0,ROUND(IPMT(VLOOKUP($C84,Rate_table,2,TRUE)/12,COUNTIF($I$27:I84,">0"),DurationofBonus,BonusAmount)*-1,0)),"") -> 53224 | F84: =IF(AND(ValuesEntered,ISNUMBER($C84)),IF($E$19="時間短縮",ROUND(PPMT(VLOOKUP($C84,Rate_table,2,TRUE)/12,1,$R83,$D84)*-1,0),ROUND(PPMT(VLOOKUP($C84,Rate_table,2,TRUE)/12,$B84,DurationOfLoan,LoanAmount-BonusAmount-SUM(extra_payments))*-1,0))+IF(I84=0,0,ROUND(PPMT(VLOOKUP($C84,Rate_table,2,TRUE)/12,COUNTIF($I$27:I84,">0"),DurationofBonus,BonusAmount)*-1,0)),"") -> 95034 | I84: 0 | L84: =IF(AND(ValuesEntered,ISNUMBER($C84)),SUM(E84:H84,J84:K84),"") -> 148258 | O84: =IF(AND(ValuesEntered,ISNUMBER($C84)),D84-F84-J84,"") -> 42484523 | R84: 355
A85: 5 | B85: =ROWS($B$27:B85) -> 59 | C85: =IF(AND(ValuesEntered,R84>0),IF(AND(ISNUMBER(O84),R84>0),EDATE(C84,1),""),"") -> 2022-02-01 | D85: 42484523 | E85: =IF(AND(ValuesEntered,ISNUMBER(C85)),IF($E$19="時間短縮",ROUND(IPMT(VLOOKUP($C85,Rate_table,2,TRUE)/12,1,$R84,$D85)*-1,0),ROUND(IPMT(VLOOKUP($C85,Rate_table,2,TRUE)/12,$B85,DurationOfLoan,LoanAmount-BonusAmount-SUM(extra_payments))*-1,0))+IF($I85=0,0,ROUND(IPMT(VLOOKUP($C85,Rate_table,2,TRUE)/12,COUNTIF($I$27:I85,">0"),DurationofBonus,BonusAmount)*-1,0)),"") -> 53106 | F85: =IF(AND(ValuesEntered,ISNUMBER($C85)),IF($E$19="時間短縮",ROUND(PPMT(VLOOKUP($C85,Rate_table,2,TRUE)/12,1,$R84,$D85)*-1,0),ROUND(PPMT(VLOOKUP($C85,Rate_table,2,TRUE)/12,$B85,DurationOfLoan,LoanAmount-BonusAmount-SUM(extra_payments))*-1,0))+IF(I85=0,0,ROUND(PPMT(VLOOKUP($C85,Rate_table,2,TRUE)/12,COUNTIF($I$27:I85,">0"),DurationofBonus,BonusAmount)*-1,0)),"") -> 95153 | I85: 0 | L85: =IF(AND(ValuesEntered,ISNUMBER($C85)),SUM(E85:H85,J85:K85),"") -> 148259 | O85: =IF(AND(ValuesEntered,ISNUMBER($C85)),D85-F85-J85,"") -> 42389370 | R85: 354
A86: 5 | B86: =ROWS($B$27:B86) -> 60 | C86: =IF(AND(ValuesEntered,R85>0),IF(AND(ISNUMBER(O85),R85>0),EDATE(C85,1),""),"") -> 2022-03-01 | D86: 42389370 | E86: =IF(AND(ValuesEntered,ISNUMBER(C86)),IF($E$19="時間短縮",ROUND(IPMT(VLOOKUP($C86,Rate_table,2,TRUE)/12,1,$R85,$D86)*-1,0),ROUND(IPMT(VLOOKUP($C86,Rate_table,2,TRUE)/12,$B86,DurationOfLoan,LoanAmount-BonusAmount-SUM(extra_payments))*-1,0))+IF($I86=0,0,ROUND(IPMT(VLOOKUP($C86,Rate_table,2,TRUE)/12,COUNTIF($I$27:I86,">0"),DurationofBonus,BonusAmount)*-1,0)),"") -> 52987 | F86: =IF(AND(ValuesEntered,ISNUMBER($C86)),IF($E$19="時間短縮",ROUND(PPMT(VLOOKUP($C86,Rate_table,2,TRUE)/12,1,$R85,$D86)*-1,0),ROUND(PPMT(VLOOKUP($C86,Rate_table,2,TRUE)/12,$B86,DurationOfLoan,LoanAmount-BonusAmount-SUM(extra_payments))*-1,0))+IF(I86=0,0,ROUND(PPMT(VLOOKUP($C86,Rate_table,2,TRUE)/12,COUNTIF($I$27:I86,">0"),DurationofBonus,BonusAmount)*-1,0)),"") -> 95272 | I86: 0 | L86: =IF(AND(ValuesEntered,ISNUMBER($C86)),SUM(E86:H86,J86:K86),"") -> 148259 | O86: =IF(AND(ValuesEntered,ISNUMBER($C86)),D86-F86-J86,"") -> 42294098 | R86: 353
A87: 5 | B87: =ROWS($B$27:B87) -> 61 | C87: =IF(AND(ValuesEntered,R86>0),IF(AND(ISNUMBER(O86),R86>0),EDATE(C86,1),""),"") -> 2022-04-01 | D87: 42294098 | E87: =IF(AND(ValuesEntered,ISNUMBER(C87)),IF($E$19="時間短縮",ROUND(IPMT(VLOOKUP($C87,Rate_table,2,TRUE)/12,1,$R86,$D87)*-1,0),ROUND(IPMT(VLOOKUP($C87,Rate_table,2,TRUE)/12,$B87,DurationOfLoan,LoanAmount-BonusAmount-SUM(extra_payments))*-1,0))+IF($I87=0,0,ROUND(IPMT(VLOOKUP($C87,Rate_table,2,TRUE)/12,COUNTIF($I$27:I87,">0"),DurationofBonus,BonusAmount)*-1,0)),"") -> 67961 | F87: =IF(AND(ValuesEntered,ISNUMBER($C87)),IF($E$19="時間短縮",ROUND(PPMT(VLOOKUP($C87,Rate_table,2,TRUE)/12,1,$R86,$D87)*-1,0),ROUND(PPMT(VLOOKUP($C87,Rate_table,2,TRUE)/12,$B87,DurationOfLoan,LoanAmount-BonusAmount-SUM(extra_payments))*-1,0))+IF(I87=0,0,ROUND(PPMT(VLOOKUP($C87,Rate_table,2,TRUE)/12,COUNTIF($I$27:I87,">0"),DurationofBonus,BonusAmount)*-1,0)),"") -> 289301 | I87: 200000 | L87: =IF(AND(ValuesEntered,ISNUMBER($C87)),SUM(E87:H87,J87:K87),"") -> 357262 | O87: =IF(AND(ValuesEntered,ISNUMBER($C87)),D87-F87-J87,"") -> 42004797 | R87: 352
A88: 5 | B88: =ROWS($B$27:B88) -> 62 | C88: =IF(AND(ValuesEntered,R87>0),IF(AND(ISNUMBER(O87),R87>0),EDATE(C87,1),""),"") -> 2022-05-01 | D88: 42004797 | E88: =IF(AND(ValuesEntered,ISNUMBER(C88)),IF($E$19="時間短縮",ROUND(IPMT(VLOOKUP($C88,Rate_table,2,TRUE)/12,1,$R87,$D88)*-1,0),ROUND(IPMT(VLOOKUP($C88,Rate_table,2,TRUE)/12,$B88,DurationOfLoan,LoanAmount-BonusAmount-SUM(extra_payments))*-1,0))+IF($I88=0,0,ROUND(IPMT(VLOOKUP($C88,Rate_table,2,TRUE)/12,COUNTIF($I$27:I88,">0"),DurationofBonus,BonusAmount)*-1,0)),"") -> 52506 | F88: =IF(AND(ValuesEntered,ISNUMBER($C88)),IF($E$19="時間短縮",ROUND(PPMT(VLOOKUP($C88,Rate_table,2,TRUE)/12,1,$R87,$D88)*-1,0),ROUND(PPMT(VLOOKUP($C88,Rate_table,2,TRUE)/12,$B88,DurationOfLoan,LoanAmount-BonusAmount-SUM(extra_payments))*-1,0))+IF(I88=0,0,ROUND(PPMT(VLOOKUP($C88,Rate_table,2,TRUE)/12,COUNTIF($I$27:I88,">0"),DurationofBonus,BonusAmount)*-1,0)),"") -> 95071 | I88: 0 | L88: =IF(AND(ValuesEntered,ISNUMBER($C88)),SUM(E88:H88,J88:K88),"") -> 147577 | O88: =IF(AND(ValuesEntered,ISNUMBER($C88)),D88-F88-J88,"") -> 41909726 | R88: 351
A89: 5 | B89: =ROWS($B$27:B89) -> 63 | C89: =IF(AND(ValuesEntered,R88>0),IF(AND(ISNUMBER(O88),R88>0),EDATE(C88,1),""),"") -> 2022-06-01 | D89: 41909726 | E89: =IF(AND(ValuesEntered,ISNUMBER(C89)),IF($E$19="時間短縮",ROUND(IPMT(VLOOKUP($C89,Rate_table,2,TRUE)/12,1,$R88,$D89)*-1,0),ROUND(IPMT(VLOOKUP($C89,Rate_table,2,TRUE)/12,$B89,DurationOfLoan,LoanAmount-BonusAmount-SUM(extra_payments))*-1,0))+IF($I89=0,0,ROUND(IPMT(VLOOKUP($C89,Rate_table,2,TRUE)/12,COUNTIF($I$27:I89,">0"),DurationofBonus,BonusAmount)*-1,0)),"") -> 52387 | F89: =IF(AND(ValuesEntered,ISNUMBER($C89)),IF($E$19="時間短縮",ROUND(PPMT(VLOOKUP($C89,Rate_table,2,TRUE)/12,1,$R88,$D89)*-1,0),ROUND(PPMT(VLOOKUP($C89,Rate_table,2,TRUE)/12,$B89,DurationOfLoan,LoanAmount-BonusAmount-SUM(extra_payments))*-1,0))+IF(I89=0,0,ROUND(PPMT(VLOOKUP($C89,Rate_table,2,TRUE)/12,COUNTIF($I$27:I89,">0"),DurationofBonus,BonusAmount)*-1,0)),"") -> 95190 | I89: 0 | L89: =IF(AND(ValuesEntered,ISNUMBER($C89)),SUM(E89:H89,J89:K89),"") -> 147577 | O89: =IF(AND(ValuesEntered,ISNUMBER($C89)),D89-F89-J89,"") -> 41814536 | R89: 350
A90: 5 | B90: =ROWS($B$27:B90) -> 64 | C90: =IF(AND(ValuesEntered,R89>0),IF(AND(ISNUMBER(O89),R89>0),EDATE(C89,1),""),"") -> 2022-07-01 | D90: 41814536 | E90: =IF(AND(ValuesEntered,ISNUMBER(C90)),IF($E$19="時間短縮",ROUND(IPMT(VLOOKUP($C90,Rate_table,2,TRUE)/12,1,$R89,$D90)*-1,0),ROUND(IPMT(VLOOKUP($C90,Rate_table,2,TRUE)/12,$B90,DurationOfLoan,LoanAmount-BonusAmount-SUM(extra_payments))*-1,0))+IF($I90=0,0,ROUND(IPMT(VLOOKUP($C90,Rate_table,2,TRUE)/12,COUNTIF($I$27:I90,">0"),DurationofBonus,BonusAmount)*-1,0)),"") -> 67118 | F90: =IF(AND(ValuesEntered,ISNUMBER($C90)),IF($E$19="時間短縮",ROUND(PPMT(VLOOKUP($C90,Rate_table,2,TRUE)/12,1,$R89,$D90)*-1,0),ROUND(PPMT(VLOOKUP($C90,Rate_table,2,TRUE)/12,$B90,DurationOfLoan,LoanAmount-BonusAmount-SUM(extra_payments))*-1,0))+IF(I90=0,0,ROUND(PPMT(VLOOKUP($C90,Rate_table,2,TRUE)/12,COUNTIF($I$27:I90,">0"),DurationofBonus,BonusAmount)*-1,0)),"") -> 289461 | I90: 200000 | L90: =IF(AND(ValuesEntered,ISNUMBER($C90)),SUM(E90:H90,J90:K90),"") -> 356579 | O90: =IF(AND(ValuesEntered,ISNUMBER($C90)),D90-F90-J90,"") -> 41525075 | R90: 349
A91: 5 | B91: =ROWS($B$27:B91) -> 65 | C91: =IF(AND(ValuesEntered,R90>0),IF(AND(ISNUMBER(O90),R90>0),EDATE(C90,1),""),"") -> 2022-08-01 | D91: 41525075 | E91: =IF(AND(ValuesEntered,ISNUMBER(C91)),IF($E$19="時間短縮",ROUND(IPMT(VLOOKUP($C91,Rate_table,2,TRUE)/12,1,$R90,$D91)*-1,0),ROUND(IPMT(VLOOKUP($C91,Rate_table,2,TRUE)/12,$B91,DurationOfLoan,LoanAmount-BonusAmount-SUM(extra_payments))*-1,0))+IF($I91=0,0,ROUND(IPMT(VLOOKUP($C91,Rate_table,2,TRUE)/12,COUNTIF($I$27:I91,">0"),DurationofBonus,BonusAmount)*-1,0)),"") -> 51906 | F91: =IF(AND(ValuesEntered,ISNUMBER($C91)),IF($E$19="時間短縮",ROUND(PPMT(VLOOKUP($C91,Rate_table,2,TRUE)/12,1,$R90,$D91)*-1,0),ROUND(PPMT(VLOOKUP($C91,Rate_table,2,TRUE)/12,$B91,DurationOfLoan,LoanAmount-BonusAmount-SUM(extra_payments))*-1,0))+IF(I91=0,0,ROUND(PPMT(VLOOKUP($C91,Rate_table,2,TRUE)/12,COUNTIF($I$27:I91,">0"),DurationofBonus,BonusAmount)*-1,0)),"") -> 94984 | I91: 0 | L91: =IF(AND(ValuesEntered,ISNUMBER($C91)),SUM(E91:H91,J91:K91),"") -> 146890 | O91: =IF(AND(ValuesEntered,ISNUMBER($C91)),D91-F91-J91,"") -> 41430091 | R91: 348
A92: =ABS(YEAR($C$27)-YEAR(C92)) -> 5 | B92: =ROWS($B$27:B92) -> 66 | C92: =IF(AND(ValuesEntered,R91>0),IF(AND(ISNUMBER(O91),R91>0),EDATE(C91,1),""),"") -> 2022-09-01 | D92: 41430091 | E92: =IF(AND(ValuesEntered,ISNUMBER(C92)),IF($E$19="時間短縮",ROUND(IPMT(VLOOKUP($C92,Rate_table,2,TRUE)/12,1,$R91,$D92)*-1,0),ROUND(IPMT(VLOOKUP($C92,Rate_table,2,TRUE)/12,$B92,DurationOfLoan,LoanAmount-BonusAmount-SUM(extra_payments))*-1,0))+IF($I92=0,0,ROUND(IPMT(VLOOKUP($C92,Rate_table,2,TRUE)/12,COUNTIF($I$27:I92,">0"),DurationofBonus,BonusAmount)*-1,0)),"") -> 51788 | F92: =IF(AND(ValuesEntered,ISNUMBER($C92)),IF($E$19="時間短縮",ROUND(PPMT(VLOOKUP($C92,Rate_table,2,TRUE)/12,1,$R91,$D92)*-1,0),ROUND(PPMT(VLOOKUP($C92,Rate_table,2,TRUE)/12,$B92,DurationOfLoan,LoanAmount-BonusAmount-SUM(extra_payments))*-1,0))+IF(I92=0,0,ROUND(PPMT(VLOOKUP($C92,Rate_table,2,TRUE)/12,COUNTIF($I$27:I92,">0"),DurationofBonus,BonusAmount)*-1,0)),"") -> 95103 | I92: =IF(ISNUMBER(C92)=FALSE,"",IF(AND(D92>$E$15,OR(MONTH(C92)=$E$16,MONTH(C92)=$E$17,MONTH(C92)=$E$18)),$E$15,0)) -> 0 | L92: =IF(AND(ValuesEntered,ISNUMBER($C92)),SUM(E92:H92,J92:K92),"") -> 146891 | O92: =IF(AND(ValuesEntered,ISNUMBER($C92)),D92-F92-J92,"") -> 41334988 | R92: =IF(AND($J92>0,$E$19="時間短縮"),Remain_Month,$R91-1) -> 347
A93: 5 | B93: =ROWS($B$27:B93) -> 67 | C93: =IF(AND(ValuesEntered,R92>0),IF(AND(ISNUMBER(O92),R92>0),EDATE(C92,1),""),"") -> 2022-10-01 | D93: =IF(C93="",0,O92) -> 41334988 | E93: =IF(AND(ValuesEntered,ISNUMBER(C93)),IF($E$19="時間短縮",ROUND(IPMT(VLOOKUP($C93,Rate_table,2,TRUE)/12,1,$R92,$D93)*-1,0),ROUND(IPMT(VLOOKUP($C93,Rate_table,2,TRUE)/12,$B93,DurationOfLoan,LoanAmount-BonusAmount-SUM(extra_payments))*-1,0))+IF($I93=0,0,ROUND(IPMT(VLOOKUP($C93,Rate_table,2,TRUE)/12,COUNTIF($I$27:I93,">0"),DurationofBonus,BonusAmount)*-1,0)),"") -> 51669 | F93: =IF(AND(ValuesEntered,ISNUMBER($C93)),IF($E$19="時間短縮",ROUND(PPMT(VLOOKUP($C93,Rate_table,2,TRUE)/12,1,$R92,$D93)*-1,0),ROUND(PPMT(VLOOKUP($C93,Rate_table,2,TRUE)/12,$B93,DurationOfLoan,LoanAmount-BonusAmount-SUM(extra_payments))*-1,0))+IF(I93=0,0,ROUND(PPMT(VLOOKUP($C93,Rate_table,2,TRUE)/12,COUNTIF($I$27:I93,">0"),DurationofBonus,BonusAmount)*-1,0)),"") -> 95222 | I93: 0 | L93: =IF(AND(ValuesEntered,ISNUMBER($C93)),SUM(E93:H93,J93:K93),"") -> 146891 | O93: =IF(AND(ValuesEntered,ISNUMBER($C93)),D93-F93-J93,"") -> 41239766 | R93: 346
A94: 5 | B94: =ROWS($B$27:B94) -> 68 | C94: =IF(AND(ValuesEntered,R93>0),IF(AND(ISNUMBER(O93),R93>0),EDATE(C93,1),""),"") -> 2022-11-01 | D94: 41239766 | E94: =IF(AND(ValuesEntered,ISNUMBER(C94)),IF($E$19="時間短縮",ROUND(IPMT(VLOOKUP($C94,Rate_table,2,TRUE)/12,1,$R93,$D94)*-1,0),ROUND(IPMT(VLOOKUP($C94,Rate_table,2,TRUE)/12,$B94,DurationOfLoan,LoanAmount-BonusAmount-SUM(extra_payments))*-1,0))+IF($I94=0,0,ROUND(IPMT(VLOOKUP($C94,Rate_table,2,TRUE)/12,COUNTIF($I$27:I94,">0"),DurationofBonus,BonusAmount)*-1,0)),"") -> 51550 | F94: =IF(AND(ValuesEntered,ISNUMBER($C94)),IF($E$19="時間短縮",ROUND(PPMT(VLOOKUP($C94,Rate_table,2,TRUE)/12,1,$R93,$D94)*-1,0),ROUND(PPMT(VLOOKUP($C94,Rate_table,2,TRUE)/12,$B94,DurationOfLoan,LoanAmount-BonusAmount-SUM(extra_payments))*-1,0))+IF(I94=0,0,ROUND(PPMT(VLOOKUP($C94,Rate_table,2,TRUE)/12,COUNTIF($I$27:I94,">0"),DurationofBonus,BonusAmount)*-1,0)),"") -> 95341 | I94: 0 | L94: =IF(AND(ValuesEntered,ISNUMBER($C94)),SUM(E94:H94,J94:K94),"") -> 146891 | O94: =IF(AND(ValuesEntered,ISNUMBER($C94)),D94-F94-J94,"") -> 41144425 | R94: 345
A95: 5 | B95: =ROWS($B$27:B95) -> 69 | C95: =IF(AND(ValuesEntered,R94>0),IF(AND(ISNUMBER(O94),R94>0),EDATE(C94,1),""),"") -> 2022-12-01 | D95: 41144425 | E95: =IF(AND(ValuesEntered,ISNUMBER(C95)),IF($E$19="時間短縮",ROUND(IPMT(VLOOKUP($C95,Rate_table,2,TRUE)/12,1,$R94,$D95)*-1,0),ROUND(IPMT(VLOOKUP($C95,Rate_table,2,TRUE)/12,$B95,DurationOfLoan,LoanAmount-BonusAmount-SUM(extra_payments))*-1,0))+IF($I95=0,0,ROUND(IPMT(VLOOKUP($C95,Rate_table,2,TRUE)/12,COUNTIF($I$27:I95,">0"),DurationofBonus,BonusAmount)*-1,0)),"") -> 51431 | F95: =IF(AND(ValuesEntered,ISNUMBER($C95)),IF($E$19="時間短縮",ROUND(PPMT(VLOOKUP($C95,Rate_table,2,TRUE)/12,1,$R94,$D95)*-1,0),ROUND(PPMT(VLOOKUP($C95,Rate_table,2,TRUE)/12,$B95,DurationOfLoan,LoanAmount-BonusAmount-SUM(extra_payments))*-1,0))+IF(I95=0,0,ROUND(PPMT(VLOOKUP($C95,Rate_table,2,TRUE)/12,COUNTIF($I$27:I95,">0"),DurationofBonus,BonusAmount)*-1,0)),"") -> 95460 | I95: 0 | L95: =IF(AND(ValuesEntered,ISNUMBER($C95)),SUM(E95:H95,J95:K95),"") -> 146891 | O95: =IF(AND(ValuesEntered,ISNUMBER($C95)),D95-F95-J95,"") -> 41048965 | R95: 344
A96: 6 | B96: =ROWS($B$27:B96) -> 70 | C96: =IF(AND(ValuesEntered,R95>0),IF(AND(ISNUMBER(O95),R95>0),EDATE(C95,1),""),"") -> 2023-01-01 | D96: 41048965 | E96: =IF(AND(ValuesEntered,ISNUMBER(C96)),IF($E$19="時間短縮",ROUND(IPMT(VLOOKUP($C96,Rate_table,2,TRUE)/12,1,$R95,$D96)*-1,0),ROUND(IPMT(VLOOKUP($C96,Rate_table,2,TRUE)/12,$B96,DurationOfLoan,LoanAmount-BonusAmount-SUM(extra_payments))*-1,0))+IF($I96=0,0,ROUND(IPMT(VLOOKUP($C96,Rate_table,2,TRUE)/12,COUNTIF($I$27:I96,">0"),DurationofBonus,BonusAmount)*-1,0)),"") -> 51311 | F96: =IF(AND(ValuesEntered,ISNUMBER($C96)),IF($E$19="時間短縮",ROUND(PPMT(VLOOKUP($C96,Rate_table,2,TRUE)/12,1,$R95,$D96)*-1,0),ROUND(PPMT(VLOOKUP($C96,Rate_table,2,TRUE)/12,$B96,DurationOfLoan,LoanAmount-BonusAmount-SUM(extra_payments))*-1,0))+IF(I96=0,0,ROUND(PPMT(VLOOKUP($C96,Rate_table,2,TRUE)/12,COUNTIF($I$27:I96,">0"),DurationofBonus,BonusAmount)*-1,0)),"") -> 95579 | I96: 0 | L96: =IF(AND(ValuesEntered,ISNUMBER($C96)),SUM(E96:H96,J96:K96),"") -> 146890 | O96: =IF(AND(ValuesEntered,ISNUMBER($C96)),D96-F96-J96,"") -> 40953386 | R96: 343
A97: 6 | B97: =ROWS($B$27:B97) -> 71 | C97: =IF(AND(ValuesEntered,R96>0),IF(AND(ISNUMBER(O96),R96>0),EDATE(C96,1),""),"") -> 2023-02-01 | D97: 40953386 | E97: =IF(AND(ValuesEntered,ISNUMBER(C97)),IF($E$19="時間短縮",ROUND(IPMT(VLOOKUP($C97,Rate_table,2,TRUE)/12,1,$R96,$D97)*-1,0),ROUND(IPMT(VLOOKUP($C97,Rate_table,2,TRUE)/12,$B97,DurationOfLoan,LoanAmount-BonusAmount-SUM(extra_payments))*-1,0))+IF($I97=0,0,ROUND(IPMT(VLOOKUP($C97,Rate_table,2,TRUE)/12,COUNTIF($I$27:I97,">0"),DurationofBonus,BonusAmount)*-1,0)),"") -> 51192 | F97: =IF(AND(ValuesEntered,ISNUMBER($C97)),IF($E$19="時間短縮",ROUND(PPMT(VLOOKUP($C97,Rate_table,2,TRUE)/12,1,$R96,$D97)*-1,0),ROUND(PPMT(VLOOKUP($C97,Rate_table,2,TRUE)/12,$B97,DurationOfLoan,LoanAmount-BonusAmount-SUM(extra_payments))*-1,0))+IF(I97=0,0,ROUND(PPMT(VLOOKUP($C97,Rate_table,2,TRUE)/12,COUNTIF($I$27:I97,">0"),DurationofBonus,BonusAmount)*-1,0)),"") -> 95699 | I97: 0 | L97: =IF(AND(ValuesEntered,ISNUMBER($C97)),SUM(E97:H97,J97:K97),"") -> 146891 | O97: =IF(AND(ValuesEntered,ISNUMBER($C97)),D97-F97-J97,"") -> 40857687 | R97: 342
A98: 6 | B98: =ROWS($B$27:B98) -> 72 | C98: =IF(AND(ValuesEntered,R97>0),IF(AND(ISNUMBER(O97),R97>0),EDATE(C97,1),""),"") -> 2023-03-01 | D98: 40857687 | E98: =IF(AND(ValuesEntered,ISNUMBER(C98)),IF($E$19="時間短縮",ROUND(IPMT(VLOOKUP($C98,Rate_table,2,TRUE)/12,1,$R97,$D98)*-1,0),ROUND(IPMT(VLOOKUP($C98,Rate_table,2,TRUE)/12,$B98,DurationOfLoan,LoanAmount-BonusAmount-SUM(extra_payments))*-1,0))+IF($I98=0,0,ROUND(IPMT(VLOOKUP($C98,Rate_table,2,TRUE)/12,COUNTIF($I$27:I98,">0"),DurationofBonus,BonusAmount)*-1,0)),"") -> 51072 | F98: =IF(AND(ValuesEntered,ISNUMBER($C98)),IF($E$19="時間短縮",ROUND(PPMT(VLOOKUP($C98,Rate_table,2,TRUE)/12,1,$R97,$D98)*-1,0),ROUND(PPMT(VLOOKUP($C98,Rate_table,2,TRUE)/12,$B98,DurationOfLoan,LoanAmount-BonusAmount-SUM(extra_payments))*-1,0))+IF(I98=0,0,ROUND(PPMT(VLOOKUP($C98,Rate_table,2,TRUE)/12,COUNTIF($I$27:I98,">0"),DurationofBonus,BonusAmount)*-1,0)),"") -> 95818 | I98: 0 | L98: =IF(AND(ValuesEntered,ISNUMBER($C98)),SUM(E98:H98,J98:K98),"") -> 146890 | O98: =IF(AND(ValuesEntered,ISNUMBER($C98)),D98-F98-J98,"") -> 40761869 | R98: 341
A99: 6 | B99: =ROWS($B$27:B99) -> 73 | C99: =IF(AND(ValuesEntered,R98>0),IF(AND(ISNUMBER(O98),R98>0),EDATE(C98,1),""),"") -> 2023-04-01 | D99: 40761869 | E99: =IF(AND(ValuesEntered,ISNUMBER(C99)),IF($E$19="時間短縮",ROUND(IPMT(VLOOKUP($C99,Rate_table,2,TRUE)/12,1,$R98,$D99)*-1,0),ROUND(IPMT(VLOOKUP($C99,Rate_table,2,TRUE)/12,$B99,DurationOfLoan,LoanAmount-BonusAmount-SUM(extra_payments))*-1,0))+IF($I99=0,0,ROUND(IPMT(VLOOKUP($C99,Rate_table,2,TRUE)/12,COUNTIF($I$27:I99,">0"),DurationofBonus,BonusAmount)*-1,0)),"") -> 65560 | F99: =IF(AND(ValuesEntered,ISNUMBER($C99)),IF($E$19="時間短縮",ROUND(PPMT(VLOOKUP($C99,Rate_table,2,TRUE)/12,1,$R98,$D99)*-1,0),ROUND(PPMT(VLOOKUP($C99,Rate_table,2,TRUE)/12,$B99,DurationOfLoan,LoanAmount-BonusAmount-SUM(extra_payments))*-1,0))+IF(I99=0,0,ROUND(PPMT(VLOOKUP($C99,Rate_table,2,TRUE)/12,COUNTIF($I$27:I99,">0"),DurationofBonus,BonusAmount)*-1,0)),"") -> 290333 | I99: 200000 | L99: =IF(AND(ValuesEntered,ISNUMBER($C99)),SUM(E99:H99,J99:K99),"") -> 355893 | O99: =IF(AND(ValuesEntered,ISNUMBER($C99)),D99-F99-J99,"") -> 40471536 | R99: 340
A100: 6 | B100: =ROWS($B$27:B100) -> 74 | C100: =IF(AND(ValuesEntered,R99>0),IF(AND(ISNUMBER(O99),R99>0),EDATE(C99,1),""),"") -> 2023-05-01 | D100: 40471536 | E100: =IF(AND(ValuesEntered,ISNUMBER(C100)),IF($E$19="時間短縮",ROUND(IPMT(VLOOKUP($C100,Rate_table,2,TRUE)/12,1,$R99,$D100)*-1,0),ROUND(IPMT(VLOOKUP($C100,Rate_table,2,TRUE)/12,$B100,DurationOfLoan,LoanAmount-BonusAmount-SUM(extra_payments))*-1,0))+IF($I100=0,0,ROUND(IPMT(VLOOKUP($C100,Rate_table,2,TRUE)/12,COUNTIF($I$27:I100,">0"),DurationofBonus,BonusAmount)*-1,0)),"") -> 50589 | F100: =IF(AND(ValuesEntered,ISNUMBER($C100)),IF($E$19="時間短縮",ROUND(PPMT(VLOOKUP($C100,Rate_table,2,TRUE)/12,1,$R99,$D100)*-1,0),ROUND(PPMT(VLOOKUP($C100,Rate_table,2,TRUE)/12,$B100,DurationOfLoan,LoanAmount-BonusAmount-SUM(extra_payments))*-1,0))+IF(I100=0,0,ROUND(PPMT(VLOOKUP($C100,Rate_table,2,TRUE)/12,COUNTIF($I$27:I100,">0"),DurationofBonus,BonusAmount)*-1,0)),"") -> 95599 | I100: 0 | L100: =IF(AND(ValuesEntered,ISNUMBER($C100)),SUM(E100:H100,J100:K100),"") -> 146188 | O100: =IF(AND(ValuesEntered,ISNUMBER($C100)),D100-F100-J100,"") -> 40375937 | R100: 339
A101: 6 | B101: =ROWS($B$27:B101) -> 75 | C101: =IF(AND(ValuesEntered,R100>0),IF(AND(ISNUMBER(O100),R100>0),EDATE(C100,1),""),"") -> 2023-06-01 | D101: 40375937 | E101: =IF(AND(ValuesEntered,ISNUMBER(C101)),IF($E$19="時間短縮",ROUND(IPMT(VLOOKUP($C101,Rate_table,2,TRUE)/12,1,$R100,$D101)*-1,0),ROUND(IPMT(VLOOKUP($C101,Rate_table,2,TRUE)/12,$B101,DurationOfLoan,LoanAmount-BonusAmount-SUM(extra_payments))*-1,0))+IF($I101=0,0,ROUND(IPMT(VLOOKUP($C101,Rate_table,2,TRUE)/12,COUNTIF($I$27:I101,">0"),DurationofBonus,BonusAmount)*-1,0)),"") -> 50470 | F101: =IF(AND(ValuesEntered,ISNUMBER($C101)),IF($E$19="時間短縮",ROUND(PPMT(VLOOKUP($C101,Rate_table,2,TRUE)/12,1,$R100,$D101)*-1,0),ROUND(PPMT(VLOOKUP($C101,Rate_table,2,TRUE)/12,$B101,DurationOfLoan,LoanAmount-BonusAmount-SUM(extra_payments))*-1,0))+IF(I101=0,0,ROUND(PPMT(VLOOKUP($C101,Rate_table,2,TRUE)/12,COUNTIF($I$27:I101,">0"),DurationofBonus,BonusAmount)*-1,0)),"") -> 95718 | I101: 0 | L101: =IF(AND(ValuesEntered,ISNUMBER($C101)),SUM(E101:H101,J101:K101),"") -> 146188 | O101: =IF(AND(ValuesEntered,ISNUMBER($C101)),D101-F101-J101,"") -> 40280219 | R101: 338
A102: 6 | B102: =ROWS($B$27:B102) -> 76 | C102: =IF(AND(ValuesEntered,R101>0),IF(AND(ISNUMBER(O101),R101>0),EDATE(C101,1),""),"") -> 2023-07-01 | D102: 40280219 | E102: =IF(AND(ValuesEntered,ISNUMBER(C102)),IF($E$19="時間短縮",ROUND(IPMT(VLOOKUP($C102,Rate_table,2,TRUE)/12,1,$R101,$D102)*-1,0),ROUND(IPMT(VLOOKUP($C102,Rate_table,2,TRUE)/12,$B102,DurationOfLoan,LoanAmount-BonusAmount-SUM(extra_payments))*-1,0))+IF($I102=0,0,ROUND(IPMT(VLOOKUP($C102,Rate_table,2,TRUE)/12,COUNTIF($I$27:I102,">0"),DurationofBonus,BonusAmount)*-1,0)),"") -> 64715 | F102: =IF(AND(ValuesEntered,ISNUMBER($C102)),IF($E$19="時間短縮",ROUND(PPMT(VLOOKUP($C102,Rate_table,2,TRUE)/12,1,$R101,$D102)*-1,0),ROUND(PPMT(VLOOKUP($C102,Rate_table,2,TRUE)/12,$B102,DurationOfLoan,LoanAmount-BonusAmount-SUM(extra_payments))*-1,0))+IF(I102=0,0,ROUND(PPMT(VLOOKUP($C102,Rate_table,2,TRUE)/12,COUNTIF($I$27:I102,">0"),DurationofBonus,BonusAmount)*-1,0)),"") -> 290476 | I102: 200000 | L102: =IF(AND(ValuesEntered,ISNUMBER($C102)),SUM(E102:H102,J102:K102),"") -> 355191 | O102: =IF(AND(ValuesEntered,ISNUMBER($C102)),D102-F102-J102,"") -> 39989743 | R102: 337
A103: 6 | B103: =ROWS($B$27:B103) -> 77 | C103: =IF(AND(ValuesEntered,R102>0),IF(AND(ISNUMBER(O102),R102>0),EDATE(C102,1),""),"") -> 2023-08-01 | D103: 39989743 | E103: =IF(AND(ValuesEntered,ISNUMBER(C103)),IF($E$19="時間短縮",ROUND(IPMT(VLOOKUP($C103,Rate_table,2,TRUE)/12,1,$R102,$D103)*-1,0),ROUND(IPMT(VLOOKUP($C103,Rate_table,2,TRUE)/12,$B103,DurationOfLoan,LoanAmount-BonusAmount-SUM(extra_payments))*-1,0))+IF($I103=0,0,ROUND(IPMT(VLOOKUP($C103,Rate_table,2,TRUE)/12,COUNTIF($I$27:I103,">0"),DurationofBonus,BonusAmount)*-1,0)),"") -> 49987 | F103: =IF(AND(ValuesEntered,ISNUMBER($C103)),IF($E$19="時間短縮",ROUND(PPMT(VLOOKUP($C103,Rate_table,2,TRUE)/12,1,$R102,$D103)*-1,0),ROUND(PPMT(VLOOKUP($C103,Rate_table,2,TRUE)/12,$B103,DurationOfLoan,LoanAmount-BonusAmount-SUM(extra_payments))*-1,0))+IF(I103=0,0,ROUND(PPMT(VLOOKUP($C103,Rate_table,2,TRUE)/12,COUNTIF($I$27:I103,">0"),DurationofBonus,BonusAmount)*-1,0)),"") -> 95493 | I103: 0 | L103: =IF(AND(ValuesEntered,ISNUMBER($C103)),SUM(E103:H103,J103:K103),"") -> 145480 | O103: =IF(AND(ValuesEntered,ISNUMBER($C103)),D103-F103-J103,"") -> 39894250 | R103: 336
A104: 6 | B104: =ROWS($B$27:B104) -> 78 | C104: =IF(AND(ValuesEntered,R103>0),IF(AND(ISNUMBER(O103),R103>0),EDATE(C103,1),""),"") -> 2023-09-01 | D104: 39894250 | E104: =IF(AND(ValuesEntered,ISNUMBER(C104)),IF($E$19="時間短縮",ROUND(IPMT(VLOOKUP($C104,Rate_table,2,TRUE)/12,1,$R103,$D104)*-1,0),ROUND(IPMT(VLOOKUP($C104,Rate_table,2,TRUE)/12,$B104,DurationOfLoan,LoanAmount-BonusAmount-SUM(extra_payments))*-1,0))+IF($I104=0,0,ROUND(IPMT(VLOOKUP($C104,Rate_table,2,TRUE)/12,COUNTIF($I$27:I104,">0"),DurationofBonus,BonusAmount)*-1,0)),"") -> 49868 | F104: =IF(AND(ValuesEntered,ISNUMBER($C104)),IF($E$19="時間短縮",ROUND(PPMT(VLOOKUP($C104,Rate_table,2,TRUE)/12,1,$R103,$D104)*-1,0),ROUND(PPMT(VLOOKUP($C104,Rate_table,2,TRUE)/12,$B104,DurationOfLoan,LoanAmount-BonusAmount-SUM(extra_payments))*-1,0))+IF(I104=0,0,ROUND(PPMT(VLOOKUP($C104,Rate_table,2,TRUE)/12,COUNTIF($I$27:I104,">0"),DurationofBonus,BonusAmount)*-1,0)),"") -> 95612 | I104: 0 | L104: =IF(AND(ValuesEntered,ISNUMBER($C104)),SUM(E104:H104,J104:K104),"") -> 145480 | O104: =IF(AND(ValuesEntered,ISNUMBER($C104)),D104-F104-J104,"") -> 39798638 | R104: 335
A105: 6 | B105: =ROWS($B$27:B105) -> 79 | C105: =IF(AND(ValuesEntered,R104>0),IF(AND(ISNUMBER(O104),R104>0),EDATE(C104,1),""),"") -> 2023-10-01 | D105: 39798638 | E105: =IF(AND(ValuesEntered,ISNUMBER(C105)),IF($E$19="時間短縮",ROUND(IPMT(VLOOKUP($C105,Rate_table,2,TRUE)/12,1,$R104,$D105)*-1,0),ROUND(IPMT(VLOOKUP($C105,Rate_table,2,TRUE)/12,$B105,DurationOfLoan,LoanAmount-BonusAmount-SUM(extra_payments))*-1,0))+IF($I105=0,0,ROUND(IPMT(VLOOKUP($C105,Rate_table,2,TRUE)/12,COUNTIF($I$27:I105,">0"),DurationofBonus,BonusAmount)*-1,0)),"") -> 49748 | F105: =IF(AND(ValuesEntered,ISNUMBER($C105)),IF($E$19="時間短縮",ROUND(PPMT(VLOOKUP($C105,Rate_table,2,TRUE)/12,1,$R104,$D105)*-1,0),ROUND(PPMT(VLOOKUP($C105,Rate_table,2,TRUE)/12,$B105,DurationOfLoan,LoanAmount-BonusAmount-SUM(extra_payments))*-1,0))+IF(I105=0,0,ROUND(PPMT(VLOOKUP($C105,Rate_table,2,TRUE)/12,COUNTIF($I$27:I105,">0"),DurationofBonus,BonusAmount)*-1,0)),"") -> 95732 | I105: 0 | L105: =IF(AND(ValuesEntered,ISNUMBER($C105)),SUM(E105:H105,J105:K105),"") -> 145480 | O105: =IF(AND(ValuesEntered,ISNUMBER($C105)),D105-F105-J105,"") -> 39702906 | R105: 334
A106: 6 | B106: =ROWS($B$27:B106) -> 80 | C106: =IF(AND(ValuesEntered,R105>0),IF(AND(ISNUMBER(O105),R105>0),EDATE(C105,1),""),"") -> 2023-11-01 | D106: 39702906 | E106: =IF(AND(ValuesEntered,ISNUMBER(C106)),IF($E$19="時間短縮",ROUND(IPMT(VLOOKUP($C106,Rate_table,2,TRUE)/12,1,$R105,$D106)*-1,0),ROUND(IPMT(VLOOKUP($C106,Rate_table,2,TRUE)/12,$B106,DurationOfLoan,LoanAmount-BonusAmount-SUM(extra_payments))*-1,0))+IF($I106=0,0,ROUND(IPMT(VLOOKUP($C106,Rate_table,2,TRUE)/12,COUNTIF($I$27:I106,">0"),DurationofBonus,BonusAmount)*-1,0)),"") -> 49629 | F106: =IF(AND(ValuesEntered,ISNUMBER($C106)),IF($E$19="時間短縮",ROUND(PPMT(VLOOKUP($C106,Rate_table,2,TRUE)/12,1,$R105,$D106)*-1,0),ROUND(PPMT(VLOOKUP($C106,Rate_table,2,TRUE)/12,$B106,DurationOfLoan,LoanAmount-BonusAmount-SUM(extra_payments))*-1,0))+IF(I106=0,0,ROUND(PPMT(VLOOKUP($C106,Rate_table,2,TRUE)/12,COUNTIF($I$27:I106,">0"),DurationofBonus,BonusAmount)*-1,0)),"") -> 95852 | I106: 0 | L106: =IF(AND(ValuesEntered,ISNUMBER($C106)),SUM(E106:H106,J106:K106),"") -> 145481 | O106: =IF(AND(ValuesEntered,ISNUMBER($C106)),D106-F106-J106,"") -> 39607054 | R106: 333
A107: 6 | B107: =ROWS($B$27:B107) -> 81 | C107: =IF(AND(ValuesEntered,R106>0),IF(AND(ISNUMBER(O106),R106>0),EDATE(C106,1),""),"") -> 2023-12-01 | D107: 39607054 | E107: =IF(AND(ValuesEntered,ISNUMBER(C107)),IF($E$19="時間短縮",ROUND(IPMT(VLOOKUP($C107,Rate_table,2,TRUE)/12,1,$R106,$D107)*-1,0),ROUND(IPMT(VLOOKUP($C107,Rate_table,2,TRUE)/12,$B107,DurationOfLoan,LoanAmount-BonusAmount-SUM(extra_payments))*-1,0))+IF($I107=0,0,ROUND(IPMT(VLOOKUP($C107,Rate_table,2,TRUE)/12,COUNTIF($I$27:I107,">0"),DurationofBonus,BonusAmount)*-1,0)),"") -> 49509 | F107: =IF(AND(ValuesEntered,ISNUMBER($C107)),IF($E$19="時間短縮",ROUND(PPMT(VLOOKUP($C107,Rate_table,2,TRUE)/12,1,$R106,$D107)*-1,0),ROUND(PPMT(VLOOKUP($C107,Rate_table,2,TRUE)/12,$B107,DurationOfLoan,LoanAmount-BonusAmount-SUM(extra_payments))*-1,0))+IF(I107=0,0,ROUND(PPMT(VLOOKUP($C107,Rate_table,2,TRUE)/12,COUNTIF($I$27:I107,">0"),DurationofBonus,BonusAmount)*-1,0)),"") -> 95971 | I107: 0 | L107: =IF(AND(ValuesEntered,ISNUMBER($C107)),SUM(E107:H107,J107:K107),"") -> 145480 | O107: =IF(AND(ValuesEntered,ISNUMBER($C107)),D107-F107-J107,"") -> 39511083 | R107: 332
A108: 7 | B108: =ROWS($B$27:B108) -> 82 | C108: =IF(AND(ValuesEntered,R107>0),IF(AND(ISNUMBER(O107),R107>0),EDATE(C107,1),""),"") -> 2024-01-01 | D108: 39511083 | E108: =IF(AND(ValuesEntered,ISNUMBER(C108)),IF($E$19="時間短縮",ROUND(IPMT(VLOOKUP($C108,Rate_table,2,TRUE)/12,1,$R107,$D108)*-1,0),ROUND(IPMT(VLOOKUP($C108,Rate_table,2,TRUE)/12,$B108,DurationOfLoan,LoanAmount-BonusAmount-SUM(extra_payments))*-1,0))+IF($I108=0,0,ROUND(IPMT(VLOOKUP($C108,Rate_table,2,TRUE)/12,COUNTIF($I$27:I108,">0"),DurationofBonus,BonusAmount)*-1,0)),"") -> 49389 | F108: =IF(AND(ValuesEntered,ISNUMBER($C108)),IF($E$19="時間短縮",ROUND(PPMT(VLOOKUP($C108,Rate_table,2,TRUE)/12,1,$R107,$D108)*-1,0),ROUND(PPMT(VLOOKUP($C108,Rate_table,2,TRUE)/12,$B108,DurationOfLoan,LoanAmount-BonusAmount-SUM(extra_payments))*-1,0))+IF(I108=0,0,ROUND(PPMT(VLOOKUP($C108,Rate_table,2,TRUE)/12,COUNTIF($I$27:I108,">0"),DurationofBonus,BonusAmount)*-1,0)),"") -> 96091 | I108: 0 | L108: =IF(AND(ValuesEntered,ISNUMBER($C108)),SUM(E108:H108,J108:K108),"") -> 145480 | O108: =IF(AND(ValuesEntered,ISNUMBER($C108)),D108-F108-J108,"") -> 39414992 | R108: 331
A109: 7 | B109: =ROWS($B$27:B109) -> 83 | C109: =IF(AND(ValuesEntered,R108>0),IF(AND(ISNUMBER(O108),R108>0),EDATE(C108,1),""),"") -> 2024-02-01 | D109: 39414992 | E109: =IF(AND(ValuesEntered,ISNUMBER(C109)),IF($E$19="時間短縮",ROUND(IPMT(VLOOKUP($C109,Rate_table,2,TRUE)/12,1,$R108,$D109)*-1,0),ROUND(IPMT(VLOOKUP($C109,Rate_table,2,TRUE)/12,$B109,DurationOfLoan,LoanAmount-BonusAmount-SUM(extra_payments))*-1,0))+IF($I109=0,0,ROUND(IPMT(VLOOKUP($C109,Rate_table,2,TRUE)/12,COUNTIF($I$27:I109,">0"),DurationofBonus,BonusAmount)*-1,0)),"") -> 49269 | F109: =IF(AND(ValuesEntered,ISNUMBER($C109)),IF($E$19="時間短縮",ROUND(PPMT(VLOOKUP($C109,Rate_table,2,TRUE)/12,1,$R108,$D109)*-1,0),ROUND(PPMT(VLOOKUP($C109,Rate_table,2,TRUE)/12,$B109,DurationOfLoan,LoanAmount-BonusAmount-SUM(extra_payments))*-1,0))+IF(I109=0,0,ROUND(PPMT(VLOOKUP($C109,Rate_table,2,TRUE)/12,COUNTIF($I$27:I109,">0"),DurationofBonus,BonusAmount)*-1,0)),"") -> 96211 | I109: 0 | L109: =IF(AND(ValuesEntered,ISNUMBER($C109)),SUM(E109:H109,J109:K109),"") -> 145480 | O109: =IF(AND(ValuesEntered,ISNUMBER($C109)),D109-F109-J109,"") -> 39318781 | R109: 330
A110: 7 | B110: =ROWS($B$27:B110) -> 84 | C110: =IF(AND(ValuesEntered,R109>0),IF(AND(ISNUMBER(O109),R109>0),EDATE(C109,1),""),"") -> 2024-03-01 | D110: 39318781 | E110: =IF(AND(ValuesEntered,ISNUMBER(C110)),IF($E$19="時間短縮",ROUND(IPMT(VLOOKUP($C110,Rate_table,2,TRUE)/12,1,$R109,$D110)*-1,0),ROUND(IPMT(VLOOKUP($C110,Rate_table,2,TRUE)/12,$B110,DurationOfLoan,LoanAmount-BonusAmount-SUM(extra_payments))*-1,0))+IF($I110=0,0,ROUND(IPMT(VLOOKUP($C110,Rate_table,2,TRUE)/12,COUNTIF($I$27:I110,">0"),DurationofBonus,BonusAmount)*-1,0)),"") -> 49148 | F110: =IF(AND(ValuesEntered,ISNUMBER($C110)),IF($E$19="時間短縮",ROUND(PPMT(VLOOKUP($C110,Rate_table,2,TRUE)/12,1,$R109,$D110)*-1,0),ROUND(PPMT(VLOOKUP($C110,Rate_table,2,TRUE)/12,$B110,DurationOfLoan,LoanAmount-BonusAmount-SUM(extra_payments))*-1,0))+IF(I110=0,0,ROUND(PPMT(VLOOKUP($C110,Rate_table,2,TRUE)/12,COUNTIF($I$27:I110,">0"),DurationofBonus,BonusAmount)*-1,0)),"") -> 96332 | I110: 0 | L110: =IF(AND(ValuesEntered,ISNUMBER($C110)),SUM(E110:H110,J110:K110),"") -> 145480 | O110: =IF(AND(ValuesEntered,ISNUMBER($C110)),D110-F110-J110,"") -> 39222449 | R110: 329
A111: 7 | B111: =ROWS($B$27:B111) -> 85 | C111: =IF(AND(ValuesEntered,R110>0),IF(AND(ISNUMBER(O110),R110>0),EDATE(C110,1),""),"") -> 2024-04-01 | D111: 39222449 | E111: =IF(AND(ValuesEntered,ISNUMBER(C111)),IF($E$19="時間短縮",ROUND(IPMT(VLOOKUP($C111,Rate_table,2,TRUE)/12,1,$R110,$D111)*-1,0),ROUND(IPMT(VLOOKUP($C111,Rate_table,2,TRUE)/12,$B111,DurationOfLoan,LoanAmount-BonusAmount-SUM(extra_payments))*-1,0))+IF($I111=0,0,ROUND(IPMT(VLOOKUP($C111,Rate_table,2,TRUE)/12,COUNTIF($I$27:I111,">0"),DurationofBonus,BonusAmount)*-1,0)),"") -> 63149 | F111: =IF(AND(ValuesEntered,ISNUMBER($C111)),IF($E$19="時間短縮",ROUND(PPMT(VLOOKUP($C111,Rate_table,2,TRUE)/12,1,$R110,$D111)*-1,0),ROUND(PPMT(VLOOKUP($C111,Rate_table,2,TRUE)/12,$B111,DurationOfLoan,LoanAmount-BonusAmount-SUM(extra_payments))*-1,0))+IF(I111=0,0,ROUND(PPMT(VLOOKUP($C111,Rate_table,2,TRUE)/12,COUNTIF($I$27:I111,">0"),DurationofBonus,BonusAmount)*-1,0)),"") -> 291333 | I111: 200000 | L111: =IF(AND(ValuesEntered,ISNUMBER($C111)),SUM(E111:H111,J111:K111),"") -> 354482 | O111: =IF(AND(ValuesEntered,ISNUMBER($C111)),D111-F111-J111,"") -> 38931116 | R111: 328
A112: 7 | B112: =ROWS($B$27:B112) -> 86 | C112: =IF(AND(ValuesEntered,R111>0),IF(AND(ISNUMBER(O111),R111>0),EDATE(C111,1),""),"") -> 2024-05-01 | D112: 38931116 | E112: =IF(AND(ValuesEntered,ISNUMBER(C112)),IF($E$19="時間短縮",ROUND(IPMT(VLOOKUP($C112,Rate_table,2,TRUE)/12,1,$R111,$D112)*-1,0),ROUND(IPMT(VLOOKUP($C112,Rate_table,2,TRUE)/12,$B112,DurationOfLoan,LoanAmount-BonusAmount-SUM(extra_payments))*-1,0))+IF($I112=0,0,ROUND(IPMT(VLOOKUP($C112,Rate_table,2,TRUE)/12,COUNTIF($I$27:I112,">0"),DurationofBonus,BonusAmount)*-1,0)),"") -> 48664 | F112: =IF(AND(ValuesEntered,ISNUMBER($C112)),IF($E$19="時間短縮",ROUND(PPMT(VLOOKUP($C112,Rate_table,2,TRUE)/12,1,$R111,$D112)*-1,0),ROUND(PPMT(VLOOKUP($C112,Rate_table,2,TRUE)/12,$B112,DurationOfLoan,LoanAmount-BonusAmount-SUM(extra_payments))*-1,0))+IF(I112=0,0,ROUND(PPMT(VLOOKUP($C112,Rate_table,2,TRUE)/12,COUNTIF($I$27:I112,">0"),DurationofBonus,BonusAmount)*-1,0)),"") -> 96092 | I112: 0 | L112: =IF(AND(ValuesEntered,ISNUMBER($C112)),SUM(E112:H112,J112:K112),"") -> 144756 | O112: =IF(AND(ValuesEntered,ISNUMBER($C112)),D112-F112-J112,"") -> 38835024 | R112: 327
A113: 7 | B113: =ROWS($B$27:B113) -> 87 | C113: =IF(AND(ValuesEntered,R112>0),IF(AND(ISNUMBER(O112),R112>0),EDATE(C112,1),""),"") -> 2024-06-01 | D113: 38835024 | E113: =IF(AND(ValuesEntered,ISNUMBER(C113)),IF($E$19="時間短縮",ROUND(IPMT(VLOOKUP($C113,Rate_table,2,TRUE)/12,1,$R112,$D113)*-1,0),ROUND(IPMT(VLOOKUP($C113,Rate_table,2,TRUE)/12,$B113,DurationOfLoan,LoanAmount-BonusAmount-SUM(extra_payments))*-1,0))+IF($I113=0,0,ROUND(IPMT(VLOOKUP($C113,Rate_table,2,TRUE)/12,COUNTIF($I$27:I113,">0"),DurationofBonus,BonusAmount)*-1,0)),"") -> 48544 | F113: =IF(AND(ValuesEntered,ISNUMBER($C113)),IF($E$19="時間短縮",ROUND(PPMT(VLOOKUP($C113,Rate_table,2,TRUE)/12,1,$R112,$D113)*-1,0),ROUND(PPMT(VLOOKUP($C113,Rate_table,2,TRUE)/12,$B113,DurationOfLoan,LoanAmount-BonusAmount-SUM(extra_payments))*-1,0))+IF(I113=0,0,ROUND(PPMT(VLOOKUP($C113,Rate_table,2,TRUE)/12,COUNTIF($I$27:I113,">0"),DurationofBonus,BonusAmount)*-1,0)),"") -> 96212 | I113: 0 | L113: =IF(AND(ValuesEntered,ISNUMBER($C113)),SUM(E113:H113,J113:K113),"") -> 144756 | O113: =IF(AND(ValuesEntered,ISNUMBER($C113)),D113-F113-J113,"") -> 38738812 | R113: 326
A114: 7 | B114: =ROWS($B$27:B114) -> 88 | C114: =IF(AND(ValuesEntered,R113>0),IF(AND(ISNUMBER(O113),R113>0),EDATE(C113,1),""),"") -> 2024-07-01 | D114: 38738812 | E114: =IF(AND(ValuesEntered,ISNUMBER(C114)),IF($E$19="時間短縮",ROUND(IPMT(VLOOKUP($C114,Rate_table,2,TRUE)/12,1,$R113,$D114)*-1,0),ROUND(IPMT(VLOOKUP($C114,Rate_table,2,TRUE)/12,$B114,DurationOfLoan,LoanAmount-BonusAmount-SUM(extra_payments))*-1,0))+IF($I114=0,0,ROUND(IPMT(VLOOKUP($C114,Rate_table,2,TRUE)/12,COUNTIF($I$27:I114,">0"),DurationofBonus,BonusAmount)*-1,0)),"") -> 62302 | F114: =IF(AND(ValuesEntered,ISNUMBER($C114)),IF($E$19="時間短縮",ROUND(PPMT(VLOOKUP($C114,Rate_table,2,TRUE)/12,1,$R113,$D114)*-1,0),ROUND(PPMT(VLOOKUP($C114,Rate_table,2,TRUE)/12,$B114,DurationOfLoan,LoanAmount-BonusAmount-SUM(extra_payments))*-1,0))+IF(I114=0,0,ROUND(PPMT(VLOOKUP($C114,Rate_table,2,TRUE)/12,COUNTIF($I$27:I114,">0"),DurationofBonus,BonusAmount)*-1,0)),"") -> 291457 | I114: 200000 | L114: =IF(AND(ValuesEntered,ISNUMBER($C114)),SUM(E114:H114,J114:K114),"") -> 353759 | O114: =IF(AND(ValuesEntered,ISNUMBER($C114)),D114-F114-J114,"") -> 38447355 | R114: 325
A115: 7 | B115: =ROWS($B$27:B115) -> 89 | C115: =IF(AND(ValuesEntered,R114>0),IF(AND(ISNUMBER(O114),R114>0),EDATE(C114,1),""),"") -> 2024-08-01 | D115: 38447355 | E115: =IF(AND(ValuesEntered,ISNUMBER(C115)),IF($E$19="時間短縮",ROUND(IPMT(VLOOKUP($C115,Rate_table,2,TRUE)/12,1,$R114,$D115)*-1,0),ROUND(IPMT(VLOOKUP($C115,Rate_table,2,TRUE)/12,$B115,DurationOfLoan,LoanAmount-BonusAmount-SUM(extra_payments))*-1,0))+IF($I115=0,0,ROUND(IPMT(VLOOKUP($C115,Rate_table,2,TRUE)/12,COUNTIF($I$27:I115,">0"),DurationofBonus,BonusAmount)*-1,0)),"") -> 48059 | F115: =IF(AND(ValuesEntered,ISNUMBER($C115)),IF($E$19="時間短縮",ROUND(PPMT(VLOOKUP($C115,Rate_table,2,TRUE)/12,1,$R114,$D115)*-1,0),ROUND(PPMT(VLOOKUP($C115,Rate_table,2,TRUE)/12,$B115,DurationOfLoan,LoanAmount-BonusAmount-SUM(extra_payments))*-1,0))+IF(I115=0,0,ROUND(PPMT(VLOOKUP($C115,Rate_table,2,TRUE)/12,COUNTIF($I$27:I115,">0"),DurationofBonus,BonusAmount)*-1,0)),"") -> 95965 | I115: 0 | L115: =IF(AND(ValuesEntered,ISNUMBER($C115)),SUM(E115:H115,J115:K115),"") -> 144024 | O115: =IF(AND(ValuesEntered,ISNUMBER($C115)),D115-F115-J115,"") -> 38351390 | R115: 324
A116: 7 | B116: =ROWS($B$27:B116) -> 90 | C116: =IF(AND(ValuesEntered,R115>0),IF(AND(ISNUMBER(O115),R115>0),EDATE(C115,1),""),"") -> 2024-09-01 | D116: 38351390 | E116: =IF(AND(ValuesEntered,ISNUMBER(C116)),IF($E$19="時間短縮",ROUND(IPMT(VLOOKUP($C116,Rate_table,2,TRUE)/12,1,$R115,$D116)*-1,0),ROUND(IPMT(VLOOKUP($C116,Rate_table,2,TRUE)/12,$B116,DurationOfLoan,LoanAmount-BonusAmount-SUM(extra_payments))*-1,0))+IF($I116=0,0,ROUND(IPMT(VLOOKUP($C116,Rate_table,2,TRUE)/12,COUNTIF($I$27:I116,">0"),DurationofBonus,BonusAmount)*-1,0)),"") -> 47939 | F116: =IF(AND(ValuesEntered,ISNUMBER($C116)),IF($E$19="時間短縮",ROUND(PPMT(VLOOKUP($C116,Rate_table,2,TRUE)/12,1,$R115,$D116)*-1,0),ROUND(PPMT(VLOOKUP($C116,Rate_table,2,TRUE)/12,$B116,DurationOfLoan,LoanAmount-BonusAmount-SUM(extra_payments))*-1,0))+IF(I116=0,0,ROUND(PPMT(VLOOKUP($C116,Rate_table,2,TRUE)/12,COUNTIF($I$27:I116,">0"),DurationofBonus,BonusAmount)*-1,0)),"") -> 96085 | I116: 0 | L116: =IF(AND(ValuesEntered,ISNUMBER($C116)),SUM(E116:H116,J116:K116),"") -> 144024 | O116: =IF(AND(ValuesEntered,ISNUMBER($C116)),D116-F116-J116,"") -> 38255305 | R116: 323
A117: 7 | B117: =ROWS($B$27:B117) -> 91 | C117: =IF(AND(ValuesEntered,R116>0),IF(AND(ISNUMBER(O116),R116>0),EDATE(C116,1),""),"") -> 2024-10-01 | D117: 38255305 | E117: =IF(AND(ValuesEntered,ISNUMBER(C117)),IF($E$19="時間短縮",ROUND(IPMT(VLOOKUP($C117,Rate_table,2,TRUE)/12,1,$R116,$D117)*-1,0),ROUND(IPMT(VLOOKUP($C117,Rate_table,2,TRUE)/12,$B117,DurationOfLoan,LoanAmount-BonusAmount-SUM(extra_payments))*-1,0))+IF($I117=0,0,ROUND(IPMT(VLOOKUP($C117,Rate_table,2,TRUE)/12,COUNTIF($I$27:I117,">0"),DurationofBonus,BonusAmount)*-1,0)),"") -> 47819 | F117: =IF(AND(ValuesEntered,ISNUMBER($C117)),IF($E$19="時間短縮",ROUND(PPMT(VLOOKUP($C117,Rate_table,2,TRUE)/12,1,$R116,$D117)*-1,0),ROUND(PPMT(VLOOKUP($C117,Rate_table,2,TRUE)/12,$B117,DurationOfLoan,LoanAmount-BonusAmount-SUM(extra_payments))*-1,0))+IF(I117=0,0,ROUND(PPMT(VLOOKUP($C117,Rate_table,2,TRUE)/12,COUNTIF($I$27:I117,">0"),DurationofBonus,BonusAmount)*-1,0)),"") -> 96205 | I117: 0 | L117: =IF(AND(ValuesEntered,ISNUMBER($C117)),SUM(E117:H117,J117:K117),"") -> 144024 | O117: =IF(AND(ValuesEntered,ISNUMBER($C117)),D117-F117-J117,"") -> 38159100 | R117: 322
A118: 7 | B118: =ROWS($B$27:B118) -> 92 | C118: =IF(AND(ValuesEntered,R117>0),IF(AND(ISNUMBER(O117),R117>0),EDATE(C117,1),""),"") -> 2024-11-01 | D118: 38159100 | E118: =IF(AND(ValuesEntered,ISNUMBER(C118)),IF($E$19="時間短縮",ROUND(IPMT(VLOOKUP($C118,Rate_table,2,TRUE)/12,1,$R117,$D118)*-1,0),ROUND(IPMT(VLOOKUP($C118,Rate_table,2,TRUE)/12,$B118,DurationOfLoan,LoanAmount-BonusAmount-SUM(extra_payments))*-1,0))+IF($I118=0,0,ROUND(IPMT(VLOOKUP($C118,Rate_table,2,TRUE)/12,COUNTIF($I$27:I118,">0"),DurationofBonus,BonusAmount)*-1,0)),"") -> 47699 | F118: =IF(AND(ValuesEntered,ISNUMBER($C118)),IF($E$19="時間短縮",ROUND(PPMT(VLOOKUP($C118,Rate_table,2,TRUE)/12,1,$R117,$D118)*-1,0),ROUND(PPMT(VLOOKUP($C118,Rate_table,2,TRUE)/12,$B118,DurationOfLoan,LoanAmount-BonusAmount-SUM(extra_payments))*-1,0))+IF(I118=0,0,ROUND(PPMT(VLOOKUP($C118,Rate_table,2,TRUE)/12,COUNTIF($I$27:I118,">0"),DurationofBonus,BonusAmount)*-1,0)),"") -> 96326 | I118: 0 | L118: =IF(AND(ValuesEntered,ISNUMBER($C118)),SUM(E118:H118,J118:K118),"") -> 144025 | O118: =IF(AND(ValuesEntered,ISNUMBER($C118)),D118-F118-J118,"") -> 38062774 | R118: 321
A119: 7 | B119: =ROWS($B$27:B119) -> 93 | C119: =IF(AND(ValuesEntered,R118>0),IF(AND(ISNUMBER(O118),R118>0),EDATE(C118,1),""),"") -> 2024-12-01 | D119: 38062774 | E119: =IF(AND(ValuesEntered,ISNUMBER(C119)),IF($E$19="時間短縮",ROUND(IPMT(VLOOKUP($C119,Rate_table,2,TRUE)/12,1,$R118,$D119)*-1,0),ROUND(IPMT(VLOOKUP($C119,Rate_table,2,TRUE)/12,$B119,DurationOfLoan,LoanAmount-BonusAmount-SUM(extra_payments))*-1,0))+IF($I119=0,0,ROUND(IPMT(VLOOKUP($C119,Rate_table,2,TRUE)/12,COUNTIF($I$27:I119,">0"),DurationofBonus,BonusAmount)*-1,0)),"") -> 47578 | F119: =IF(AND(ValuesEntered,ISNUMBER($C119)),IF($E$19="時間短縮",ROUND(PPMT(VLOOKUP($C119,Rate_table,2,TRUE)/12,1,$R118,$D119)*-1,0),ROUND(PPMT(VLOOKUP($C119,Rate_table,2,TRUE)/12,$B119,DurationOfLoan,LoanAmount-BonusAmount-SUM(extra_payments))*-1,0))+IF(I119=0,0,ROUND(PPMT(VLOOKUP($C119,Rate_table,2,TRUE)/12,COUNTIF($I$27:I119,">0"),DurationofBonus,BonusAmount)*-1,0)),"") -> 96446 | I119: 0 | L119: =IF(AND(ValuesEntered,ISNUMBER($C119)),SUM(E119:H119,J119:K119),"") -> 144024 | O119: =IF(AND(ValuesEntered,ISNUMBER($C119)),D119-F119-J119,"") -> 37966328 | R119: 320
A120: 8 | B120: =ROWS($B$27:B120) -> 94 | C120: =IF(AND(ValuesEntered,R119>0),IF(AND(ISNUMBER(O119),R119>0),EDATE(C119,1),""),"") -> 2025-01-01 | D120: 37966328 | E120: =IF(AND(ValuesEntered,ISNUMBER(C120)),IF($E$19="時間短縮",ROUND(IPMT(VLOOKUP($C120,Rate_table,2,TRUE)/12,1,$R119,$D120)*-1,0),ROUND(IPMT(VLOOKUP($C120,Rate_table,2,TRUE)/12,$B120,DurationOfLoan,LoanAmount-BonusAmount-SUM(extra_payments))*-1,0))+IF($I120=0,0,ROUND(IPMT(VLOOKUP($C120,Rate_table,2,TRUE)/12,COUNTIF($I$27:I120,">0"),DurationofBonus,BonusAmount)*-1,0)),"") -> 47458 | F120: =IF(AND(ValuesEntered,ISNUMBER($C120)),IF($E$19="時間短縮",ROUND(PPMT(VLOOKUP($C120,Rate_table,2,TRUE)/12,1,$R119,$D120)*-1,0),ROUND(PPMT(VLOOKUP($C120,Rate_table,2,TRUE)/12,$B120,DurationOfLoan,LoanAmount-BonusAmount-SUM(extra_payments))*-1,0))+IF(I120=0,0,ROUND(PPMT(VLOOKUP($C120,Rate_table,2,TRUE)/12,COUNTIF($I$27:I120,">0"),DurationofBonus,BonusAmount)*-1,0)),"") -> 96567 | I120: 0 | L120: =IF(AND(ValuesEntered,ISNUMBER($C120)),SUM(E120:H120,J120:K120),"") -> 144025 | O120: =IF(AND(ValuesEntered,ISNUMBER($C120)),D120-F120-J120,"") -> 37869761 | R120: 319
A121: 8 | B121: =ROWS($B$27:B121) -> 95 | C121: =IF(AND(ValuesEntered,R120>0),IF(AND(ISNUMBER(O120),R120>0),EDATE(C120,1),""),"") -> 2025-02-01 | D121: 37869761 | E121: =IF(AND(ValuesEntered,ISNUMBER(C121)),IF($E$19="時間短縮",ROUND(IPMT(VLOOKUP($C121,Rate_table,2,TRUE)/12,1,$R120,$D121)*-1,0),ROUND(IPMT(VLOOKUP($C121,Rate_table,2,TRUE)/12,$B121,DurationOfLoan,LoanAmount-BonusAmount-SUM(extra_payments))*-1,0))+IF($I121=0,0,ROUND(IPMT(VLOOKUP($C121,Rate_table,2,TRUE)/12,COUNTIF($I$27:I121,">0"),DurationofBonus,BonusAmount)*-1,0)),"") -> 47337 | F121: =IF(AND(ValuesEntered,ISNUMBER($C121)),IF($E$19="時間短縮",ROUND(PPMT(VLOOKUP($C121,Rate_table,2,TRUE)/12,1,$R120,$D121)*-1,0),ROUND(PPMT(VLOOKUP($C121,Rate_table,2,TRUE)/12,$B121,DurationOfLoan,LoanAmount-BonusAmount-SUM(extra_payments))*-1,0))+IF(I121=0,0,ROUND(PPMT(VLOOKUP($C121,Rate_table,2,TRUE)/12,COUNTIF($I$27:I121,">0"),DurationofBonus,BonusAmount)*-1,0)),"") -> 96687 | I121: 0 | L121: =IF(AND(ValuesEntered,ISNUMBER($C121)),SUM(E121:H121,J121:K121),"") -> 144024 | O121: =IF(AND(ValuesEntered,ISNUMBER($C121)),D121-F121-J121,"") -> 37773074 | R121: 318
A122: 8 | B122: =ROWS($B$27:B122) -> 96 | C122: =IF(AND(ValuesEntered,R121>0),IF(AND(ISNUMBER(O121),R121>0),EDATE(C121,1),""),"") -> 2025-03-01 | D122: 37773074 | E122: =IF(AND(ValuesEntered,ISNUMBER(C122)),IF($E$19="時間短縮",ROUND(IPMT(VLOOKUP($C122,Rate_table,2,TRUE)/12,1,$R121,$D122)*-1,0),ROUND(IPMT(VLOOKUP($C122,Rate_table,2,TRUE)/12,$B122,DurationOfLoan,LoanAmount-BonusAmount-SUM(extra_payments))*-1,0))+IF($I122=0,0,ROUND(IPMT(VLOOKUP($C122,Rate_table,2,TRUE)/12,COUNTIF($I$27:I122,">0"),DurationofBonus,BonusAmount)*-1,0)),"") -> 47216 | F122: =IF(AND(ValuesEntered,ISNUMBER($C122)),IF($E$19="時間短縮",ROUND(PPMT(VLOOKUP($C122,Rate_table,2,TRUE)/12,1,$R121,$D122)*-1,0),ROUND(PPMT(VLOOKUP($C122,Rate_table,2,TRUE)/12,$B122,DurationOfLoan,LoanAmount-BonusAmount-SUM(extra_payments))*-1,0))+IF(I122=0,0,ROUND(PPMT(VLOOKUP($C122,Rate_table,2,TRUE)/12,COUNTIF($I$27:I122,">0"),DurationofBonus,BonusAmount)*-1,0)),"") -> 96808 | I122: 0 | L122: =IF(AND(ValuesEntered,ISNUMBER($C122)),SUM(E122:H122,J122:K122),"") -> 144024 | O122: =IF(AND(ValuesEntered,ISNUMBER($C122)),D122-F122-J122,"") -> 37676266 | R122: 317
A123: 8 | B123: =ROWS($B$27:B123) -> 97 | C123: =IF(AND(ValuesEntered,R122>0),IF(AND(ISNUMBER(O122),R122>0),EDATE(C122,1),""),"") -> 2025-04-01 | D123: 37676266 | E123: =IF(AND(ValuesEntered,ISNUMBER(C123)),IF($E$19="時間短縮",ROUND(IPMT(VLOOKUP($C123,Rate_table,2,TRUE)/12,1,$R122,$D123)*-1,0),ROUND(IPMT(VLOOKUP($C123,Rate_table,2,TRUE)/12,$B123,DurationOfLoan,LoanAmount-BonusAmount-SUM(extra_payments))*-1,0))+IF($I123=0,0,ROUND(IPMT(VLOOKUP($C123,Rate_table,2,TRUE)/12,COUNTIF($I$27:I123,">0"),DurationofBonus,BonusAmount)*-1,0)),"") -> 60729 | F123: =IF(AND(ValuesEntered,ISNUMBER($C123)),IF($E$19="時間短縮",ROUND(PPMT(VLOOKUP($C123,Rate_table,2,TRUE)/12,1,$R122,$D123)*-1,0),ROUND(PPMT(VLOOKUP($C123,Rate_table,2,TRUE)/12,$B123,DurationOfLoan,LoanAmount-BonusAmount-SUM(extra_payments))*-1,0))+IF(I123=0,0,ROUND(PPMT(VLOOKUP($C123,Rate_table,2,TRUE)/12,COUNTIF($I$27:I123,">0"),DurationofBonus,BonusAmount)*-1,0)),"") -> 292298 | I123: 200000 | L123: =IF(AND(ValuesEntered,ISNUMBER($C123)),SUM(E123:H123,J123:K123),"") -> 353027 | O123: =IF(AND(ValuesEntered,ISNUMBER($C123)),D123-F123-J123,"") -> 37383968 | R123: 316
A124: 8 | B124: =ROWS($B$27:B124) -> 98 | C124: =IF(AND(ValuesEntered,R123>0),IF(AND(ISNUMBER(O123),R123>0),EDATE(C123,1),""),"") -> 2025-05-01 | D124: 37383968 | E124: =IF(AND(ValuesEntered,ISNUMBER(C124)),IF($E$19="時間短縮",ROUND(IPMT(VLOOKUP($C124,Rate_table,2,TRUE)/12,1,$R123,$D124)*-1,0),ROUND(IPMT(VLOOKUP($C124,Rate_table,2,TRUE)/12,$B124,DurationOfLoan,LoanAmount-BonusAmount-SUM(extra_payments))*-1,0))+IF($I124=0,0,ROUND(IPMT(VLOOKUP($C124,Rate_table,2,TRUE)/12,COUNTIF($I$27:I124,">0"),DurationofBonus,BonusAmount)*-1,0)),"") -> 46730 | F124: =IF(AND(ValuesEntered,ISNUMBER($C124)),IF($E$19="時間短縮",ROUND(PPMT(VLOOKUP($C124,Rate_table,2,TRUE)/12,1,$R123,$D124)*-1,0),ROUND(PPMT(VLOOKUP($C124,Rate_table,2,TRUE)/12,$B124,DurationOfLoan,LoanAmount-BonusAmount-SUM(extra_payments))*-1,0))+IF(I124=0,0,ROUND(PPMT(VLOOKUP($C124,Rate_table,2,TRUE)/12,COUNTIF($I$27:I124,">0"),DurationofBonus,BonusAmount)*-1,0)),"") -> 96546 | I124: 0 | L124: =IF(AND(ValuesEntered,ISNUMBER($C124)),SUM(E124:H124,J124:K124),"") -> 143276 | O124: =IF(AND(ValuesEntered,ISNUMBER($C124)),D124-F124-J124,"") -> 37287422 | R124: 315
A125: 8 | B125: =ROWS($B$27:B125) -> 99 | C125: =IF(AND(ValuesEntered,R124>0),IF(AND(ISNUMBER(O124),R124>0),EDATE(C124,1),""),"") -> 2025-06-01 | D125: 37287422 | E125: =IF(AND(ValuesEntered,ISNUMBER(C125)),IF($E$19="時間短縮",ROUND(IPMT(VLOOKUP($C125,Rate_table,2,TRUE)/12,1,$R124,$D125)*-1,0),ROUND(IPMT(VLOOKUP($C125,Rate_table,2,TRUE)/12,$B125,DurationOfLoan,LoanAmount-BonusAmount-SUM(extra_payments))*-1,0))+IF($I125=0,0,ROUND(IPMT(VLOOKUP($C125,Rate_table,2,TRUE)/12,COUNTIF($I$27:I125,">0"),DurationofBonus,BonusAmount)*-1,0)),"") -> 46609 | F125: =IF(AND(ValuesEntered,ISNUMBER($C125)),IF($E$19="時間短縮",ROUND(PPMT(VLOOKUP($C125,Rate_table,2,TRUE)/12,1,$R124,$D125)*-1,0),ROUND(PPMT(VLOOKUP($C125,Rate_table,2,TRUE)/12,$B125,DurationOfLoan,LoanAmount-BonusAmount-SUM(extra_payments))*-1,0))+IF(I125=0,0,ROUND(PPMT(VLOOKUP($C125,Rate_table,2,TRUE)/12,COUNTIF($I$27:I125,">0"),DurationofBonus,BonusAmount)*-1,0)),"") -> 96667 | I125: 0 | L125: =IF(AND(ValuesEntered,ISNUMBER($C125)),SUM(E125:H125,J125:K125),"") -> 143276 | O125: =IF(AND(ValuesEntered,ISNUMBER($C125)),D125-F125-J125,"") -> 37190755 | R125: 314
A126: 8 | B126: =ROWS($B$27:B126) -> 100 | C126: =IF(AND(ValuesEntered,R125>0),IF(AND(ISNUMBER(O125),R125>0),EDATE(C125,1),""),"") -> 2025-07-01 | D126: 37190755 | E126: =IF(AND(ValuesEntered,ISNUMBER(C126)),IF($E$19="時間短縮",ROUND(IPMT(VLOOKUP($C126,Rate_table,2,TRUE)/12,1,$R125,$D126)*-1,0),ROUND(IPMT(VLOOKUP($C126,Rate_table,2,TRUE)/12,$B126,DurationOfLoan,LoanAmount-BonusAmount-SUM(extra_payments))*-1,0))+IF($I126=0,0,ROUND(IPMT(VLOOKUP($C126,Rate_table,2,TRUE)/12,COUNTIF($I$27:I126,">0"),DurationofBonus,BonusAmount)*-1,0)),"") -> 59878 | F126: =IF(AND(ValuesEntered,ISNUMBER($C126)),IF($E$19="時間短縮",ROUND(PPMT(VLOOKUP($C126,Rate_table,2,TRUE)/12,1,$R125,$D126)*-1,0),ROUND(PPMT(VLOOKUP($C126,Rate_table,2,TRUE)/12,$B126,DurationOfLoan,LoanAmount-BonusAmount-SUM(extra_payments))*-1,0))+IF(I126=0,0,ROUND(PPMT(VLOOKUP($C126,Rate_table,2,TRUE)/12,COUNTIF($I$27:I126,">0"),DurationofBonus,BonusAmount)*-1,0)),"") -> 292400 | I126: 200000 | L126: =IF(AND(ValuesEntered,ISNUMBER($C126)),SUM(E126:H126,J126:K126),"") -> 352278 | O126: =IF(AND(ValuesEntered,ISNUMBER($C126)),D126-F126-J126,"") -> 36898355 | R126: 313
A127: 8 | B127: =ROWS($B$27:B127) -> 101 | C127: =IF(AND(ValuesEntered,R126>0),IF(AND(ISNUMBER(O126),R126>0),EDATE(C126,1),""),"") -> 2025-08-01 | D127: 36898355 | E127: =IF(AND(ValuesEntered,ISNUMBER(C127)),IF($E$19="時間短縮",ROUND(IPMT(VLOOKUP($C127,Rate_table,2,TRUE)/12,1,$R126,$D127)*-1,0),ROUND(IPMT(VLOOKUP($C127,Rate_table,2,TRUE)/12,$B127,DurationOfLoan,LoanAmount-BonusAmount-SUM(extra_payments))*-1,0))+IF($I127=0,0,ROUND(IPMT(VLOOKUP($C127,Rate_table,2,TRUE)/12,COUNTIF($I$27:I127,">0"),DurationofBonus,BonusAmount)*-1,0)),"") -> 46123 | F127: =IF(AND(ValuesEntered,ISNUMBER($C127)),IF($E$19="時間短縮",ROUND(PPMT(VLOOKUP($C127,Rate_table,2,TRUE)/12,1,$R126,$D127)*-1,0),ROUND(PPMT(VLOOKUP($C127,Rate_table,2,TRUE)/12,$B127,DurationOfLoan,LoanAmount-BonusAmount-SUM(extra_payments))*-1,0))+IF(I127=0,0,ROUND(PPMT(VLOOKUP($C127,Rate_table,2,TRUE)/12,COUNTIF($I$27:I127,">0"),DurationofBonus,BonusAmount)*-1,0)),"") -> 96397 | I127: 0 | L127: =IF(AND(ValuesEntered,ISNUMBER($C127)),SUM(E127:H127,J127:K127),"") -> 142520 | O127: =IF(AND(ValuesEntered,ISNUMBER($C127)),D127-F127-J127,"") -> 36801958 | R127: 312
A128: 8 | B128: =ROWS($B$27:B128) -> 102 | C128: =IF(AND(ValuesEntered,R127>0),IF(AND(ISNUMBER(O127),R127>0),EDATE(C127,1),""),"") -> 2025-09-01 | D128: 36801958 | E128: =IF(AND(ValuesEntered,ISNUMBER(C128)),IF($E$19="時間短縮",ROUND(IPMT(VLOOKUP($C128,Rate_table,2,TRUE)/12,1,$R127,$D128)*-1,0),ROUND(IPMT(VLOOKUP($C128,Rate_table,2,TRUE)/12,$B128,DurationOfLoan,LoanAmount-BonusAmount-SUM(extra_payments))*-1,0))+IF($I128=0,0,ROUND(IPMT(VLOOKUP($C128,Rate_table,2,TRUE)/12,COUNTIF($I$27:I128,">0"),DurationofBonus,BonusAmount)*-1,0)),"") -> 46002 | F128: =IF(AND(ValuesEntered,ISNUMBER($C128)),IF($E$19="時間短縮",ROUND(PPMT(VLOOKUP($C128,Rate_table,2,TRUE)/12,1,$R127,$D128)*-1,0),ROUND(PPMT(VLOOKUP($C128,Rate_table,2,TRUE)/12,$B128,DurationOfLoan,LoanAmount-BonusAmount-SUM(extra_payments))*-1,0))+IF(I128=0,0,ROUND(PPMT(VLOOKUP($C128,Rate_table,2,TRUE)/12,COUNTIF($I$27:I128,">0"),DurationofBonus,BonusAmount)*-1,0)),"") -> 96518 | I128: 0 | L128: =IF(AND(ValuesEntered,ISNUMBER($C128)),SUM(E128:H128,J128:K128),"") -> 142520 | O128: =IF(AND(ValuesEntered,ISNUMBER($C128)),D128-F128-J128,"") -> 36705440 | R128: 311
A129: 8 | B129: =ROWS($B$27:B129) -> 103 | C129: =IF(AND(ValuesEntered,R128>0),IF(AND(ISNUMBER(O128),R128>0),EDATE(C128,1),""),"") -> 2025-10-01 | D129: 36705440 | E129: =IF(AND(ValuesEntered,ISNUMBER(C129)),IF($E$19="時間短縮",ROUND(IPMT(VLOOKUP($C129,Rate_table,2,TRUE)/12,1,$R128,$D129)*-1,0),ROUND(IPMT(VLOOKUP($C129,Rate_table,2,TRUE)/12,$B129,DurationOfLoan,LoanAmount-BonusAmount-SUM(extra_payments))*-1,0))+IF($I129=0,0,ROUND(IPMT(VLOOKUP($C129,Rate_table,2,TRUE)/12,COUNTIF($I$27:I129,">0"),DurationofBonus,BonusAmount)*-1,0)),"") -> 45882 | F129: =IF(AND(ValuesEntered,ISNUMBER($C129)),IF($E$19="時間短縮",ROUND(PPMT(VLOOKUP($C129,Rate_table,2,TRUE)/12,1,$R128,$D129)*-1,0),ROUND(PPMT(VLOOKUP($C129,Rate_table,2,TRUE)/12,$B129,DurationOfLoan,LoanAmount-BonusAmount-SUM(extra_payments))*-1,0))+IF(I129=0,0,ROUND(PPMT(VLOOKUP($C129,Rate_table,2,TRUE)/12,COUNTIF($I$27:I129,">0"),DurationofBonus,BonusAmount)*-1,0)),"") -> 96638 | I129: 0 | L129: =IF(AND(ValuesEntered,ISNUMBER($C129)),SUM(E129:H129,J129:K129),"") -> 142520 | O129: =IF(AND(ValuesEntered,ISNUMBER($C129)),D129-F129-J129,"") -> 36608802 | R129: 310
A130: 8 | B130: =ROWS($B$27:B130) -> 104 | C130: =IF(AND(ValuesEntered,R129>0),IF(AND(ISNUMBER(O129),R129>0),EDATE(C129,1),""),"") -> 2025-11-01 | D130: 36608802 | E130: =IF(AND(ValuesEntered,ISNUMBER(C130)),IF($E$19="時間短縮",ROUND(IPMT(VLOOKUP($C130,Rate_table,2,TRUE)/12,1,$R129,$D130)*-1,0),ROUND(IPMT(VLOOKUP($C130,Rate_table,2,TRUE)/12,$B130,DurationOfLoan,LoanAmount-BonusAmount-SUM(extra_payments))*-1,0))+IF($I130=0,0,ROUND(IPMT(VLOOKUP($C130,Rate_table,2,TRUE)/12,COUNTIF($I$27:I130,">0"),DurationofBonus,BonusAmount)*-1,0)),"") -> 45761 | F130: =IF(AND(ValuesEntered,ISNUMBER($C130)),IF($E$19="時間短縮",ROUND(PPMT(VLOOKUP($C130,Rate_table,2,TRUE)/12,1,$R129,$D130)*-1,0),ROUND(PPMT(VLOOKUP($C130,Rate_table,2,TRUE)/12,$B130,DurationOfLoan,LoanAmount-BonusAmount-SUM(extra_payments))*-1,0))+IF(I130=0,0,ROUND(PPMT(VLOOKUP($C130,Rate_table,2,TRUE)/12,COUNTIF($I$27:I130,">0"),DurationofBonus,BonusAmount)*-1,0)),"") -> 96759 | I130: 0 | L130: =IF(AND(ValuesEntered,ISNUMBER($C130)),SUM(E130:H130,J130:K130),"") -> 142520 | O130: =IF(AND(ValuesEntered,ISNUMBER($C130)),D130-F130-J130,"") -> 36512043 | R130: 309
A131: 8 | B131: =ROWS($B$27:B131) -> 105 | C131: =IF(AND(ValuesEntered,R130>0),IF(AND(ISNUMBER(O130),R130>0),EDATE(C130,1),""),"") -> 2025-12-01 | D131: 36512043 | E131: =IF(AND(ValuesEntered,ISNUMBER(C131)),IF($E$19="時間短縮",ROUND(IPMT(VLOOKUP($C131,Rate_table,2,TRUE)/12,1,$R130,$D131)*-1,0),ROUND(IPMT(VLOOKUP($C131,Rate_table,2,TRUE)/12,$B131,DurationOfLoan,LoanAmount-BonusAmount-SUM(extra_payments))*-1,0))+IF($I131=0,0,ROUND(IPMT(VLOOKUP($C131,Rate_table,2,TRUE)/12,COUNTIF($I$27:I131,">0"),DurationofBonus,BonusAmount)*-1,0)),"") -> 45640 | F131: =IF(AND(ValuesEntered,ISNUMBER($C131)),IF($E$19="時間短縮",ROUND(PPMT(VLOOKUP($C131,Rate_table,2,TRUE)/12,1,$R130,$D131)*-1,0),ROUND(PPMT(VLOOKUP($C131,Rate_table,2,TRUE)/12,$B131,DurationOfLoan,LoanAmount-BonusAmount-SUM(extra_payments))*-1,0))+IF(I131=0,0,ROUND(PPMT(VLOOKUP($C131,Rate_table,2,TRUE)/12,COUNTIF($I$27:I131,">0"),DurationofBonus,BonusAmount)*-1,0)),"") -> 96880 | I131: 0 | L131: =IF(AND(ValuesEntered,ISNUMBER($C131)),SUM(E131:H131,J131:K131),"") -> 142520 | O131: =IF(AND(ValuesEntered,ISNUMBER($C131)),D131-F131-J131,"") -> 36415163 | R131: 308
A132: 9 | B132: =ROWS($B$27:B132) -> 106 | C132: =IF(AND(ValuesEntered,R131>0),IF(AND(ISNUMBER(O131),R131>0),EDATE(C131,1),""),"") -> 2026-01-01 | D132: 36415163 | E132: =IF(AND(ValuesEntered,ISNUMBER(C132)),IF($E$19="時間短縮",ROUND(IPMT(VLOOKUP($C132,Rate_table,2,TRUE)/12,1,$R131,$D132)*-1,0),ROUND(IPMT(VLOOKUP($C132,Rate_table,2,TRUE)/12,$B132,DurationOfLoan,LoanAmount-BonusAmount-SUM(extra_payments))*-1,0))+IF($I132=0,0,ROUND(IPMT(VLOOKUP($C132,Rate_table,2,TRUE)/12,COUNTIF($I$27:I132,">0"),DurationofBonus,BonusAmount)*-1,0)),"") -> 45519 | F132: =IF(AND(ValuesEntered,ISNUMBER($C132)),IF($E$19="時間短縮",ROUND(PPMT(VLOOKUP($C132,Rate_table,2,TRUE)/12,1,$R131,$D132)*-1,0),ROUND(PPMT(VLOOKUP($C132,Rate_table,2,TRUE)/12,$B132,DurationOfLoan,LoanAmount-BonusAmount-SUM(extra_payments))*-1,0))+IF(I132=0,0,ROUND(PPMT(VLOOKUP($C132,Rate_table,2,TRUE)/12,COUNTIF($I$27:I132,">0"),DurationofBonus,BonusAmount)*-1,0)),"") -> 97001 | I132: 0 | L132: =IF(AND(ValuesEntered,ISNUMBER($C132)),SUM(E132:H132,J132:K132),"") -> 142520 | O132: =IF(AND(ValuesEntered,ISNUMBER($C132)),D132-F132-J132,"") -> 36318162 | R132: 307
A133: 9 | B133: =ROWS($B$27:B133) -> 107 | C133: =IF(AND(ValuesEntered,R132>0),IF(AND(ISNUMBER(O132),R132>0),EDATE(C132,1),""),"") -> 2026-02-01 | D133: 36318162 | E133: =IF(AND(ValuesEntered,ISNUMBER(C133)),IF($E$19="時間短縮",ROUND(IPMT(VLOOKUP($C133,Rate_table,2,TRUE)/12,1,$R132,$D133)*-1,0),ROUND(IPMT(VLOOKUP($C133,Rate_table,2,TRUE)/12,$B133,DurationOfLoan,LoanAmount-BonusAmount-SUM(extra_payments))*-1,0))+IF($I133=0,0,ROUND(IPMT(VLOOKUP($C133,Rate_table,2,TRUE)/12,COUNTIF($I$27:I133,">0"),DurationofBonus,BonusAmount)*-1,0)),"") -> 45398 | F133: =IF(AND(ValuesEntered,ISNUMBER($C133)),IF($E$19="時間短縮",ROUND(PPMT(VLOOKUP($C133,Rate_table,2,TRUE)/12,1,$R132,$D133)*-1,0),ROUND(PPMT(VLOOKUP($C133,Rate_table,2,TRUE)/12,$B133,DurationOfLoan,LoanAmount-BonusAmount-SUM(extra_payments))*-1,0))+IF(I133=0,0,ROUND(PPMT(VLOOKUP($C133,Rate_table,2,TRUE)/12,COUNTIF($I$27:I133,">0"),DurationofBonus,BonusAmount)*-1,0)),"") -> 97123 | I133: 0 | L133: =IF(AND(ValuesEntered,ISNUMBER($C133)),SUM(E133:H133,J133:K133),"") -> 142521 | O133: =IF(AND(ValuesEntered,ISNUMBER($C133)),D133-F133-J133,"") -> 36221039 | R133: 306
A134: 9 | B134: =ROWS($B$27:B134) -> 108 | C134: =IF(AND(ValuesEntered,R133>0),IF(AND(ISNUMBER(O133),R133>0),EDATE(C133,1),""),"") -> 2026-03-01 | D134: 36221039 | E134: =IF(AND(ValuesEntered,ISNUMBER(C134)),IF($E$19="時間短縮",ROUND(IPMT(VLOOKUP($C134,Rate_table,2,TRUE)/12,1,$R133,$D134)*-1,0),ROUND(IPMT(VLOOKUP($C134,Rate_table,2,TRUE)/12,$B134,DurationOfLoan,LoanAmount-BonusAmount-SUM(extra_payments))*-1,0))+IF($I134=0,0,ROUND(IPMT(VLOOKUP($C134,Rate_table,2,TRUE)/12,COUNTIF($I$27:I134,">0"),DurationofBonus,BonusAmount)*-1,0)),"") -> 45276 | F134: =IF(AND(ValuesEntered,ISNUMBER($C134)),IF($E$19="時間短縮",ROUND(PPMT(VLOOKUP($C134,Rate_table,2,TRUE)/12,1,$R133,$D134)*-1,0),ROUND(PPMT(VLOOKUP($C134,Rate_table,2,TRUE)/12,$B134,DurationOfLoan,LoanAmount-BonusAmount-SUM(extra_payments))*-1,0))+IF(I134=0,0,ROUND(PPMT(VLOOKUP($C134,Rate_table,2,TRUE)/12,COUNTIF($I$27:I134,">0"),DurationofBonus,BonusAmount)*-1,0)),"") -> 97244 | I134: 0 | L134: =IF(AND(ValuesEntered,ISNUMBER($C134)),SUM(E134:H134,J134:K134),"") -> 142520 | O134: =IF(AND(ValuesEntered,ISNUMBER($C134)),D134-F134-J134,"") -> 36123795 | R134: 305
A135: 9 | B135: =ROWS($B$27:B135) -> 109 | C135: =IF(AND(ValuesEntered,R134>0),IF(AND(ISNUMBER(O134),R134>0),EDATE(C134,1),""),"") -> 2026-04-01 | D135: 36123795 | E135: =IF(AND(ValuesEntered,ISNUMBER(C135)),IF($E$19="時間短縮",ROUND(IPMT(VLOOKUP($C135,Rate_table,2,TRUE)/12,1,$R134,$D135)*-1,0),ROUND(IPMT(VLOOKUP($C135,Rate_table,2,TRUE)/12,$B135,DurationOfLoan,LoanAmount-BonusAmount-SUM(extra_payments))*-1,0))+IF($I135=0,0,ROUND(IPMT(VLOOKUP($C135,Rate_table,2,TRUE)/12,COUNTIF($I$27:I135,">0"),DurationofBonus,BonusAmount)*-1,0)),"") -> 58300 | F135: =IF(AND(ValuesEntered,ISNUMBER($C135)),IF($E$19="時間短縮",ROUND(PPMT(VLOOKUP($C135,Rate_table,2,TRUE)/12,1,$R134,$D135)*-1,0),ROUND(PPMT(VLOOKUP($C135,Rate_table,2,TRUE)/12,$B135,DurationOfLoan,LoanAmount-BonusAmount-SUM(extra_payments))*-1,0))+IF(I135=0,0,ROUND(PPMT(VLOOKUP($C135,Rate_table,2,TRUE)/12,COUNTIF($I$27:I135,">0"),DurationofBonus,BonusAmount)*-1,0)),"") -> 293223 | I135: 200000 | L135: =IF(AND(ValuesEntered,ISNUMBER($C135)),SUM(E135:H135,J135:K135),"") -> 351523 | O135: =IF(AND(ValuesEntered,ISNUMBER($C135)),D135-F135-J135,"") -> 35830572 | R135: 304
A136: 9 | B136: =ROWS($B$27:B136) -> 110 | C136: =IF(AND(ValuesEntered,R135>0),IF(AND(ISNUMBER(O135),R135>0),EDATE(C135,1),""),"") -> 2026-05-01 | D136: 35830572 | E136: =IF(AND(ValuesEntered,ISNUMBER(C136)),IF($E$19="時間短縮",ROUND(IPMT(VLOOKUP($C136,Rate_table,2,TRUE)/12,1,$R135,$D136)*-1,0),ROUND(IPMT(VLOOKUP($C136,Rate_table,2,TRUE)/12,$B136,DurationOfLoan,LoanAmount-BonusAmount-SUM(extra_payments))*-1,0))+IF($I136=0,0,ROUND(IPMT(VLOOKUP($C136,Rate_table,2,TRUE)/12,COUNTIF($I$27:I136,">0"),DurationofBonus,BonusAmount)*-1,0)),"") -> 44788 | F136: =IF(AND(ValuesEntered,ISNUMBER($C136)),IF($E$19="時間短縮",ROUND(PPMT(VLOOKUP($C136,Rate_table,2,TRUE)/12,1,$R135,$D136)*-1,0),ROUND(PPMT(VLOOKUP($C136,Rate_table,2,TRUE)/12,$B136,DurationOfLoan,LoanAmount-BonusAmount-SUM(extra_payments))*-1,0))+IF(I136=0,0,ROUND(PPMT(VLOOKUP($C136,Rate_table,2,TRUE)/12,COUNTIF($I$27:I136,">0"),DurationofBonus,BonusAmount)*-1,0)),"") -> 96957 | I136: 0 | L136: =IF(AND(ValuesEntered,ISNUMBER($C136)),SUM(E136:H136,J136:K136),"") -> 141745 | O136: =IF(AND(ValuesEntered,ISNUMBER($C136)),D136-F136-J136,"") -> 35733615 | R136: 303
A137: 9 | B137: =ROWS($B$27:B137) -> 111 | C137: =IF(AND(ValuesEntered,R136>0),IF(AND(ISNUMBER(O136),R136>0),EDATE(C136,1),""),"") -> 2026-06-01 | D137: 35733615 | E137: =IF(AND(ValuesEntered,ISNUMBER(C137)),IF($E$19="時間短縮",ROUND(IPMT(VLOOKUP($C137,Rate_table,2,TRUE)/12,1,$R136,$D137)*-1,0),ROUND(IPMT(VLOOKUP($C137,Rate_table,2,TRUE)/12,$B137,DurationOfLoan,LoanAmount-BonusAmount-SUM(extra_payments))*-1,0))+IF($I137=0,0,ROUND(IPMT(VLOOKUP($C137,Rate_table,2,TRUE)/12,COUNTIF($I$27:I137,">0"),DurationofBonus,BonusAmount)*-1,0)),"") -> 44667 | F137: =IF(AND(ValuesEntered,ISNUMBER($C137)),IF($E$19="時間短縮",ROUND(PPMT(VLOOKUP($C137,Rate_table,2,TRUE)/12,1,$R136,$D137)*-1,0),ROUND(PPMT(VLOOKUP($C137,Rate_table,2,TRUE)/12,$B137,DurationOfLoan,LoanAmount-BonusAmount-SUM(extra_payments))*-1,0))+IF(I137=0,0,ROUND(PPMT(VLOOKUP($C137,Rate_table,2,TRUE)/12,COUNTIF($I$27:I137,">0"),DurationofBonus,BonusAmount)*-1,0)),"") -> 97078 | I137: 0 | L137: =IF(AND(ValuesEntered,ISNUMBER($C137)),SUM(E137:H137,J137:K137),"") -> 141745 | O137: =IF(AND(ValuesEntered,ISNUMBER($C137)),D137-F137-J137,"") -> 35636537 | R137: 302
A138: 9 | B138: =ROWS($B$27:B138) -> 112 | C138: =IF(AND(ValuesEntered,R137>0),IF(AND(ISNUMBER(O137),R137>0),EDATE(C137,1),""),"") -> 2026-07-01 | D138: 35636537 | E138: =IF(AND(ValuesEntered,ISNUMBER(C138)),IF($E$19="時間短縮",ROUND(IPMT(VLOOKUP($C138,Rate_table,2,TRUE)/12,1,$R137,$D138)*-1,0),ROUND(IPMT(VLOOKUP($C138,Rate_table,2,TRUE)/12,$B138,DurationOfLoan,LoanAmount-BonusAmount-SUM(extra_payments))*-1,0))+IF($I138=0,0,ROUND(IPMT(VLOOKUP($C138,Rate_table,2,TRUE)/12,COUNTIF($I$27:I138,">0"),DurationofBonus,BonusAmount)*-1,0)),"") -> 57446 | F138: =IF(AND(ValuesEntered,ISNUMBER($C138)),IF($E$19="時間短縮",ROUND(PPMT(VLOOKUP($C138,Rate_table,2,TRUE)/12,1,$R137,$D138)*-1,0),ROUND(PPMT(VLOOKUP($C138,Rate_table,2,TRUE)/12,$B138,DurationOfLoan,LoanAmount-BonusAmount-SUM(extra_payments))*-1,0))+IF(I138=0,0,ROUND(PPMT(VLOOKUP($C138,Rate_table,2,TRUE)/12,COUNTIF($I$27:I138,">0"),DurationofBonus,BonusAmount)*-1,0)),"") -> 293302 | I138: 200000 | L138: =IF(AND(ValuesEntered,ISNUMBER($C138)),SUM(E138:H138,J138:K138),"") -> 350748 | O138: =IF(AND(ValuesEntered,ISNUMBER($C138)),D138-F138-J138,"") -> 35343235 | R138: 301
A139: 9 | B139: =ROWS($B$27:B139) -> 113 | C139: =IF(AND(ValuesEntered,R138>0),IF(AND(ISNUMBER(O138),R138>0),EDATE(C138,1),""),"") -> 2026-08-01 | D139: 35343235 | E139: =IF(AND(ValuesEntered,ISNUMBER(C139)),IF($E$19="時間短縮",ROUND(IPMT(VLOOKUP($C139,Rate_table,2,TRUE)/12,1,$R138,$D139)*-1,0),ROUND(IPMT(VLOOKUP($C139,Rate_table,2,TRUE)/12,$B139,DurationOfLoan,LoanAmount-BonusAmount-SUM(extra_payments))*-1,0))+IF($I139=0,0,ROUND(IPMT(VLOOKUP($C139,Rate_table,2,TRUE)/12,COUNTIF($I$27:I139,">0"),DurationofBonus,BonusAmount)*-1,0)),"") -> 44179 | F139: =IF(AND(ValuesEntered,ISNUMBER($C139)),IF($E$19="時間短縮",ROUND(PPMT(VLOOKUP($C139,Rate_table,2,TRUE)/12,1,$R138,$D139)*-1,0),ROUND(PPMT(VLOOKUP($C139,Rate_table,2,TRUE)/12,$B139,DurationOfLoan,LoanAmount-BonusAmount-SUM(extra_payments))*-1,0))+IF(I139=0,0,ROUND(PPMT(VLOOKUP($C139,Rate_table,2,TRUE)/12,COUNTIF($I$27:I139,">0"),DurationofBonus,BonusAmount)*-1,0)),"") -> 96784 | I139: 0 | L139: =IF(AND(ValuesEntered,ISNUMBER($C139)),SUM(E139:H139,J139:K139),"") -> 140963 | O139: =IF(AND(ValuesEntered,ISNUMBER($C139)),D139-F139-J139,"") -> 35246451 | R139: 300
A140: 9 | B140: =ROWS($B$27:B140) -> 114 | C140: =IF(AND(ValuesEntered,R139>0),IF(AND(ISNUMBER(O139),R139>0),EDATE(C139,1),""),"") -> 2026-09-01 | D140: 35246451 | E140: =IF(AND(ValuesEntered,ISNUMBER(C140)),IF($E$19="時間短縮",ROUND(IPMT(VLOOKUP($C140,Rate_table,2,TRUE)/12,1,$R139,$D140)*-1,0),ROUND(IPMT(VLOOKUP($C140,Rate_table,2,TRUE)/12,$B140,DurationOfLoan,LoanAmount-BonusAmount-SUM(extra_payments))*-1,0))+IF($I140=0,0,ROUND(IPMT(VLOOKUP($C140,Rate_table,2,TRUE)/12,COUNTIF($I$27:I140,">0"),DurationofBonus,BonusAmount)*-1,0)),"") -> 44058 | F140: =IF(AND(ValuesEntered,ISNUMBER($C140)),IF($E$19="時間短縮",ROUND(PPMT(VLOOKUP($C140,Rate_table,2,TRUE)/12,1,$R139,$D140)*-1,0),ROUND(PPMT(VLOOKUP($C140,Rate_table,2,TRUE)/12,$B140,DurationOfLoan,LoanAmount-BonusAmount-SUM(extra_payments))*-1,0))+IF(I140=0,0,ROUND(PPMT(VLOOKUP($C140,Rate_table,2,TRUE)/12,COUNTIF($I$27:I140,">0"),DurationofBonus,BonusAmount)*-1,0)),"") -> 96905 | I140: 0 | L140: =IF(AND(ValuesEntered,ISNUMBER($C140)),SUM(E140:H140,J140:K140),"") -> 140963 | O140: =IF(AND(ValuesEntered,ISNUMBER($C140)),D140-F140-J140,"") -> 35149546 | R140: 299
A141: 9 | B141: =ROWS($B$27:B141) -> 115 | C141: =IF(AND(ValuesEntered,R140>0),IF(AND(ISNUMBER(O140),R140>0),EDATE(C140,1),""),"") -> 2026-10-01 | D141: 35149546 | E141: =IF(AND(ValuesEntered,ISNUMBER(C141)),IF($E$19="時間短縮",ROUND(IPMT(VLOOKUP($C141,Rate_table,2,TRUE)/12,1,$R140,$D141)*-1,0),ROUND(IPMT(VLOOKUP($C141,Rate_table,2,TRUE)/12,$B141,DurationOfLoan,LoanAmount-BonusAmount-SUM(extra_payments))*-1,0))+IF($I141=0,0,ROUND(IPMT(VLOOKUP($C141,Rate_table,2,TRUE)/12,COUNTIF($I$27:I141,">0"),DurationofBonus,BonusAmount)*-1,0)),"") -> 43937 | F141: =IF(AND(ValuesEntered,ISNUMBER($C141)),IF($E$19="時間短縮",ROUND(PPMT(VLOOKUP($C141,Rate_table,2,TRUE)/12,1,$R140,$D141)*-1,0),ROUND(PPMT(VLOOKUP($C141,Rate_table,2,TRUE)/12,$B141,DurationOfLoan,LoanAmount-BonusAmount-SUM(extra_payments))*-1,0))+IF(I141=0,0,ROUND(PPMT(VLOOKUP($C141,Rate_table,2,TRUE)/12,COUNTIF($I$27:I141,">0"),DurationofBonus,BonusAmount)*-1,0)),"") -> 97026 | I141: 0 | L141: =IF(AND(ValuesEntered,ISNUMBER($C141)),SUM(E141:H141,J141:K141),"") -> 140963 | O141: =IF(AND(ValuesEntered,ISNUMBER($C141)),D141-F141-J141,"") -> 35052520 | R141: 298
A142: 9 | B142: =ROWS($B$27:B142) -> 116 | C142: =IF(AND(ValuesEntered,R141>0),IF(AND(ISNUMBER(O141),R141>0),EDATE(C141,1),""),"") -> 2026-11-01 | D142: 35052520 | E142: =IF(AND(ValuesEntered,ISNUMBER(C142)),IF($E$19="時間短縮",ROUND(IPMT(VLOOKUP($C142,Rate_table,2,TRUE)/12,1,$R141,$D142)*-1,0),ROUND(IPMT(VLOOKUP($C142,Rate_table,2,TRUE)/12,$B142,DurationOfLoan,LoanAmount-BonusAmount-SUM(extra_payments))*-1,0))+IF($I142=0,0,ROUND(IPMT(VLOOKUP($C142,Rate_table,2,TRUE)/12,COUNTIF($I$27:I142,">0"),DurationofBonus,BonusAmount)*-1,0)),"") -> 43816 | F142: =IF(AND(ValuesEntered,ISNUMBER($C142)),IF($E$19="時間短縮",ROUND(PPMT(VLOOKUP($C142,Rate_table,2,TRUE)/12,1,$R141,$D142)*-1,0),ROUND(PPMT(VLOOKUP($C142,Rate_table,2,TRUE)/12,$B142,DurationOfLoan,LoanAmount-BonusAmount-SUM(extra_payments))*-1,0))+IF(I142=0,0,ROUND(PPMT(VLOOKUP($C142,Rate_table,2,TRUE)/12,COUNTIF($I$27:I142,">0"),DurationofBonus,BonusAmount)*-1,0)),"") -> 97148 | I142: 0 | L142: =IF(AND(ValuesEntered,ISNUMBER($C142)),SUM(E142:H142,J142:K142),"") -> 140964 | O142: =IF(AND(ValuesEntered,ISNUMBER($C142)),D142-F142-J142,"") -> 34955372 | R142: 297
A143: 9 | B143: =ROWS($B$27:B143) -> 117 | C143: =IF(AND(ValuesEntered,R142>0),IF(AND(ISNUMBER(O142),R142>0),EDATE(C142,1),""),"") -> 2026-12-01 | D143: 34955372 | E143: =IF(AND(ValuesEntered,ISNUMBER(C143)),IF($E$19="時間短縮",ROUND(IPMT(VLOOKUP($C143,Rate_table,2,TRUE)/12,1,$R142,$D143)*-1,0),ROUND(IPMT(VLOOKUP($C143,Rate_table,2,TRUE)/12,$B143,DurationOfLoan,LoanAmount-BonusAmount-SUM(extra_payments))*-1,0))+IF($I143=0,0,ROUND(IPMT(VLOOKUP($C143,Rate_table,2,TRUE)/12,COUNTIF($I$27:I143,">0"),DurationofBonus,BonusAmount)*-1,0)),"") -> 43694 | F143: =IF(AND(ValuesEntered,ISNUMBER($C143)),IF($E$19="時間短縮",ROUND(PPMT(VLOOKUP($C143,Rate_table,2,TRUE)/12,1,$R142,$D143)*-1,0),ROUND(PPMT(VLOOKUP($C143,Rate_table,2,TRUE)/12,$B143,DurationOfLoan,LoanAmount-BonusAmount-SUM(extra_payments))*-1,0))+IF(I143=0,0,ROUND(PPMT(VLOOKUP($C143,Rate_table,2,TRUE)/12,COUNTIF($I$27:I143,">0"),DurationofBonus,BonusAmount)*-1,0)),"") -> 97269 | I143: 0 | L143: =IF(AND(ValuesEntered,ISNUMBER($C143)),SUM(E143:H143,J143:K143),"") -> 140963 | O143: =IF(AND(ValuesEntered,ISNUMBER($C143)),D143-F143-J143,"") -> 34858103 | R143: 296
A144: 10 | B144: =ROWS($B$27:B144) -> 118 | C144: =IF(AND(ValuesEntered,R143>0),IF(AND(ISNUMBER(O143),R143>0),EDATE(C143,1),""),"") -> 2027-01-01 | D144: 34858103 | E144: =IF(AND(ValuesEntered,ISNUMBER(C144)),IF($E$19="時間短縮",ROUND(IPMT(VLOOKUP($C144,Rate_table,2,TRUE)/12,1,$R143,$D144)*-1,0),ROUND(IPMT(VLOOKUP($C144,Rate_table,2,TRUE)/12,$B144,DurationOfLoan,LoanAmount-BonusAmount-SUM(extra_payments))*-1,0))+IF($I144=0,0,ROUND(IPMT(VLOOKUP($C144,Rate_table,2,TRUE)/12,COUNTIF($I$27:I144,">0"),DurationofBonus,BonusAmount)*-1,0)),"") -> 43573 | F144: =IF(AND(ValuesEntered,ISNUMBER($C144)),IF($E$19="時間短縮",ROUND(PPMT(VLOOKUP($C144,Rate_table,2,TRUE)/12,1,$R143,$D144)*-1,0),ROUND(PPMT(VLOOKUP($C144,Rate_table,2,TRUE)/12,$B144,DurationOfLoan,LoanAmount-BonusAmount-SUM(extra_payments))*-1,0))+IF(I144=0,0,ROUND(PPMT(VLOOKUP($C144,Rate_table,2,TRUE)/12,COUNTIF($I$27:I144,">0"),DurationofBonus,BonusAmount)*-1,0)),"") -> 97391 | I144: 0 | L144: =IF(AND(ValuesEntered,ISNUMBER($C144)),SUM(E144:H144,J144:K144),"") -> 140964 | O144: =IF(AND(ValuesEntered,ISNUMBER($C144)),D144-F144-J144,"") -> 34760712 | R144: 295
A145: 10 | B145: =ROWS($B$27:B145) -> 119 | C145: =IF(AND(ValuesEntered,R144>0),IF(AND(ISNUMBER(O144),R144>0),EDATE(C144,1),""),"") -> 2027-02-01 | D145: 34760712 | E145: =IF(AND(ValuesEntered,ISNUMBER(C145)),IF($E$19="時間短縮",ROUND(IPMT(VLOOKUP($C145,Rate_table,2,TRUE)/12,1,$R144,$D145)*-1,0),ROUND(IPMT(VLOOKUP($C145,Rate_table,2,TRUE)/12,$B145,DurationOfLoan,LoanAmount-BonusAmount-SUM(extra_payments))*-1,0))+IF($I145=0,0,ROUND(IPMT(VLOOKUP($C145,Rate_table,2,TRUE)/12,COUNTIF($I$27:I145,">0"),DurationofBonus,BonusAmount)*-1,0)),"") -> 43451 | F145: =IF(AND(ValuesEntered,ISNUMBER($C145)),IF($E$19="時間短縮",ROUND(PPMT(VLOOKUP($C145,Rate_table,2,TRUE)/12,1,$R144,$D145)*-1,0),ROUND(PPMT(VLOOKUP($C145,Rate_table,2,TRUE)/12,$B145,DurationOfLoan,LoanAmount-BonusAmount-SUM(extra_payments))*-1,0))+IF(I145=0,0,ROUND(PPMT(VLOOKUP($C145,Rate_table,2,TRUE)/12,COUNTIF($I$27:I145,">0"),DurationofBonus,BonusAmount)*-1,0)),"") -> 97512 | I145: 0 | L145: =IF(AND(ValuesEntered,ISNUMBER($C145)),SUM(E145:H145,J145:K145),"") -> 140963 | O145: =IF(AND(ValuesEntered,ISNUMBER($C145)),D145-F145-J145,"") -> 34663200 | R145: 294
A146: 10 | B146: =ROWS($B$27:B146) -> 120 | C146: =IF(AND(ValuesEntered,R145>0),IF(AND(ISNUMBER(O145),R145>0),EDATE(C145,1),""),"") -> 2027-03-01 | D146: 34663200 | E146: =IF(AND(ValuesEntered,ISNUMBER(C146)),IF($E$19="時間短縮",ROUND(IPMT(VLOOKUP($C146,Rate_table,2,TRUE)/12,1,$R145,$D146)*-1,0),ROUND(IPMT(VLOOKUP($C146,Rate_table,2,TRUE)/12,$B146,DurationOfLoan,LoanAmount-BonusAmount-SUM(extra_payments))*-1,0))+IF($I146=0,0,ROUND(IPMT(VLOOKUP($C146,Rate_table,2,TRUE)/12,COUNTIF($I$27:I146,">0"),DurationofBonus,BonusAmount)*-1,0)),"") -> 43329 | F146: =IF(AND(ValuesEntered,ISNUMBER($C146)),IF($E$19="時間短縮",ROUND(PPMT(VLOOKUP($C146,Rate_table,2,TRUE)/12,1,$R145,$D146)*-1,0),ROUND(PPMT(VLOOKUP($C146,Rate_table,2,TRUE)/12,$B146,DurationOfLoan,LoanAmount-BonusAmount-SUM(extra_payments))*-1,0))+IF(I146=0,0,ROUND(PPMT(VLOOKUP($C146,Rate_table,2,TRUE)/12,COUNTIF($I$27:I146,">0"),DurationofBonus,BonusAmount)*-1,0)),"") -> 97634 | I146: 0 | L146: =IF(AND(ValuesEntered,ISNUMBER($C146)),SUM(E146:H146,J146:K146),"") -> 140963 | O146: =IF(AND(ValuesEntered,ISNUMBER($C146)),D146-F146-J146,"") -> 34565566 | R146: 293
A147: 10 | B147: =ROWS($B$27:B147) -> 121 | C147: =IF(AND(ValuesEntered,R146>0),IF(AND(ISNUMBER(O146),R146>0),EDATE(C146,1),""),"") -> 2027-04-01 | D147: 34565566 | E147: =IF(AND(ValuesEntered,ISNUMBER(C147)),IF($E$19="時間短縮",ROUND(IPMT(VLOOKUP($C147,Rate_table,2,TRUE)/12,1,$R146,$D147)*-1,0),ROUND(IPMT(VLOOKUP($C147,Rate_table,2,TRUE)/12,$B147,DurationOfLoan,LoanAmount-BonusAmount-SUM(extra_payments))*-1,0))+IF($I147=0,0,ROUND(IPMT(VLOOKUP($C147,Rate_table,2,TRUE)/12,COUNTIF($I$27:I147,">0"),DurationofBonus,BonusAmount)*-1,0)),"") -> 55862 | F147: =IF(AND(ValuesEntered,ISNUMBER($C147)),IF($E$19="時間短縮",ROUND(PPMT(VLOOKUP($C147,Rate_table,2,TRUE)/12,1,$R146,$D147)*-1,0),ROUND(PPMT(VLOOKUP($C147,Rate_table,2,TRUE)/12,$B147,DurationOfLoan,LoanAmount-BonusAmount-SUM(extra_payments))*-1,0))+IF(I147=0,0,ROUND(PPMT(VLOOKUP($C147,Rate_table,2,TRUE)/12,COUNTIF($I$27:I147,">0"),DurationofBonus,BonusAmount)*-1,0)),"") -> 294103 | I147: 200000 | L147: =IF(AND(ValuesEntered,ISNUMBER($C147)),SUM(E147:H147,J147:K147),"") -> 349965 | O147: =IF(AND(ValuesEntered,ISNUMBER($C147)),D147-F147-J147,"") -> 34271463 | R147: 292
A148: 10 | B148: =ROWS($B$27:B148) -> 122 | C148: =IF(AND(ValuesEntered,R147>0),IF(AND(ISNUMBER(O147),R147>0),EDATE(C147,1),""),"") -> 2027-05-01 | D148: 34271463 | E148: =IF(AND(ValuesEntered,ISNUMBER(C148)),IF($E$19="時間短縮",ROUND(IPMT(VLOOKUP($C148,Rate_table,2,TRUE)/12,1,$R147,$D148)*-1,0),ROUND(IPMT(VLOOKUP($C148,Rate_table,2,TRUE)/12,$B148,DurationOfLoan,LoanAmount-BonusAmount-SUM(extra_payments))*-1,0))+IF($I148=0,0,ROUND(IPMT(VLOOKUP($C148,Rate_table,2,TRUE)/12,COUNTIF($I$27:I148,">0"),DurationofBonus,BonusAmount)*-1,0)),"") -> 42839 | F148: =IF(AND(ValuesEntered,ISNUMBER($C148)),IF($E$19="時間短縮",ROUND(PPMT(VLOOKUP($C148,Rate_table,2,TRUE)/12,1,$R147,$D148)*-1,0),ROUND(PPMT(VLOOKUP($C148,Rate_table,2,TRUE)/12,$B148,DurationOfLoan,LoanAmount-BonusAmount-SUM(extra_payments))*-1,0))+IF(I148=0,0,ROUND(PPMT(VLOOKUP($C148,Rate_table,2,TRUE)/12,COUNTIF($I$27:I148,">0"),DurationofBonus,BonusAmount)*-1,0)),"") -> 97321 | I148: 0 | L148: =IF(AND(ValuesEntered,ISNUMBER($C148)),SUM(E148:H148,J148:K148),"") -> 140160 | O148: =IF(AND(ValuesEntered,ISNUMBER($C148)),D148-F148-J148,"") -> 34174142 | R148: 291
A149: 10 | B149: =ROWS($B$27:B149) -> 123 | C149: =IF(AND(ValuesEntered,R148>0),IF(AND(ISNUMBER(O148),R148>0),EDATE(C148,1),""),"") -> 2027-06-01 | D149: 34174142 | E149: =IF(AND(ValuesEntered,ISNUMBER(C149)),IF($E$19="時間短縮",ROUND(IPMT(VLOOKUP($C149,Rate_table,2,TRUE)/12,1,$R148,$D149)*-1,0),ROUND(IPMT(VLOOKUP($C149,Rate_table,2,TRUE)/12,$B149,DurationOfLoan,LoanAmount-BonusAmount-SUM(extra_payments))*-1,0))+IF($I149=0,0,ROUND(IPMT(VLOOKUP($C149,Rate_table,2,TRUE)/12,COUNTIF($I$27:I149,">0"),DurationofBonus,BonusAmount)*-1,0)),"") -> 42718 | F149: =IF(AND(ValuesEntered,ISNUMBER($C149)),IF($E$19="時間短縮",ROUND(PPMT(VLOOKUP($C149,Rate_table,2,TRUE)/12,1,$R148,$D149)*-1,0),ROUND(PPMT(VLOOKUP($C149,Rate_table,2,TRUE)/12,$B149,DurationOfLoan,LoanAmount-BonusAmount-SUM(extra_payments))*-1,0))+IF(I149=0,0,ROUND(PPMT(VLOOKUP($C149,Rate_table,2,TRUE)/12,COUNTIF($I$27:I149,">0"),DurationofBonus,BonusAmount)*-1,0)),"") -> 97443 | I149: 0 | L149: =IF(AND(ValuesEntered,ISNUMBER($C149)),SUM(E149:H149,J149:K149),"") -> 140161 | O149: =IF(AND(ValuesEntered,ISNUMBER($C149)),D149-F149-J149,"") -> 34076699 | R149: 290
A150: 10 | B150: =ROWS($B$27:B150) -> 124 | C150: =IF(AND(ValuesEntered,R149>0),IF(AND(ISNUMBER(O149),R149>0),EDATE(C149,1),""),"") -> 2027-07-01 | D150: 34076699 | E150: =IF(AND(ValuesEntered,ISNUMBER(C150)),IF($E$19="時間短縮",ROUND(IPMT(VLOOKUP($C150,Rate_table,2,TRUE)/12,1,$R149,$D150)*-1,0),ROUND(IPMT(VLOOKUP($C150,Rate_table,2,TRUE)/12,$B150,DurationOfLoan,LoanAmount-BonusAmount-SUM(extra_payments))*-1,0))+IF($I150=0,0,ROUND(IPMT(VLOOKUP($C150,Rate_table,2,TRUE)/12,COUNTIF($I$27:I150,">0"),DurationofBonus,BonusAmount)*-1,0)),"") -> 55006 | F150: =IF(AND(ValuesEntered,ISNUMBER($C150)),IF($E$19="時間短縮",ROUND(PPMT(VLOOKUP($C150,Rate_table,2,TRUE)/12,1,$R149,$D150)*-1,0),ROUND(PPMT(VLOOKUP($C150,Rate_table,2,TRUE)/12,$B150,DurationOfLoan,LoanAmount-BonusAmount-SUM(extra_payments))*-1,0))+IF(I150=0,0,ROUND(PPMT(VLOOKUP($C150,Rate_table,2,TRUE)/12,COUNTIF($I$27:I150,">0"),DurationofBonus,BonusAmount)*-1,0)),"") -> 294157 | I150: 200000 | L150: =IF(AND(ValuesEntered,ISNUMBER($C150)),SUM(E150:H150,J150:K150),"") -> 349163 | O150: =IF(AND(ValuesEntered,ISNUMBER($C150)),D150-F150-J150,"") -> 33782542 | R150: 289
A151: 10 | B151: =ROWS($B$27:B151) -> 125 | C151: =IF(AND(ValuesEntered,R150>0),IF(AND(ISNUMBER(O150),R150>0),EDATE(C150,1),""),"") -> 2027-08-01 | D151: 33782542 | E151: =IF(AND(ValuesEntered,ISNUMBER(C151)),IF($E$19="時間短縮",ROUND(IPMT(VLOOKUP($C151,Rate_table,2,TRUE)/12,1,$R150,$D151)*-1,0),ROUND(IPMT(VLOOKUP($C151,Rate_table,2,TRUE)/12,$B151,DurationOfLoan,LoanAmount-BonusAmount-SUM(extra_payments))*-1,0))+IF($I151=0,0,ROUND(IPMT(VLOOKUP($C151,Rate_table,2,TRUE)/12,COUNTIF($I$27:I151,">0"),DurationofBonus,BonusAmount)*-1,0)),"") -> 42228 | F151: =IF(AND(ValuesEntered,ISNUMBER($C151)),IF($E$19="時間短縮",ROUND(PPMT(VLOOKUP($C151,Rate_table,2,TRUE)/12,1,$R150,$D151)*-1,0),ROUND(PPMT(VLOOKUP($C151,Rate_table,2,TRUE)/12,$B151,DurationOfLoan,LoanAmount-BonusAmount-SUM(extra_payments))*-1,0))+IF(I151=0,0,ROUND(PPMT(VLOOKUP($C151,Rate_table,2,TRUE)/12,COUNTIF($I$27:I151,">0"),DurationofBonus,BonusAmount)*-1,0)),"") -> 97121 | I151: 0 | L151: =IF(AND(ValuesEntered,ISNUMBER($C151)),SUM(E151:H151,J151:K151),"") -> 139349 | O151: =IF(AND(ValuesEntered,ISNUMBER($C151)),D151-F151-J151,"") -> 33685421 | R151: 288
A152: 10 | B152: =ROWS($B$27:B152) -> 126 | C152: =IF(AND(ValuesEntered,R151>0),IF(AND(ISNUMBER(O151),R151>0),EDATE(C151,1),""),"") -> 2027-09-01 | D152: 33685421 | E152: =IF(AND(ValuesEntered,ISNUMBER(C152)),IF($E$19="時間短縮",ROUND(IPMT(VLOOKUP($C152,Rate_table,2,TRUE)/12,1,$R151,$D152)*-1,0),ROUND(IPMT(VLOOKUP($C152,Rate_table,2,TRUE)/12,$B152,DurationOfLoan,LoanAmount-BonusAmount-SUM(extra_payments))*-1,0))+IF($I152=0,0,ROUND(IPMT(VLOOKUP($C152,Rate_table,2,TRUE)/12,COUNTIF($I$27:I152,">0"),DurationofBonus,BonusAmount)*-1,0)),"") -> 42107 | F152: =IF(AND(ValuesEntered,ISNUMBER($C152)),IF($E$19="時間短縮",ROUND(PPMT(VLOOKUP($C152,Rate_table,2,TRUE)/12,1,$R151,$D152)*-1,0),ROUND(PPMT(VLOOKUP($C152,Rate_table,2,TRUE)/12,$B152,DurationOfLoan,LoanAmount-BonusAmount-SUM(extra_payments))*-1,0))+IF(I152=0,0,ROUND(PPMT(VLOOKUP($C152,Rate_table,2,TRUE)/12,COUNTIF($I$27:I152,">0"),DurationofBonus,BonusAmount)*-1,0)),"") -> 97243 | I152: 0 | L152: =IF(AND(ValuesEntered,ISNUMBER($C152)),SUM(E152:H152,J152:K152),"") -> 139350 | O152: =IF(AND(ValuesEntered,ISNUMBER($C152)),D152-F152-J152,"") -> 33588178 | R152: 287
A153: 10 | B153: =ROWS($B$27:B153) -> 127 | C153: =IF(AND(ValuesEntered,R152>0),IF(AND(ISNUMBER(O152),R152>0),EDATE(C152,1),""),"") -> 2027-10-01 | D153: 33588178 | E153: =IF(AND(ValuesEntered,ISNUMBER(C153)),IF($E$19="時間短縮",ROUND(IPMT(VLOOKUP($C153,Rate_table,2,TRUE)/12,1,$R152,$D153)*-1,0),ROUND(IPMT(VLOOKUP($C153,Rate_table,2,TRUE)/12,$B153,DurationOfLoan,LoanAmount-BonusAmount-SUM(extra_payments))*-1,0))+IF($I153=0,0,ROUND(IPMT(VLOOKUP($C153,Rate_table,2,TRUE)/12,COUNTIF($I$27:I153,">0"),DurationofBonus,BonusAmount)*-1,0)),"") -> 41985 | F153: =IF(AND(ValuesEntered,ISNUMBER($C153)),IF($E$19="時間短縮",ROUND(PPMT(VLOOKUP($C153,Rate_table,2,TRUE)/12,1,$R152,$D153)*-1,0),ROUND(PPMT(VLOOKUP($C153,Rate_table,2,TRUE)/12,$B153,DurationOfLoan,LoanAmount-BonusAmount-SUM(extra_payments))*-1,0))+IF(I153=0,0,ROUND(PPMT(VLOOKUP($C153,Rate_table,2,TRUE)/12,COUNTIF($I$27:I153,">0"),DurationofBonus,BonusAmount)*-1,0)),"") -> 97364 | I153: 0 | L153: =IF(AND(ValuesEntered,ISNUMBER($C153)),SUM(E153:H153,J153:K153),"") -> 139349 | O153: =IF(AND(ValuesEntered,ISNUMBER($C153)),D153-F153-J153,"") -> 33490814 | R153: 286
A154: 10 | B154: =ROWS($B$27:B154) -> 128 | C154: =IF(AND(ValuesEntered,R153>0),IF(AND(ISNUMBER(O153),R153>0),EDATE(C153,1),""),"") -> 2027-11-01 | D154: 33490814 | E154: =IF(AND(ValuesEntered,ISNUMBER(C154)),IF($E$19="時間短縮",ROUND(IPMT(VLOOKUP($C154,Rate_table,2,TRUE)/12,1,$R153,$D154)*-1,0),ROUND(IPMT(VLOOKUP($C154,Rate_table,2,TRUE)/12,$B154,DurationOfLoan,LoanAmount-BonusAmount-SUM(extra_payments))*-1,0))+IF($I154=0,0,ROUND(IPMT(VLOOKUP($C154,Rate_table,2,TRUE)/12,COUNTIF($I$27:I154,">0"),DurationofBonus,BonusAmount)*-1,0)),"") -> 41864 | F154: =IF(AND(ValuesEntered,ISNUMBER($C154)),IF($E$19="時間短縮",ROUND(PPMT(VLOOKUP($C154,Rate_table,2,TRUE)/12,1,$R153,$D154)*-1,0),ROUND(PPMT(VLOOKUP($C154,Rate_table,2,TRUE)/12,$B154,DurationOfLoan,LoanAmount-BonusAmount-SUM(extra_payments))*-1,0))+IF(I154=0,0,ROUND(PPMT(VLOOKUP($C154,Rate_table,2,TRUE)/12,COUNTIF($I$27:I154,">0"),DurationofBonus,BonusAmount)*-1,0)),"") -> 97486 | I154: 0 | L154: =IF(AND(ValuesEntered,ISNUMBER($C154)),SUM(E154:H154,J154:K154),"") -> 139350 | O154: =IF(AND(ValuesEntered,ISNUMBER($C154)),D154-F154-J154,"") -> 33393328 | R154: 285
A155: 10 | B155: =ROWS($B$27:B155) -> 129 | C155: =IF(AND(ValuesEntered,R154>0),IF(AND(ISNUMBER(O154),R154>0),EDATE(C154,1),""),"") -> 2027-12-01 | D155: 33393328 | E155: =IF(AND(ValuesEntered,ISNUMBER(C155)),IF($E$19="時間短縮",ROUND(IPMT(VLOOKUP($C155,Rate_table,2,TRUE)/12,1,$R154,$D155)*-1,0),ROUND(IPMT(VLOOKUP($C155,Rate_table,2,TRUE)/12,$B155,DurationOfLoan,LoanAmount-BonusAmount-SUM(extra_payments))*-1,0))+IF($I155=0,0,ROUND(IPMT(VLOOKUP($C155,Rate_table,2,TRUE)/12,COUNTIF($I$27:I155,">0"),DurationofBonus,BonusAmount)*-1,0)),"") -> 41742 | F155: =IF(AND(ValuesEntered,ISNUMBER($C155)),IF($E$19="時間短縮",ROUND(PPMT(VLOOKUP($C155,Rate_table,2,TRUE)/12,1,$R154,$D155)*-1,0),ROUND(PPMT(VLOOKUP($C155,Rate_table,2,TRUE)/12,$B155,DurationOfLoan,LoanAmount-BonusAmount-SUM(extra_payments))*-1,0))+IF(I155=0,0,ROUND(PPMT(VLOOKUP($C155,Rate_table,2,TRUE)/12,COUNTIF($I$27:I155,">0"),DurationofBonus,BonusAmount)*-1,0)),"") -> 97608 | I155: 0 | L155: =IF(AND(ValuesEntered,ISNUMBER($C155)),SUM(E155:H155,J155:K155),"") -> 139350 | O155: =IF(AND(ValuesEntered,ISNUMBER($C155)),D155-F155-J155,"") -> 33295720 | R155: 284
A156: =ABS(YEAR($C$27)-YEAR(C156)) -> 11 | B156: =ROWS($B$27:B156) -> 130 | C156: =IF(AND(ValuesEntered,R155>0),IF(AND(ISNUMBER(O155),R155>0),EDATE(C155,1),""),"") -> 2028-01-01 | D156: 33295720 | E156: =IF(AND(ValuesEntered,ISNUMBER(C156)),IF($E$19="時間短縮",ROUND(IPMT(VLOOKUP($C156,Rate_table,2,TRUE)/12,1,$R155,$D156)*-1,0),ROUND(IPMT(VLOOKUP($C156,Rate_table,2,TRUE)/12,$B156,DurationOfLoan,LoanAmount-BonusAmount-SUM(extra_payments))*-1,0))+IF($I156=0,0,ROUND(IPMT(VLOOKUP($C156,Rate_table,2,TRUE)/12,COUNTIF($I$27:I156,">0"),DurationofBonus,BonusAmount)*-1,0)),"") -> 41620 | F156: =IF(AND(ValuesEntered,ISNUMBER($C156)),IF($E$19="時間短縮",ROUND(PPMT(VLOOKUP($C156,Rate_table,2,TRUE)/12,1,$R155,$D156)*-1,0),ROUND(PPMT(VLOOKUP($C156,Rate_table,2,TRUE)/12,$B156,DurationOfLoan,LoanAmount-BonusAmount-SUM(extra_payments))*-1,0))+IF(I156=0,0,ROUND(PPMT(VLOOKUP($C156,Rate_table,2,TRUE)/12,COUNTIF($I$27:I156,">0"),DurationofBonus,BonusAmount)*-1,0)),"") -> 97730 | I156: =IF(ISNUMBER(C156)=FALSE,"",IF(AND(D156>$E$15,OR(MONTH(C156)=$E$16,MONTH(C156)=$E$17,MONTH(C156)=$E$18)),$E$15,0)) -> 0 | L156: =IF(AND(ValuesEntered,ISNUMBER($C156)),SUM(E156:H156,J156:K156),"") -> 139350 | O156: =IF(AND(ValuesEntered,ISNUMBER($C156)),D156-F156-J156,"") -> 33197990 | R156: =IF(AND($J156>0,$E$19="時間短縮"),Remain_Month,$R155-1) -> 283
A157: 11 | B157: =ROWS($B$27:B157) -> 131 | C157: =IF(AND(ValuesEntered,R156>0),IF(AND(ISNUMBER(O156),R156>0),EDATE(C156,1),""),"") -> 2028-02-01 | D157: =IF(C157="",0,O156) -> 33197990 | E157: =IF(AND(ValuesEntered,ISNUMBER(C157)),IF($E$19="時間短縮",ROUND(IPMT(VLOOKUP($C157,Rate_table,2,TRUE)/12,1,$R156,$D157)*-1,0),ROUND(IPMT(VLOOKUP($C157,Rate_table,2,TRUE)/12,$B157,DurationOfLoan,LoanAmount-BonusAmount-SUM(extra_payments))*-1,0))+IF($I157=0,0,ROUND(IPMT(VLOOKUP($C157,Rate_table,2,TRUE)/12,COUNTIF($I$27:I157,">0"),DurationofBonus,BonusAmount)*-1,0)),"") -> 41497 | F157: =IF(AND(ValuesEntered,ISNUMBER($C157)),IF($E$19="時間短縮",ROUND(PPMT(VLOOKUP($C157,Rate_table,2,TRUE)/12,1,$R156,$D157)*-1,0),ROUND(PPMT(VLOOKUP($C157,Rate_table,2,TRUE)/12,$B157,DurationOfLoan,LoanAmount-BonusAmount-SUM(extra_payments))*-1,0))+IF(I157=0,0,ROUND(PPMT(VLOOKUP($C157,Rate_table,2,TRUE)/12,COUNTIF($I$27:I157,">0"),DurationofBonus,BonusAmount)*-1,0)),"") -> 97852 | I157: 0 | L157: =IF(AND(ValuesEntered,ISNUMBER($C157)),SUM(E157:H157,J157:K157),"") -> 139349 | O157: =IF(AND(ValuesEntered,ISNUMBER($C157)),D157-F157-J157,"") -> 33100138 | R157: 282
A158: 11 | B158: =ROWS($B$27:B158) -> 132 | C158: =IF(AND(ValuesEntered,R157>0),IF(AND(ISNUMBER(O157),R157>0),EDATE(C157,1),""),"") -> 2028-03-01 | D158: 33100138 | E158: =IF(AND(ValuesEntered,ISNUMBER(C158)),IF($E$19="時間短縮",ROUND(IPMT(VLOOKUP($C158,Rate_table,2,TRUE)/12,1,$R157,$D158)*-1,0),ROUND(IPMT(VLOOKUP($C158,Rate_table,2,TRUE)/12,$B158,DurationOfLoan,LoanAmount-BonusAmount-SUM(extra_payments))*-1,0))+IF($I158=0,0,ROUND(IPMT(VLOOKUP($C158,Rate_table,2,TRUE)/12,COUNTIF($I$27:I158,">0"),DurationofBonus,BonusAmount)*-1,0)),"") -> 41375 | F158: =IF(AND(ValuesEntered,ISNUMBER($C158)),IF($E$19="時間短縮",ROUND(PPMT(VLOOKUP($C158,Rate_table,2,TRUE)/12,1,$R157,$D158)*-1,0),ROUND(PPMT(VLOOKUP($C158,Rate_table,2,TRUE)/12,$B158,DurationOfLoan,LoanAmount-BonusAmount-SUM(extra_payments))*-1,0))+IF(I158=0,0,ROUND(PPMT(VLOOKUP($C158,Rate_table,2,TRUE)/12,COUNTIF($I$27:I158,">0"),DurationofBonus,BonusAmount)*-1,0)),"") -> 97974 | I158: 0 | L158: =IF(AND(ValuesEntered,ISNUMBER($C158)),SUM(E158:H158,J158:K158),"") -> 139349 | O158: =IF(AND(ValuesEntered,ISNUMBER($C158)),D158-F158-J158,"") -> 33002164 | R158: 281
A159: 11 | B159: =ROWS($B$27:B159) -> 133 | C159: =IF(AND(ValuesEntered,R158>0),IF(AND(ISNUMBER(O158),R158>0),EDATE(C158,1),""),"") -> 2028-04-01 | D159: 33002164 | E159: =IF(AND(ValuesEntered,ISNUMBER(C159)),IF($E$19="時間短縮",ROUND(IPMT(VLOOKUP($C159,Rate_table,2,TRUE)/12,1,$R158,$D159)*-1,0),ROUND(IPMT(VLOOKUP($C159,Rate_table,2,TRUE)/12,$B159,DurationOfLoan,LoanAmount-BonusAmount-SUM(extra_payments))*-1,0))+IF($I159=0,0,ROUND(IPMT(VLOOKUP($C159,Rate_table,2,TRUE)/12,COUNTIF($I$27:I159,">0"),DurationofBonus,BonusAmount)*-1,0)),"") -> 53417 | F159: =IF(AND(ValuesEntered,ISNUMBER($C159)),IF($E$19="時間短縮",ROUND(PPMT(VLOOKUP($C159,Rate_table,2,TRUE)/12,1,$R158,$D159)*-1,0),ROUND(PPMT(VLOOKUP($C159,Rate_table,2,TRUE)/12,$B159,DurationOfLoan,LoanAmount-BonusAmount-SUM(extra_payments))*-1,0))+IF(I159=0,0,ROUND(PPMT(VLOOKUP($C159,Rate_table,2,TRUE)/12,COUNTIF($I$27:I159,">0"),DurationofBonus,BonusAmount)*-1,0)),"") -> 294936 | I159: 200000 | L159: =IF(AND(ValuesEntered,ISNUMBER($C159)),SUM(E159:H159,J159:K159),"") -> 348353 | O159: =IF(AND(ValuesEntered,ISNUMBER($C159)),D159-F159-J159,"") -> 32707228 | R159: 280
A160: 11 | B160: =ROWS($B$27:B160) -> 134 | C160: =IF(AND(ValuesEntered,R159>0),IF(AND(ISNUMBER(O159),R159>0),EDATE(C159,1),""),"") -> 2028-05-01 | D160: 32707228 | E160: =IF(AND(ValuesEntered,ISNUMBER(C160)),IF($E$19="時間短縮",ROUND(IPMT(VLOOKUP($C160,Rate_table,2,TRUE)/12,1,$R159,$D160)*-1,0),ROUND(IPMT(VLOOKUP($C160,Rate_table,2,TRUE)/12,$B160,DurationOfLoan,LoanAmount-BonusAmount-SUM(extra_payments))*-1,0))+IF($I160=0,0,ROUND(IPMT(VLOOKUP($C160,Rate_table,2,TRUE)/12,COUNTIF($I$27:I160,">0"),DurationofBonus,BonusAmount)*-1,0)),"") -> 40884 | F160: =IF(AND(ValuesEntered,ISNUMBER($C160)),IF($E$19="時間短縮",ROUND(PPMT(VLOOKUP($C160,Rate_table,2,TRUE)/12,1,$R159,$D160)*-1,0),ROUND(PPMT(VLOOKUP($C160,Rate_table,2,TRUE)/12,$B160,DurationOfLoan,LoanAmount-BonusAmount-SUM(extra_payments))*-1,0))+IF(I160=0,0,ROUND(PPMT(VLOOKUP($C160,Rate_table,2,TRUE)/12,COUNTIF($I$27:I160,">0"),DurationofBonus,BonusAmount)*-1,0)),"") -> 97632 | I160: 0 | L160: =IF(AND(ValuesEntered,ISNUMBER($C160)),SUM(E160:H160,J160:K160),"") -> 138516 | O160: =IF(AND(ValuesEntered,ISNUMBER($C160)),D160-F160-J160,"") -> 32609596 | R160: 279
A161: 11 | B161: =ROWS($B$27:B161) -> 135 | C161: =IF(AND(ValuesEntered,R160>0),IF(AND(ISNUMBER(O160),R160>0),EDATE(C160,1),""),"") -> 2028-06-01 | D161: 32609596 | E161: =IF(AND(ValuesEntered,ISNUMBER(C161)),IF($E$19="時間短縮",ROUND(IPMT(VLOOKUP($C161,Rate_table,2,TRUE)/12,1,$R160,$D161)*-1,0),ROUND(IPMT(VLOOKUP($C161,Rate_table,2,TRUE)/12,$B161,DurationOfLoan,LoanAmount-BonusAmount-SUM(extra_payments))*-1,0))+IF($I161=0,0,ROUND(IPMT(VLOOKUP($C161,Rate_table,2,TRUE)/12,COUNTIF($I$27:I161,">0"),DurationofBonus,BonusAmount)*-1,0)),"") -> 40762 | F161: =IF(AND(ValuesEntered,ISNUMBER($C161)),IF($E$19="時間短縮",ROUND(PPMT(VLOOKUP($C161,Rate_table,2,TRUE)/12,1,$R160,$D161)*-1,0),ROUND(PPMT(VLOOKUP($C161,Rate_table,2,TRUE)/12,$B161,DurationOfLoan,LoanAmount-BonusAmount-SUM(extra_payments))*-1,0))+IF(I161=0,0,ROUND(PPMT(VLOOKUP($C161,Rate_table,2,TRUE)/12,COUNTIF($I$27:I161,">0"),DurationofBonus,BonusAmount)*-1,0)),"") -> 97754 | I161: 0 | L161: =IF(AND(ValuesEntered,ISNUMBER($C161)),SUM(E161:H161,J161:K161),"") -> 138516 | O161: =IF(AND(ValuesEntered,ISNUMBER($C161)),D161-F161-J161,"") -> 32511842 | R161: 278
A162: 11 | B162: =ROWS($B$27:B162) -> 136 | C162: =IF(AND(ValuesEntered,R161>0),IF(AND(ISNUMBER(O161),R161>0),EDATE(C161,1),""),"") -> 2028-07-01 | D162: 32511842 | E162: =IF(AND(ValuesEntered,ISNUMBER(C162)),IF($E$19="時間短縮",ROUND(IPMT(VLOOKUP($C162,Rate_table,2,TRUE)/12,1,$R161,$D162)*-1,0),ROUND(IPMT(VLOOKUP($C162,Rate_table,2,TRUE)/12,$B162,DurationOfLoan,LoanAmount-BonusAmount-SUM(extra_payments))*-1,0))+IF($I162=0,0,ROUND(IPMT(VLOOKUP($C162,Rate_table,2,TRUE)/12,COUNTIF($I$27:I162,">0"),DurationofBonus,BonusAmount)*-1,0)),"") -> 52558 | F162: =IF(AND(ValuesEntered,ISNUMBER($C162)),IF($E$19="時間短縮",ROUND(PPMT(VLOOKUP($C162,Rate_table,2,TRUE)/12,1,$R161,$D162)*-1,0),ROUND(PPMT(VLOOKUP($C162,Rate_table,2,TRUE)/12,$B162,DurationOfLoan,LoanAmount-BonusAmount-SUM(extra_payments))*-1,0))+IF(I162=0,0,ROUND(PPMT(VLOOKUP($C162,Rate_table,2,TRUE)/12,COUNTIF($I$27:I162,">0"),DurationofBonus,BonusAmount)*-1,0)),"") -> 294961 | I162: 200000 | L162: =IF(AND(ValuesEntered,ISNUMBER($C162)),SUM(E162:H162,J162:K162),"") -> 347519 | O162: =IF(AND(ValuesEntered,ISNUMBER($C162)),D162-F162-J162,"") -> 32216881 | R162: 277
A163: 11 | B163: =ROWS($B$27:B163) -> 137 | C163: =IF(AND(ValuesEntered,R162>0),IF(AND(ISNUMBER(O162),R162>0),EDATE(C162,1),""),"") -> 2028-08-01 | D163: 32216881 | E163: =IF(AND(ValuesEntered,ISNUMBER(C163)),IF($E$19="時間短縮",ROUND(IPMT(VLOOKUP($C163,Rate_table,2,TRUE)/12,1,$R162,$D163)*-1,0),ROUND(IPMT(VLOOKUP($C163,Rate_table,2,TRUE)/12,$B163,DurationOfLoan,LoanAmount-BonusAmount-SUM(extra_payments))*-1,0))+IF($I163=0,0,ROUND(IPMT(VLOOKUP($C163,Rate_table,2,TRUE)/12,COUNTIF($I$27:I163,">0"),DurationofBonus,BonusAmount)*-1,0)),"") -> 40271 | F163: =IF(AND(ValuesEntered,ISNUMBER($C163)),IF($E$19="時間短縮",ROUND(PPMT(VLOOKUP($C163,Rate_table,2,TRUE)/12,1,$R162,$D163)*-1,0),ROUND(PPMT(VLOOKUP($C163,Rate_table,2,TRUE)/12,$B163,DurationOfLoan,LoanAmount-BonusAmount-SUM(extra_payments))*-1,0))+IF(I163=0,0,ROUND(PPMT(VLOOKUP($C163,Rate_table,2,TRUE)/12,COUNTIF($I$27:I163,">0"),DurationofBonus,BonusAmount)*-1,0)),"") -> 97403 | I163: 0 | L163: =IF(AND(ValuesEntered,ISNUMBER($C163)),SUM(E163:H163,J163:K163),"") -> 137674 | O163: =IF(AND(ValuesEntered,ISNUMBER($C163)),D163-F163-J163,"") -> 32119478 | R163: 276
A164: 11 | B164: =ROWS($B$27:B164) -> 138 | C164: =IF(AND(ValuesEntered,R163>0),IF(AND(ISNUMBER(O163),R163>0),EDATE(C163,1),""),"") -> 2028-09-01 | D164: 32119478 | E164: =IF(AND(ValuesEntered,ISNUMBER(C164)),IF($E$19="時間短縮",ROUND(IPMT(VLOOKUP($C164,Rate_table,2,TRUE)/12,1,$R163,$D164)*-1,0),ROUND(IPMT(VLOOKUP($C164,Rate_table,2,TRUE)/12,$B164,DurationOfLoan,LoanAmount-BonusAmount-SUM(extra_payments))*-1,0))+IF($I164=0,0,ROUND(IPMT(VLOOKUP($C164,Rate_table,2,TRUE)/12,COUNTIF($I$27:I164,">0"),DurationofBonus,BonusAmount)*-1,0)),"") -> 40149 | F164: =IF(AND(ValuesEntered,ISNUMBER($C164)),IF($E$19="時間短縮",ROUND(PPMT(VLOOKUP($C164,Rate_table,2,TRUE)/12,1,$R163,$D164)*-1,0),ROUND(PPMT(VLOOKUP($C164,Rate_table,2,TRUE)/12,$B164,DurationOfLoan,LoanAmount-BonusAmount-SUM(extra_payments))*-1,0))+IF(I164=0,0,ROUND(PPMT(VLOOKUP($C164,Rate_table,2,TRUE)/12,COUNTIF($I$27:I164,">0"),DurationofBonus,BonusAmount)*-1,0)),"") -> 97524 | I164: 0 | L164: =IF(AND(ValuesEntered,ISNUMBER($C164)),SUM(E164:H164,J164:K164),"") -> 137673 | O164: =IF(AND(ValuesEntered,ISNUMBER($C164)),D164-F164-J164,"") -> 32021954 | R164: 275
A165: 11 | B165: =ROWS($B$27:B165) -> 139 | C165: =IF(AND(ValuesEntered,R164>0),IF(AND(ISNUMBER(O164),R164>0),EDATE(C164,1),""),"") -> 2028-10-01 | D165: 32021954 | E165: =IF(AND(ValuesEntered,ISNUMBER(C165)),IF($E$19="時間短縮",ROUND(IPMT(VLOOKUP($C165,Rate_table,2,TRUE)/12,1,$R164,$D165)*-1,0),ROUND(IPMT(VLOOKUP($C165,Rate_table,2,TRUE)/12,$B165,DurationOfLoan,LoanAmount-BonusAmount-SUM(extra_payments))*-1,0))+IF($I165=0,0,ROUND(IPMT(VLOOKUP($C165,Rate_table,2,TRUE)/12,COUNTIF($I$27:I165,">0"),DurationofBonus,BonusAmount)*-1,0)),"") -> 40027 | F165: =IF(AND(ValuesEntered,ISNUMBER($C165)),IF($E$19="時間短縮",ROUND(PPMT(VLOOKUP($C165,Rate_table,2,TRUE)/12,1,$R164,$D165)*-1,0),ROUND(PPMT(VLOOKUP($C165,Rate_table,2,TRUE)/12,$B165,DurationOfLoan,LoanAmount-BonusAmount-SUM(extra_payments))*-1,0))+IF(I165=0,0,ROUND(PPMT(VLOOKUP($C165,Rate_table,2,TRUE)/12,COUNTIF($I$27:I165,">0"),DurationofBonus,BonusAmount)*-1,0)),"") -> 97646 | I165: 0 | L165: =IF(AND(ValuesEntered,ISNUMBER($C165)),SUM(E165:H165,J165:K165),"") -> 137673 | O165: =IF(AND(ValuesEntered,ISNUMBER($C165)),D165-F165-J165,"") -> 31924308 | R165: 274
A166: 11 | B166: =ROWS($B$27:B166) -> 140 | C166: =IF(AND(ValuesEntered,R165>0),IF(AND(ISNUMBER(O165),R165>0),EDATE(C165,1),""),"") -> 2028-11-01 | D166: 31924308 | E166: =IF(AND(ValuesEntered,ISNUMBER(C166)),IF($E$19="時間短縮",ROUND(IPMT(VLOOKUP($C166,Rate_table,2,TRUE)/12,1,$R165,$D166)*-1,0),ROUND(IPMT(VLOOKUP($C166,Rate_table,2,TRUE)/12,$B166,DurationOfLoan,LoanAmount-BonusAmount-SUM(extra_payments))*-1,0))+IF($I166=0,0,ROUND(IPMT(VLOOKUP($C166,Rate_table,2,TRUE)/12,COUNTIF($I$27:I166,">0"),DurationofBonus,BonusAmount)*-1,0)),"") -> 39905 | F166: =IF(AND(ValuesEntered,ISNUMBER($C166)),IF($E$19="時間短縮",ROUND(PPMT(VLOOKUP($C166,Rate_table,2,TRUE)/12,1,$R165,$D166)*-1,0),ROUND(PPMT(VLOOKUP($C166,Rate_table,2,TRUE)/12,$B166,DurationOfLoan,LoanAmount-BonusAmount-SUM(extra_payments))*-1,0))+IF(I166=0,0,ROUND(PPMT(VLOOKUP($C166,Rate_table,2,TRUE)/12,COUNTIF($I$27:I166,">0"),DurationofBonus,BonusAmount)*-1,0)),"") -> 97768 | I166: 0 | L166: =IF(AND(ValuesEntered,ISNUMBER($C166)),SUM(E166:H166,J166:K166),"") -> 137673 | O166: =IF(AND(ValuesEntered,ISNUMBER($C166)),D166-F166-J166,"") -> 31826540 | R166: 273
A167: 11 | B167: =ROWS($B$27:B167) -> 141 | C167: =IF(AND(ValuesEntered,R166>0),IF(AND(ISNUMBER(O166),R166>0),EDATE(C166,1),""),"") -> 2028-12-01 | D167: 31826540 | E167: =IF(AND(ValuesEntered,ISNUMBER(C167)),IF($E$19="時間短縮",ROUND(IPMT(VLOOKUP($C167,Rate_table,2,TRUE)/12,1,$R166,$D167)*-1,0),ROUND(IPMT(VLOOKUP($C167,Rate_table,2,TRUE)/12,$B167,DurationOfLoan,LoanAmount-BonusAmount-SUM(extra_payments))*-1,0))+IF($I167=0,0,ROUND(IPMT(VLOOKUP($C167,Rate_table,2,TRUE)/12,COUNTIF($I$27:I167,">0"),DurationofBonus,BonusAmount)*-1,0)),"") -> 39783 | F167: =IF(AND(ValuesEntered,ISNUMBER($C167)),IF($E$19="時間短縮",ROUND(PPMT(VLOOKUP($C167,Rate_table,2,TRUE)/12,1,$R166,$D167)*-1,0),ROUND(PPMT(VLOOKUP($C167,Rate_table,2,TRUE)/12,$B167,DurationOfLoan,LoanAmount-BonusAmount-SUM(extra_payments))*-1,0))+IF(I167=0,0,ROUND(PPMT(VLOOKUP($C167,Rate_table,2,TRUE)/12,COUNTIF($I$27:I167,">0"),DurationofBonus,BonusAmount)*-1,0)),"") -> 97890 | I167: 0 | L167: =IF(AND(ValuesEntered,ISNUMBER($C167)),SUM(E167:H167,J167:K167),"") -> 137673 | O167: =IF(AND(ValuesEntered,ISNUMBER($C167)),D167-F167-J167,"") -> 31728650 | R167: 272
A168: 12 | B168: =ROWS($B$27:B168) -> 142 | C168: =IF(AND(ValuesEntered,R167>0),IF(AND(ISNUMBER(O167),R167>0),EDATE(C167,1),""),"") -> 2029-01-01 | D168: 31728650 | E168: =IF(AND(ValuesEntered,ISNUMBER(C168)),IF($E$19="時間短縮",ROUND(IPMT(VLOOKUP($C168,Rate_table,2,TRUE)/12,1,$R167,$D168)*-1,0),ROUND(IPMT(VLOOKUP($C168,Rate_table,2,TRUE)/12,$B168,DurationOfLoan,LoanAmount-BonusAmount-SUM(extra_payments))*-1,0))+IF($I168=0,0,ROUND(IPMT(VLOOKUP($C168,Rate_table,2,TRUE)/12,COUNTIF($I$27:I168,">0"),DurationofBonus,BonusAmount)*-1,0)),"") -> 39661 | F168: =IF(AND(ValuesEntered,ISNUMBER($C168)),IF($E$19="時間短縮",ROUND(PPMT(VLOOKUP($C168,Rate_table,2,TRUE)/12,1,$R167,$D168)*-1,0),ROUND(PPMT(VLOOKUP($C168,Rate_table,2,TRUE)/12,$B168,DurationOfLoan,LoanAmount-BonusAmount-SUM(extra_payments))*-1,0))+IF(I168=0,0,ROUND(PPMT(VLOOKUP($C168,Rate_table,2,TRUE)/12,COUNTIF($I$27:I168,">0"),DurationofBonus,BonusAmount)*-1,0)),"") -> 98013 | I168: 0 | L168: =IF(AND(ValuesEntered,ISNUMBER($C168)),SUM(E168:H168,J168:K168),"") -> 137674 | O168: =IF(AND(ValuesEntered,ISNUMBER($C168)),D168-F168-J168,"") -> 31630637 | R168: 271
A169: 12 | B169: =ROWS($B$27:B169) -> 143 | C169: =IF(AND(ValuesEntered,R168>0),IF(AND(ISNUMBER(O168),R168>0),EDATE(C168,1),""),"") -> 2029-02-01 | D169: 31630637 | E169: =IF(AND(ValuesEntered,ISNUMBER(C169)),IF($E$19="時間短縮",ROUND(IPMT(VLOOKUP($C169,Rate_table,2,TRUE)/12,1,$R168,$D169)*-1,0),ROUND(IPMT(VLOOKUP($C169,Rate_table,2,TRUE)/12,$B169,DurationOfLoan,LoanAmount-BonusAmount-SUM(extra_payments))*-1,0))+IF($I169=0,0,ROUND(IPMT(VLOOKUP($C169,Rate_table,2,TRUE)/12,COUNTIF($I$27:I169,">0"),DurationofBonus,BonusAmount)*-1,0)),"") -> 39538 | F169: =IF(AND(ValuesEntered,ISNUMBER($C169)),IF($E$19="時間短縮",ROUND(PPMT(VLOOKUP($C169,Rate_table,2,TRUE)/12,1,$R168,$D169)*-1,0),ROUND(PPMT(VLOOKUP($C169,Rate_table,2,TRUE)/12,$B169,DurationOfLoan,LoanAmount-BonusAmount-SUM(extra_payments))*-1,0))+IF(I169=0,0,ROUND(PPMT(VLOOKUP($C169,Rate_table,2,TRUE)/12,COUNTIF($I$27:I169,">0"),DurationofBonus,BonusAmount)*-1,0)),"") -> 98135 | I169: 0 | L169: =IF(AND(ValuesEntered,ISNUMBER($C169)),SUM(E169:H169,J169:K169),"") -> 137673 | O169: =IF(AND(ValuesEntered,ISNUMBER($C169)),D169-F169-J169,"") -> 31532502 | R169: 270
A170: 12 | B170: =ROWS($B$27:B170) -> 144 | C170: =IF(AND(ValuesEntered,R169>0),IF(AND(ISNUMBER(O169),R169>0),EDATE(C169,1),""),"") -> 2029-03-01 | D170: 31532502 | E170: =IF(AND(ValuesEntered,ISNUMBER(C170)),IF($E$19="時間短縮",ROUND(IPMT(VLOOKUP($C170,Rate_table,2,TRUE)/12,1,$R169,$D170)*-1,0),ROUND(IPMT(VLOOKUP($C170,Rate_table,2,TRUE)/12,$B170,DurationOfLoan,LoanAmount-BonusAmount-SUM(extra_payments))*-1,0))+IF($I170=0,0,ROUND(IPMT(VLOOKUP($C170,Rate_table,2,TRUE)/12,COUNTIF($I$27:I170,">0"),DurationofBonus,BonusAmount)*-1,0)),"") -> 39416 | F170: =IF(AND(ValuesEntered,ISNUMBER($C170)),IF($E$19="時間短縮",ROUND(PPMT(VLOOKUP($C170,Rate_table,2,TRUE)/12,1,$R169,$D170)*-1,0),ROUND(PPMT(VLOOKUP($C170,Rate_table,2,TRUE)/12,$B170,DurationOfLoan,LoanAmount-BonusAmount-SUM(extra_payments))*-1,0))+IF(I170=0,0,ROUND(PPMT(VLOOKUP($C170,Rate_table,2,TRUE)/12,COUNTIF($I$27:I170,">0"),DurationofBonus,BonusAmount)*-1,0)),"") -> 98258 | I170: 0 | L170: =IF(AND(ValuesEntered,ISNUMBER($C170)),SUM(E170:H170,J170:K170),"") -> 137674 | O170: =IF(AND(ValuesEntered,ISNUMBER($C170)),D170-F170-J170,"") -> 31434244 | R170: 269
A171: 12 | B171: =ROWS($B$27:B171) -> 145 | C171: =IF(AND(ValuesEntered,R170>0),IF(AND(ISNUMBER(O170),R170>0),EDATE(C170,1),""),"") -> 2029-04-01 | D171: 31434244 | E171: =IF(AND(ValuesEntered,ISNUMBER(C171)),IF($E$19="時間短縮",ROUND(IPMT(VLOOKUP($C171,Rate_table,2,TRUE)/12,1,$R170,$D171)*-1,0),ROUND(IPMT(VLOOKUP($C171,Rate_table,2,TRUE)/12,$B171,DurationOfLoan,LoanAmount-BonusAmount-SUM(extra_payments))*-1,0))+IF($I171=0,0,ROUND(IPMT(VLOOKUP($C171,Rate_table,2,TRUE)/12,COUNTIF($I$27:I171,">0"),DurationofBonus,BonusAmount)*-1,0)),"") -> 50965 | F171: =IF(AND(ValuesEntered,ISNUMBER($C171)),IF($E$19="時間短縮",ROUND(PPMT(VLOOKUP($C171,Rate_table,2,TRUE)/12,1,$R170,$D171)*-1,0),ROUND(PPMT(VLOOKUP($C171,Rate_table,2,TRUE)/12,$B171,DurationOfLoan,LoanAmount-BonusAmount-SUM(extra_payments))*-1,0))+IF(I171=0,0,ROUND(PPMT(VLOOKUP($C171,Rate_table,2,TRUE)/12,COUNTIF($I$27:I171,">0"),DurationofBonus,BonusAmount)*-1,0)),"") -> 295712 | I171: 200000 | L171: =IF(AND(ValuesEntered,ISNUMBER($C171)),SUM(E171:H171,J171:K171),"") -> 346677 | O171: =IF(AND(ValuesEntered,ISNUMBER($C171)),D171-F171-J171,"") -> 31138532 | R171: 268
A172: 12 | B172: =ROWS($B$27:B172) -> 146 | C172: =IF(AND(ValuesEntered,R171>0),IF(AND(ISNUMBER(O171),R171>0),EDATE(C171,1),""),"") -> 2029-05-01 | D172: 31138532 | E172: =IF(AND(ValuesEntered,ISNUMBER(C172)),IF($E$19="時間短縮",ROUND(IPMT(VLOOKUP($C172,Rate_table,2,TRUE)/12,1,$R171,$D172)*-1,0),ROUND(IPMT(VLOOKUP($C172,Rate_table,2,TRUE)/12,$B172,DurationOfLoan,LoanAmount-BonusAmount-SUM(extra_payments))*-1,0))+IF($I172=0,0,ROUND(IPMT(VLOOKUP($C172,Rate_table,2,TRUE)/12,COUNTIF($I$27:I172,">0"),DurationofBonus,BonusAmount)*-1,0)),"") -> 38923 | F172: =IF(AND(ValuesEntered,ISNUMBER($C172)),IF($E$19="時間短縮",ROUND(PPMT(VLOOKUP($C172,Rate_table,2,TRUE)/12,1,$R171,$D172)*-1,0),ROUND(PPMT(VLOOKUP($C172,Rate_table,2,TRUE)/12,$B172,DurationOfLoan,LoanAmount-BonusAmount-SUM(extra_payments))*-1,0))+IF(I172=0,0,ROUND(PPMT(VLOOKUP($C172,Rate_table,2,TRUE)/12,COUNTIF($I$27:I172,">0"),DurationofBonus,BonusAmount)*-1,0)),"") -> 97883 | I172: 0 | L172: =IF(AND(ValuesEntered,ISNUMBER($C172)),SUM(E172:H172,J172:K172),"") -> 136806 | O172: =IF(AND(ValuesEntered,ISNUMBER($C172)),D172-F172-J172,"") -> 31040649 | R172: 267
A173: 12 | B173: =ROWS($B$27:B173) -> 147 | C173: =IF(AND(ValuesEntered,R172>0),IF(AND(ISNUMBER(O172),R172>0),EDATE(C172,1),""),"") -> 2029-06-01 | D173: 31040649 | E173: =IF(AND(ValuesEntered,ISNUMBER(C173)),IF($E$19="時間短縮",ROUND(IPMT(VLOOKUP($C173,Rate_table,2,TRUE)/12,1,$R172,$D173)*-1,0),ROUND(IPMT(VLOOKUP($C173,Rate_table,2,TRUE)/12,$B173,DurationOfLoan,LoanAmount-BonusAmount-SUM(extra_payments))*-1,0))+IF($I173=0,0,ROUND(IPMT(VLOOKUP($C173,Rate_table,2,TRUE)/12,COUNTIF($I$27:I173,">0"),DurationofBonus,BonusAmount)*-1,0)),"") -> 38801 | F173: =IF(AND(ValuesEntered,ISNUMBER($C173)),IF($E$19="時間短縮",ROUND(PPMT(VLOOKUP($C173,Rate_table,2,TRUE)/12,1,$R172,$D173)*-1,0),ROUND(PPMT(VLOOKUP($C173,Rate_table,2,TRUE)/12,$B173,DurationOfLoan,LoanAmount-BonusAmount-SUM(extra_payments))*-1,0))+IF(I173=0,0,ROUND(PPMT(VLOOKUP($C173,Rate_table,2,TRUE)/12,COUNTIF($I$27:I173,">0"),DurationofBonus,BonusAmount)*-1,0)),"") -> 98006 | I173: 0 | L173: =IF(AND(ValuesEntered,ISNUMBER($C173)),SUM(E173:H173,J173:K173),"") -> 136807 | O173: =IF(AND(ValuesEntered,ISNUMBER($C173)),D173-F173-J173,"") -> 30942643 | R173: 266
A174: 12 | B174: =ROWS($B$27:B174) -> 148 | C174: =IF(AND(ValuesEntered,R173>0),IF(AND(ISNUMBER(O173),R173>0),EDATE(C173,1),""),"") -> 2029-07-01 | D174: 30942643 | E174: =IF(AND(ValuesEntered,ISNUMBER(C174)),IF($E$19="時間短縮",ROUND(IPMT(VLOOKUP($C174,Rate_table,2,TRUE)/12,1,$R173,$D174)*-1,0),ROUND(IPMT(VLOOKUP($C174,Rate_table,2,TRUE)/12,$B174,DurationOfLoan,LoanAmount-BonusAmount-SUM(extra_payments))*-1,0))+IF($I174=0,0,ROUND(IPMT(VLOOKUP($C174,Rate_table,2,TRUE)/12,COUNTIF($I$27:I174,">0"),DurationofBonus,BonusAmount)*-1,0)),"") -> 50103 | F174: =IF(AND(ValuesEntered,ISNUMBER($C174)),IF($E$19="時間短縮",ROUND(PPMT(VLOOKUP($C174,Rate_table,2,TRUE)/12,1,$R173,$D174)*-1,0),ROUND(PPMT(VLOOKUP($C174,Rate_table,2,TRUE)/12,$B174,DurationOfLoan,LoanAmount-BonusAmount-SUM(extra_payments))*-1,0))+IF(I174=0,0,ROUND(PPMT(VLOOKUP($C174,Rate_table,2,TRUE)/12,COUNTIF($I$27:I174,">0"),DurationofBonus,BonusAmount)*-1,0)),"") -> 295706 | I174: 200000 | L174: =IF(AND(ValuesEntered,ISNUMBER($C174)),SUM(E174:H174,J174:K174),"") -> 345809 | O174: =IF(AND(ValuesEntered,ISNUMBER($C174)),D174-F174-J174,"") -> 30646937 | R174: 265
A175: 12 | B175: =ROWS($B$27:B175) -> 149 | C175: =IF(AND(ValuesEntered,R174>0),IF(AND(ISNUMBER(O174),R174>0),EDATE(C174,1),""),"") -> 2029-08-01 | D175: 30646937 | E175: =IF(AND(ValuesEntered,ISNUMBER(C175)),IF($E$19="時間短縮",ROUND(IPMT(VLOOKUP($C175,Rate_table,2,TRUE)/12,1,$R174,$D175)*-1,0),ROUND(IPMT(VLOOKUP($C175,Rate_table,2,TRUE)/12,$B175,DurationOfLoan,LoanAmount-BonusAmount-SUM(extra_payments))*-1,0))+IF($I175=0,0,ROUND(IPMT(VLOOKUP($C175,Rate_table,2,TRUE)/12,COUNTIF($I$27:I175,">0"),DurationofBonus,BonusAmount)*-1,0)),"") -> 38309 | F175: =IF(AND(ValuesEntered,ISNUMBER($C175)),IF($E$19="時間短縮",ROUND(PPMT(VLOOKUP($C175,Rate_table,2,TRUE)/12,1,$R174,$D175)*-1,0),ROUND(PPMT(VLOOKUP($C175,Rate_table,2,TRUE)/12,$B175,DurationOfLoan,LoanAmount-BonusAmount-SUM(extra_payments))*-1,0))+IF(I175=0,0,ROUND(PPMT(VLOOKUP($C175,Rate_table,2,TRUE)/12,COUNTIF($I$27:I175,">0"),DurationofBonus,BonusAmount)*-1,0)),"") -> 97622 | I175: 0 | L175: =IF(AND(ValuesEntered,ISNUMBER($C175)),SUM(E175:H175,J175:K175),"") -> 135931 | O175: =IF(AND(ValuesEntered,ISNUMBER($C175)),D175-F175-J175,"") -> 30549315 | R175: 264
A176: 12 | B176: =ROWS($B$27:B176) -> 150 | C176: =IF(AND(ValuesEntered,R175>0),IF(AND(ISNUMBER(O175),R175>0),EDATE(C175,1),""),"") -> 2029-09-01 | D176: 30549315 | E176: =IF(AND(ValuesEntered,ISNUMBER(C176)),IF($E$19="時間短縮",ROUND(IPMT(VLOOKUP($C176,Rate_table,2,TRUE)/12,1,$R175,$D176)*-1,0),ROUND(IPMT(VLOOKUP($C176,Rate_table,2,TRUE)/12,$B176,DurationOfLoan,LoanAmount-BonusAmount-SUM(extra_payments))*-1,0))+IF($I176=0,0,ROUND(IPMT(VLOOKUP($C176,Rate_table,2,TRUE)/12,COUNTIF($I$27:I176,">0"),DurationofBonus,BonusAmount)*-1,0)),"") -> 38187 | F176: =IF(AND(ValuesEntered,ISNUMBER($C176)),IF($E$19="時間短縮",ROUND(PPMT(VLOOKUP($C176,Rate_table,2,TRUE)/12,1,$R175,$D176)*-1,0),ROUND(PPMT(VLOOKUP($C176,Rate_table,2,TRUE)/12,$B176,DurationOfLoan,LoanAmount-BonusAmount-SUM(extra_payments))*-1,0))+IF(I176=0,0,ROUND(PPMT(VLOOKUP($C176,Rate_table,2,TRUE)/12,COUNTIF($I$27:I176,">0"),DurationofBonus,BonusAmount)*-1,0)),"") -> 97744 | I176: 0 | L176: =IF(AND(ValuesEntered,ISNUMBER($C176)),SUM(E176:H176,J176:K176),"") -> 135931 | O176: =IF(AND(ValuesEntered,ISNUMBER($C176)),D176-F176-J176,"") -> 30451571 | R176: 263
A177: 12 | B177: =ROWS($B$27:B177) -> 151 | C177: =IF(AND(ValuesEntered,R176>0),IF(AND(ISNUMBER(O176),R176>0),EDATE(C176,1),""),"") -> 2029-10-01 | D177: 30451571 | E177: =IF(AND(ValuesEntered,ISNUMBER(C177)),IF($E$19="時間短縮",ROUND(IPMT(VLOOKUP($C177,Rate_table,2,TRUE)/12,1,$R176,$D177)*-1,0),ROUND(IPMT(VLOOKUP($C177,Rate_table,2,TRUE)/12,$B177,DurationOfLoan,LoanAmount-BonusAmount-SUM(extra_payments))*-1,0))+IF($I177=0,0,ROUND(IPMT(VLOOKUP($C177,Rate_table,2,TRUE)/12,COUNTIF($I$27:I177,">0"),DurationofBonus,BonusAmount)*-1,0)),"") -> 38064 | F177: =IF(AND(ValuesEntered,ISNUMBER($C177)),IF($E$19="時間短縮",ROUND(PPMT(VLOOKUP($C177,Rate_table,2,TRUE)/12,1,$R176,$D177)*-1,0),ROUND(PPMT(VLOOKUP($C177,Rate_table,2,TRUE)/12,$B177,DurationOfLoan,LoanAmount-BonusAmount-SUM(extra_payments))*-1,0))+IF(I177=0,0,ROUND(PPMT(VLOOKUP($C177,Rate_table,2,TRUE)/12,COUNTIF($I$27:I177,">0"),DurationofBonus,BonusAmount)*-1,0)),"") -> 97866 | I177: 0 | L177: =IF(AND(ValuesEntered,ISNUMBER($C177)),SUM(E177:H177,J177:K177),"") -> 135930 | O177: =IF(AND(ValuesEntered,ISNUMBER($C177)),D177-F177-J177,"") -> 30353705 | R177: 262
A178: 12 | B178: =ROWS($B$27:B178) -> 152 | C178: =IF(AND(ValuesEntered,R177>0),IF(AND(ISNUMBER(O177),R177>0),EDATE(C177,1),""),"") -> 2029-11-01 | D178: 30353705 | E178: =IF(AND(ValuesEntered,ISNUMBER(C178)),IF($E$19="時間短縮",ROUND(IPMT(VLOOKUP($C178,Rate_table,2,TRUE)/12,1,$R177,$D178)*-1,0),ROUND(IPMT(VLOOKUP($C178,Rate_table,2,TRUE)/12,$B178,DurationOfLoan,LoanAmount-BonusAmount-SUM(extra_payments))*-1,0))+IF($I178=0,0,ROUND(IPMT(VLOOKUP($C178,Rate_table,2,TRUE)/12,COUNTIF($I$27:I178,">0"),DurationofBonus,BonusAmount)*-1,0)),"") -> 37942 | F178: =IF(AND(ValuesEntered,ISNUMBER($C178)),IF($E$19="時間短縮",ROUND(PPMT(VLOOKUP($C178,Rate_table,2,TRUE)/12,1,$R177,$D178)*-1,0),ROUND(PPMT(VLOOKUP($C178,Rate_table,2,TRUE)/12,$B178,DurationOfLoan,LoanAmount-BonusAmount-SUM(extra_payments))*-1,0))+IF(I178=0,0,ROUND(PPMT(VLOOKUP($C178,Rate_table,2,TRUE)/12,COUNTIF($I$27:I178,">0"),DurationofBonus,BonusAmount)*-1,0)),"") -> 97988 | I178: 0 | L178: =IF(AND(ValuesEntered,ISNUMBER($C178)),SUM(E178:H178,J178:K178),"") -> 135930 | O178: =IF(AND(ValuesEntered,ISNUMBER($C178)),D178-F178-J178,"") -> 30255717 | R178: 261
A179: 12 | B179: =ROWS($B$27:B179) -> 153 | C179: =IF(AND(ValuesEntered,R178>0),IF(AND(ISNUMBER(O178),R178>0),EDATE(C178,1),""),"") -> 2029-12-01 | D179: 30255717 | E179: =IF(AND(ValuesEntered,ISNUMBER(C179)),IF($E$19="時間短縮",ROUND(IPMT(VLOOKUP($C179,Rate_table,2,TRUE)/12,1,$R178,$D179)*-1,0),ROUND(IPMT(VLOOKUP($C179,Rate_table,2,TRUE)/12,$B179,DurationOfLoan,LoanAmount-BonusAmount-SUM(extra_payments))*-1,0))+IF($I179=0,0,ROUND(IPMT(VLOOKUP($C179,Rate_table,2,TRUE)/12,COUNTIF($I$27:I179,">0"),DurationofBonus,BonusAmount)*-1,0)),"") -> 37820 | F179: =IF(AND(ValuesEntered,ISNUMBER($C179)),IF($E$19="時間短縮",ROUND(PPMT(VLOOKUP($C179,Rate_table,2,TRUE)/12,1,$R178,$D179)*-1,0),ROUND(PPMT(VLOOKUP($C179,Rate_table,2,TRUE)/12,$B179,DurationOfLoan,LoanAmount-BonusAmount-SUM(extra_payments))*-1,0))+IF(I179=0,0,ROUND(PPMT(VLOOKUP($C179,Rate_table,2,TRUE)/12,COUNTIF($I$27:I179,">0"),DurationofBonus,BonusAmount)*-1,0)),"") -> 98111 | I179: 0 | L179: =IF(AND(ValuesEntered,ISNUMBER($C179)),SUM(E179:H179,J179:K179),"") -> 135931 | O179: =IF(AND(ValuesEntered,ISNUMBER($C179)),D179-F179-J179,"") -> 30157606 | R179: 260
A180: 13 | B180: =ROWS($B$27:B180) -> 154 | C180: =IF(AND(ValuesEntered,R179>0),IF(AND(ISNUMBER(O179),R179>0),EDATE(C179,1),""),"") -> 2030-01-01 | D180: 30157606 | E180: =IF(AND(ValuesEntered,ISNUMBER(C180)),IF($E$19="時間短縮",ROUND(IPMT(VLOOKUP($C180,Rate_table,2,TRUE)/12,1,$R179,$D180)*-1,0),ROUND(IPMT(VLOOKUP($C180,Rate_table,2,TRUE)/12,$B180,DurationOfLoan,LoanAmount-BonusAmount-SUM(extra_payments))*-1,0))+IF($I180=0,0,ROUND(IPMT(VLOOKUP($C180,Rate_table,2,TRUE)/12,COUNTIF($I$27:I180,">0"),DurationofBonus,BonusAmount)*-1,0)),"") -> 37697 | F180: =IF(AND(ValuesEntered,ISNUMBER($C180)),IF($E$19="時間短縮",ROUND(PPMT(VLOOKUP($C180,Rate_table,2,TRUE)/12,1,$R179,$D180)*-1,0),ROUND(PPMT(VLOOKUP($C180,Rate_table,2,TRUE)/12,$B180,DurationOfLoan,LoanAmount-BonusAmount-SUM(extra_payments))*-1,0))+IF(I180=0,0,ROUND(PPMT(VLOOKUP($C180,Rate_table,2,TRUE)/12,COUNTIF($I$27:I180,">0"),DurationofBonus,BonusAmount)*-1,0)),"") -> 98233 | I180: 0 | L180: =IF(AND(ValuesEntered,ISNUMBER($C180)),SUM(E180:H180,J180:K180),"") -> 135930 | O180: =IF(AND(ValuesEntered,ISNUMBER($C180)),D180-F180-J180,"") -> 30059373 | R180: 259
A181: 13 | B181: =ROWS($B$27:B181) -> 155 | C181: =IF(AND(ValuesEntered,R180>0),IF(AND(ISNUMBER(O180),R180>0),EDATE(C180,1),""),"") -> 2030-02-01 | D181: 30059373 | E181: =IF(AND(ValuesEntered,ISNUMBER(C181)),IF($E$19="時間短縮",ROUND(IPMT(VLOOKUP($C181,Rate_table,2,TRUE)/12,1,$R180,$D181)*-1,0),ROUND(IPMT(VLOOKUP($C181,Rate_table,2,TRUE)/12,$B181,DurationOfLoan,LoanAmount-BonusAmount-SUM(extra_payments))*-1,0))+IF($I181=0,0,ROUND(IPMT(VLOOKUP($C181,Rate_table,2,TRUE)/12,COUNTIF($I$27:I181,">0"),DurationofBonus,BonusAmount)*-1,0)),"") -> 37574 | F181: =IF(AND(ValuesEntered,ISNUMBER($C181)),IF($E$19="時間短縮",ROUND(PPMT(VLOOKUP($C181,Rate_table,2,TRUE)/12,1,$R180,$D181)*-1,0),ROUND(PPMT(VLOOKUP($C181,Rate_table,2,TRUE)/12,$B181,DurationOfLoan,LoanAmount-BonusAmount-SUM(extra_payments))*-1,0))+IF(I181=0,0,ROUND(PPMT(VLOOKUP($C181,Rate_table,2,TRUE)/12,COUNTIF($I$27:I181,">0"),DurationofBonus,BonusAmount)*-1,0)),"") -> 98356 | I181: 0 | L181: =IF(AND(ValuesEntered,ISNUMBER($C181)),SUM(E181:H181,J181:K181),"") -> 135930 | O181: =IF(AND(ValuesEntered,ISNUMBER($C181)),D181-F181-J181,"") -> 29961017 | R181: 258
A182: 13 | B182: =ROWS($B$27:B182) -> 156 | C182: =IF(AND(ValuesEntered,R181>0),IF(AND(ISNUMBER(O181),R181>0),EDATE(C181,1),""),"") -> 2030-03-01 | D182: 29961017 | E182: =IF(AND(ValuesEntered,ISNUMBER(C182)),IF($E$19="時間短縮",ROUND(IPMT(VLOOKUP($C182,Rate_table,2,TRUE)/12,1,$R181,$D182)*-1,0),ROUND(IPMT(VLOOKUP($C182,Rate_table,2,TRUE)/12,$B182,DurationOfLoan,LoanAmount-BonusAmount-SUM(extra_payments))*-1,0))+IF($I182=0,0,ROUND(IPMT(VLOOKUP($C182,Rate_table,2,TRUE)/12,COUNTIF($I$27:I182,">0"),DurationofBonus,BonusAmount)*-1,0)),"") -> 37451 | F182: =IF(AND(ValuesEntered,ISNUMBER($C182)),IF($E$19="時間短縮",ROUND(PPMT(VLOOKUP($C182,Rate_table,2,TRUE)/12,1,$R181,$D182)*-1,0),ROUND(PPMT(VLOOKUP($C182,Rate_table,2,TRUE)/12,$B182,DurationOfLoan,LoanAmount-BonusAmount-SUM(extra_payments))*-1,0))+IF(I182=0,0,ROUND(PPMT(VLOOKUP($C182,Rate_table,2,TRUE)/12,COUNTIF($I$27:I182,">0"),DurationofBonus,BonusAmount)*-1,0)),"") -> 98479 | I182: 0 | L182: =IF(AND(ValuesEntered,ISNUMBER($C182)),SUM(E182:H182,J182:K182),"") -> 135930 | O182: =IF(AND(ValuesEntered,ISNUMBER($C182)),D182-F182-J182,"") -> 29862538 | R182: 257
A183: 13 | B183: =ROWS($B$27:B183) -> 157 | C183: =IF(AND(ValuesEntered,R182>0),IF(AND(ISNUMBER(O182),R182>0),EDATE(C182,1),""),"") -> 2030-04-01 | D183: 29862538 | E183: =IF(AND(ValuesEntered,ISNUMBER(C183)),IF($E$19="時間短縮",ROUND(IPMT(VLOOKUP($C183,Rate_table,2,TRUE)/12,1,$R182,$D183)*-1,0),ROUND(IPMT(VLOOKUP($C183,Rate_table,2,TRUE)/12,$B183,DurationOfLoan,LoanAmount-BonusAmount-SUM(extra_payments))*-1,0))+IF($I183=0,0,ROUND(IPMT(VLOOKUP($C183,Rate_table,2,TRUE)/12,COUNTIF($I$27:I183,">0"),DurationofBonus,BonusAmount)*-1,0)),"") -> 48506 | F183: =IF(AND(ValuesEntered,ISNUMBER($C183)),IF($E$19="時間短縮",ROUND(PPMT(VLOOKUP($C183,Rate_table,2,TRUE)/12,1,$R182,$D183)*-1,0),ROUND(PPMT(VLOOKUP($C183,Rate_table,2,TRUE)/12,$B183,DurationOfLoan,LoanAmount-BonusAmount-SUM(extra_payments))*-1,0))+IF(I183=0,0,ROUND(PPMT(VLOOKUP($C183,Rate_table,2,TRUE)/12,COUNTIF($I$27:I183,">0"),DurationofBonus,BonusAmount)*-1,0)),"") -> 296427 | I183: 200000 | L183: =IF(AND(ValuesEntered,ISNUMBER($C183)),SUM(E183:H183,J183:K183),"") -> 344933 | O183: =IF(AND(ValuesEntered,ISNUMBER($C183)),D183-F183-J183,"") -> 29566111 | R183: 256
A184: 13 | B184: =ROWS($B$27:B184) -> 158 | C184: =IF(AND(ValuesEntered,R183>0),IF(AND(ISNUMBER(O183),R183>0),EDATE(C183,1),""),"") -> 2030-05-01 | D184: 29566111 | E184: =IF(AND(ValuesEntered,ISNUMBER(C184)),IF($E$19="時間短縮",ROUND(IPMT(VLOOKUP($C184,Rate_table,2,TRUE)/12,1,$R183,$D184)*-1,0),ROUND(IPMT(VLOOKUP($C184,Rate_table,2,TRUE)/12,$B184,DurationOfLoan,LoanAmount-BonusAmount-SUM(extra_payments))*-1,0))+IF($I184=0,0,ROUND(IPMT(VLOOKUP($C184,Rate_table,2,TRUE)/12,COUNTIF($I$27:I184,">0"),DurationofBonus,BonusAmount)*-1,0)),"") -> 36958 | F184: =IF(AND(ValuesEntered,ISNUMBER($C184)),IF($E$19="時間短縮",ROUND(PPMT(VLOOKUP($C184,Rate_table,2,TRUE)/12,1,$R183,$D184)*-1,0),ROUND(PPMT(VLOOKUP($C184,Rate_table,2,TRUE)/12,$B184,DurationOfLoan,LoanAmount-BonusAmount-SUM(extra_payments))*-1,0))+IF(I184=0,0,ROUND(PPMT(VLOOKUP($C184,Rate_table,2,TRUE)/12,COUNTIF($I$27:I184,">0"),DurationofBonus,BonusAmount)*-1,0)),"") -> 98069 | I184: 0 | L184: =IF(AND(ValuesEntered,ISNUMBER($C184)),SUM(E184:H184,J184:K184),"") -> 135027 | O184: =IF(AND(ValuesEntered,ISNUMBER($C184)),D184-F184-J184,"") -> 29468042 | R184: 255
A185: 13 | B185: =ROWS($B$27:B185) -> 159 | C185: =IF(AND(ValuesEntered,R184>0),IF(AND(ISNUMBER(O184),R184>0),EDATE(C184,1),""),"") -> 2030-06-01 | D185: 29468042 | E185: =IF(AND(ValuesEntered,ISNUMBER(C185)),IF($E$19="時間短縮",ROUND(IPMT(VLOOKUP($C185,Rate_table,2,TRUE)/12,1,$R184,$D185)*-1,0),ROUND(IPMT(VLOOKUP($C185,Rate_table,2,TRUE)/12,$B185,DurationOfLoan,LoanAmount-BonusAmount-SUM(extra_payments))*-1,0))+IF($I185=0,0,ROUND(IPMT(VLOOKUP($C185,Rate_table,2,TRUE)/12,COUNTIF($I$27:I185,">0"),DurationofBonus,BonusAmount)*-1,0)),"") -> 36835 | F185: =IF(AND(ValuesEntered,ISNUMBER($C185)),IF($E$19="時間短縮",ROUND(PPMT(VLOOKUP($C185,Rate_table,2,TRUE)/12,1,$R184,$D185)*-1,0),ROUND(PPMT(VLOOKUP($C185,Rate_table,2,TRUE)/12,$B185,DurationOfLoan,LoanAmount-BonusAmount-SUM(extra_payments))*-1,0))+IF(I185=0,0,ROUND(PPMT(VLOOKUP($C185,Rate_table,2,TRUE)/12,COUNTIF($I$27:I185,">0"),DurationofBonus,BonusAmount)*-1,0)),"") -> 98192 | I185: 0 | L185: =IF(AND(ValuesEntered,ISNUMBER($C185)),SUM(E185:H185,J185:K185),"") -> 135027 | O185: =IF(AND(ValuesEntered,ISNUMBER($C185)),D185-F185-J185,"") -> 29369850 | R185: 254
A186: 13 | B186: =ROWS($B$27:B186) -> 160 | C186: =IF(AND(ValuesEntered,R185>0),IF(AND(ISNUMBER(O185),R185>0),EDATE(C185,1),""),"") -> 2030-07-01 | D186: 29369850 | E186: =IF(AND(ValuesEntered,ISNUMBER(C186)),IF($E$19="時間短縮",ROUND(IPMT(VLOOKUP($C186,Rate_table,2,TRUE)/12,1,$R185,$D186)*-1,0),ROUND(IPMT(VLOOKUP($C186,Rate_table,2,TRUE)/12,$B186,DurationOfLoan,LoanAmount-BonusAmount-SUM(extra_payments))*-1,0))+IF($I186=0,0,ROUND(IPMT(VLOOKUP($C186,Rate_table,2,TRUE)/12,COUNTIF($I$27:I186,">0"),DurationofBonus,BonusAmount)*-1,0)),"") -> 47643 | F186: =IF(AND(ValuesEntered,ISNUMBER($C186)),IF($E$19="時間短縮",ROUND(PPMT(VLOOKUP($C186,Rate_table,2,TRUE)/12,1,$R185,$D186)*-1,0),ROUND(PPMT(VLOOKUP($C186,Rate_table,2,TRUE)/12,$B186,DurationOfLoan,LoanAmount-BonusAmount-SUM(extra_payments))*-1,0))+IF(I186=0,0,ROUND(PPMT(VLOOKUP($C186,Rate_table,2,TRUE)/12,COUNTIF($I$27:I186,">0"),DurationofBonus,BonusAmount)*-1,0)),"") -> 296387 | I186: 200000 | L186: =IF(AND(ValuesEntered,ISNUMBER($C186)),SUM(E186:H186,J186:K186),"") -> 344030 | O186: =IF(AND(ValuesEntered,ISNUMBER($C186)),D186-F186-J186,"") -> 29073463 | R186: 253
A187: 13 | B187: =ROWS($B$27:B187) -> 161 | C187: =IF(AND(ValuesEntered,R186>0),IF(AND(ISNUMBER(O186),R186>0),EDATE(C186,1),""),"") -> 2030-08-01 | D187: 29073463 | E187: =IF(AND(ValuesEntered,ISNUMBER(C187)),IF($E$19="時間短縮",ROUND(IPMT(VLOOKUP($C187,Rate_table,2,TRUE)/12,1,$R186,$D187)*-1,0),ROUND(IPMT(VLOOKUP($C187,Rate_table,2,TRUE)/12,$B187,DurationOfLoan,LoanAmount-BonusAmount-SUM(extra_payments))*-1,0))+IF($I187=0,0,ROUND(IPMT(VLOOKUP($C187,Rate_table,2,TRUE)/12,COUNTIF($I$27:I187,">0"),DurationofBonus,BonusAmount)*-1,0)),"") -> 36342 | F187: =IF(AND(ValuesEntered,ISNUMBER($C187)),IF($E$19="時間短縮",ROUND(PPMT(VLOOKUP($C187,Rate_table,2,TRUE)/12,1,$R186,$D187)*-1,0),ROUND(PPMT(VLOOKUP($C187,Rate_table,2,TRUE)/12,$B187,DurationOfLoan,LoanAmount-BonusAmount-SUM(extra_payments))*-1,0))+IF(I187=0,0,ROUND(PPMT(VLOOKUP($C187,Rate_table,2,TRUE)/12,COUNTIF($I$27:I187,">0"),DurationofBonus,BonusAmount)*-1,0)),"") -> 97771 | I187: 0 | L187: =IF(AND(ValuesEntered,ISNUMBER($C187)),SUM(E187:H187,J187:K187),"") -> 134113 | O187: =IF(AND(ValuesEntered,ISNUMBER($C187)),D187-F187-J187,"") -> 28975692 | R187: 252
A188: 13 | B188: =ROWS($B$27:B188) -> 162 | C188: =IF(AND(ValuesEntered,R187>0),IF(AND(ISNUMBER(O187),R187>0),EDATE(C187,1),""),"") -> 2030-09-01 | D188: 28975692 | E188: =IF(AND(ValuesEntered,ISNUMBER(C188)),IF($E$19="時間短縮",ROUND(IPMT(VLOOKUP($C188,Rate_table,2,TRUE)/12,1,$R187,$D188)*-1,0),ROUND(IPMT(VLOOKUP($C188,Rate_table,2,TRUE)/12,$B188,DurationOfLoan,LoanAmount-BonusAmount-SUM(extra_payments))*-1,0))+IF($I188=0,0,ROUND(IPMT(VLOOKUP($C188,Rate_table,2,TRUE)/12,COUNTIF($I$27:I188,">0"),DurationofBonus,BonusAmount)*-1,0)),"") -> 36220 | F188: =IF(AND(ValuesEntered,ISNUMBER($C188)),IF($E$19="時間短縮",ROUND(PPMT(VLOOKUP($C188,Rate_table,2,TRUE)/12,1,$R187,$D188)*-1,0),ROUND(PPMT(VLOOKUP($C188,Rate_table,2,TRUE)/12,$B188,DurationOfLoan,LoanAmount-BonusAmount-SUM(extra_payments))*-1,0))+IF(I188=0,0,ROUND(PPMT(VLOOKUP($C188,Rate_table,2,TRUE)/12,COUNTIF($I$27:I188,">0"),DurationofBonus,BonusAmount)*-1,0)),"") -> 97894 | I188: 0 | L188: =IF(AND(ValuesEntered,ISNUMBER($C188)),SUM(E188:H188,J188:K188),"") -> 134114 | O188: =IF(AND(ValuesEntered,ISNUMBER($C188)),D188-F188-J188,"") -> 28877798 | R188: 251
A189: 13 | B189: =ROWS($B$27:B189) -> 163 | C189: =IF(AND(ValuesEntered,R188>0),IF(AND(ISNUMBER(O188),R188>0),EDATE(C188,1),""),"") -> 2030-10-01 | D189: 28877798 | E189: =IF(AND(ValuesEntered,ISNUMBER(C189)),IF($E$19="時間短縮",ROUND(IPMT(VLOOKUP($C189,Rate_table,2,TRUE)/12,1,$R188,$D189)*-1,0),ROUND(IPMT(VLOOKUP($C189,Rate_table,2,TRUE)/12,$B189,DurationOfLoan,LoanAmount-BonusAmount-SUM(extra_payments))*-1,0))+IF($I189=0,0,ROUND(IPMT(VLOOKUP($C189,Rate_table,2,TRUE)/12,COUNTIF($I$27:I189,">0"),DurationofBonus,BonusAmount)*-1,0)),"") -> 36097 | F189: =IF(AND(ValuesEntered,ISNUMBER($C189)),IF($E$19="時間短縮",ROUND(PPMT(VLOOKUP($C189,Rate_table,2,TRUE)/12,1,$R188,$D189)*-1,0),ROUND(PPMT(VLOOKUP($C189,Rate_table,2,TRUE)/12,$B189,DurationOfLoan,LoanAmount-BonusAmount-SUM(extra_payments))*-1,0))+IF(I189=0,0,ROUND(PPMT(VLOOKUP($C189,Rate_table,2,TRUE)/12,COUNTIF($I$27:I189,">0"),DurationofBonus,BonusAmount)*-1,0)),"") -> 98016 | I189: 0 | L189: =IF(AND(ValuesEntered,ISNUMBER($C189)),SUM(E189:H189,J189:K189),"") -> 134113 | O189: =IF(AND(ValuesEntered,ISNUMBER($C189)),D189-F189-J189,"") -> 28779782 | R189: 250
A190: 13 | B190: =ROWS($B$27:B190) -> 164 | C190: =IF(AND(ValuesEntered,R189>0),IF(AND(ISNUMBER(O189),R189>0),EDATE(C189,1),""),"") -> 2030-11-01 | D190: 28779782 | E190: =IF(AND(ValuesEntered,ISNUMBER(C190)),IF($E$19="時間短縮",ROUND(IPMT(VLOOKUP($C190,Rate_table,2,TRUE)/12,1,$R189,$D190)*-1,0),ROUND(IPMT(VLOOKUP($C190,Rate_table,2,TRUE)/12,$B190,DurationOfLoan,LoanAmount-BonusAmount-SUM(extra_payments))*-1,0))+IF($I190=0,0,ROUND(IPMT(VLOOKUP($C190,Rate_table,2,TRUE)/12,COUNTIF($I$27:I190,">0"),DurationofBonus,BonusAmount)*-1,0)),"") -> 35975 | F190: =IF(AND(ValuesEntered,ISNUMBER($C190)),IF($E$19="時間短縮",ROUND(PPMT(VLOOKUP($C190,Rate_table,2,TRUE)/12,1,$R189,$D190)*-1,0),ROUND(PPMT(VLOOKUP($C190,Rate_table,2,TRUE)/12,$B190,DurationOfLoan,LoanAmount-BonusAmount-SUM(extra_payments))*-1,0))+IF(I190=0,0,ROUND(PPMT(VLOOKUP($C190,Rate_table,2,TRUE)/12,COUNTIF($I$27:I190,">0"),DurationofBonus,BonusAmount)*-1,0)),"") -> 98138 | I190: 0 | L190: =IF(AND(ValuesEntered,ISNUMBER($C190)),SUM(E190:H190,J190:K190),"") -> 134113 | O190: =IF(AND(ValuesEntered,ISNUMBER($C190)),D190-F190-J190,"") -> 28681644 | R190: 249
A191: 13 | B191: =ROWS($B$27:B191) -> 165 | C191: =IF(AND(ValuesEntered,R190>0),IF(AND(ISNUMBER(O190),R190>0),EDATE(C190,1),""),"") -> 2030-12-01 | D191: 28681644 | E191: =IF(AND(ValuesEntered,ISNUMBER(C191)),IF($E$19="時間短縮",ROUND(IPMT(VLOOKUP($C191,Rate_table,2,TRUE)/12,1,$R190,$D191)*-1,0),ROUND(IPMT(VLOOKUP($C191,Rate_table,2,TRUE)/12,$B191,DurationOfLoan,LoanAmount-BonusAmount-SUM(extra_payments))*-1,0))+IF($I191=0,0,ROUND(IPMT(VLOOKUP($C191,Rate_table,2,TRUE)/12,COUNTIF($I$27:I191,">0"),DurationofBonus,BonusAmount)*-1,0)),"") -> 35852 | F191: =IF(AND(ValuesEntered,ISNUMBER($C191)),IF($E$19="時間短縮",ROUND(PPMT(VLOOKUP($C191,Rate_table,2,TRUE)/12,1,$R190,$D191)*-1,0),ROUND(PPMT(VLOOKUP($C191,Rate_table,2,TRUE)/12,$B191,DurationOfLoan,LoanAmount-BonusAmount-SUM(extra_payments))*-1,0))+IF(I191=0,0,ROUND(PPMT(VLOOKUP($C191,Rate_table,2,TRUE)/12,COUNTIF($I$27:I191,">0"),DurationofBonus,BonusAmount)*-1,0)),"") -> 98261 | I191: 0 | L191: =IF(AND(ValuesEntered,ISNUMBER($C191)),SUM(E191:H191,J191:K191),"") -> 134113 | O191: =IF(AND(ValuesEntered,ISNUMBER($C191)),D191-F191-J191,"") -> 28583383 | R191: 248
A192: 14 | B192: =ROWS($B$27:B192) -> 166 | C192: =IF(AND(ValuesEntered,R191>0),IF(AND(ISNUMBER(O191),R191>0),EDATE(C191,1),""),"") -> 2031-01-01 | D192: 28583383 | E192: =IF(AND(ValuesEntered,ISNUMBER(C192)),IF($E$19="時間短縮",ROUND(IPMT(VLOOKUP($C192,Rate_table,2,TRUE)/12,1,$R191,$D192)*-1,0),ROUND(IPMT(VLOOKUP($C192,Rate_table,2,TRUE)/12,$B192,DurationOfLoan,LoanAmount-BonusAmount-SUM(extra_payments))*-1,0))+IF($I192=0,0,ROUND(IPMT(VLOOKUP($C192,Rate_table,2,TRUE)/12,COUNTIF($I$27:I192,">0"),DurationofBonus,BonusAmount)*-1,0)),"") -> 35729 | F192: =IF(AND(ValuesEntered,ISNUMBER($C192)),IF($E$19="時間短縮",ROUND(PPMT(VLOOKUP($C192,Rate_table,2,TRUE)/12,1,$R191,$D192)*-1,0),ROUND(PPMT(VLOOKUP($C192,Rate_table,2,TRUE)/12,$B192,DurationOfLoan,LoanAmount-BonusAmount-SUM(extra_payments))*-1,0))+IF(I192=0,0,ROUND(PPMT(VLOOKUP($C192,Rate_table,2,TRUE)/12,COUNTIF($I$27:I192,">0"),DurationofBonus,BonusAmount)*-1,0)),"") -> 98384 | I192: 0 | L192: =IF(AND(ValuesEntered,ISNUMBER($C192)),SUM(E192:H192,J192:K192),"") -> 134113 | O192: =IF(AND(ValuesEntered,ISNUMBER($C192)),D192-F192-J192,"") -> 28484999 | R192: 247
A193: 14 | B193: =ROWS($B$27:B193) -> 167 | C193: =IF(AND(ValuesEntered,R192>0),IF(AND(ISNUMBER(O192),R192>0),EDATE(C192,1),""),"") -> 2031-02-01 | D193: 28484999 | E193: =IF(AND(ValuesEntered,ISNUMBER(C193)),IF($E$19="時間短縮",ROUND(IPMT(VLOOKUP($C193,Rate_table,2,TRUE)/12,1,$R192,$D193)*-1,0),ROUND(IPMT(VLOOKUP($C193,Rate_table,2,TRUE)/12,$B193,DurationOfLoan,LoanAmount-BonusAmount-SUM(extra_payments))*-1,0))+IF($I193=0,0,ROUND(IPMT(VLOOKUP($C193,Rate_table,2,TRUE)/12,COUNTIF($I$27:I193,">0"),DurationofBonus,BonusAmount)*-1,0)),"") -> 35606 | F193: =IF(AND(ValuesEntered,ISNUMBER($C193)),IF($E$19="時間短縮",ROUND(PPMT(VLOOKUP($C193,Rate_table,2,TRUE)/12,1,$R192,$D193)*-1,0),ROUND(PPMT(VLOOKUP($C193,Rate_table,2,TRUE)/12,$B193,DurationOfLoan,LoanAmount-BonusAmount-SUM(extra_payments))*-1,0))+IF(I193=0,0,ROUND(PPMT(VLOOKUP($C193,Rate_table,2,TRUE)/12,COUNTIF($I$27:I193,">0"),DurationofBonus,BonusAmount)*-1,0)),"") -> 98507 | I193: 0 | L193: =IF(AND(ValuesEntered,ISNUMBER($C193)),SUM(E193:H193,J193:K193),"") -> 134113 | O193: =IF(AND(ValuesEntered,ISNUMBER($C193)),D193-F193-J193,"") -> 28386492 | R193: 246
A194: 14 | B194: =ROWS($B$27:B194) -> 168 | C194: =IF(AND(ValuesEntered,R193>0),IF(AND(ISNUMBER(O193),R193>0),EDATE(C193,1),""),"") -> 2031-03-01 | D194: 28386492 | E194: =IF(AND(ValuesEntered,ISNUMBER(C194)),IF($E$19="時間短縮",ROUND(IPMT(VLOOKUP($C194,Rate_table,2,TRUE)/12,1,$R193,$D194)*-1,0),ROUND(IPMT(VLOOKUP($C194,Rate_table,2,TRUE)/12,$B194,DurationOfLoan,LoanAmount-BonusAmount-SUM(extra_payments))*-1,0))+IF($I194=0,0,ROUND(IPMT(VLOOKUP($C194,Rate_table,2,TRUE)/12,COUNTIF($I$27:I194,">0"),DurationofBonus,BonusAmount)*-1,0)),"") -> 35483 | F194: =IF(AND(ValuesEntered,ISNUMBER($C194)),IF($E$19="時間短縮",ROUND(PPMT(VLOOKUP($C194,Rate_table,2,TRUE)/12,1,$R193,$D194)*-1,0),ROUND(PPMT(VLOOKUP($C194,Rate_table,2,TRUE)/12,$B194,DurationOfLoan,LoanAmount-BonusAmount-SUM(extra_payments))*-1,0))+IF(I194=0,0,ROUND(PPMT(VLOOKUP($C194,Rate_table,2,TRUE)/12,COUNTIF($I$27:I194,">0"),DurationofBonus,BonusAmount)*-1,0)),"") -> 98630 | I194: 0 | L194: =IF(AND(ValuesEntered,ISNUMBER($C194)),SUM(E194:H194,J194:K194),"") -> 134113 | O194: =IF(AND(ValuesEntered,ISNUMBER($C194)),D194-F194-J194,"") -> 28287862 | R194: 245
A195: 14 | B195: =ROWS($B$27:B195) -> 169 | C195: =IF(AND(ValuesEntered,R194>0),IF(AND(ISNUMBER(O194),R194>0),EDATE(C194,1),""),"") -> 2031-04-01 | D195: 28287862 | E195: =IF(AND(ValuesEntered,ISNUMBER(C195)),IF($E$19="時間短縮",ROUND(IPMT(VLOOKUP($C195,Rate_table,2,TRUE)/12,1,$R194,$D195)*-1,0),ROUND(IPMT(VLOOKUP($C195,Rate_table,2,TRUE)/12,$B195,DurationOfLoan,LoanAmount-BonusAmount-SUM(extra_payments))*-1,0))+IF($I195=0,0,ROUND(IPMT(VLOOKUP($C195,Rate_table,2,TRUE)/12,COUNTIF($I$27:I195,">0"),DurationofBonus,BonusAmount)*-1,0)),"") -> 46043 | F195: =IF(AND(ValuesEntered,ISNUMBER($C195)),IF($E$19="時間短縮",ROUND(PPMT(VLOOKUP($C195,Rate_table,2,TRUE)/12,1,$R194,$D195)*-1,0),ROUND(PPMT(VLOOKUP($C195,Rate_table,2,TRUE)/12,$B195,DurationOfLoan,LoanAmount-BonusAmount-SUM(extra_payments))*-1,0))+IF(I195=0,0,ROUND(PPMT(VLOOKUP($C195,Rate_table,2,TRUE)/12,COUNTIF($I$27:I195,">0"),DurationofBonus,BonusAmount)*-1,0)),"") -> 297072 | I195: 200000 | L195: =IF(AND(ValuesEntered,ISNUMBER($C195)),SUM(E195:H195,J195:K195),"") -> 343115 | O195: =IF(AND(ValuesEntered,ISNUMBER($C195)),D195-F195-J195,"") -> 27990790 | R195: 244
A196: 14 | B196: =ROWS($B$27:B196) -> 170 | C196: =IF(AND(ValuesEntered,R195>0),IF(AND(ISNUMBER(O195),R195>0),EDATE(C195,1),""),"") -> 2031-05-01 | D196: 27990790 | E196: =IF(AND(ValuesEntered,ISNUMBER(C196)),IF($E$19="時間短縮",ROUND(IPMT(VLOOKUP($C196,Rate_table,2,TRUE)/12,1,$R195,$D196)*-1,0),ROUND(IPMT(VLOOKUP($C196,Rate_table,2,TRUE)/12,$B196,DurationOfLoan,LoanAmount-BonusAmount-SUM(extra_payments))*-1,0))+IF($I196=0,0,ROUND(IPMT(VLOOKUP($C196,Rate_table,2,TRUE)/12,COUNTIF($I$27:I196,">0"),DurationofBonus,BonusAmount)*-1,0)),"") -> 34988 | F196: =IF(AND(ValuesEntered,ISNUMBER($C196)),IF($E$19="時間短縮",ROUND(PPMT(VLOOKUP($C196,Rate_table,2,TRUE)/12,1,$R195,$D196)*-1,0),ROUND(PPMT(VLOOKUP($C196,Rate_table,2,TRUE)/12,$B196,DurationOfLoan,LoanAmount-BonusAmount-SUM(extra_payments))*-1,0))+IF(I196=0,0,ROUND(PPMT(VLOOKUP($C196,Rate_table,2,TRUE)/12,COUNTIF($I$27:I196,">0"),DurationofBonus,BonusAmount)*-1,0)),"") -> 98181 | I196: 0 | L196: =IF(AND(ValuesEntered,ISNUMBER($C196)),SUM(E196:H196,J196:K196),"") -> 133169 | O196: =IF(AND(ValuesEntered,ISNUMBER($C196)),D196-F196-J196,"") -> 27892609 | R196: 243
A197: 14 | B197: =ROWS($B$27:B197) -> 171 | C197: =IF(AND(ValuesEntered,R196>0),IF(AND(ISNUMBER(O196),R196>0),EDATE(C196,1),""),"") -> 2031-06-01 | D197: 27892609 | E197: =IF(AND(ValuesEntered,ISNUMBER(C197)),IF($E$19="時間短縮",ROUND(IPMT(VLOOKUP($C197,Rate_table,2,TRUE)/12,1,$R196,$D197)*-1,0),ROUND(IPMT(VLOOKUP($C197,Rate_table,2,TRUE)/12,$B197,DurationOfLoan,LoanAmount-BonusAmount-SUM(extra_payments))*-1,0))+IF($I197=0,0,ROUND(IPMT(VLOOKUP($C197,Rate_table,2,TRUE)/12,COUNTIF($I$27:I197,">0"),DurationofBonus,BonusAmount)*-1,0)),"") -> 34866 | F197: =IF(AND(ValuesEntered,ISNUMBER($C197)),IF($E$19="時間短縮",ROUND(PPMT(VLOOKUP($C197,Rate_table,2,TRUE)/12,1,$R196,$D197)*-1,0),ROUND(PPMT(VLOOKUP($C197,Rate_table,2,TRUE)/12,$B197,DurationOfLoan,LoanAmount-BonusAmount-SUM(extra_payments))*-1,0))+IF(I197=0,0,ROUND(PPMT(VLOOKUP($C197,Rate_table,2,TRUE)/12,COUNTIF($I$27:I197,">0"),DurationofBonus,BonusAmount)*-1,0)),"") -> 98304 | I197: 0 | L197: =IF(AND(ValuesEntered,ISNUMBER($C197)),SUM(E197:H197,J197:K197),"") -> 133170 | O197: =IF(AND(ValuesEntered,ISNUMBER($C197)),D197-F197-J197,"") -> 27794305 | R197: 242
A198: 14 | B198: =ROWS($B$27:B198) -> 172 | C198: =IF(AND(ValuesEntered,R197>0),IF(AND(ISNUMBER(O197),R197>0),EDATE(C197,1),""),"") -> 2031-07-01 | D198: 27794305 | E198: =IF(AND(ValuesEntered,ISNUMBER(C198)),IF($E$19="時間短縮",ROUND(IPMT(VLOOKUP($C198,Rate_table,2,TRUE)/12,1,$R197,$D198)*-1,0),ROUND(IPMT(VLOOKUP($C198,Rate_table,2,TRUE)/12,$B198,DurationOfLoan,LoanAmount-BonusAmount-SUM(extra_payments))*-1,0))+IF($I198=0,0,ROUND(IPMT(VLOOKUP($C198,Rate_table,2,TRUE)/12,COUNTIF($I$27:I198,">0"),DurationofBonus,BonusAmount)*-1,0)),"") -> 45178 | F198: =IF(AND(ValuesEntered,ISNUMBER($C198)),IF($E$19="時間短縮",ROUND(PPMT(VLOOKUP($C198,Rate_table,2,TRUE)/12,1,$R197,$D198)*-1,0),ROUND(PPMT(VLOOKUP($C198,Rate_table,2,TRUE)/12,$B198,DurationOfLoan,LoanAmount-BonusAmount-SUM(extra_payments))*-1,0))+IF(I198=0,0,ROUND(PPMT(VLOOKUP($C198,Rate_table,2,TRUE)/12,COUNTIF($I$27:I198,">0"),DurationofBonus,BonusAmount)*-1,0)),"") -> 296994 | I198: 200000 | L198: =IF(AND(ValuesEntered,ISNUMBER($C198)),SUM(E198:H198,J198:K198),"") -> 342172 | O198: =IF(AND(ValuesEntered,ISNUMBER($C198)),D198-F198-J198,"") -> 27497311 | R198: 241
A199: 14 | B199: =ROWS($B$27:B199) -> 173 | C199: =IF(AND(ValuesEntered,R198>0),IF(AND(ISNUMBER(O198),R198>0),EDATE(C198,1),""),"") -> 2031-08-01 | D199: 27497311 | E199: =IF(AND(ValuesEntered,ISNUMBER(C199)),IF($E$19="時間短縮",ROUND(IPMT(VLOOKUP($C199,Rate_table,2,TRUE)/12,1,$R198,$D199)*-1,0),ROUND(IPMT(VLOOKUP($C199,Rate_table,2,TRUE)/12,$B199,DurationOfLoan,LoanAmount-BonusAmount-SUM(extra_payments))*-1,0))+IF($I199=0,0,ROUND(IPMT(VLOOKUP($C199,Rate_table,2,TRUE)/12,COUNTIF($I$27:I199,">0"),DurationofBonus,BonusAmount)*-1,0)),"") -> 34372 | F199: =IF(AND(ValuesEntered,ISNUMBER($C199)),IF($E$19="時間短縮",ROUND(PPMT(VLOOKUP($C199,Rate_table,2,TRUE)/12,1,$R198,$D199)*-1,0),ROUND(PPMT(VLOOKUP($C199,Rate_table,2,TRUE)/12,$B199,DurationOfLoan,LoanAmount-BonusAmount-SUM(extra_payments))*-1,0))+IF(I199=0,0,ROUND(PPMT(VLOOKUP($C199,Rate_table,2,TRUE)/12,COUNTIF($I$27:I199,">0"),DurationofBonus,BonusAmount)*-1,0)),"") -> 97843 | I199: 0 | L199: =IF(AND(ValuesEntered,ISNUMBER($C199)),SUM(E199:H199,J199:K199),"") -> 132215 | O199: =IF(AND(ValuesEntered,ISNUMBER($C199)),D199-F199-J199,"") -> 27399468 | R199: 240
A200: 14 | B200: =ROWS($B$27:B200) -> 174 | C200: =IF(AND(ValuesEntered,R199>0),IF(AND(ISNUMBER(O199),R199>0),EDATE(C199,1),""),"") -> 2031-09-01 | D200: 27399468 | E200: =IF(AND(ValuesEntered,ISNUMBER(C200)),IF($E$19="時間短縮",ROUND(IPMT(VLOOKUP($C200,Rate_table,2,TRUE)/12,1,$R199,$D200)*-1,0),ROUND(IPMT(VLOOKUP($C200,Rate_table,2,TRUE)/12,$B200,DurationOfLoan,LoanAmount-BonusAmount-SUM(extra_payments))*-1,0))+IF($I200=0,0,ROUND(IPMT(VLOOKUP($C200,Rate_table,2,TRUE)/12,COUNTIF($I$27:I200,">0"),DurationofBonus,BonusAmount)*-1,0)),"") -> 34249 | F200: =IF(AND(ValuesEntered,ISNUMBER($C200)),IF($E$19="時間短縮",ROUND(PPMT(VLOOKUP($C200,Rate_table,2,TRUE)/12,1,$R199,$D200)*-1,0),ROUND(PPMT(VLOOKUP($C200,Rate_table,2,TRUE)/12,$B200,DurationOfLoan,LoanAmount-BonusAmount-SUM(extra_payments))*-1,0))+IF(I200=0,0,ROUND(PPMT(VLOOKUP($C200,Rate_table,2,TRUE)/12,COUNTIF($I$27:I200,">0"),DurationofBonus,BonusAmount)*-1,0)),"") -> 97966 | I200: 0 | L200: =IF(AND(ValuesEntered,ISNUMBER($C200)),SUM(E200:H200,J200:K200),"") -> 132215 | O200: =IF(AND(ValuesEntered,ISNUMBER($C200)),D200-F200-J200,"") -> 27301502 | R200: 239
A201: 14 | B201: =ROWS($B$27:B201) -> 175 | C201: =IF(AND(ValuesEntered,R200>0),IF(AND(ISNUMBER(O200),R200>0),EDATE(C200,1),""),"") -> 2031-10-01 | D201: 27301502 | E201: =IF(AND(ValuesEntered,ISNUMBER(C201)),IF($E$19="時間短縮",ROUND(IPMT(VLOOKUP($C201,Rate_table,2,TRUE)/12,1,$R200,$D201)*-1,0),ROUND(IPMT(VLOOKUP($C201,Rate_table,2,TRUE)/12,$B201,DurationOfLoan,LoanAmount-BonusAmount-SUM(extra_payments))*-1,0))+IF($I201=0,0,ROUND(IPMT(VLOOKUP($C201,Rate_table,2,TRUE)/12,COUNTIF($I$27:I201,">0"),DurationofBonus,BonusAmount)*-1,0)),"") -> 34127 | F201: =IF(AND(ValuesEntered,ISNUMBER($C201)),IF($E$19="時間短縮",ROUND(PPMT(VLOOKUP($C201,Rate_table,2,TRUE)/12,1,$R200,$D201)*-1,0),ROUND(PPMT(VLOOKUP($C201,Rate_table,2,TRUE)/12,$B201,DurationOfLoan,LoanAmount-BonusAmount-SUM(extra_payments))*-1,0))+IF(I201=0,0,ROUND(PPMT(VLOOKUP($C201,Rate_table,2,TRUE)/12,COUNTIF($I$27:I201,">0"),DurationofBonus,BonusAmount)*-1,0)),"") -> 98088 | I201: 0 | L201: =IF(AND(ValuesEntered,ISNUMBER($C201)),SUM(E201:H201,J201:K201),"") -> 132215 | O201: =IF(AND(ValuesEntered,ISNUMBER($C201)),D201-F201-J201,"") -> 27203414 | R201: 238
A202: 14 | B202: =ROWS($B$27:B202) -> 176 | C202: =IF(AND(ValuesEntered,R201>0),IF(AND(ISNUMBER(O201),R201>0),EDATE(C201,1),""),"") -> 2031-11-01 | D202: 27203414 | E202: =IF(AND(ValuesEntered,ISNUMBER(C202)),IF($E$19="時間短縮",ROUND(IPMT(VLOOKUP($C202,Rate_table,2,TRUE)/12,1,$R201,$D202)*-1,0),ROUND(IPMT(VLOOKUP($C202,Rate_table,2,TRUE)/12,$B202,DurationOfLoan,LoanAmount-BonusAmount-SUM(extra_payments))*-1,0))+IF($I202=0,0,ROUND(IPMT(VLOOKUP($C202,Rate_table,2,TRUE)/12,COUNTIF($I$27:I202,">0"),DurationofBonus,BonusAmount)*-1,0)),"") -> 34004 | F202: =IF(AND(ValuesEntered,ISNUMBER($C202)),IF($E$19="時間短縮",ROUND(PPMT(VLOOKUP($C202,Rate_table,2,TRUE)/12,1,$R201,$D202)*-1,0),ROUND(PPMT(VLOOKUP($C202,Rate_table,2,TRUE)/12,$B202,DurationOfLoan,LoanAmount-BonusAmount-SUM(extra_payments))*-1,0))+IF(I202=0,0,ROUND(PPMT(VLOOKUP($C202,Rate_table,2,TRUE)/12,COUNTIF($I$27:I202,">0"),DurationofBonus,BonusAmount)*-1,0)),"") -> 98211 | I202: 0 | L202: =IF(AND(ValuesEntered,ISNUMBER($C202)),SUM(E202:H202,J202:K202),"") -> 132215 | O202: =IF(AND(ValuesEntered,ISNUMBER($C202)),D202-F202-J202,"") -> 27105203 | R202: 237
A203: 14 | B203: =ROWS($B$27:B203) -> 177 | C203: =IF(AND(ValuesEntered,R202>0),IF(AND(ISNUMBER(O202),R202>0),EDATE(C202,1),""),"") -> 2031-12-01 | D203: 27105203 | E203: =IF(AND(ValuesEntered,ISNUMBER(C203)),IF($E$19="時間短縮",ROUND(IPMT(VLOOKUP($C203,Rate_table,2,TRUE)/12,1,$R202,$D203)*-1,0),ROUND(IPMT(VLOOKUP($C203,Rate_table,2,TRUE)/12,$B203,DurationOfLoan,LoanAmount-BonusAmount-SUM(extra_payments))*-1,0))+IF($I203=0,0,ROUND(IPMT(VLOOKUP($C203,Rate_table,2,TRUE)/12,COUNTIF($I$27:I203,">0"),DurationofBonus,BonusAmount)*-1,0)),"") -> 33882 | F203: =IF(AND(ValuesEntered,ISNUMBER($C203)),IF($E$19="時間短縮",ROUND(PPMT(VLOOKUP($C203,Rate_table,2,TRUE)/12,1,$R202,$D203)*-1,0),ROUND(PPMT(VLOOKUP($C203,Rate_table,2,TRUE)/12,$B203,DurationOfLoan,LoanAmount-BonusAmount-SUM(extra_payments))*-1,0))+IF(I203=0,0,ROUND(PPMT(VLOOKUP($C203,Rate_table,2,TRUE)/12,COUNTIF($I$27:I203,">0"),DurationofBonus,BonusAmount)*-1,0)),"") -> 98333 | I203: 0 | L203: =IF(AND(ValuesEntered,ISNUMBER($C203)),SUM(E203:H203,J203:K203),"") -> 132215 | O203: =IF(AND(ValuesEntered,ISNUMBER($C203)),D203-F203-J203,"") -> 27006870 | R203: 236
A204: 15 | B204: =ROWS($B$27:B204) -> 178 | C204: =IF(AND(ValuesEntered,R203>0),IF(AND(ISNUMBER(O203),R203>0),EDATE(C203,1),""),"") -> 2032-01-01 | D204: 27006870 | E204: =IF(AND(ValuesEntered,ISNUMBER(C204)),IF($E$19="時間短縮",ROUND(IPMT(VLOOKUP($C204,Rate_table,2,TRUE)/12,1,$R203,$D204)*-1,0),ROUND(IPMT(VLOOKUP($C204,Rate_table,2,TRUE)/12,$B204,DurationOfLoan,LoanAmount-BonusAmount-SUM(extra_payments))*-1,0))+IF($I204=0,0,ROUND(IPMT(VLOOKUP($C204,Rate_table,2,TRUE)/12,COUNTIF($I$27:I204,">0"),DurationofBonus,BonusAmount)*-1,0)),"") -> 33759 | F204: =IF(AND(ValuesEntered,ISNUMBER($C204)),IF($E$19="時間短縮",ROUND(PPMT(VLOOKUP($C204,Rate_table,2,TRUE)/12,1,$R203,$D204)*-1,0),ROUND(PPMT(VLOOKUP($C204,Rate_table,2,TRUE)/12,$B204,DurationOfLoan,LoanAmount-BonusAmount-SUM(extra_payments))*-1,0))+IF(I204=0,0,ROUND(PPMT(VLOOKUP($C204,Rate_table,2,TRUE)/12,COUNTIF($I$27:I204,">0"),DurationofBonus,BonusAmount)*-1,0)),"") -> 98456 | I204: 0 | L204: =IF(AND(ValuesEntered,ISNUMBER($C204)),SUM(E204:H204,J204:K204),"") -> 132215 | O204: =IF(AND(ValuesEntered,ISNUMBER($C204)),D204-F204-J204,"") -> 26908414 | R204: 235
A205: 15 | B205: =ROWS($B$27:B205) -> 179 | C205: =IF(AND(ValuesEntered,R204>0),IF(AND(ISNUMBER(O204),R204>0),EDATE(C204,1),""),"") -> 2032-02-01 | D205: 26908414 | E205: =IF(AND(ValuesEntered,ISNUMBER(C205)),IF($E$19="時間短縮",ROUND(IPMT(VLOOKUP($C205,Rate_table,2,TRUE)/12,1,$R204,$D205)*-1,0),ROUND(IPMT(VLOOKUP($C205,Rate_table,2,TRUE)/12,$B205,DurationOfLoan,LoanAmount-BonusAmount-SUM(extra_payments))*-1,0))+IF($I205=0,0,ROUND(IPMT(VLOOKUP($C205,Rate_table,2,TRUE)/12,COUNTIF($I$27:I205,">0"),DurationofBonus,BonusAmount)*-1,0)),"") -> 33636 | F205: =IF(AND(ValuesEntered,ISNUMBER($C205)),IF($E$19="時間短縮",ROUND(PPMT(VLOOKUP($C205,Rate_table,2,TRUE)/12,1,$R204,$D205)*-1,0),ROUND(PPMT(VLOOKUP($C205,Rate_table,2,TRUE)/12,$B205,DurationOfLoan,LoanAmount-BonusAmount-SUM(extra_payments))*-1,0))+IF(I205=0,0,ROUND(PPMT(VLOOKUP($C205,Rate_table,2,TRUE)/12,COUNTIF($I$27:I205,">0"),DurationofBonus,BonusAmount)*-1,0)),"") -> 98579 | I205: 0 | L205: =IF(AND(ValuesEntered,ISNUMBER($C205)),SUM(E205:H205,J205:K205),"") -> 132215 | O205: =IF(AND(ValuesEntered,ISNUMBER($C205)),D205-F205-J205,"") -> 26809835 | R205: 234
A206: 15 | B206: =ROWS($B$27:B206) -> 180 | C206: =IF(AND(ValuesEntered,R205>0),IF(AND(ISNUMBER(O205),R205>0),EDATE(C205,1),""),"") -> 2032-03-01 | D206: 26809835 | E206: =IF(AND(ValuesEntered,ISNUMBER(C206)),IF($E$19="時間短縮",ROUND(IPMT(VLOOKUP($C206,Rate_table,2,TRUE)/12,1,$R205,$D206)*-1,0),ROUND(IPMT(VLOOKUP($C206,Rate_table,2,TRUE)/12,$B206,DurationOfLoan,LoanAmount-BonusAmount-SUM(extra_payments))*-1,0))+IF($I206=0,0,ROUND(IPMT(VLOOKUP($C206,Rate_table,2,TRUE)/12,COUNTIF($I$27:I206,">0"),DurationofBonus,BonusAmount)*-1,0)),"") -> 33512 | F206: =IF(AND(ValuesEntered,ISNUMBER($C206)),IF($E$19="時間短縮",ROUND(PPMT(VLOOKUP($C206,Rate_table,2,TRUE)/12,1,$R205,$D206)*-1,0),ROUND(PPMT(VLOOKUP($C206,Rate_table,2,TRUE)/12,$B206,DurationOfLoan,LoanAmount-BonusAmount-SUM(extra_payments))*-1,0))+IF(I206=0,0,ROUND(PPMT(VLOOKUP($C206,Rate_table,2,TRUE)/12,COUNTIF($I$27:I206,">0"),DurationofBonus,BonusAmount)*-1,0)),"") -> 98703 | I206: 0 | L206: =IF(AND(ValuesEntered,ISNUMBER($C206)),SUM(E206:H206,J206:K206),"") -> 132215 | O206: =IF(AND(ValuesEntered,ISNUMBER($C206)),D206-F206-J206,"") -> 26711132 | R206: 233
A207: 15 | B207: =ROWS($B$27:B207) -> 181 | C207: =IF(AND(ValuesEntered,R206>0),IF(AND(ISNUMBER(O206),R206>0),EDATE(C206,1),""),"") -> 2032-04-01 | D207: 26711132 | E207: =IF(AND(ValuesEntered,ISNUMBER(C207)),IF($E$19="時間短縮",ROUND(IPMT(VLOOKUP($C207,Rate_table,2,TRUE)/12,1,$R206,$D207)*-1,0),ROUND(IPMT(VLOOKUP($C207,Rate_table,2,TRUE)/12,$B207,DurationOfLoan,LoanAmount-BonusAmount-SUM(extra_payments))*-1,0))+IF($I207=0,0,ROUND(IPMT(VLOOKUP($C207,Rate_table,2,TRUE)/12,COUNTIF($I$27:I207,">0"),DurationofBonus,BonusAmount)*-1,0)),"") -> 43576 | F207: =IF(AND(ValuesEntered,ISNUMBER($C207)),IF($E$19="時間短縮",ROUND(PPMT(VLOOKUP($C207,Rate_table,2,TRUE)/12,1,$R206,$D207)*-1,0),ROUND(PPMT(VLOOKUP($C207,Rate_table,2,TRUE)/12,$B207,DurationOfLoan,LoanAmount-BonusAmount-SUM(extra_payments))*-1,0))+IF(I207=0,0,ROUND(PPMT(VLOOKUP($C207,Rate_table,2,TRUE)/12,COUNTIF($I$27:I207,">0"),DurationofBonus,BonusAmount)*-1,0)),"") -> 297642 | I207: 200000 | L207: =IF(AND(ValuesEntered,ISNUMBER($C207)),SUM(E207:H207,J207:K207),"") -> 341218 | O207: =IF(AND(ValuesEntered,ISNUMBER($C207)),D207-F207-J207,"") -> 26413490 | R207: 232
A208: 15 | B208: =ROWS($B$27:B208) -> 182 | C208: =IF(AND(ValuesEntered,R207>0),IF(AND(ISNUMBER(O207),R207>0),EDATE(C207,1),""),"") -> 2032-05-01 | D208: 26413490 | E208: =IF(AND(ValuesEntered,ISNUMBER(C208)),IF($E$19="時間短縮",ROUND(IPMT(VLOOKUP($C208,Rate_table,2,TRUE)/12,1,$R207,$D208)*-1,0),ROUND(IPMT(VLOOKUP($C208,Rate_table,2,TRUE)/12,$B208,DurationOfLoan,LoanAmount-BonusAmount-SUM(extra_payments))*-1,0))+IF($I208=0,0,ROUND(IPMT(VLOOKUP($C208,Rate_table,2,TRUE)/12,COUNTIF($I$27:I208,">0"),DurationofBonus,BonusAmount)*-1,0)),"") -> 33017 | F208: =IF(AND(ValuesEntered,ISNUMBER($C208)),IF($E$19="時間短縮",ROUND(PPMT(VLOOKUP($C208,Rate_table,2,TRUE)/12,1,$R207,$D208)*-1,0),ROUND(PPMT(VLOOKUP($C208,Rate_table,2,TRUE)/12,$B208,DurationOfLoan,LoanAmount-BonusAmount-SUM(extra_payments))*-1,0))+IF(I208=0,0,ROUND(PPMT(VLOOKUP($C208,Rate_table,2,TRUE)/12,COUNTIF($I$27:I208,">0"),DurationofBonus,BonusAmount)*-1,0)),"") -> 98210 | I208: 0 | L208: =IF(AND(ValuesEntered,ISNUMBER($C208)),SUM(E208:H208,J208:K208),"") -> 131227 | O208: =IF(AND(ValuesEntered,ISNUMBER($C208)),D208-F208-J208,"") -> 26315280 | R208: 231
A209: 15 | B209: =ROWS($B$27:B209) -> 183 | C209: =IF(AND(ValuesEntered,R208>0),IF(AND(ISNUMBER(O208),R208>0),EDATE(C208,1),""),"") -> 2032-06-01 | D209: 26315280 | E209: =IF(AND(ValuesEntered,ISNUMBER(C209)),IF($E$19="時間短縮",ROUND(IPMT(VLOOKUP($C209,Rate_table,2,TRUE)/12,1,$R208,$D209)*-1,0),ROUND(IPMT(VLOOKUP($C209,Rate_table,2,TRUE)/12,$B209,DurationOfLoan,LoanAmount-BonusAmount-SUM(extra_payments))*-1,0))+IF($I209=0,0,ROUND(IPMT(VLOOKUP($C209,Rate_table,2,TRUE)/12,COUNTIF($I$27:I209,">0"),DurationofBonus,BonusAmount)*-1,0)),"") -> 32894 | F209: =IF(AND(ValuesEntered,ISNUMBER($C209)),IF($E$19="時間短縮",ROUND(PPMT(VLOOKUP($C209,Rate_table,2,TRUE)/12,1,$R208,$D209)*-1,0),ROUND(PPMT(VLOOKUP($C209,Rate_table,2,TRUE)/12,$B209,DurationOfLoan,LoanAmount-BonusAmount-SUM(extra_payments))*-1,0))+IF(I209=0,0,ROUND(PPMT(VLOOKUP($C209,Rate_table,2,TRUE)/12,COUNTIF($I$27:I209,">0"),DurationofBonus,BonusAmount)*-1,0)),"") -> 98333 | I209: 0 | L209: =IF(AND(ValuesEntered,ISNUMBER($C209)),SUM(E209:H209,J209:K209),"") -> 131227 | O209: =IF(AND(ValuesEntered,ISNUMBER($C209)),D209-F209-J209,"") -> 26216947 | R209: 230
... 237 more rows

Sheet 変動金利設定
B2: 金利設定（変動金利）
B3: ここで設定した金利が、[ 住宅ローン計算シート（変動） ] で計算されます。 まずは下の [ 銀行別 金利メモ ] に、それぞれの銀行の金利を記入しましょう。
B5: 銀行名を入力 | C5: 三井住友
C7: 変動期間 | D7: 通算期間(ヶ月) | E7: 通算期間(年) | F7: 変更日 | G7: 金利(%) | H7: 第1期間金利
C8: 第1期間金利 | D8: 0 | E8: 0 | F8: 2017-04-01 | G8: 0.01 | H8: 三井住友
C9: 第2期間金利 | D9: 60 | E9: 5 | F9: 2022-04-01 | G9: 0.015
C10: 第3期間金利 | D10: 120 | E10: 10 | F10: 2027-04-01 | G10: 0.02
C11: 第4期間金利 | D11: 180 | E11: 15 | F11: 2032-04-01 | G11: 0.025
C12: 第5期間金利 | D12: 240 | E12: 20 | F12: 2037-04-01 | G12: 0.03
C13: 第6期間金利 | D13: 300 | E13: 25 | F13: 2042-04-01 | G13: 0.035
C14: 第7期間金利 | D14: 360 | E14: 30 | F14: 2047-04-01 | G14: 0.04
C15: 第8期間金利 | D15: 420 | E15: 35 | F15: 2052-04-01 | G15: 0.045
B17: 銀行別 金利メモ
B18: 銀行名、金利を入力することで、上記金利設定の「銀行を選ぶ」コンボボックスから、その項目を呼び出すことが出来ます。 ※黄色いセル（赤字）部分が入力箇所です。
B19: 設定 | C19: 銀行名 | D19: 変動期間 | E19: 通算期間(ヶ月) | F19: 通算期間(年) | G19: 変更日 | H19: 金利(%)
C20: 三井住友 | D20: 第1期間金利 | E20: 0 | F20: 0 | G20: 2017-04-01 | H20: 0.01
D21: 第2期間金利 | E21: =IF(F21*12=0,"",F21*12) -> 60 | F21: 5 | G21: =IF(ISERROR(IF($G$20="","",EDATE($G$20,E21)))=TRUE,"",IF($G$20="","",EDATE($G$20,E21))) -> 2022-04-01 | H21: 0.015
D22: 第3期間金利 | E22: 120 | F22: 10 | G22: =IF(ISERROR(IF($G$20="","",EDATE($G$20,E22)))=TRUE,"",IF($G$20="","",EDATE($G$20,E22))) -> 2027-04-01 | H22: 0.02
D23: 第4期間金利 | E23: 180 | F23: 15 | G23: 2032-04-01 | H23: 0.025
D24: 第5期間金利 | E24: 240 | F24: 20 | G24: 2037-04-01 | H24: 0.03
D25: 第6期間金利 | E25: 300 | F25: 25 | G25: 2042-04-01 | H25: 0.035
D26: 第7期間金利 | E26: 360 | F26: 30 | G26: 2047-04-01 | H26: 0.04
D27: 第8期間金利 | E27: 420 | F27: 35 | G27: =IF(ISERROR(IF($G$20="","",EDATE($G$20,E27)))=TRUE,"",IF($G$20="","",EDATE($G$20,E27))) -> 2052-04-01 | H27: 0.045
C28: みずほ | D28: 第1期間金利 | E28: 0 | F28: 0 | G28: 2017-04-01 | H28: 0.01
D29: 第2期間金利 | E29: =IF(F29*12=0,"",F29*12) -> 60 | F29: 5 | G29: =IF(ISERROR(IF($G$28="","",EDATE($G$28,E29)))=TRUE,"",IF($G$28="","",EDATE($G$28,E29))) -> 2022-04-01 | H29: 0.02
D30: 第3期間金利 | E30: 120 | F30: 10 | G30: =IF(ISERROR(IF($G$28="","",EDATE($G$28,E30)))=TRUE,"",IF($G$28="","",EDATE($G$28,E30))) -> 2027-04-01 | H30: 0.03
D31: 第4期間金利 | E31: 180 | F31: 15 | G31: 2032-04-01 | H31: 0.03
D32: 第5期間金利 | E32: 240 | F32: 20 | G32: 2037-04-01 | H32: 0.03
D33: 第6期間金利 | E33: 300 | F33: 25 | G33: 2042-04-01 | H33: 0.03
D34: 第7期間金利 | E34: 360 | F34: 30 | G34: 2047-04-01 | H34: 0.03
D35: 第8期間金利 | E35: 420 | F35: 35 | G35: =IF(ISERROR(IF($G$28="","",EDATE($G$28,E35)))=TRUE,"",IF($G$28="","",EDATE($G$28,E35))) -> 2052-04-01 | H35: 0.03
C36: 三菱東京UFJ | D36: 第1期間金利 | E36: 0 | F36: 0 | G36: 2017-04-01 | H36: 0.01
D37: 第2期間金利 | E37: =IF(F37*12=0,"",F37*12) -> 60 | F37: 5 | G37: =IF(ISERROR(IF($G$36="","",EDATE($G$36,E37)))=TRUE,"",IF($G$36="","",EDATE($G$36,E37))) -> 2022-04-01 | H37: 0.01
D38: 第3期間金利 | G38: =IF(ISERROR(IF($G$36="","",EDATE($G$36,E38)))=TRUE,"",IF($G$36="","",EDATE($G$36,E38))) -> 
D39: 第4期間金利 | G39: =IF(ISERROR(IF($G$28="","",EDATE($G$28,E39)))=TRUE,"",IF($G$28="","",EDATE($G$28,E39))) -> 
D40: 第5期間金利
D41: 第6期間金利
D42: 第7期間金利
D43: 第8期間金利 | G43: =IF(ISERROR(IF($G$28="","",EDATE($G$28,E43)))=TRUE,"",IF($G$28="","",EDATE($G$28,E43))) -> 
C44: りそな | D44: 第1期間金利 | E44: 0 | F44: 0 | G44: 2017-04-01 | H44: 0.01
D45: 第2期間金利 | E45: =IF(F45*12=0,"",F45*12) -> 60 | F45: 5 | G45: =IF(ISERROR(IF($G$44="","",EDATE($G$44,E45)))=TRUE,"",IF($G$44="","",EDATE($G$44,E45))) -> 2022-04-01 | H45: 0.01
D46: 第3期間金利 | G46: =IF(ISERROR(IF($G$44="","",EDATE($G$44,E46)))=TRUE,"",IF($G$44="","",EDATE($G$44,E46))) -> 
D47: 第4期間金利
D48: 第5期間金利
D49: 第6期間金利
D50: 第7期間金利
D51: 第8期間金利
C52: 三菱UFJ信託 | D52: 第1期間金利 | E52: 0 | F52: 0 | G52: 2017-04-01 | H52: 0.01
D53: 第2期間金利 | E53: =IF(F53*12=0,"",F53*12) -> 60 | F53: 5 | G53: =IF(ISERROR(IF($G$52="","",EDATE($G$52,E53)))=TRUE,"",IF($G$52="","",EDATE($G$52,E53))) -> 2022-04-01 | H53: 0.01
D54: 第3期間金利 | G54: =IF(ISERROR(IF($G$52="","",EDATE($G$52,E54)))=TRUE,"",IF($G$52="","",EDATE($G$52,E54))) -> 
D55: 第4期間金利
D56: 第5期間金利
D57: 第6期間金利
D58: 第7期間金利
D59: 第8期間金利
C60: 三井住友信託 | D60: 第1期間金利 | E60: 0 | F60: 0 | G60: 2017-04-01 | H60: 0.01
D61: 第2期間金利 | E61: =IF(F61*12=0,"",F61*12) -> 60 | F61: 5 | G61: =IF(ISERROR(IF($G$60="","",EDATE($G$60,E61)))=TRUE,"",IF($G$60="","",EDATE($G$60,E61))) -> 2022-04-01 | H61: 0.01
D62: 第3期間金利 | G62: =IF(ISERROR(IF($G$60="","",EDATE($G$60,E62)))=TRUE,"",IF($G$60="","",EDATE($G$60,E62))) -> 
D63: 第4期間金利
D64: 第5期間金利
D65: 第6期間金利
D66: 第7期間金利
D67: 第8期間金利
D68: 第1期間金利 | E68: 0 | F68: 0
D69: 第2期間金利 | E69: =IF(F69*12=0,"",F69*12) ->  | G69: =IF(ISERROR(IF($G$68="","",EDATE($G$68,E69)))=TRUE,"",IF($G$68="","",EDATE($G$68,E69))) -> 
D70: 第3期間金利 | G70: =IF(ISERROR(IF($G$68="","",EDATE($G$68,E70)))=TRUE,"",IF($G$68="","",EDATE($G$68,E70))) -> 
D71: 第4期間金利
D72: 第5期間金利
D73: 第6期間金利
D74: 第7期間金利
D75: 第8期間金利
D76: 第1期間金利 | E76: 0 | F76: 0
D77: 第2期間金利 | E77: =IF(F77*12=0,"",F77*12) ->  | G77: =IF(ISERROR(IF($G$76="","",EDATE($G$76,E77)))=TRUE,"",IF($G$76="","",EDATE($G$76,E77))) -> 
D78: 第3期間金利 | G78: =IF(ISERROR(IF($G$76="","",EDATE($G$76,E78)))=TRUE,"",IF($G$76="","",EDATE($G$76,E78))) -> 
D79: 第4期間金利
D80: 第5期間金利
D81: 第6期間金利
D82: 第7期間金利
D83: 第8期間金利
D84: 第1期間金利 | E84: 0 | F84: 0
D85: 第2期間金利 | E85: =IF(F85*12=0,"",F85*12) ->  | G85: =IF(ISERROR(IF($G$84="","",EDATE($G$84,E85)))=TRUE,"",IF($G$84="","",EDATE($G$84,E85))) -> 
D86: 第3期間金利 | G86: =IF(ISERROR(IF($G$84="","",EDATE($G$84,E86)))=TRUE,"",IF($G$84="","",EDATE($G$84,E86))) -> 
D87: 第4期間金利
D88: 第5期間金利
D89: 第6期間金利
D90: 第7期間金利
D91: 第8期間金利
D92: 第1期間金利 | E92: 0 | F92: 0
D93: 第2期間金利 | E93: =IF(F93*12=0,"",F93*12) ->  | G93: =IF(ISERROR(IF($G$92="","",EDATE($G$92,E93)))=TRUE,"",IF($G$92="","",EDATE($G$92,E93))) -> 
D94: 第3期間金利 | G94: =IF(ISERROR(IF($G$92="","",EDATE($G$92,E94)))=TRUE,"",IF($G$92="","",EDATE($G$92,E94))) -> 
D95: 第4期間金利
D96: 第5期間金利
D97: 第6期間金利
D98: 第7期間金利
D99: 第8期間金利

Sheet 住宅ローン計算シート（変動）
B2: 住宅ローン計算シート（変動金利）
B3: 入力項目 | D3: 物件価格 | E3: 50000000 | G3: 基本統計 | I3: 毎月のローン返済額 | K3: =IF(ValuesEntered,IF($E$20="変動金利",IF(ValuesEntered,ROUND(-PMT(InterestRate/12,DurationOfLoan,LoanAmount-BonusAmount),0)),""),0) -> 101623 | M3: オプション | O3: ローン開始日 | Q3: =変動金利設定!F8 -> 2017-04-01
I5: ボーナス月の加算額 | K5: =IF(ValuesEntered,IF($E$20="変動金利",IF(ValuesEntered,ROUND(-PMT(InterestRate/COUNT($E$16:$E$18),DurationofBonus,BonusAmount,0),0)),""),0) -> 237532
D6: 第1期間金利 | E6: =IF($E$20="全期間固定",固定金利設定!$F$6,VLOOKUP(D6,変動金利設定!C8:G15,5,0)) -> 0.01 | Q6: 0.015
I7: ※概算金額ですので実際の金額と異なる場合があります。詳細は銀行へ。
D8: ローン期間 (月) ※最大35年まで | E8: =E10*12 -> 420 | K8: =IF(ValuesEntered,SUM(total_payments),0) -> 68680143
I9: ローン返済額合計 | K9: =IF(ValuesEntered,SUM(E27:H446,J27:J446),0) -> 68680143
D10: ローン期間（年） ※最大35年まで | E10: 35 | Q10: =Q6*E3/12 -> 62500
D12: ローン借入額 | E12: 50000000
I13: 支払利息合計 | K13: =IF(ValuesEntered,SUM(interest),0) -> 15567944 | O13: 銀行名 | Q13: =変動金利設定!H8 -> 三井住友
D15: ボーナス返済額 | E15: 200000 | I15: 繰上げ返済により減少した月数 | K15: =IF(AND(ValuesEntered,$E$19="時間短縮"),DurationOfLoan-COUNTIF(NoPaymentsRemaining,">0")-1,0) -> 0 | O15: 年収負担率 | Q15: =(K9/E10)/(あなたの買える額計算!C12*10000) -> 0.19622898
D16: ボーナス返済月① | E16: 4
D17: ボーナス返済月② | E17: 7 | I17: 繰上げ返済合計 | K17: =IF(ValuesEntered,SUM(extra_payments,),0) -> 200000
D18: ボーナス返済月③
D19: 繰り上げ返済方式 | E19: 返済額軽減 | I19: ボーナス返済・繰り上げ返済で減少した利息 | K19: =IF(ISERROR(IF(ValuesEntered,IF($E$20="変動金利",ROUNDDOWN(CUMIPMT(InterestRate/12,DurationOfLoan,LoanAmount-BonusAmount,1,DurationOfLoan,0)*-1+IF(E15="",0,CUMIPMT(InterestRate/COUNT($E$16:$E$18),DurationofBonus,BonusAmount,1,DurationofBonus,0))*-1-$K$13,0),""),0))=TRUE,"0",IF(ValuesEntered,IF($E$20="変動金利",ROUNDDOWN(CUMIPMT(InterestRate/12,DurationOfLoan,LoanAmount-BonusAmount,1,DurationOfLoan,0)*-1+IF(E15="",0,CUMIPMT(InterestRate/COUNT($E$16:$E$18),DurationofBonus,BonusAmount,1,DurationofBonus,0))*-1-$K$13,0),""),0)) -> -6259103
D20: 金利タイプ | E20: 変動金利
B26: 経過月 | C26: 返済日 | D26: 期首残高 | E26: 利息 | F26: 元金 | I26: ボーナス返済額 | J26: 繰り上げ返済 | L26: 返済額合計 | O26: ローン残高 | R26: 残り月数
A27: =ABS(YEAR($C$27)-YEAR(C27)) -> 0 | B27: =ROWS($B$27:B27) -> 1 | C27: =IF(ValuesEntered,LoanStart,"") -> 2017-04-01 | D27: =$E$12 -> 50000000 | E27: =IF(AND(ValuesEntered,ISNUMBER(C27)),IF($E$19="時間短縮",ROUND(IPMT(VLOOKUP($C27,変動金利設定!$F$8:$G$15,2,TRUE)/12,1,DurationOfLoan,$D27-BonusAmount)*-1,0),ROUND(IPMT(VLOOKUP($C27,変動金利設定!$F$8:$G$15,2,TRUE)/12,$B27,DurationOfLoan,LoanAmount-BonusAmount-SUM(extra_payments))*-1,0))+IF($I27=0,0,ROUND(IPMT(VLOOKUP($C27,変動金利設定!$F$8:$G$15,2,TRUE)/12,COUNTIF($I$27:I27,">0"),DurationofBonus,BonusAmount)*-1,0)),"") -> 41500 | F27: =IF(AND(ValuesEntered,ISNUMBER($C27)),IF($E$19="時間短縮",ROUND(PPMT(VLOOKUP($C27,変動金利設定!$F$8:$G$15,2,TRUE)/12,1,DurationOfLoan,$D27-BonusAmount)*-1,0),ROUND(PPMT(VLOOKUP($C27,変動金利設定!$F$8:$G$15,2,TRUE)/12,$B27,DurationOfLoan,LoanAmount-BonusAmount-SUM(extra_payments))*-1,0))+IF(I27=0,0,ROUND(PPMT(VLOOKUP($C27,変動金利設定!$F$8:$G$15,2,TRUE)/12,COUNTIF($I$27:I27,">0"),DurationofBonus,BonusAmount)*-1,0)),"") -> 265532 | I27: =IF(ISNUMBER(C27)=FALSE,"",IF(AND(D27>$E$15,OR(MONTH(C27)=$E$16,MONTH(C27)=$E$17,MONTH(C27)=$E$18)),$E$15,0)) -> 200000 | L27: =IF(AND(ValuesEntered,ISNUMBER($C27)),SUM(E27:H27,J27:K27),"") -> 307032 | O27: =IF(AND(ValuesEntered,ISNUMBER($C27)),D27-F27-J27,"") -> 49734468 | R27: =IF(AND($J27>0,$E$19="時間短縮"),Remain_Month,DurationOfLoan-1) -> 419
A28: =ABS(YEAR($C$27)-YEAR(C28)) -> 0 | B28: =ROWS($B$27:B28) -> 2 | C28: =IF(AND(ValuesEntered,R27>0),IF(AND(ISNUMBER(O27),R27>0),EDATE(C27,1),""),"") -> 2017-05-01 | D28: =IF(C28="",0,O27) -> 49734468 | E28: =IF(AND(ValuesEntered,ISNUMBER(C28)),IF($E$19="時間短縮",ROUND(IPMT(VLOOKUP($C28,変動金利設定!$F$8:$G$15,2,TRUE)/12,1,$R27,$D28)*-1,0),ROUND(IPMT(VLOOKUP($C28,変動金利設定!$F$8:$G$15,2,TRUE)/12,$B28,DurationOfLoan,LoanAmount-BonusAmount-SUM(extra_payments))*-1,0))+IF($I28=0,0,ROUND(IPMT(VLOOKUP($C28,変動金利設定!$F$8:$G$15,2,TRUE)/12,COUNTIF($I$27:I28,">0"),DurationofBonus,BonusAmount)*-1,0)),"") -> 29774 | F28: =IF(AND(ValuesEntered,ISNUMBER($C28)),IF($E$19="時間短縮",ROUND(PPMT(VLOOKUP($C28,変動金利設定!$F$8:$G$15,2,TRUE)/12,1,$R27,$D28)*-1,0),ROUND(PPMT(VLOOKUP($C28,変動金利設定!$F$8:$G$15,2,TRUE)/12,$B28,DurationOfLoan,LoanAmount-BonusAmount-SUM(extra_payments))*-1,0))+IF(I28=0,0,ROUND(PPMT(VLOOKUP($C28,変動金利設定!$F$8:$G$15,2,TRUE)/12,COUNTIF($I$27:I28,">0"),DurationofBonus,BonusAmount)*-1,0)),"") -> 71284 | I28: 0 | L28: =IF(AND(ValuesEntered,ISNUMBER($C28)),SUM(E28:H28,J28:K28),"") -> 101058 | O28: =IF(AND(ValuesEntered,ISNUMBER($C28)),D28-F28-J28,"") -> 49663184 | R28: =IF(AND($J28>0,$E$19="時間短縮"),Remain_Month,$R27-1) -> 418
A29: 0 | B29: =ROWS($B$27:B29) -> 3 | C29: =IF(AND(ValuesEntered,R28>0),IF(AND(ISNUMBER(O28),R28>0),EDATE(C28,1),""),"") -> 2017-06-01 | D29: 49663184 | E29: =IF(AND(ValuesEntered,ISNUMBER(C29)),IF($E$19="時間短縮",ROUND(IPMT(VLOOKUP($C29,変動金利設定!$F$8:$G$15,2,TRUE)/12,1,$R28,$D29)*-1,0),ROUND(IPMT(VLOOKUP($C29,変動金利設定!$F$8:$G$15,2,TRUE)/12,$B29,DurationOfLoan,LoanAmount-BonusAmount-SUM(extra_payments))*-1,0))+IF($I29=0,0,ROUND(IPMT(VLOOKUP($C29,変動金利設定!$F$8:$G$15,2,TRUE)/12,COUNTIF($I$27:I29,">0"),DurationofBonus,BonusAmount)*-1,0)),"") -> 29715 | F29: =IF(AND(ValuesEntered,ISNUMBER($C29)),IF($E$19="時間短縮",ROUND(PPMT(VLOOKUP($C29,変動金利設定!$F$8:$G$15,2,TRUE)/12,1,$R28,$D29)*-1,0),ROUND(PPMT(VLOOKUP($C29,変動金利設定!$F$8:$G$15,2,TRUE)/12,$B29,DurationOfLoan,LoanAmount-BonusAmount-SUM(extra_payments))*-1,0))+IF(I29=0,0,ROUND(PPMT(VLOOKUP($C29,変動金利設定!$F$8:$G$15,2,TRUE)/12,COUNTIF($I$27:I29,">0"),DurationofBonus,BonusAmount)*-1,0)),"") -> 71344 | I29: 0 | L29: =IF(AND(ValuesEntered,ISNUMBER($C29)),SUM(E29:H29,J29:K29),"") -> 101059 | O29: =IF(AND(ValuesEntered,ISNUMBER($C29)),D29-F29-J29,"") -> 49591840 | R29: 417
A30: 0 | B30: =ROWS($B$27:B30) -> 4 | C30: =IF(AND(ValuesEntered,R29>0),IF(AND(ISNUMBER(O29),R29>0),EDATE(C29,1),""),"") -> 2017-07-01 | D30: 49591840 | E30: =IF(AND(ValuesEntered,ISNUMBER(C30)),IF($E$19="時間短縮",ROUND(IPMT(VLOOKUP($C30,変動金利設定!$F$8:$G$15,2,TRUE)/12,1,$R29,$D30)*-1,0),ROUND(IPMT(VLOOKUP($C30,変動金利設定!$F$8:$G$15,2,TRUE)/12,$B30,DurationOfLoan,LoanAmount-BonusAmount-SUM(extra_payments))*-1,0))+IF($I30=0,0,ROUND(IPMT(VLOOKUP($C30,変動金利設定!$F$8:$G$15,2,TRUE)/12,COUNTIF($I$27:I30,">0"),DurationofBonus,BonusAmount)*-1,0)),"") -> 41160 | F30: =IF(AND(ValuesEntered,ISNUMBER($C30)),IF($E$19="時間短縮",ROUND(PPMT(VLOOKUP($C30,変動金利設定!$F$8:$G$15,2,TRUE)/12,1,$R29,$D30)*-1,0),ROUND(PPMT(VLOOKUP($C30,変動金利設定!$F$8:$G$15,2,TRUE)/12,$B30,DurationOfLoan,LoanAmount-BonusAmount-SUM(extra_payments))*-1,0))+IF(I30=0,0,ROUND(PPMT(VLOOKUP($C30,変動金利設定!$F$8:$G$15,2,TRUE)/12,COUNTIF($I$27:I30,">0"),DurationofBonus,BonusAmount)*-1,0)),"") -> 265872 | I30: 200000 | J30: 200000 | L30: =IF(AND(ValuesEntered,ISNUMBER($C30)),SUM(E30:H30,J30:K30),"") -> 507032 | O30: =IF(AND(ValuesEntered,ISNUMBER($C30)),D30-F30-J30,"") -> 49125968 | R30: 416
A31: 0 | B31: =ROWS($B$27:B31) -> 5 | C31: =IF(AND(ValuesEntered,R30>0),IF(AND(ISNUMBER(O30),R30>0),EDATE(C30,1),""),"") -> 2017-08-01 | D31: 49125968 | E31: =IF(AND(ValuesEntered,ISNUMBER(C31)),IF($E$19="時間短縮",ROUND(IPMT(VLOOKUP($C31,変動金利設定!$F$8:$G$15,2,TRUE)/12,1,$R30,$D31)*-1,0),ROUND(IPMT(VLOOKUP($C31,変動金利設定!$F$8:$G$15,2,TRUE)/12,$B31,DurationOfLoan,LoanAmount-BonusAmount-SUM(extra_payments))*-1,0))+IF($I31=0,0,ROUND(IPMT(VLOOKUP($C31,変動金利設定!$F$8:$G$15,2,TRUE)/12,COUNTIF($I$27:I31,">0"),DurationofBonus,BonusAmount)*-1,0)),"") -> 29596 | F31: =IF(AND(ValuesEntered,ISNUMBER($C31)),IF($E$19="時間短縮",ROUND(PPMT(VLOOKUP($C31,変動金利設定!$F$8:$G$15,2,TRUE)/12,1,$R30,$D31)*-1,0),ROUND(PPMT(VLOOKUP($C31,変動金利設定!$F$8:$G$15,2,TRUE)/12,$B31,DurationOfLoan,LoanAmount-BonusAmount-SUM(extra_payments))*-1,0))+IF(I31=0,0,ROUND(PPMT(VLOOKUP($C31,変動金利設定!$F$8:$G$15,2,TRUE)/12,COUNTIF($I$27:I31,">0"),DurationofBonus,BonusAmount)*-1,0)),"") -> 71463 | I31: 0 | L31: =IF(AND(ValuesEntered,ISNUMBER($C31)),SUM(E31:H31,J31:K31),"") -> 101059 | O31: =IF(AND(ValuesEntered,ISNUMBER($C31)),D31-F31-J31,"") -> 49054505 | R31: 415
A32: 0 | B32: =ROWS($B$27:B32) -> 6 | C32: =IF(AND(ValuesEntered,R31>0),IF(AND(ISNUMBER(O31),R31>0),EDATE(C31,1),""),"") -> 2017-09-01 | D32: 49054505 | E32: =IF(AND(ValuesEntered,ISNUMBER(C32)),IF($E$19="時間短縮",ROUND(IPMT(VLOOKUP($C32,変動金利設定!$F$8:$G$15,2,TRUE)/12,1,$R31,$D32)*-1,0),ROUND(IPMT(VLOOKUP($C32,変動金利設定!$F$8:$G$15,2,TRUE)/12,$B32,DurationOfLoan,LoanAmount-BonusAmount-SUM(extra_payments))*-1,0))+IF($I32=0,0,ROUND(IPMT(VLOOKUP($C32,変動金利設定!$F$8:$G$15,2,TRUE)/12,COUNTIF($I$27:I32,">0"),DurationofBonus,BonusAmount)*-1,0)),"") -> 29536 | F32: =IF(AND(ValuesEntered,ISNUMBER($C32)),IF($E$19="時間短縮",ROUND(PPMT(VLOOKUP($C32,変動金利設定!$F$8:$G$15,2,TRUE)/12,1,$R31,$D32)*-1,0),ROUND(PPMT(VLOOKUP($C32,変動金利設定!$F$8:$G$15,2,TRUE)/12,$B32,DurationOfLoan,LoanAmount-BonusAmount-SUM(extra_payments))*-1,0))+IF(I32=0,0,ROUND(PPMT(VLOOKUP($C32,変動金利設定!$F$8:$G$15,2,TRUE)/12,COUNTIF($I$27:I32,">0"),DurationofBonus,BonusAmount)*-1,0)),"") -> 71522 | I32: 0 | L32: =IF(AND(ValuesEntered,ISNUMBER($C32)),SUM(E32:H32,J32:K32),"") -> 101058 | O32: =IF(AND(ValuesEntered,ISNUMBER($C32)),D32-F32-J32,"") -> 48982983 | R32: 414
A33: 0 | B33: =ROWS($B$27:B33) -> 7 | C33: =IF(AND(ValuesEntered,R32>0),IF(AND(ISNUMBER(O32),R32>0),EDATE(C32,1),""),"") -> 2017-10-01 | D33: 48982983 | E33: =IF(AND(ValuesEntered,ISNUMBER(C33)),IF($E$19="時間短縮",ROUND(IPMT(VLOOKUP($C33,変動金利設定!$F$8:$G$15,2,TRUE)/12,1,$R32,$D33)*-1,0),ROUND(IPMT(VLOOKUP($C33,変動金利設定!$F$8:$G$15,2,TRUE)/12,$B33,DurationOfLoan,LoanAmount-BonusAmount-SUM(extra_payments))*-1,0))+IF($I33=0,0,ROUND(IPMT(VLOOKUP($C33,変動金利設定!$F$8:$G$15,2,TRUE)/12,COUNTIF($I$27:I33,">0"),DurationofBonus,BonusAmount)*-1,0)),"") -> 29476 | F33: =IF(AND(ValuesEntered,ISNUMBER($C33)),IF($E$19="時間短縮",ROUND(PPMT(VLOOKUP($C33,変動金利設定!$F$8:$G$15,2,TRUE)/12,1,$R32,$D33)*-1,0),ROUND(PPMT(VLOOKUP($C33,変動金利設定!$F$8:$G$15,2,TRUE)/12,$B33,DurationOfLoan,LoanAmount-BonusAmount-SUM(extra_payments))*-1,0))+IF(I33=0,0,ROUND(PPMT(VLOOKUP($C33,変動金利設定!$F$8:$G$15,2,TRUE)/12,COUNTIF($I$27:I33,">0"),DurationofBonus,BonusAmount)*-1,0)),"") -> 71582 | I33: 0 | L33: =IF(AND(ValuesEntered,ISNUMBER($C33)),SUM(E33:H33,J33:K33),"") -> 101058 | O33: =IF(AND(ValuesEntered,ISNUMBER($C33)),D33-F33-J33,"") -> 48911401 | R33: 413
A34: 0 | B34: =ROWS($B$27:B34) -> 8 | C34: =IF(AND(ValuesEntered,R33>0),IF(AND(ISNUMBER(O33),R33>0),EDATE(C33,1),""),"") -> 2017-11-01 | D34: 48911401 | E34: =IF(AND(ValuesEntered,ISNUMBER(C34)),IF($E$19="時間短縮",ROUND(IPMT(VLOOKUP($C34,変動金利設定!$F$8:$G$15,2,TRUE)/12,1,$R33,$D34)*-1,0),ROUND(IPMT(VLOOKUP($C34,変動金利設定!$F$8:$G$15,2,TRUE)/12,$B34,DurationOfLoan,LoanAmount-BonusAmount-SUM(extra_payments))*-1,0))+IF($I34=0,0,ROUND(IPMT(VLOOKUP($C34,変動金利設定!$F$8:$G$15,2,TRUE)/12,COUNTIF($I$27:I34,">0"),DurationofBonus,BonusAmount)*-1,0)),"") -> 29417 | F34: =IF(AND(ValuesEntered,ISNUMBER($C34)),IF($E$19="時間短縮",ROUND(PPMT(VLOOKUP($C34,変動金利設定!$F$8:$G$15,2,TRUE)/12,1,$R33,$D34)*-1,0),ROUND(PPMT(VLOOKUP($C34,変動金利設定!$F$8:$G$15,2,TRUE)/12,$B34,DurationOfLoan,LoanAmount-BonusAmount-SUM(extra_payments))*-1,0))+IF(I34=0,0,ROUND(PPMT(VLOOKUP($C34,変動金利設定!$F$8:$G$15,2,TRUE)/12,COUNTIF($I$27:I34,">0"),DurationofBonus,BonusAmount)*-1,0)),"") -> 71641 | I34: 0 | L34: =IF(AND(ValuesEntered,ISNUMBER($C34)),SUM(E34:H34,J34:K34),"") -> 101058 | O34: =IF(AND(ValuesEntered,ISNUMBER($C34)),D34-F34-J34,"") -> 48839760 | R34: 412
A35: 0 | B35: =ROWS($B$27:B35) -> 9 | C35: =IF(AND(ValuesEntered,R34>0),IF(AND(ISNUMBER(O34),R34>0),EDATE(C34,1),""),"") -> 2017-12-01 | D35: 48839760 | E35: =IF(AND(ValuesEntered,ISNUMBER(C35)),IF($E$19="時間短縮",ROUND(IPMT(VLOOKUP($C35,変動金利設定!$F$8:$G$15,2,TRUE)/12,1,$R34,$D35)*-1,0),ROUND(IPMT(VLOOKUP($C35,変動金利設定!$F$8:$G$15,2,TRUE)/12,$B35,DurationOfLoan,LoanAmount-BonusAmount-SUM(extra_payments))*-1,0))+IF($I35=0,0,ROUND(IPMT(VLOOKUP($C35,変動金利設定!$F$8:$G$15,2,TRUE)/12,COUNTIF($I$27:I35,">0"),DurationofBonus,BonusAmount)*-1,0)),"") -> 29357 | F35: =IF(AND(ValuesEntered,ISNUMBER($C35)),IF($E$19="時間短縮",ROUND(PPMT(VLOOKUP($C35,変動金利設定!$F$8:$G$15,2,TRUE)/12,1,$R34,$D35)*-1,0),ROUND(PPMT(VLOOKUP($C35,変動金利設定!$F$8:$G$15,2,TRUE)/12,$B35,DurationOfLoan,LoanAmount-BonusAmount-SUM(extra_payments))*-1,0))+IF(I35=0,0,ROUND(PPMT(VLOOKUP($C35,変動金利設定!$F$8:$G$15,2,TRUE)/12,COUNTIF($I$27:I35,">0"),DurationofBonus,BonusAmount)*-1,0)),"") -> 71701 | I35: 0 | L35: =IF(AND(ValuesEntered,ISNUMBER($C35)),SUM(E35:H35,J35:K35),"") -> 101058 | O35: =IF(AND(ValuesEntered,ISNUMBER($C35)),D35-F35-J35,"") -> 48768059 | R35: 411
A36: 1 | B36: =ROWS($B$27:B36) -> 10 | C36: =IF(AND(ValuesEntered,R35>0),IF(AND(ISNUMBER(O35),R35>0),EDATE(C35,1),""),"") -> 2018-01-01 | D36: 48768059 | E36: =IF(AND(ValuesEntered,ISNUMBER(C36)),IF($E$19="時間短縮",ROUND(IPMT(VLOOKUP($C36,変動金利設定!$F$8:$G$15,2,TRUE)/12,1,$R35,$D36)*-1,0),ROUND(IPMT(VLOOKUP($C36,変動金利設定!$F$8:$G$15,2,TRUE)/12,$B36,DurationOfLoan,LoanAmount-BonusAmount-SUM(extra_payments))*-1,0))+IF($I36=0,0,ROUND(IPMT(VLOOKUP($C36,変動金利設定!$F$8:$G$15,2,TRUE)/12,COUNTIF($I$27:I36,">0"),DurationofBonus,BonusAmount)*-1,0)),"") -> 29297 | F36: =IF(AND(ValuesEntered,ISNUMBER($C36)),IF($E$19="時間短縮",ROUND(PPMT(VLOOKUP($C36,変動金利設定!$F$8:$G$15,2,TRUE)/12,1,$R35,$D36)*-1,0),ROUND(PPMT(VLOOKUP($C36,変動金利設定!$F$8:$G$15,2,TRUE)/12,$B36,DurationOfLoan,LoanAmount-BonusAmount-SUM(extra_payments))*-1,0))+IF(I36=0,0,ROUND(PPMT(VLOOKUP($C36,変動金利設定!$F$8:$G$15,2,TRUE)/12,COUNTIF($I$27:I36,">0"),DurationofBonus,BonusAmount)*-1,0)),"") -> 71761 | I36: 0 | L36: =IF(AND(ValuesEntered,ISNUMBER($C36)),SUM(E36:H36,J36:K36),"") -> 101058 | O36: =IF(AND(ValuesEntered,ISNUMBER($C36)),D36-F36-J36,"") -> 48696298 | R36: 410
A37: 1 | B37: =ROWS($B$27:B37) -> 11 | C37: =IF(AND(ValuesEntered,R36>0),IF(AND(ISNUMBER(O36),R36>0),EDATE(C36,1),""),"") -> 2018-02-01 | D37: 48696298 | E37: =IF(AND(ValuesEntered,ISNUMBER(C37)),IF($E$19="時間短縮",ROUND(IPMT(VLOOKUP($C37,変動金利設定!$F$8:$G$15,2,TRUE)/12,1,$R36,$D37)*-1,0),ROUND(IPMT(VLOOKUP($C37,変動金利設定!$F$8:$G$15,2,TRUE)/12,$B37,DurationOfLoan,LoanAmount-BonusAmount-SUM(extra_payments))*-1,0))+IF($I37=0,0,ROUND(IPMT(VLOOKUP($C37,変動金利設定!$F$8:$G$15,2,TRUE)/12,COUNTIF($I$27:I37,">0"),DurationofBonus,BonusAmount)*-1,0)),"") -> 29238 | F37: =IF(AND(ValuesEntered,ISNUMBER($C37)),IF($E$19="時間短縮",ROUND(PPMT(VLOOKUP($C37,変動金利設定!$F$8:$G$15,2,TRUE)/12,1,$R36,$D37)*-1,0),ROUND(PPMT(VLOOKUP($C37,変動金利設定!$F$8:$G$15,2,TRUE)/12,$B37,DurationOfLoan,LoanAmount-BonusAmount-SUM(extra_payments))*-1,0))+IF(I37=0,0,ROUND(PPMT(VLOOKUP($C37,変動金利設定!$F$8:$G$15,2,TRUE)/12,COUNTIF($I$27:I37,">0"),DurationofBonus,BonusAmount)*-1,0)),"") -> 71821 | I37: 0 | L37: =IF(AND(ValuesEntered,ISNUMBER($C37)),SUM(E37:H37,J37:K37),"") -> 101059 | O37: =IF(AND(ValuesEntered,ISNUMBER($C37)),D37-F37-J37,"") -> 48624477 | R37: 409
A38: 1 | B38: =ROWS($B$27:B38) -> 12 | C38: =IF(AND(ValuesEntered,R37>0),IF(AND(ISNUMBER(O37),R37>0),EDATE(C37,1),""),"") -> 2018-03-01 | D38: 48624477 | E38: =IF(AND(ValuesEntered,ISNUMBER(C38)),IF($E$19="時間短縮",ROUND(IPMT(VLOOKUP($C38,変動金利設定!$F$8:$G$15,2,TRUE)/12,1,$R37,$D38)*-1,0),ROUND(IPMT(VLOOKUP($C38,変動金利設定!$F$8:$G$15,2,TRUE)/12,$B38,DurationOfLoan,LoanAmount-BonusAmount-SUM(extra_payments))*-1,0))+IF($I38=0,0,ROUND(IPMT(VLOOKUP($C38,変動金利設定!$F$8:$G$15,2,TRUE)/12,COUNTIF($I$27:I38,">0"),DurationofBonus,BonusAmount)*-1,0)),"") -> 29178 | F38: =IF(AND(ValuesEntered,ISNUMBER($C38)),IF($E$19="時間短縮",ROUND(PPMT(VLOOKUP($C38,変動金利設定!$F$8:$G$15,2,TRUE)/12,1,$R37,$D38)*-1,0),ROUND(PPMT(VLOOKUP($C38,変動金利設定!$F$8:$G$15,2,TRUE)/12,$B38,DurationOfLoan,LoanAmount-BonusAmount-SUM(extra_payments))*-1,0))+IF(I38=0,0,ROUND(PPMT(VLOOKUP($C38,変動金利設定!$F$8:$G$15,2,TRUE)/12,COUNTIF($I$27:I38,">0"),DurationofBonus,BonusAmount)*-1,0)),"") -> 71881 | I38: 0 | L38: =IF(AND(ValuesEntered,ISNUMBER($C38)),SUM(E38:H38,J38:K38),"") -> 101059 | O38: =IF(AND(ValuesEntered,ISNUMBER($C38)),D38-F38-J38,"") -> 48552596 | R38: 408
A39: 1 | B39: =ROWS($B$27:B39) -> 13 | C39: =IF(AND(ValuesEntered,R38>0),IF(AND(ISNUMBER(O38),R38>0),EDATE(C38,1),""),"") -> 2018-04-01 | D39: 48552596 | E39: =IF(AND(ValuesEntered,ISNUMBER(C39)),IF($E$19="時間短縮",ROUND(IPMT(VLOOKUP($C39,変動金利設定!$F$8:$G$15,2,TRUE)/12,1,$R38,$D39)*-1,0),ROUND(IPMT(VLOOKUP($C39,変動金利設定!$F$8:$G$15,2,TRUE)/12,$B39,DurationOfLoan,LoanAmount-BonusAmount-SUM(extra_payments))*-1,0))+IF($I39=0,0,ROUND(IPMT(VLOOKUP($C39,変動金利設定!$F$8:$G$15,2,TRUE)/12,COUNTIF($I$27:I39,">0"),DurationofBonus,BonusAmount)*-1,0)),"") -> 40461 | F39: =IF(AND(ValuesEntered,ISNUMBER($C39)),IF($E$19="時間短縮",ROUND(PPMT(VLOOKUP($C39,変動金利設定!$F$8:$G$15,2,TRUE)/12,1,$R38,$D39)*-1,0),ROUND(PPMT(VLOOKUP($C39,変動金利設定!$F$8:$G$15,2,TRUE)/12,$B39,DurationOfLoan,LoanAmount-BonusAmount-SUM(extra_payments))*-1,0))+IF(I39=0,0,ROUND(PPMT(VLOOKUP($C39,変動金利設定!$F$8:$G$15,2,TRUE)/12,COUNTIF($I$27:I39,">0"),DurationofBonus,BonusAmount)*-1,0)),"") -> 266571 | I39: 200000 | L39: =IF(AND(ValuesEntered,ISNUMBER($C39)),SUM(E39:H39,J39:K39),"") -> 307032 | O39: =IF(AND(ValuesEntered,ISNUMBER($C39)),D39-F39-J39,"") -> 48286025 | R39: 407
A40: 1 | B40: =ROWS($B$27:B40) -> 14 | C40: =IF(AND(ValuesEntered,R39>0),IF(AND(ISNUMBER(O39),R39>0),EDATE(C39,1),""),"") -> 2018-05-01 | D40: 48286025 | E40: =IF(AND(ValuesEntered,ISNUMBER(C40)),IF($E$19="時間短縮",ROUND(IPMT(VLOOKUP($C40,変動金利設定!$F$8:$G$15,2,TRUE)/12,1,$R39,$D40)*-1,0),ROUND(IPMT(VLOOKUP($C40,変動金利設定!$F$8:$G$15,2,TRUE)/12,$B40,DurationOfLoan,LoanAmount-BonusAmount-SUM(extra_payments))*-1,0))+IF($I40=0,0,ROUND(IPMT(VLOOKUP($C40,変動金利設定!$F$8:$G$15,2,TRUE)/12,COUNTIF($I$27:I40,">0"),DurationofBonus,BonusAmount)*-1,0)),"") -> 29058 | F40: =IF(AND(ValuesEntered,ISNUMBER($C40)),IF($E$19="時間短縮",ROUND(PPMT(VLOOKUP($C40,変動金利設定!$F$8:$G$15,2,TRUE)/12,1,$R39,$D40)*-1,0),ROUND(PPMT(VLOOKUP($C40,変動金利設定!$F$8:$G$15,2,TRUE)/12,$B40,DurationOfLoan,LoanAmount-BonusAmount-SUM(extra_payments))*-1,0))+IF(I40=0,0,ROUND(PPMT(VLOOKUP($C40,変動金利設定!$F$8:$G$15,2,TRUE)/12,COUNTIF($I$27:I40,">0"),DurationofBonus,BonusAmount)*-1,0)),"") -> 72000 | I40: 0 | L40: =IF(AND(ValuesEntered,ISNUMBER($C40)),SUM(E40:H40,J40:K40),"") -> 101058 | O40: =IF(AND(ValuesEntered,ISNUMBER($C40)),D40-F40-J40,"") -> 48214025 | R40: 406
A41: 1 | B41: =ROWS($B$27:B41) -> 15 | C41: =IF(AND(ValuesEntered,R40>0),IF(AND(ISNUMBER(O40),R40>0),EDATE(C40,1),""),"") -> 2018-06-01 | D41: 48214025 | E41: =IF(AND(ValuesEntered,ISNUMBER(C41)),IF($E$19="時間短縮",ROUND(IPMT(VLOOKUP($C41,変動金利設定!$F$8:$G$15,2,TRUE)/12,1,$R40,$D41)*-1,0),ROUND(IPMT(VLOOKUP($C41,変動金利設定!$F$8:$G$15,2,TRUE)/12,$B41,DurationOfLoan,LoanAmount-BonusAmount-SUM(extra_payments))*-1,0))+IF($I41=0,0,ROUND(IPMT(VLOOKUP($C41,変動金利設定!$F$8:$G$15,2,TRUE)/12,COUNTIF($I$27:I41,">0"),DurationofBonus,BonusAmount)*-1,0)),"") -> 28998 | F41: =IF(AND(ValuesEntered,ISNUMBER($C41)),IF($E$19="時間短縮",ROUND(PPMT(VLOOKUP($C41,変動金利設定!$F$8:$G$15,2,TRUE)/12,1,$R40,$D41)*-1,0),ROUND(PPMT(VLOOKUP($C41,変動金利設定!$F$8:$G$15,2,TRUE)/12,$B41,DurationOfLoan,LoanAmount-BonusAmount-SUM(extra_payments))*-1,0))+IF(I41=0,0,ROUND(PPMT(VLOOKUP($C41,変動金利設定!$F$8:$G$15,2,TRUE)/12,COUNTIF($I$27:I41,">0"),DurationofBonus,BonusAmount)*-1,0)),"") -> 72060 | I41: 0 | L41: =IF(AND(ValuesEntered,ISNUMBER($C41)),SUM(E41:H41,J41:K41),"") -> 101058 | O41: =IF(AND(ValuesEntered,ISNUMBER($C41)),D41-F41-J41,"") -> 48141965 | R41: 405
A42: 1 | B42: =ROWS($B$27:B42) -> 16 | C42: =IF(AND(ValuesEntered,R41>0),IF(AND(ISNUMBER(O41),R41>0),EDATE(C41,1),""),"") -> 2018-07-01 | D42: 48141965 | E42: =IF(AND(ValuesEntered,ISNUMBER(C42)),IF($E$19="時間短縮",ROUND(IPMT(VLOOKUP($C42,変動金利設定!$F$8:$G$15,2,TRUE)/12,1,$R41,$D42)*-1,0),ROUND(IPMT(VLOOKUP($C42,変動金利設定!$F$8:$G$15,2,TRUE)/12,$B42,DurationOfLoan,LoanAmount-BonusAmount-SUM(extra_payments))*-1,0))+IF($I42=0,0,ROUND(IPMT(VLOOKUP($C42,変動金利設定!$F$8:$G$15,2,TRUE)/12,COUNTIF($I$27:I42,">0"),DurationofBonus,BonusAmount)*-1,0)),"") -> 40118 | F42: =IF(AND(ValuesEntered,ISNUMBER($C42)),IF($E$19="時間短縮",ROUND(PPMT(VLOOKUP($C42,変動金利設定!$F$8:$G$15,2,TRUE)/12,1,$R41,$D42)*-1,0),ROUND(PPMT(VLOOKUP($C42,変動金利設定!$F$8:$G$15,2,TRUE)/12,$B42,DurationOfLoan,LoanAmount-BonusAmount-SUM(extra_payments))*-1,0))+IF(I42=0,0,ROUND(PPMT(VLOOKUP($C42,変動金利設定!$F$8:$G$15,2,TRUE)/12,COUNTIF($I$27:I42,">0"),DurationofBonus,BonusAmount)*-1,0)),"") -> 266913 | I42: 200000 | L42: =IF(AND(ValuesEntered,ISNUMBER($C42)),SUM(E42:H42,J42:K42),"") -> 307031 | O42: =IF(AND(ValuesEntered,ISNUMBER($C42)),D42-F42-J42,"") -> 47875052 | R42: 404
A43: 1 | B43: =ROWS($B$27:B43) -> 17 | C43: =IF(AND(ValuesEntered,R42>0),IF(AND(ISNUMBER(O42),R42>0),EDATE(C42,1),""),"") -> 2018-08-01 | D43: 47875052 | E43: =IF(AND(ValuesEntered,ISNUMBER(C43)),IF($E$19="時間短縮",ROUND(IPMT(VLOOKUP($C43,変動金利設定!$F$8:$G$15,2,TRUE)/12,1,$R42,$D43)*-1,0),ROUND(IPMT(VLOOKUP($C43,変動金利設定!$F$8:$G$15,2,TRUE)/12,$B43,DurationOfLoan,LoanAmount-BonusAmount-SUM(extra_payments))*-1,0))+IF($I43=0,0,ROUND(IPMT(VLOOKUP($C43,変動金利設定!$F$8:$G$15,2,TRUE)/12,COUNTIF($I$27:I43,">0"),DurationofBonus,BonusAmount)*-1,0)),"") -> 28878 | F43: =IF(AND(ValuesEntered,ISNUMBER($C43)),IF($E$19="時間短縮",ROUND(PPMT(VLOOKUP($C43,変動金利設定!$F$8:$G$15,2,TRUE)/12,1,$R42,$D43)*-1,0),ROUND(PPMT(VLOOKUP($C43,変動金利設定!$F$8:$G$15,2,TRUE)/12,$B43,DurationOfLoan,LoanAmount-BonusAmount-SUM(extra_payments))*-1,0))+IF(I43=0,0,ROUND(PPMT(VLOOKUP($C43,変動金利設定!$F$8:$G$15,2,TRUE)/12,COUNTIF($I$27:I43,">0"),DurationofBonus,BonusAmount)*-1,0)),"") -> 72181 | I43: 0 | L43: =IF(AND(ValuesEntered,ISNUMBER($C43)),SUM(E43:H43,J43:K43),"") -> 101059 | O43: =IF(AND(ValuesEntered,ISNUMBER($C43)),D43-F43-J43,"") -> 47802871 | R43: 403
A44: 1 | B44: =ROWS($B$27:B44) -> 18 | C44: =IF(AND(ValuesEntered,R43>0),IF(AND(ISNUMBER(O43),R43>0),EDATE(C43,1),""),"") -> 2018-09-01 | D44: 47802871 | E44: =IF(AND(ValuesEntered,ISNUMBER(C44)),IF($E$19="時間短縮",ROUND(IPMT(VLOOKUP($C44,変動金利設定!$F$8:$G$15,2,TRUE)/12,1,$R43,$D44)*-1,0),ROUND(IPMT(VLOOKUP($C44,変動金利設定!$F$8:$G$15,2,TRUE)/12,$B44,DurationOfLoan,LoanAmount-BonusAmount-SUM(extra_payments))*-1,0))+IF($I44=0,0,ROUND(IPMT(VLOOKUP($C44,変動金利設定!$F$8:$G$15,2,TRUE)/12,COUNTIF($I$27:I44,">0"),DurationofBonus,BonusAmount)*-1,0)),"") -> 28818 | F44: =IF(AND(ValuesEntered,ISNUMBER($C44)),IF($E$19="時間短縮",ROUND(PPMT(VLOOKUP($C44,変動金利設定!$F$8:$G$15,2,TRUE)/12,1,$R43,$D44)*-1,0),ROUND(PPMT(VLOOKUP($C44,変動金利設定!$F$8:$G$15,2,TRUE)/12,$B44,DurationOfLoan,LoanAmount-BonusAmount-SUM(extra_payments))*-1,0))+IF(I44=0,0,ROUND(PPMT(VLOOKUP($C44,変動金利設定!$F$8:$G$15,2,TRUE)/12,COUNTIF($I$27:I44,">0"),DurationofBonus,BonusAmount)*-1,0)),"") -> 72241 | I44: 0 | L44: =IF(AND(ValuesEntered,ISNUMBER($C44)),SUM(E44:H44,J44:K44),"") -> 101059 | O44: =IF(AND(ValuesEntered,ISNUMBER($C44)),D44-F44-J44,"") -> 47730630 | R44: 402
A45: 1 | B45: =ROWS($B$27:B45) -> 19 | C45: =IF(AND(ValuesEntered,R44>0),IF(AND(ISNUMBER(O44),R44>0),EDATE(C44,1),""),"") -> 2018-10-01 | D45: 47730630 | E45: =IF(AND(ValuesEntered,ISNUMBER(C45)),IF($E$19="時間短縮",ROUND(IPMT(VLOOKUP($C45,変動金利設定!$F$8:$G$15,2,TRUE)/12,1,$R44,$D45)*-1,0),ROUND(IPMT(VLOOKUP($C45,変動金利設定!$F$8:$G$15,2,TRUE)/12,$B45,DurationOfLoan,LoanAmount-BonusAmount-SUM(extra_payments))*-1,0))+IF($I45=0,0,ROUND(IPMT(VLOOKUP($C45,変動金利設定!$F$8:$G$15,2,TRUE)/12,COUNTIF($I$27:I45,">0"),DurationofBonus,BonusAmount)*-1,0)),"") -> 28757 | F45: =IF(AND(ValuesEntered,ISNUMBER($C45)),IF($E$19="時間短縮",ROUND(PPMT(VLOOKUP($C45,変動金利設定!$F$8:$G$15,2,TRUE)/12,1,$R44,$D45)*-1,0),ROUND(PPMT(VLOOKUP($C45,変動金利設定!$F$8:$G$15,2,TRUE)/12,$B45,DurationOfLoan,LoanAmount-BonusAmount-SUM(extra_payments))*-1,0))+IF(I45=0,0,ROUND(PPMT(VLOOKUP($C45,変動金利設定!$F$8:$G$15,2,TRUE)/12,COUNTIF($I$27:I45,">0"),DurationofBonus,BonusAmount)*-1,0)),"") -> 72301 | I45: 0 | L45: =IF(AND(ValuesEntered,ISNUMBER($C45)),SUM(E45:H45,J45:K45),"") -> 101058 | O45: =IF(AND(ValuesEntered,ISNUMBER($C45)),D45-F45-J45,"") -> 47658329 | R45: 401
A46: 1 | B46: =ROWS($B$27:B46) -> 20 | C46: =IF(AND(ValuesEntered,R45>0),IF(AND(ISNUMBER(O45),R45>0),EDATE(C45,1),""),"") -> 2018-11-01 | D46: 47658329 | E46: =IF(AND(ValuesEntered,ISNUMBER(C46)),IF($E$19="時間短縮",ROUND(IPMT(VLOOKUP($C46,変動金利設定!$F$8:$G$15,2,TRUE)/12,1,$R45,$D46)*-1,0),ROUND(IPMT(VLOOKUP($C46,変動金利設定!$F$8:$G$15,2,TRUE)/12,$B46,DurationOfLoan,LoanAmount-BonusAmount-SUM(extra_payments))*-1,0))+IF($I46=0,0,ROUND(IPMT(VLOOKUP($C46,変動金利設定!$F$8:$G$15,2,TRUE)/12,COUNTIF($I$27:I46,">0"),DurationofBonus,BonusAmount)*-1,0)),"") -> 28697 | F46: =IF(AND(ValuesEntered,ISNUMBER($C46)),IF($E$19="時間短縮",ROUND(PPMT(VLOOKUP($C46,変動金利設定!$F$8:$G$15,2,TRUE)/12,1,$R45,$D46)*-1,0),ROUND(PPMT(VLOOKUP($C46,変動金利設定!$F$8:$G$15,2,TRUE)/12,$B46,DurationOfLoan,LoanAmount-BonusAmount-SUM(extra_payments))*-1,0))+IF(I46=0,0,ROUND(PPMT(VLOOKUP($C46,変動金利設定!$F$8:$G$15,2,TRUE)/12,COUNTIF($I$27:I46,">0"),DurationofBonus,BonusAmount)*-1,0)),"") -> 72361 | I46: 0 | L46: =IF(AND(ValuesEntered,ISNUMBER($C46)),SUM(E46:H46,J46:K46),"") -> 101058 | O46: =IF(AND(ValuesEntered,ISNUMBER($C46)),D46-F46-J46,"") -> 47585968 | R46: 400
A47: 1 | B47: =ROWS($B$27:B47) -> 21 | C47: =IF(AND(ValuesEntered,R46>0),IF(AND(ISNUMBER(O46),R46>0),EDATE(C46,1),""),"") -> 2018-12-01 | D47: 47585968 | E47: =IF(AND(ValuesEntered,ISNUMBER(C47)),IF($E$19="時間短縮",ROUND(IPMT(VLOOKUP($C47,変動金利設定!$F$8:$G$15,2,TRUE)/12,1,$R46,$D47)*-1,0),ROUND(IPMT(VLOOKUP($C47,変動金利設定!$F$8:$G$15,2,TRUE)/12,$B47,DurationOfLoan,LoanAmount-BonusAmount-SUM(extra_payments))*-1,0))+IF($I47=0,0,ROUND(IPMT(VLOOKUP($C47,変動金利設定!$F$8:$G$15,2,TRUE)/12,COUNTIF($I$27:I47,">0"),DurationofBonus,BonusAmount)*-1,0)),"") -> 28637 | F47: =IF(AND(ValuesEntered,ISNUMBER($C47)),IF($E$19="時間短縮",ROUND(PPMT(VLOOKUP($C47,変動金利設定!$F$8:$G$15,2,TRUE)/12,1,$R46,$D47)*-1,0),ROUND(PPMT(VLOOKUP($C47,変動金利設定!$F$8:$G$15,2,TRUE)/12,$B47,DurationOfLoan,LoanAmount-BonusAmount-SUM(extra_payments))*-1,0))+IF(I47=0,0,ROUND(PPMT(VLOOKUP($C47,変動金利設定!$F$8:$G$15,2,TRUE)/12,COUNTIF($I$27:I47,">0"),DurationofBonus,BonusAmount)*-1,0)),"") -> 72421 | I47: 0 | L47: =IF(AND(ValuesEntered,ISNUMBER($C47)),SUM(E47:H47,J47:K47),"") -> 101058 | O47: =IF(AND(ValuesEntered,ISNUMBER($C47)),D47-F47-J47,"") -> 47513547 | R47: 399
A48: 2 | B48: =ROWS($B$27:B48) -> 22 | C48: =IF(AND(ValuesEntered,R47>0),IF(AND(ISNUMBER(O47),R47>0),EDATE(C47,1),""),"") -> 2019-01-01 | D48: 47513547 | E48: =IF(AND(ValuesEntered,ISNUMBER(C48)),IF($E$19="時間短縮",ROUND(IPMT(VLOOKUP($C48,変動金利設定!$F$8:$G$15,2,TRUE)/12,1,$R47,$D48)*-1,0),ROUND(IPMT(VLOOKUP($C48,変動金利設定!$F$8:$G$15,2,TRUE)/12,$B48,DurationOfLoan,LoanAmount-BonusAmount-SUM(extra_payments))*-1,0))+IF($I48=0,0,ROUND(IPMT(VLOOKUP($C48,変動金利設定!$F$8:$G$15,2,TRUE)/12,COUNTIF($I$27:I48,">0"),DurationofBonus,BonusAmount)*-1,0)),"") -> 28576 | F48: =IF(AND(ValuesEntered,ISNUMBER($C48)),IF($E$19="時間短縮",ROUND(PPMT(VLOOKUP($C48,変動金利設定!$F$8:$G$15,2,TRUE)/12,1,$R47,$D48)*-1,0),ROUND(PPMT(VLOOKUP($C48,変動金利設定!$F$8:$G$15,2,TRUE)/12,$B48,DurationOfLoan,LoanAmount-BonusAmount-SUM(extra_payments))*-1,0))+IF(I48=0,0,ROUND(PPMT(VLOOKUP($C48,変動金利設定!$F$8:$G$15,2,TRUE)/12,COUNTIF($I$27:I48,">0"),DurationofBonus,BonusAmount)*-1,0)),"") -> 72482 | I48: 0 | L48: =IF(AND(ValuesEntered,ISNUMBER($C48)),SUM(E48:H48,J48:K48),"") -> 101058 | O48: =IF(AND(ValuesEntered,ISNUMBER($C48)),D48-F48-J48,"") -> 47441065 | R48: 398
A49: 2 | B49: =ROWS($B$27:B49) -> 23 | C49: =IF(AND(ValuesEntered,R48>0),IF(AND(ISNUMBER(O48),R48>0),EDATE(C48,1),""),"") -> 2019-02-01 | D49: 47441065 | E49: =IF(AND(ValuesEntered,ISNUMBER(C49)),IF($E$19="時間短縮",ROUND(IPMT(VLOOKUP($C49,変動金利設定!$F$8:$G$15,2,TRUE)/12,1,$R48,$D49)*-1,0),ROUND(IPMT(VLOOKUP($C49,変動金利設定!$F$8:$G$15,2,TRUE)/12,$B49,DurationOfLoan,LoanAmount-BonusAmount-SUM(extra_payments))*-1,0))+IF($I49=0,0,ROUND(IPMT(VLOOKUP($C49,変動金利設定!$F$8:$G$15,2,TRUE)/12,COUNTIF($I$27:I49,">0"),DurationofBonus,BonusAmount)*-1,0)),"") -> 28516 | F49: =IF(AND(ValuesEntered,ISNUMBER($C49)),IF($E$19="時間短縮",ROUND(PPMT(VLOOKUP($C49,変動金利設定!$F$8:$G$15,2,TRUE)/12,1,$R48,$D49)*-1,0),ROUND(PPMT(VLOOKUP($C49,変動金利設定!$F$8:$G$15,2,TRUE)/12,$B49,DurationOfLoan,LoanAmount-BonusAmount-SUM(extra_payments))*-1,0))+IF(I49=0,0,ROUND(PPMT(VLOOKUP($C49,変動金利設定!$F$8:$G$15,2,TRUE)/12,COUNTIF($I$27:I49,">0"),DurationofBonus,BonusAmount)*-1,0)),"") -> 72542 | I49: 0 | L49: =IF(AND(ValuesEntered,ISNUMBER($C49)),SUM(E49:H49,J49:K49),"") -> 101058 | O49: =IF(AND(ValuesEntered,ISNUMBER($C49)),D49-F49-J49,"") -> 47368523 | R49: 397
A50: 2 | B50: =ROWS($B$27:B50) -> 24 | C50: =IF(AND(ValuesEntered,R49>0),IF(AND(ISNUMBER(O49),R49>0),EDATE(C49,1),""),"") -> 2019-03-01 | D50: 47368523 | E50: =IF(AND(ValuesEntered,ISNUMBER(C50)),IF($E$19="時間短縮",ROUND(IPMT(VLOOKUP($C50,変動金利設定!$F$8:$G$15,2,TRUE)/12,1,$R49,$D50)*-1,0),ROUND(IPMT(VLOOKUP($C50,変動金利設定!$F$8:$G$15,2,TRUE)/12,$B50,DurationOfLoan,LoanAmount-BonusAmount-SUM(extra_payments))*-1,0))+IF($I50=0,0,ROUND(IPMT(VLOOKUP($C50,変動金利設定!$F$8:$G$15,2,TRUE)/12,COUNTIF($I$27:I50,">0"),DurationofBonus,BonusAmount)*-1,0)),"") -> 28456 | F50: =IF(AND(ValuesEntered,ISNUMBER($C50)),IF($E$19="時間短縮",ROUND(PPMT(VLOOKUP($C50,変動金利設定!$F$8:$G$15,2,TRUE)/12,1,$R49,$D50)*-1,0),ROUND(PPMT(VLOOKUP($C50,変動金利設定!$F$8:$G$15,2,TRUE)/12,$B50,DurationOfLoan,LoanAmount-BonusAmount-SUM(extra_payments))*-1,0))+IF(I50=0,0,ROUND(PPMT(VLOOKUP($C50,変動金利設定!$F$8:$G$15,2,TRUE)/12,COUNTIF($I$27:I50,">0"),DurationofBonus,BonusAmount)*-1,0)),"") -> 72603 | I50: 0 | L50: =IF(AND(ValuesEntered,ISNUMBER($C50)),SUM(E50:H50,J50:K50),"") -> 101059 | O50: =IF(AND(ValuesEntered,ISNUMBER($C50)),D50-F50-J50,"") -> 47295920 | R50: 396
A51: 2 | B51: =ROWS($B$27:B51) -> 25 | C51: =IF(AND(ValuesEntered,R50>0),IF(AND(ISNUMBER(O50),R50>0),EDATE(C50,1),""),"") -> 2019-04-01 | D51: 47295920 | E51: =IF(AND(ValuesEntered,ISNUMBER(C51)),IF($E$19="時間短縮",ROUND(IPMT(VLOOKUP($C51,変動金利設定!$F$8:$G$15,2,TRUE)/12,1,$R50,$D51)*-1,0),ROUND(IPMT(VLOOKUP($C51,変動金利設定!$F$8:$G$15,2,TRUE)/12,$B51,DurationOfLoan,LoanAmount-BonusAmount-SUM(extra_payments))*-1,0))+IF($I51=0,0,ROUND(IPMT(VLOOKUP($C51,変動金利設定!$F$8:$G$15,2,TRUE)/12,COUNTIF($I$27:I51,">0"),DurationofBonus,BonusAmount)*-1,0)),"") -> 39413 | F51: =IF(AND(ValuesEntered,ISNUMBER($C51)),IF($E$19="時間短縮",ROUND(PPMT(VLOOKUP($C51,変動金利設定!$F$8:$G$15,2,TRUE)/12,1,$R50,$D51)*-1,0),ROUND(PPMT(VLOOKUP($C51,変動金利設定!$F$8:$G$15,2,TRUE)/12,$B51,DurationOfLoan,LoanAmount-BonusAmount-SUM(extra_payments))*-1,0))+IF(I51=0,0,ROUND(PPMT(VLOOKUP($C51,変動金利設定!$F$8:$G$15,2,TRUE)/12,COUNTIF($I$27:I51,">0"),DurationofBonus,BonusAmount)*-1,0)),"") -> 267618 | I51: 200000 | L51: =IF(AND(ValuesEntered,ISNUMBER($C51)),SUM(E51:H51,J51:K51),"") -> 307031 | O51: =IF(AND(ValuesEntered,ISNUMBER($C51)),D51-F51-J51,"") -> 47028302 | R51: 395
A52: 2 | B52: =ROWS($B$27:B52) -> 26 | C52: =IF(AND(ValuesEntered,R51>0),IF(AND(ISNUMBER(O51),R51>0),EDATE(C51,1),""),"") -> 2019-05-01 | D52: 47028302 | E52: =IF(AND(ValuesEntered,ISNUMBER(C52)),IF($E$19="時間短縮",ROUND(IPMT(VLOOKUP($C52,変動金利設定!$F$8:$G$15,2,TRUE)/12,1,$R51,$D52)*-1,0),ROUND(IPMT(VLOOKUP($C52,変動金利設定!$F$8:$G$15,2,TRUE)/12,$B52,DurationOfLoan,LoanAmount-BonusAmount-SUM(extra_payments))*-1,0))+IF($I52=0,0,ROUND(IPMT(VLOOKUP($C52,変動金利設定!$F$8:$G$15,2,TRUE)/12,COUNTIF($I$27:I52,">0"),DurationofBonus,BonusAmount)*-1,0)),"") -> 28335 | F52: =IF(AND(ValuesEntered,ISNUMBER($C52)),IF($E$19="時間短縮",ROUND(PPMT(VLOOKUP($C52,変動金利設定!$F$8:$G$15,2,TRUE)/12,1,$R51,$D52)*-1,0),ROUND(PPMT(VLOOKUP($C52,変動金利設定!$F$8:$G$15,2,TRUE)/12,$B52,DurationOfLoan,LoanAmount-BonusAmount-SUM(extra_payments))*-1,0))+IF(I52=0,0,ROUND(PPMT(VLOOKUP($C52,変動金利設定!$F$8:$G$15,2,TRUE)/12,COUNTIF($I$27:I52,">0"),DurationofBonus,BonusAmount)*-1,0)),"") -> 72724 | I52: 0 | L52: =IF(AND(ValuesEntered,ISNUMBER($C52)),SUM(E52:H52,J52:K52),"") -> 101059 | O52: =IF(AND(ValuesEntered,ISNUMBER($C52)),D52-F52-J52,"") -> 46955578 | R52: 394
A53: 2 | B53: =ROWS($B$27:B53) -> 27 | C53: =IF(AND(ValuesEntered,R52>0),IF(AND(ISNUMBER(O52),R52>0),EDATE(C52,1),""),"") -> 2019-06-01 | D53: 46955578 | E53: =IF(AND(ValuesEntered,ISNUMBER(C53)),IF($E$19="時間短縮",ROUND(IPMT(VLOOKUP($C53,変動金利設定!$F$8:$G$15,2,TRUE)/12,1,$R52,$D53)*-1,0),ROUND(IPMT(VLOOKUP($C53,変動金利設定!$F$8:$G$15,2,TRUE)/12,$B53,DurationOfLoan,LoanAmount-BonusAmount-SUM(extra_payments))*-1,0))+IF($I53=0,0,ROUND(IPMT(VLOOKUP($C53,変動金利設定!$F$8:$G$15,2,TRUE)/12,COUNTIF($I$27:I53,">0"),DurationofBonus,BonusAmount)*-1,0)),"") -> 28274 | F53: =IF(AND(ValuesEntered,ISNUMBER($C53)),IF($E$19="時間短縮",ROUND(PPMT(VLOOKUP($C53,変動金利設定!$F$8:$G$15,2,TRUE)/12,1,$R52,$D53)*-1,0),ROUND(PPMT(VLOOKUP($C53,変動金利設定!$F$8:$G$15,2,TRUE)/12,$B53,DurationOfLoan,LoanAmount-BonusAmount-SUM(extra_payments))*-1,0))+IF(I53=0,0,ROUND(PPMT(VLOOKUP($C53,変動金利設定!$F$8:$G$15,2,TRUE)/12,COUNTIF($I$27:I53,">0"),DurationofBonus,BonusAmount)*-1,0)),"") -> 72784 | I53: 0 | L53: =IF(AND(ValuesEntered,ISNUMBER($C53)),SUM(E53:H53,J53:K53),"") -> 101058 | O53: =IF(AND(ValuesEntered,ISNUMBER($C53)),D53-F53-J53,"") -> 46882794 | R53: 393
A54: 2 | B54: =ROWS($B$27:B54) -> 28 | C54: =IF(AND(ValuesEntered,R53>0),IF(AND(ISNUMBER(O53),R53>0),EDATE(C53,1),""),"") -> 2019-07-01 | D54: 46882794 | E54: =IF(AND(ValuesEntered,ISNUMBER(C54)),IF($E$19="時間短縮",ROUND(IPMT(VLOOKUP($C54,変動金利設定!$F$8:$G$15,2,TRUE)/12,1,$R53,$D54)*-1,0),ROUND(IPMT(VLOOKUP($C54,変動金利設定!$F$8:$G$15,2,TRUE)/12,$B54,DurationOfLoan,LoanAmount-BonusAmount-SUM(extra_payments))*-1,0))+IF($I54=0,0,ROUND(IPMT(VLOOKUP($C54,変動金利設定!$F$8:$G$15,2,TRUE)/12,COUNTIF($I$27:I54,">0"),DurationofBonus,BonusAmount)*-1,0)),"") -> 39069 | F54: =IF(AND(ValuesEntered,ISNUMBER($C54)),IF($E$19="時間短縮",ROUND(PPMT(VLOOKUP($C54,変動金利設定!$F$8:$G$15,2,TRUE)/12,1,$R53,$D54)*-1,0),ROUND(PPMT(VLOOKUP($C54,変動金利設定!$F$8:$G$15,2,TRUE)/12,$B54,DurationOfLoan,LoanAmount-BonusAmount-SUM(extra_payments))*-1,0))+IF(I54=0,0,ROUND(PPMT(VLOOKUP($C54,変動金利設定!$F$8:$G$15,2,TRUE)/12,COUNTIF($I$27:I54,">0"),DurationofBonus,BonusAmount)*-1,0)),"") -> 267963 | I54: 200000 | L54: =IF(AND(ValuesEntered,ISNUMBER($C54)),SUM(E54:H54,J54:K54),"") -> 307032 | O54: =IF(AND(ValuesEntered,ISNUMBER($C54)),D54-F54-J54,"") -> 46614831 | R54: 392
A55: 2 | B55: =ROWS($B$27:B55) -> 29 | C55: =IF(AND(ValuesEntered,R54>0),IF(AND(ISNUMBER(O54),R54>0),EDATE(C54,1),""),"") -> 2019-08-01 | D55: 46614831 | E55: =IF(AND(ValuesEntered,ISNUMBER(C55)),IF($E$19="時間短縮",ROUND(IPMT(VLOOKUP($C55,変動金利設定!$F$8:$G$15,2,TRUE)/12,1,$R54,$D55)*-1,0),ROUND(IPMT(VLOOKUP($C55,変動金利設定!$F$8:$G$15,2,TRUE)/12,$B55,DurationOfLoan,LoanAmount-BonusAmount-SUM(extra_payments))*-1,0))+IF($I55=0,0,ROUND(IPMT(VLOOKUP($C55,変動金利設定!$F$8:$G$15,2,TRUE)/12,COUNTIF($I$27:I55,">0"),DurationofBonus,BonusAmount)*-1,0)),"") -> 28153 | F55: =IF(AND(ValuesEntered,ISNUMBER($C55)),IF($E$19="時間短縮",ROUND(PPMT(VLOOKUP($C55,変動金利設定!$F$8:$G$15,2,TRUE)/12,1,$R54,$D55)*-1,0),ROUND(PPMT(VLOOKUP($C55,変動金利設定!$F$8:$G$15,2,TRUE)/12,$B55,DurationOfLoan,LoanAmount-BonusAmount-SUM(extra_payments))*-1,0))+IF(I55=0,0,ROUND(PPMT(VLOOKUP($C55,変動金利設定!$F$8:$G$15,2,TRUE)/12,COUNTIF($I$27:I55,">0"),DurationofBonus,BonusAmount)*-1,0)),"") -> 72906 | I55: 0 | L55: =IF(AND(ValuesEntered,ISNUMBER($C55)),SUM(E55:H55,J55:K55),"") -> 101059 | O55: =IF(AND(ValuesEntered,ISNUMBER($C55)),D55-F55-J55,"") -> 46541925 | R55: 391
A56: 2 | B56: =ROWS($B$27:B56) -> 30 | C56: =IF(AND(ValuesEntered,R55>0),IF(AND(ISNUMBER(O55),R55>0),EDATE(C55,1),""),"") -> 2019-09-01 | D56: 46541925 | E56: =IF(AND(ValuesEntered,ISNUMBER(C56)),IF($E$19="時間短縮",ROUND(IPMT(VLOOKUP($C56,変動金利設定!$F$8:$G$15,2,TRUE)/12,1,$R55,$D56)*-1,0),ROUND(IPMT(VLOOKUP($C56,変動金利設定!$F$8:$G$15,2,TRUE)/12,$B56,DurationOfLoan,LoanAmount-BonusAmount-SUM(extra_payments))*-1,0))+IF($I56=0,0,ROUND(IPMT(VLOOKUP($C56,変動金利設定!$F$8:$G$15,2,TRUE)/12,COUNTIF($I$27:I56,">0"),DurationofBonus,BonusAmount)*-1,0)),"") -> 28092 | F56: =IF(AND(ValuesEntered,ISNUMBER($C56)),IF($E$19="時間短縮",ROUND(PPMT(VLOOKUP($C56,変動金利設定!$F$8:$G$15,2,TRUE)/12,1,$R55,$D56)*-1,0),ROUND(PPMT(VLOOKUP($C56,変動金利設定!$F$8:$G$15,2,TRUE)/12,$B56,DurationOfLoan,LoanAmount-BonusAmount-SUM(extra_payments))*-1,0))+IF(I56=0,0,ROUND(PPMT(VLOOKUP($C56,変動金利設定!$F$8:$G$15,2,TRUE)/12,COUNTIF($I$27:I56,">0"),DurationofBonus,BonusAmount)*-1,0)),"") -> 72966 | I56: 0 | L56: =IF(AND(ValuesEntered,ISNUMBER($C56)),SUM(E56:H56,J56:K56),"") -> 101058 | O56: =IF(AND(ValuesEntered,ISNUMBER($C56)),D56-F56-J56,"") -> 46468959 | R56: 390
A57: 2 | B57: =ROWS($B$27:B57) -> 31 | C57: =IF(AND(ValuesEntered,R56>0),IF(AND(ISNUMBER(O56),R56>0),EDATE(C56,1),""),"") -> 2019-10-01 | D57: 46468959 | E57: =IF(AND(ValuesEntered,ISNUMBER(C57)),IF($E$19="時間短縮",ROUND(IPMT(VLOOKUP($C57,変動金利設定!$F$8:$G$15,2,TRUE)/12,1,$R56,$D57)*-1,0),ROUND(IPMT(VLOOKUP($C57,変動金利設定!$F$8:$G$15,2,TRUE)/12,$B57,DurationOfLoan,LoanAmount-BonusAmount-SUM(extra_payments))*-1,0))+IF($I57=0,0,ROUND(IPMT(VLOOKUP($C57,変動金利設定!$F$8:$G$15,2,TRUE)/12,COUNTIF($I$27:I57,">0"),DurationofBonus,BonusAmount)*-1,0)),"") -> 28031 | F57: =IF(AND(ValuesEntered,ISNUMBER($C57)),IF($E$19="時間短縮",ROUND(PPMT(VLOOKUP($C57,変動金利設定!$F$8:$G$15,2,TRUE)/12,1,$R56,$D57)*-1,0),ROUND(PPMT(VLOOKUP($C57,変動金利設定!$F$8:$G$15,2,TRUE)/12,$B57,DurationOfLoan,LoanAmount-BonusAmount-SUM(extra_payments))*-1,0))+IF(I57=0,0,ROUND(PPMT(VLOOKUP($C57,変動金利設定!$F$8:$G$15,2,TRUE)/12,COUNTIF($I$27:I57,">0"),DurationofBonus,BonusAmount)*-1,0)),"") -> 73027 | I57: 0 | L57: =IF(AND(ValuesEntered,ISNUMBER($C57)),SUM(E57:H57,J57:K57),"") -> 101058 | O57: =IF(AND(ValuesEntered,ISNUMBER($C57)),D57-F57-J57,"") -> 46395932 | R57: 389
A58: 2 | B58: =ROWS($B$27:B58) -> 32 | C58: =IF(AND(ValuesEntered,R57>0),IF(AND(ISNUMBER(O57),R57>0),EDATE(C57,1),""),"") -> 2019-11-01 | D58: 46395932 | E58: =IF(AND(ValuesEntered,ISNUMBER(C58)),IF($E$19="時間短縮",ROUND(IPMT(VLOOKUP($C58,変動金利設定!$F$8:$G$15,2,TRUE)/12,1,$R57,$D58)*-1,0),ROUND(IPMT(VLOOKUP($C58,変動金利設定!$F$8:$G$15,2,TRUE)/12,$B58,DurationOfLoan,LoanAmount-BonusAmount-SUM(extra_payments))*-1,0))+IF($I58=0,0,ROUND(IPMT(VLOOKUP($C58,変動金利設定!$F$8:$G$15,2,TRUE)/12,COUNTIF($I$27:I58,">0"),DurationofBonus,BonusAmount)*-1,0)),"") -> 27970 | F58: =IF(AND(ValuesEntered,ISNUMBER($C58)),IF($E$19="時間短縮",ROUND(PPMT(VLOOKUP($C58,変動金利設定!$F$8:$G$15,2,TRUE)/12,1,$R57,$D58)*-1,0),ROUND(PPMT(VLOOKUP($C58,変動金利設定!$F$8:$G$15,2,TRUE)/12,$B58,DurationOfLoan,LoanAmount-BonusAmount-SUM(extra_payments))*-1,0))+IF(I58=0,0,ROUND(PPMT(VLOOKUP($C58,変動金利設定!$F$8:$G$15,2,TRUE)/12,COUNTIF($I$27:I58,">0"),DurationofBonus,BonusAmount)*-1,0)),"") -> 73088 | I58: 0 | L58: =IF(AND(ValuesEntered,ISNUMBER($C58)),SUM(E58:H58,J58:K58),"") -> 101058 | O58: =IF(AND(ValuesEntered,ISNUMBER($C58)),D58-F58-J58,"") -> 46322844 | R58: 388
A59: 2 | B59: =ROWS($B$27:B59) -> 33 | C59: =IF(AND(ValuesEntered,R58>0),IF(AND(ISNUMBER(O58),R58>0),EDATE(C58,1),""),"") -> 2019-12-01 | D59: 46322844 | E59: =IF(AND(ValuesEntered,ISNUMBER(C59)),IF($E$19="時間短縮",ROUND(IPMT(VLOOKUP($C59,変動金利設定!$F$8:$G$15,2,TRUE)/12,1,$R58,$D59)*-1,0),ROUND(IPMT(VLOOKUP($C59,変動金利設定!$F$8:$G$15,2,TRUE)/12,$B59,DurationOfLoan,LoanAmount-BonusAmount-SUM(extra_payments))*-1,0))+IF($I59=0,0,ROUND(IPMT(VLOOKUP($C59,変動金利設定!$F$8:$G$15,2,TRUE)/12,COUNTIF($I$27:I59,">0"),DurationofBonus,BonusAmount)*-1,0)),"") -> 27909 | F59: =IF(AND(ValuesEntered,ISNUMBER($C59)),IF($E$19="時間短縮",ROUND(PPMT(VLOOKUP($C59,変動金利設定!$F$8:$G$15,2,TRUE)/12,1,$R58,$D59)*-1,0),ROUND(PPMT(VLOOKUP($C59,変動金利設定!$F$8:$G$15,2,TRUE)/12,$B59,DurationOfLoan,LoanAmount-BonusAmount-SUM(extra_payments))*-1,0))+IF(I59=0,0,ROUND(PPMT(VLOOKUP($C59,変動金利設定!$F$8:$G$15,2,TRUE)/12,COUNTIF($I$27:I59,">0"),DurationofBonus,BonusAmount)*-1,0)),"") -> 73149 | I59: 0 | L59: =IF(AND(ValuesEntered,ISNUMBER($C59)),SUM(E59:H59,J59:K59),"") -> 101058 | O59: =IF(AND(ValuesEntered,ISNUMBER($C59)),D59-F59-J59,"") -> 46249695 | R59: 387
A60: 3 | B60: =ROWS($B$27:B60) -> 34 | C60: =IF(AND(ValuesEntered,R59>0),IF(AND(ISNUMBER(O59),R59>0),EDATE(C59,1),""),"") -> 2020-01-01 | D60: 46249695 | E60: =IF(AND(ValuesEntered,ISNUMBER(C60)),IF($E$19="時間短縮",ROUND(IPMT(VLOOKUP($C60,変動金利設定!$F$8:$G$15,2,TRUE)/12,1,$R59,$D60)*-1,0),ROUND(IPMT(VLOOKUP($C60,変動金利設定!$F$8:$G$15,2,TRUE)/12,$B60,DurationOfLoan,LoanAmount-BonusAmount-SUM(extra_payments))*-1,0))+IF($I60=0,0,ROUND(IPMT(VLOOKUP($C60,変動金利設定!$F$8:$G$15,2,TRUE)/12,COUNTIF($I$27:I60,">0"),DurationofBonus,BonusAmount)*-1,0)),"") -> 27848 | F60: =IF(AND(ValuesEntered,ISNUMBER($C60)),IF($E$19="時間短縮",ROUND(PPMT(VLOOKUP($C60,変動金利設定!$F$8:$G$15,2,TRUE)/12,1,$R59,$D60)*-1,0),ROUND(PPMT(VLOOKUP($C60,変動金利設定!$F$8:$G$15,2,TRUE)/12,$B60,DurationOfLoan,LoanAmount-BonusAmount-SUM(extra_payments))*-1,0))+IF(I60=0,0,ROUND(PPMT(VLOOKUP($C60,変動金利設定!$F$8:$G$15,2,TRUE)/12,COUNTIF($I$27:I60,">0"),DurationofBonus,BonusAmount)*-1,0)),"") -> 73210 | I60: 0 | L60: =IF(AND(ValuesEntered,ISNUMBER($C60)),SUM(E60:H60,J60:K60),"") -> 101058 | O60: =IF(AND(ValuesEntered,ISNUMBER($C60)),D60-F60-J60,"") -> 46176485 | R60: 386
A61: 3 | B61: =ROWS($B$27:B61) -> 35 | C61: =IF(AND(ValuesEntered,R60>0),IF(AND(ISNUMBER(O60),R60>0),EDATE(C60,1),""),"") -> 2020-02-01 | D61: 46176485 | E61: =IF(AND(ValuesEntered,ISNUMBER(C61)),IF($E$19="時間短縮",ROUND(IPMT(VLOOKUP($C61,変動金利設定!$F$8:$G$15,2,TRUE)/12,1,$R60,$D61)*-1,0),ROUND(IPMT(VLOOKUP($C61,変動金利設定!$F$8:$G$15,2,TRUE)/12,$B61,DurationOfLoan,LoanAmount-BonusAmount-SUM(extra_payments))*-1,0))+IF($I61=0,0,ROUND(IPMT(VLOOKUP($C61,変動金利設定!$F$8:$G$15,2,TRUE)/12,COUNTIF($I$27:I61,">0"),DurationofBonus,BonusAmount)*-1,0)),"") -> 27787 | F61: =IF(AND(ValuesEntered,ISNUMBER($C61)),IF($E$19="時間短縮",ROUND(PPMT(VLOOKUP($C61,変動金利設定!$F$8:$G$15,2,TRUE)/12,1,$R60,$D61)*-1,0),ROUND(PPMT(VLOOKUP($C61,変動金利設定!$F$8:$G$15,2,TRUE)/12,$B61,DurationOfLoan,LoanAmount-BonusAmount-SUM(extra_payments))*-1,0))+IF(I61=0,0,ROUND(PPMT(VLOOKUP($C61,変動金利設定!$F$8:$G$15,2,TRUE)/12,COUNTIF($I$27:I61,">0"),DurationofBonus,BonusAmount)*-1,0)),"") -> 73271 | I61: 0 | L61: =IF(AND(ValuesEntered,ISNUMBER($C61)),SUM(E61:H61,J61:K61),"") -> 101058 | O61: =IF(AND(ValuesEntered,ISNUMBER($C61)),D61-F61-J61,"") -> 46103214 | R61: 385
A62: 3 | B62: =ROWS($B$27:B62) -> 36 | C62: =IF(AND(ValuesEntered,R61>0),IF(AND(ISNUMBER(O61),R61>0),EDATE(C61,1),""),"") -> 2020-03-01 | D62: 46103214 | E62: =IF(AND(ValuesEntered,ISNUMBER(C62)),IF($E$19="時間短縮",ROUND(IPMT(VLOOKUP($C62,変動金利設定!$F$8:$G$15,2,TRUE)/12,1,$R61,$D62)*-1,0),ROUND(IPMT(VLOOKUP($C62,変動金利設定!$F$8:$G$15,2,TRUE)/12,$B62,DurationOfLoan,LoanAmount-BonusAmount-SUM(extra_payments))*-1,0))+IF($I62=0,0,ROUND(IPMT(VLOOKUP($C62,変動金利設定!$F$8:$G$15,2,TRUE)/12,COUNTIF($I$27:I62,">0"),DurationofBonus,BonusAmount)*-1,0)),"") -> 27726 | F62: =IF(AND(ValuesEntered,ISNUMBER($C62)),IF($E$19="時間短縮",ROUND(PPMT(VLOOKUP($C62,変動金利設定!$F$8:$G$15,2,TRUE)/12,1,$R61,$D62)*-1,0),ROUND(PPMT(VLOOKUP($C62,変動金利設定!$F$8:$G$15,2,TRUE)/12,$B62,DurationOfLoan,LoanAmount-BonusAmount-SUM(extra_payments))*-1,0))+IF(I62=0,0,ROUND(PPMT(VLOOKUP($C62,変動金利設定!$F$8:$G$15,2,TRUE)/12,COUNTIF($I$27:I62,">0"),DurationofBonus,BonusAmount)*-1,0)),"") -> 73332 | I62: 0 | L62: =IF(AND(ValuesEntered,ISNUMBER($C62)),SUM(E62:H62,J62:K62),"") -> 101058 | O62: =IF(AND(ValuesEntered,ISNUMBER($C62)),D62-F62-J62,"") -> 46029882 | R62: 384
A63: 3 | B63: =ROWS($B$27:B63) -> 37 | C63: =IF(AND(ValuesEntered,R62>0),IF(AND(ISNUMBER(O62),R62>0),EDATE(C62,1),""),"") -> 2020-04-01 | D63: 46029882 | E63: =IF(AND(ValuesEntered,ISNUMBER(C63)),IF($E$19="時間短縮",ROUND(IPMT(VLOOKUP($C63,変動金利設定!$F$8:$G$15,2,TRUE)/12,1,$R62,$D63)*-1,0),ROUND(IPMT(VLOOKUP($C63,変動金利設定!$F$8:$G$15,2,TRUE)/12,$B63,DurationOfLoan,LoanAmount-BonusAmount-SUM(extra_payments))*-1,0))+IF($I63=0,0,ROUND(IPMT(VLOOKUP($C63,変動金利設定!$F$8:$G$15,2,TRUE)/12,COUNTIF($I$27:I63,">0"),DurationofBonus,BonusAmount)*-1,0)),"") -> 38358 | F63: =IF(AND(ValuesEntered,ISNUMBER($C63)),IF($E$19="時間短縮",ROUND(PPMT(VLOOKUP($C63,変動金利設定!$F$8:$G$15,2,TRUE)/12,1,$R62,$D63)*-1,0),ROUND(PPMT(VLOOKUP($C63,変動金利設定!$F$8:$G$15,2,TRUE)/12,$B63,DurationOfLoan,LoanAmount-BonusAmount-SUM(extra_payments))*-1,0))+IF(I63=0,0,ROUND(PPMT(VLOOKUP($C63,変動金利設定!$F$8:$G$15,2,TRUE)/12,COUNTIF($I$27:I63,">0"),DurationofBonus,BonusAmount)*-1,0)),"") -> 268673 | I63: 200000 | L63: =IF(AND(ValuesEntered,ISNUMBER($C63)),SUM(E63:H63,J63:K63),"") -> 307031 | O63: =IF(AND(ValuesEntered,ISNUMBER($C63)),D63-F63-J63,"") -> 45761209 | R63: 383
A64: 3 | B64: =ROWS($B$27:B64) -> 38 | C64: =IF(AND(ValuesEntered,R63>0),IF(AND(ISNUMBER(O63),R63>0),EDATE(C63,1),""),"") -> 2020-05-01 | D64: 45761209 | E64: =IF(AND(ValuesEntered,ISNUMBER(C64)),IF($E$19="時間短縮",ROUND(IPMT(VLOOKUP($C64,変動金利設定!$F$8:$G$15,2,TRUE)/12,1,$R63,$D64)*-1,0),ROUND(IPMT(VLOOKUP($C64,変動金利設定!$F$8:$G$15,2,TRUE)/12,$B64,DurationOfLoan,LoanAmount-BonusAmount-SUM(extra_payments))*-1,0))+IF($I64=0,0,ROUND(IPMT(VLOOKUP($C64,変動金利設定!$F$8:$G$15,2,TRUE)/12,COUNTIF($I$27:I64,">0"),DurationofBonus,BonusAmount)*-1,0)),"") -> 27604 | F64: =IF(AND(ValuesEntered,ISNUMBER($C64)),IF($E$19="時間短縮",ROUND(PPMT(VLOOKUP($C64,変動金利設定!$F$8:$G$15,2,TRUE)/12,1,$R63,$D64)*-1,0),ROUND(PPMT(VLOOKUP($C64,変動金利設定!$F$8:$G$15,2,TRUE)/12,$B64,DurationOfLoan,LoanAmount-BonusAmount-SUM(extra_payments))*-1,0))+IF(I64=0,0,ROUND(PPMT(VLOOKUP($C64,変動金利設定!$F$8:$G$15,2,TRUE)/12,COUNTIF($I$27:I64,">0"),DurationofBonus,BonusAmount)*-1,0)),"") -> 73454 | I64: 0 | L64: =IF(AND(ValuesEntered,ISNUMBER($C64)),SUM(E64:H64,J64:K64),"") -> 101058 | O64: =IF(AND(ValuesEntered,ISNUMBER($C64)),D64-F64-J64,"") -> 45687755 | R64: 382
A65: 3 | B65: =ROWS($B$27:B65) -> 39 | C65: =IF(AND(ValuesEntered,R64>0),IF(AND(ISNUMBER(O64),R64>0),EDATE(C64,1),""),"") -> 2020-06-01 | D65: 45687755 | E65: =IF(AND(ValuesEntered,ISNUMBER(C65)),IF($E$19="時間短縮",ROUND(IPMT(VLOOKUP($C65,変動金利設定!$F$8:$G$15,2,TRUE)/12,1,$R64,$D65)*-1,0),ROUND(IPMT(VLOOKUP($C65,変動金利設定!$F$8:$G$15,2,TRUE)/12,$B65,DurationOfLoan,LoanAmount-BonusAmount-SUM(extra_payments))*-1,0))+IF($I65=0,0,ROUND(IPMT(VLOOKUP($C65,変動金利設定!$F$8:$G$15,2,TRUE)/12,COUNTIF($I$27:I65,">0"),DurationofBonus,BonusAmount)*-1,0)),"") -> 27543 | F65: =IF(AND(ValuesEntered,ISNUMBER($C65)),IF($E$19="時間短縮",ROUND(PPMT(VLOOKUP($C65,変動金利設定!$F$8:$G$15,2,TRUE)/12,1,$R64,$D65)*-1,0),ROUND(PPMT(VLOOKUP($C65,変動金利設定!$F$8:$G$15,2,TRUE)/12,$B65,DurationOfLoan,LoanAmount-BonusAmount-SUM(extra_payments))*-1,0))+IF(I65=0,0,ROUND(PPMT(VLOOKUP($C65,変動金利設定!$F$8:$G$15,2,TRUE)/12,COUNTIF($I$27:I65,">0"),DurationofBonus,BonusAmount)*-1,0)),"") -> 73516 | I65: 0 | L65: =IF(AND(ValuesEntered,ISNUMBER($C65)),SUM(E65:H65,J65:K65),"") -> 101059 | O65: =IF(AND(ValuesEntered,ISNUMBER($C65)),D65-F65-J65,"") -> 45614239 | R65: 381
A66: 3 | B66: =ROWS($B$27:B66) -> 40 | C66: =IF(AND(ValuesEntered,R65>0),IF(AND(ISNUMBER(O65),R65>0),EDATE(C65,1),""),"") -> 2020-07-01 | D66: 45614239 | E66: =IF(AND(ValuesEntered,ISNUMBER(C66)),IF($E$19="時間短縮",ROUND(IPMT(VLOOKUP($C66,変動金利設定!$F$8:$G$15,2,TRUE)/12,1,$R65,$D66)*-1,0),ROUND(IPMT(VLOOKUP($C66,変動金利設定!$F$8:$G$15,2,TRUE)/12,$B66,DurationOfLoan,LoanAmount-BonusAmount-SUM(extra_payments))*-1,0))+IF($I66=0,0,ROUND(IPMT(VLOOKUP($C66,変動金利設定!$F$8:$G$15,2,TRUE)/12,COUNTIF($I$27:I66,">0"),DurationofBonus,BonusAmount)*-1,0)),"") -> 38011 | F66: =IF(AND(ValuesEntered,ISNUMBER($C66)),IF($E$19="時間短縮",ROUND(PPMT(VLOOKUP($C66,変動金利設定!$F$8:$G$15,2,TRUE)/12,1,$R65,$D66)*-1,0),ROUND(PPMT(VLOOKUP($C66,変動金利設定!$F$8:$G$15,2,TRUE)/12,$B66,DurationOfLoan,LoanAmount-BonusAmount-SUM(extra_payments))*-1,0))+IF(I66=0,0,ROUND(PPMT(VLOOKUP($C66,変動金利設定!$F$8:$G$15,2,TRUE)/12,COUNTIF($I$27:I66,">0"),DurationofBonus,BonusAmount)*-1,0)),"") -> 269020 | I66: 200000 | L66: =IF(AND(ValuesEntered,ISNUMBER($C66)),SUM(E66:H66,J66:K66),"") -> 307031 | O66: =IF(AND(ValuesEntered,ISNUMBER($C66)),D66-F66-J66,"") -> 45345219 | R66: 380
A67: 3 | B67: =ROWS($B$27:B67) -> 41 | C67: =IF(AND(ValuesEntered,R66>0),IF(AND(ISNUMBER(O66),R66>0),EDATE(C66,1),""),"") -> 2020-08-01 | D67: 45345219 | E67: =IF(AND(ValuesEntered,ISNUMBER(C67)),IF($E$19="時間短縮",ROUND(IPMT(VLOOKUP($C67,変動金利設定!$F$8:$G$15,2,TRUE)/12,1,$R66,$D67)*-1,0),ROUND(IPMT(VLOOKUP($C67,変動金利設定!$F$8:$G$15,2,TRUE)/12,$B67,DurationOfLoan,LoanAmount-BonusAmount-SUM(extra_payments))*-1,0))+IF($I67=0,0,ROUND(IPMT(VLOOKUP($C67,変動金利設定!$F$8:$G$15,2,TRUE)/12,COUNTIF($I$27:I67,">0"),DurationofBonus,BonusAmount)*-1,0)),"") -> 27420 | F67: =IF(AND(ValuesEntered,ISNUMBER($C67)),IF($E$19="時間短縮",ROUND(PPMT(VLOOKUP($C67,変動金利設定!$F$8:$G$15,2,TRUE)/12,1,$R66,$D67)*-1,0),ROUND(PPMT(VLOOKUP($C67,変動金利設定!$F$8:$G$15,2,TRUE)/12,$B67,DurationOfLoan,LoanAmount-BonusAmount-SUM(extra_payments))*-1,0))+IF(I67=0,0,ROUND(PPMT(VLOOKUP($C67,変動金利設定!$F$8:$G$15,2,TRUE)/12,COUNTIF($I$27:I67,">0"),DurationofBonus,BonusAmount)*-1,0)),"") -> 73638 | I67: 0 | L67: =IF(AND(ValuesEntered,ISNUMBER($C67)),SUM(E67:H67,J67:K67),"") -> 101058 | O67: =IF(AND(ValuesEntered,ISNUMBER($C67)),D67-F67-J67,"") -> 45271581 | R67: 379
A68: 3 | B68: =ROWS($B$27:B68) -> 42 | C68: =IF(AND(ValuesEntered,R67>0),IF(AND(ISNUMBER(O67),R67>0),EDATE(C67,1),""),"") -> 2020-09-01 | D68: 45271581 | E68: =IF(AND(ValuesEntered,ISNUMBER(C68)),IF($E$19="時間短縮",ROUND(IPMT(VLOOKUP($C68,変動金利設定!$F$8:$G$15,2,TRUE)/12,1,$R67,$D68)*-1,0),ROUND(IPMT(VLOOKUP($C68,変動金利設定!$F$8:$G$15,2,TRUE)/12,$B68,DurationOfLoan,LoanAmount-BonusAmount-SUM(extra_payments))*-1,0))+IF($I68=0,0,ROUND(IPMT(VLOOKUP($C68,変動金利設定!$F$8:$G$15,2,TRUE)/12,COUNTIF($I$27:I68,">0"),DurationofBonus,BonusAmount)*-1,0)),"") -> 27359 | F68: =IF(AND(ValuesEntered,ISNUMBER($C68)),IF($E$19="時間短縮",ROUND(PPMT(VLOOKUP($C68,変動金利設定!$F$8:$G$15,2,TRUE)/12,1,$R67,$D68)*-1,0),ROUND(PPMT(VLOOKUP($C68,変動金利設定!$F$8:$G$15,2,TRUE)/12,$B68,DurationOfLoan,LoanAmount-BonusAmount-SUM(extra_payments))*-1,0))+IF(I68=0,0,ROUND(PPMT(VLOOKUP($C68,変動金利設定!$F$8:$G$15,2,TRUE)/12,COUNTIF($I$27:I68,">0"),DurationofBonus,BonusAmount)*-1,0)),"") -> 73699 | I68: 0 | L68: =IF(AND(ValuesEntered,ISNUMBER($C68)),SUM(E68:H68,J68:K68),"") -> 101058 | O68: =IF(AND(ValuesEntered,ISNUMBER($C68)),D68-F68-J68,"") -> 45197882 | R68: 378
A69: 3 | B69: =ROWS($B$27:B69) -> 43 | C69: =IF(AND(ValuesEntered,R68>0),IF(AND(ISNUMBER(O68),R68>0),EDATE(C68,1),""),"") -> 2020-10-01 | D69: 45197882 | E69: =IF(AND(ValuesEntered,ISNUMBER(C69)),IF($E$19="時間短縮",ROUND(IPMT(VLOOKUP($C69,変動金利設定!$F$8:$G$15,2,TRUE)/12,1,$R68,$D69)*-1,0),ROUND(IPMT(VLOOKUP($C69,変動金利設定!$F$8:$G$15,2,TRUE)/12,$B69,DurationOfLoan,LoanAmount-BonusAmount-SUM(extra_payments))*-1,0))+IF($I69=0,0,ROUND(IPMT(VLOOKUP($C69,変動金利設定!$F$8:$G$15,2,TRUE)/12,COUNTIF($I$27:I69,">0"),DurationofBonus,BonusAmount)*-1,0)),"") -> 27297 | F69: =IF(AND(ValuesEntered,ISNUMBER($C69)),IF($E$19="時間短縮",ROUND(PPMT(VLOOKUP($C69,変動金利設定!$F$8:$G$15,2,TRUE)/12,1,$R68,$D69)*-1,0),ROUND(PPMT(VLOOKUP($C69,変動金利設定!$F$8:$G$15,2,TRUE)/12,$B69,DurationOfLoan,LoanAmount-BonusAmount-SUM(extra_payments))*-1,0))+IF(I69=0,0,ROUND(PPMT(VLOOKUP($C69,変動金利設定!$F$8:$G$15,2,TRUE)/12,COUNTIF($I$27:I69,">0"),DurationofBonus,BonusAmount)*-1,0)),"") -> 73761 | I69: 0 | L69: =IF(AND(ValuesEntered,ISNUMBER($C69)),SUM(E69:H69,J69:K69),"") -> 101058 | O69: =IF(AND(ValuesEntered,ISNUMBER($C69)),D69-F69-J69,"") -> 45124121 | R69: 377
A70: 3 | B70: =ROWS($B$27:B70) -> 44 | C70: =IF(AND(ValuesEntered,R69>0),IF(AND(ISNUMBER(O69),R69>0),EDATE(C69,1),""),"") -> 2020-11-01 | D70: 45124121 | E70: =IF(AND(ValuesEntered,ISNUMBER(C70)),IF($E$19="時間短縮",ROUND(IPMT(VLOOKUP($C70,変動金利設定!$F$8:$G$15,2,TRUE)/12,1,$R69,$D70)*-1,0),ROUND(IPMT(VLOOKUP($C70,変動金利設定!$F$8:$G$15,2,TRUE)/12,$B70,DurationOfLoan,LoanAmount-BonusAmount-SUM(extra_payments))*-1,0))+IF($I70=0,0,ROUND(IPMT(VLOOKUP($C70,変動金利設定!$F$8:$G$15,2,TRUE)/12,COUNTIF($I$27:I70,">0"),DurationofBonus,BonusAmount)*-1,0)),"") -> 27236 | F70: =IF(AND(ValuesEntered,ISNUMBER($C70)),IF($E$19="時間短縮",ROUND(PPMT(VLOOKUP($C70,変動金利設定!$F$8:$G$15,2,TRUE)/12,1,$R69,$D70)*-1,0),ROUND(PPMT(VLOOKUP($C70,変動金利設定!$F$8:$G$15,2,TRUE)/12,$B70,DurationOfLoan,LoanAmount-BonusAmount-SUM(extra_payments))*-1,0))+IF(I70=0,0,ROUND(PPMT(VLOOKUP($C70,変動金利設定!$F$8:$G$15,2,TRUE)/12,COUNTIF($I$27:I70,">0"),DurationofBonus,BonusAmount)*-1,0)),"") -> 73822 | I70: 0 | L70: =IF(AND(ValuesEntered,ISNUMBER($C70)),SUM(E70:H70,J70:K70),"") -> 101058 | O70: =IF(AND(ValuesEntered,ISNUMBER($C70)),D70-F70-J70,"") -> 45050299 | R70: 376
A71: 3 | B71: =ROWS($B$27:B71) -> 45 | C71: =IF(AND(ValuesEntered,R70>0),IF(AND(ISNUMBER(O70),R70>0),EDATE(C70,1),""),"") -> 2020-12-01 | D71: 45050299 | E71: =IF(AND(ValuesEntered,ISNUMBER(C71)),IF($E$19="時間短縮",ROUND(IPMT(VLOOKUP($C71,変動金利設定!$F$8:$G$15,2,TRUE)/12,1,$R70,$D71)*-1,0),ROUND(IPMT(VLOOKUP($C71,変動金利設定!$F$8:$G$15,2,TRUE)/12,$B71,DurationOfLoan,LoanAmount-BonusAmount-SUM(extra_payments))*-1,0))+IF($I71=0,0,ROUND(IPMT(VLOOKUP($C71,変動金利設定!$F$8:$G$15,2,TRUE)/12,COUNTIF($I$27:I71,">0"),DurationofBonus,BonusAmount)*-1,0)),"") -> 27174 | F71: =IF(AND(ValuesEntered,ISNUMBER($C71)),IF($E$19="時間短縮",ROUND(PPMT(VLOOKUP($C71,変動金利設定!$F$8:$G$15,2,TRUE)/12,1,$R70,$D71)*-1,0),ROUND(PPMT(VLOOKUP($C71,変動金利設定!$F$8:$G$15,2,TRUE)/12,$B71,DurationOfLoan,LoanAmount-BonusAmount-SUM(extra_payments))*-1,0))+IF(I71=0,0,ROUND(PPMT(VLOOKUP($C71,変動金利設定!$F$8:$G$15,2,TRUE)/12,COUNTIF($I$27:I71,">0"),DurationofBonus,BonusAmount)*-1,0)),"") -> 73884 | I71: 0 | L71: =IF(AND(ValuesEntered,ISNUMBER($C71)),SUM(E71:H71,J71:K71),"") -> 101058 | O71: =IF(AND(ValuesEntered,ISNUMBER($C71)),D71-F71-J71,"") -> 44976415 | R71: 375
A72: 4 | B72: =ROWS($B$27:B72) -> 46 | C72: =IF(AND(ValuesEntered,R71>0),IF(AND(ISNUMBER(O71),R71>0),EDATE(C71,1),""),"") -> 2021-01-01 | D72: 44976415 | E72: =IF(AND(ValuesEntered,ISNUMBER(C72)),IF($E$19="時間短縮",ROUND(IPMT(VLOOKUP($C72,変動金利設定!$F$8:$G$15,2,TRUE)/12,1,$R71,$D72)*-1,0),ROUND(IPMT(VLOOKUP($C72,変動金利設定!$F$8:$G$15,2,TRUE)/12,$B72,DurationOfLoan,LoanAmount-BonusAmount-SUM(extra_payments))*-1,0))+IF($I72=0,0,ROUND(IPMT(VLOOKUP($C72,変動金利設定!$F$8:$G$15,2,TRUE)/12,COUNTIF($I$27:I72,">0"),DurationofBonus,BonusAmount)*-1,0)),"") -> 27113 | F72: =IF(AND(ValuesEntered,ISNUMBER($C72)),IF($E$19="時間短縮",ROUND(PPMT(VLOOKUP($C72,変動金利設定!$F$8:$G$15,2,TRUE)/12,1,$R71,$D72)*-1,0),ROUND(PPMT(VLOOKUP($C72,変動金利設定!$F$8:$G$15,2,TRUE)/12,$B72,DurationOfLoan,LoanAmount-BonusAmount-SUM(extra_payments))*-1,0))+IF(I72=0,0,ROUND(PPMT(VLOOKUP($C72,変動金利設定!$F$8:$G$15,2,TRUE)/12,COUNTIF($I$27:I72,">0"),DurationofBonus,BonusAmount)*-1,0)),"") -> 73945 | I72: 0 | L72: =IF(AND(ValuesEntered,ISNUMBER($C72)),SUM(E72:H72,J72:K72),"") -> 101058 | O72: =IF(AND(ValuesEntered,ISNUMBER($C72)),D72-F72-J72,"") -> 44902470 | R72: 374
A73: 4 | B73: =ROWS($B$27:B73) -> 47 | C73: =IF(AND(ValuesEntered,R72>0),IF(AND(ISNUMBER(O72),R72>0),EDATE(C72,1),""),"") -> 2021-02-01 | D73: 44902470 | E73: =IF(AND(ValuesEntered,ISNUMBER(C73)),IF($E$19="時間短縮",ROUND(IPMT(VLOOKUP($C73,変動金利設定!$F$8:$G$15,2,TRUE)/12,1,$R72,$D73)*-1,0),ROUND(IPMT(VLOOKUP($C73,変動金利設定!$F$8:$G$15,2,TRUE)/12,$B73,DurationOfLoan,LoanAmount-BonusAmount-SUM(extra_payments))*-1,0))+IF($I73=0,0,ROUND(IPMT(VLOOKUP($C73,変動金利設定!$F$8:$G$15,2,TRUE)/12,COUNTIF($I$27:I73,">0"),DurationofBonus,BonusAmount)*-1,0)),"") -> 27051 | F73: =IF(AND(ValuesEntered,ISNUMBER($C73)),IF($E$19="時間短縮",ROUND(PPMT(VLOOKUP($C73,変動金利設定!$F$8:$G$15,2,TRUE)/12,1,$R72,$D73)*-1,0),ROUND(PPMT(VLOOKUP($C73,変動金利設定!$F$8:$G$15,2,TRUE)/12,$B73,DurationOfLoan,LoanAmount-BonusAmount-SUM(extra_payments))*-1,0))+IF(I73=0,0,ROUND(PPMT(VLOOKUP($C73,変動金利設定!$F$8:$G$15,2,TRUE)/12,COUNTIF($I$27:I73,">0"),DurationofBonus,BonusAmount)*-1,0)),"") -> 74007 | I73: 0 | L73: =IF(AND(ValuesEntered,ISNUMBER($C73)),SUM(E73:H73,J73:K73),"") -> 101058 | O73: =IF(AND(ValuesEntered,ISNUMBER($C73)),D73-F73-J73,"") -> 44828463 | R73: 373
A74: 4 | B74: =ROWS($B$27:B74) -> 48 | C74: =IF(AND(ValuesEntered,R73>0),IF(AND(ISNUMBER(O73),R73>0),EDATE(C73,1),""),"") -> 2021-03-01 | D74: 44828463 | E74: =IF(AND(ValuesEntered,ISNUMBER(C74)),IF($E$19="時間短縮",ROUND(IPMT(VLOOKUP($C74,変動金利設定!$F$8:$G$15,2,TRUE)/12,1,$R73,$D74)*-1,0),ROUND(IPMT(VLOOKUP($C74,変動金利設定!$F$8:$G$15,2,TRUE)/12,$B74,DurationOfLoan,LoanAmount-BonusAmount-SUM(extra_payments))*-1,0))+IF($I74=0,0,ROUND(IPMT(VLOOKUP($C74,変動金利設定!$F$8:$G$15,2,TRUE)/12,COUNTIF($I$27:I74,">0"),DurationofBonus,BonusAmount)*-1,0)),"") -> 26990 | F74: =IF(AND(ValuesEntered,ISNUMBER($C74)),IF($E$19="時間短縮",ROUND(PPMT(VLOOKUP($C74,変動金利設定!$F$8:$G$15,2,TRUE)/12,1,$R73,$D74)*-1,0),ROUND(PPMT(VLOOKUP($C74,変動金利設定!$F$8:$G$15,2,TRUE)/12,$B74,DurationOfLoan,LoanAmount-BonusAmount-SUM(extra_payments))*-1,0))+IF(I74=0,0,ROUND(PPMT(VLOOKUP($C74,変動金利設定!$F$8:$G$15,2,TRUE)/12,COUNTIF($I$27:I74,">0"),DurationofBonus,BonusAmount)*-1,0)),"") -> 74069 | I74: 0 | L74: =IF(AND(ValuesEntered,ISNUMBER($C74)),SUM(E74:H74,J74:K74),"") -> 101059 | O74: =IF(AND(ValuesEntered,ISNUMBER($C74)),D74-F74-J74,"") -> 44754394 | R74: 372
A75: 4 | B75: =ROWS($B$27:B75) -> 49 | C75: =IF(AND(ValuesEntered,R74>0),IF(AND(ISNUMBER(O74),R74>0),EDATE(C74,1),""),"") -> 2021-04-01 | D75: 44754394 | E75: =IF(AND(ValuesEntered,ISNUMBER(C75)),IF($E$19="時間短縮",ROUND(IPMT(VLOOKUP($C75,変動金利設定!$F$8:$G$15,2,TRUE)/12,1,$R74,$D75)*-1,0),ROUND(IPMT(VLOOKUP($C75,変動金利設定!$F$8:$G$15,2,TRUE)/12,$B75,DurationOfLoan,LoanAmount-BonusAmount-SUM(extra_payments))*-1,0))+IF($I75=0,0,ROUND(IPMT(VLOOKUP($C75,変動金利設定!$F$8:$G$15,2,TRUE)/12,COUNTIF($I$27:I75,">0"),DurationofBonus,BonusAmount)*-1,0)),"") -> 37296 | F75: =IF(AND(ValuesEntered,ISNUMBER($C75)),IF($E$19="時間短縮",ROUND(PPMT(VLOOKUP($C75,変動金利設定!$F$8:$G$15,2,TRUE)/12,1,$R74,$D75)*-1,0),ROUND(PPMT(VLOOKUP($C75,変動金利設定!$F$8:$G$15,2,TRUE)/12,$B75,DurationOfLoan,LoanAmount-BonusAmount-SUM(extra_payments))*-1,0))+IF(I75=0,0,ROUND(PPMT(VLOOKUP($C75,変動金利設定!$F$8:$G$15,2,TRUE)/12,COUNTIF($I$27:I75,">0"),DurationofBonus,BonusAmount)*-1,0)),"") -> 269736 | I75: 200000 | L75: =IF(AND(ValuesEntered,ISNUMBER($C75)),SUM(E75:H75,J75:K75),"") -> 307032 | O75: =IF(AND(ValuesEntered,ISNUMBER($C75)),D75-F75-J75,"") -> 44484658 | R75: 371
A76: 4 | B76: =ROWS($B$27:B76) -> 50 | C76: =IF(AND(ValuesEntered,R75>0),IF(AND(ISNUMBER(O75),R75>0),EDATE(C75,1),""),"") -> 2021-05-01 | D76: 44484658 | E76: =IF(AND(ValuesEntered,ISNUMBER(C76)),IF($E$19="時間短縮",ROUND(IPMT(VLOOKUP($C76,変動金利設定!$F$8:$G$15,2,TRUE)/12,1,$R75,$D76)*-1,0),ROUND(IPMT(VLOOKUP($C76,変動金利設定!$F$8:$G$15,2,TRUE)/12,$B76,DurationOfLoan,LoanAmount-BonusAmount-SUM(extra_payments))*-1,0))+IF($I76=0,0,ROUND(IPMT(VLOOKUP($C76,変動金利設定!$F$8:$G$15,2,TRUE)/12,COUNTIF($I$27:I76,">0"),DurationofBonus,BonusAmount)*-1,0)),"") -> 26866 | F76: =IF(AND(ValuesEntered,ISNUMBER($C76)),IF($E$19="時間短縮",ROUND(PPMT(VLOOKUP($C76,変動金利設定!$F$8:$G$15,2,TRUE)/12,1,$R75,$D76)*-1,0),ROUND(PPMT(VLOOKUP($C76,変動金利設定!$F$8:$G$15,2,TRUE)/12,$B76,DurationOfLoan,LoanAmount-BonusAmount-SUM(extra_payments))*-1,0))+IF(I76=0,0,ROUND(PPMT(VLOOKUP($C76,変動金利設定!$F$8:$G$15,2,TRUE)/12,COUNTIF($I$27:I76,">0"),DurationofBonus,BonusAmount)*-1,0)),"") -> 74192 | I76: 0 | L76: =IF(AND(ValuesEntered,ISNUMBER($C76)),SUM(E76:H76,J76:K76),"") -> 101058 | O76: =IF(AND(ValuesEntered,ISNUMBER($C76)),D76-F76-J76,"") -> 44410466 | R76: 370
A77: 4 | B77: =ROWS($B$27:B77) -> 51 | C77: =IF(AND(ValuesEntered,R76>0),IF(AND(ISNUMBER(O76),R76>0),EDATE(C76,1),""),"") -> 2021-06-01 | D77: 44410466 | E77: =IF(AND(ValuesEntered,ISNUMBER(C77)),IF($E$19="時間短縮",ROUND(IPMT(VLOOKUP($C77,変動金利設定!$F$8:$G$15,2,TRUE)/12,1,$R76,$D77)*-1,0),ROUND(IPMT(VLOOKUP($C77,変動金利設定!$F$8:$G$15,2,TRUE)/12,$B77,DurationOfLoan,LoanAmount-BonusAmount-SUM(extra_payments))*-1,0))+IF($I77=0,0,ROUND(IPMT(VLOOKUP($C77,変動金利設定!$F$8:$G$15,2,TRUE)/12,COUNTIF($I$27:I77,">0"),DurationofBonus,BonusAmount)*-1,0)),"") -> 26804 | F77: =IF(AND(ValuesEntered,ISNUMBER($C77)),IF($E$19="時間短縮",ROUND(PPMT(VLOOKUP($C77,変動金利設定!$F$8:$G$15,2,TRUE)/12,1,$R76,$D77)*-1,0),ROUND(PPMT(VLOOKUP($C77,変動金利設定!$F$8:$G$15,2,TRUE)/12,$B77,DurationOfLoan,LoanAmount-BonusAmount-SUM(extra_payments))*-1,0))+IF(I77=0,0,ROUND(PPMT(VLOOKUP($C77,変動金利設定!$F$8:$G$15,2,TRUE)/12,COUNTIF($I$27:I77,">0"),DurationofBonus,BonusAmount)*-1,0)),"") -> 74254 | I77: 0 | L77: =IF(AND(ValuesEntered,ISNUMBER($C77)),SUM(E77:H77,J77:K77),"") -> 101058 | O77: =IF(AND(ValuesEntered,ISNUMBER($C77)),D77-F77-J77,"") -> 44336212 | R77: 369
A78: 4 | B78: =ROWS($B$27:B78) -> 52 | C78: =IF(AND(ValuesEntered,R77>0),IF(AND(ISNUMBER(O77),R77>0),EDATE(C77,1),""),"") -> 2021-07-01 | D78: 44336212 | E78: =IF(AND(ValuesEntered,ISNUMBER(C78)),IF($E$19="時間短縮",ROUND(IPMT(VLOOKUP($C78,変動金利設定!$F$8:$G$15,2,TRUE)/12,1,$R77,$D78)*-1,0),ROUND(IPMT(VLOOKUP($C78,変動金利設定!$F$8:$G$15,2,TRUE)/12,$B78,DurationOfLoan,LoanAmount-BonusAmount-SUM(extra_payments))*-1,0))+IF($I78=0,0,ROUND(IPMT(VLOOKUP($C78,変動金利設定!$F$8:$G$15,2,TRUE)/12,COUNTIF($I$27:I78,">0"),DurationofBonus,BonusAmount)*-1,0)),"") -> 36946 | F78: =IF(AND(ValuesEntered,ISNUMBER($C78)),IF($E$19="時間短縮",ROUND(PPMT(VLOOKUP($C78,変動金利設定!$F$8:$G$15,2,TRUE)/12,1,$R77,$D78)*-1,0),ROUND(PPMT(VLOOKUP($C78,変動金利設定!$F$8:$G$15,2,TRUE)/12,$B78,DurationOfLoan,LoanAmount-BonusAmount-SUM(extra_payments))*-1,0))+IF(I78=0,0,ROUND(PPMT(VLOOKUP($C78,変動金利設定!$F$8:$G$15,2,TRUE)/12,COUNTIF($I$27:I78,">0"),DurationofBonus,BonusAmount)*-1,0)),"") -> 270085 | I78: 200000 | L78: =IF(AND(ValuesEntered,ISNUMBER($C78)),SUM(E78:H78,J78:K78),"") -> 307031 | O78: =IF(AND(ValuesEntered,ISNUMBER($C78)),D78-F78-J78,"") -> 44066127 | R78: 368
A79: 4 | B79: =ROWS($B$27:B79) -> 53 | C79: =IF(AND(ValuesEntered,R78>0),IF(AND(ISNUMBER(O78),R78>0),EDATE(C78,1),""),"") -> 2021-08-01 | D79: 44066127 | E79: =IF(AND(ValuesEntered,ISNUMBER(C79)),IF($E$19="時間短縮",ROUND(IPMT(VLOOKUP($C79,変動金利設定!$F$8:$G$15,2,TRUE)/12,1,$R78,$D79)*-1,0),ROUND(IPMT(VLOOKUP($C79,変動金利設定!$F$8:$G$15,2,TRUE)/12,$B79,DurationOfLoan,LoanAmount-BonusAmount-SUM(extra_payments))*-1,0))+IF($I79=0,0,ROUND(IPMT(VLOOKUP($C79,変動金利設定!$F$8:$G$15,2,TRUE)/12,COUNTIF($I$27:I79,">0"),DurationofBonus,BonusAmount)*-1,0)),"") -> 26680 | F79: =IF(AND(ValuesEntered,ISNUMBER($C79)),IF($E$19="時間短縮",ROUND(PPMT(VLOOKUP($C79,変動金利設定!$F$8:$G$15,2,TRUE)/12,1,$R78,$D79)*-1,0),ROUND(PPMT(VLOOKUP($C79,変動金利設定!$F$8:$G$15,2,TRUE)/12,$B79,DurationOfLoan,LoanAmount-BonusAmount-SUM(extra_payments))*-1,0))+IF(I79=0,0,ROUND(PPMT(VLOOKUP($C79,変動金利設定!$F$8:$G$15,2,TRUE)/12,COUNTIF($I$27:I79,">0"),DurationofBonus,BonusAmount)*-1,0)),"") -> 74378 | I79: 0 | L79: =IF(AND(ValuesEntered,ISNUMBER($C79)),SUM(E79:H79,J79:K79),"") -> 101058 | O79: =IF(AND(ValuesEntered,ISNUMBER($C79)),D79-F79-J79,"") -> 43991749 | R79: 367
A80: 4 | B80: =ROWS($B$27:B80) -> 54 | C80: =IF(AND(ValuesEntered,R79>0),IF(AND(ISNUMBER(O79),R79>0),EDATE(C79,1),""),"") -> 2021-09-01 | D80: 43991749 | E80: =IF(AND(ValuesEntered,ISNUMBER(C80)),IF($E$19="時間短縮",ROUND(IPMT(VLOOKUP($C80,変動金利設定!$F$8:$G$15,2,TRUE)/12,1,$R79,$D80)*-1,0),ROUND(IPMT(VLOOKUP($C80,変動金利設定!$F$8:$G$15,2,TRUE)/12,$B80,DurationOfLoan,LoanAmount-BonusAmount-SUM(extra_payments))*-1,0))+IF($I80=0,0,ROUND(IPMT(VLOOKUP($C80,変動金利設定!$F$8:$G$15,2,TRUE)/12,COUNTIF($I$27:I80,">0"),DurationofBonus,BonusAmount)*-1,0)),"") -> 26618 | F80: =IF(AND(ValuesEntered,ISNUMBER($C80)),IF($E$19="時間短縮",ROUND(PPMT(VLOOKUP($C80,変動金利設定!$F$8:$G$15,2,TRUE)/12,1,$R79,$D80)*-1,0),ROUND(PPMT(VLOOKUP($C80,変動金利設定!$F$8:$G$15,2,TRUE)/12,$B80,DurationOfLoan,LoanAmount-BonusAmount-SUM(extra_payments))*-1,0))+IF(I80=0,0,ROUND(PPMT(VLOOKUP($C80,変動金利設定!$F$8:$G$15,2,TRUE)/12,COUNTIF($I$27:I80,">0"),DurationofBonus,BonusAmount)*-1,0)),"") -> 74440 | I80: 0 | L80: =IF(AND(ValuesEntered,ISNUMBER($C80)),SUM(E80:H80,J80:K80),"") -> 101058 | O80: =IF(AND(ValuesEntered,ISNUMBER($C80)),D80-F80-J80,"") -> 43917309 | R80: 366
A81: 4 | B81: =ROWS($B$27:B81) -> 55 | C81: =IF(AND(ValuesEntered,R80>0),IF(AND(ISNUMBER(O80),R80>0),EDATE(C80,1),""),"") -> 2021-10-01 | D81: 43917309 | E81: =IF(AND(ValuesEntered,ISNUMBER(C81)),IF($E$19="時間短縮",ROUND(IPMT(VLOOKUP($C81,変動金利設定!$F$8:$G$15,2,TRUE)/12,1,$R80,$D81)*-1,0),ROUND(IPMT(VLOOKUP($C81,変動金利設定!$F$8:$G$15,2,TRUE)/12,$B81,DurationOfLoan,LoanAmount-BonusAmount-SUM(extra_payments))*-1,0))+IF($I81=0,0,ROUND(IPMT(VLOOKUP($C81,変動金利設定!$F$8:$G$15,2,TRUE)/12,COUNTIF($I$27:I81,">0"),DurationofBonus,BonusAmount)*-1,0)),"") -> 26556 | F81: =IF(AND(ValuesEntered,ISNUMBER($C81)),IF($E$19="時間短縮",ROUND(PPMT(VLOOKUP($C81,変動金利設定!$F$8:$G$15,2,TRUE)/12,1,$R80,$D81)*-1,0),ROUND(PPMT(VLOOKUP($C81,変動金利設定!$F$8:$G$15,2,TRUE)/12,$B81,DurationOfLoan,LoanAmount-BonusAmount-SUM(extra_payments))*-1,0))+IF(I81=0,0,ROUND(PPMT(VLOOKUP($C81,変動金利設定!$F$8:$G$15,2,TRUE)/12,COUNTIF($I$27:I81,">0"),DurationofBonus,BonusAmount)*-1,0)),"") -> 74502 | I81: 0 | L81: =IF(AND(ValuesEntered,ISNUMBER($C81)),SUM(E81:H81,J81:K81),"") -> 101058 | O81: =IF(AND(ValuesEntered,ISNUMBER($C81)),D81-F81-J81,"") -> 43842807 | R81: 365
A82: 4 | B82: =ROWS($B$27:B82) -> 56 | C82: =IF(AND(ValuesEntered,R81>0),IF(AND(ISNUMBER(O81),R81>0),EDATE(C81,1),""),"") -> 2021-11-01 | D82: 43842807 | E82: =IF(AND(ValuesEntered,ISNUMBER(C82)),IF($E$19="時間短縮",ROUND(IPMT(VLOOKUP($C82,変動金利設定!$F$8:$G$15,2,TRUE)/12,1,$R81,$D82)*-1,0),ROUND(IPMT(VLOOKUP($C82,変動金利設定!$F$8:$G$15,2,TRUE)/12,$B82,DurationOfLoan,LoanAmount-BonusAmount-SUM(extra_payments))*-1,0))+IF($I82=0,0,ROUND(IPMT(VLOOKUP($C82,変動金利設定!$F$8:$G$15,2,TRUE)/12,COUNTIF($I$27:I82,">0"),DurationofBonus,BonusAmount)*-1,0)),"") -> 26494 | F82: =IF(AND(ValuesEntered,ISNUMBER($C82)),IF($E$19="時間短縮",ROUND(PPMT(VLOOKUP($C82,変動金利設定!$F$8:$G$15,2,TRUE)/12,1,$R81,$D82)*-1,0),ROUND(PPMT(VLOOKUP($C82,変動金利設定!$F$8:$G$15,2,TRUE)/12,$B82,DurationOfLoan,LoanAmount-BonusAmount-SUM(extra_payments))*-1,0))+IF(I82=0,0,ROUND(PPMT(VLOOKUP($C82,変動金利設定!$F$8:$G$15,2,TRUE)/12,COUNTIF($I$27:I82,">0"),DurationofBonus,BonusAmount)*-1,0)),"") -> 74564 | I82: 0 | L82: =IF(AND(ValuesEntered,ISNUMBER($C82)),SUM(E82:H82,J82:K82),"") -> 101058 | O82: =IF(AND(ValuesEntered,ISNUMBER($C82)),D82-F82-J82,"") -> 43768243 | R82: 364
A83: 4 | B83: =ROWS($B$27:B83) -> 57 | C83: =IF(AND(ValuesEntered,R82>0),IF(AND(ISNUMBER(O82),R82>0),EDATE(C82,1),""),"") -> 2021-12-01 | D83: 43768243 | E83: =IF(AND(ValuesEntered,ISNUMBER(C83)),IF($E$19="時間短縮",ROUND(IPMT(VLOOKUP($C83,変動金利設定!$F$8:$G$15,2,TRUE)/12,1,$R82,$D83)*-1,0),ROUND(IPMT(VLOOKUP($C83,変動金利設定!$F$8:$G$15,2,TRUE)/12,$B83,DurationOfLoan,LoanAmount-BonusAmount-SUM(extra_payments))*-1,0))+IF($I83=0,0,ROUND(IPMT(VLOOKUP($C83,変動金利設定!$F$8:$G$15,2,TRUE)/12,COUNTIF($I$27:I83,">0"),DurationofBonus,BonusAmount)*-1,0)),"") -> 26432 | F83: =IF(AND(ValuesEntered,ISNUMBER($C83)),IF($E$19="時間短縮",ROUND(PPMT(VLOOKUP($C83,変動金利設定!$F$8:$G$15,2,TRUE)/12,1,$R82,$D83)*-1,0),ROUND(PPMT(VLOOKUP($C83,変動金利設定!$F$8:$G$15,2,TRUE)/12,$B83,DurationOfLoan,LoanAmount-BonusAmount-SUM(extra_payments))*-1,0))+IF(I83=0,0,ROUND(PPMT(VLOOKUP($C83,変動金利設定!$F$8:$G$15,2,TRUE)/12,COUNTIF($I$27:I83,">0"),DurationofBonus,BonusAmount)*-1,0)),"") -> 74626 | I83: 0 | L83: =IF(AND(ValuesEntered,ISNUMBER($C83)),SUM(E83:H83,J83:K83),"") -> 101058 | O83: =IF(AND(ValuesEntered,ISNUMBER($C83)),D83-F83-J83,"") -> 43693617 | R83: 363
A84: 5 | B84: =ROWS($B$27:B84) -> 58 | C84: =IF(AND(ValuesEntered,R83>0),IF(AND(ISNUMBER(O83),R83>0),EDATE(C83,1),""),"") -> 2022-01-01 | D84: 43693617 | E84: =IF(AND(ValuesEntered,ISNUMBER(C84)),IF($E$19="時間短縮",ROUND(IPMT(VLOOKUP($C84,変動金利設定!$F$8:$G$15,2,TRUE)/12,1,$R83,$D84)*-1,0),ROUND(IPMT(VLOOKUP($C84,変動金利設定!$F$8:$G$15,2,TRUE)/12,$B84,DurationOfLoan,LoanAmount-BonusAmount-SUM(extra_payments))*-1,0))+IF($I84=0,0,ROUND(IPMT(VLOOKUP($C84,変動金利設定!$F$8:$G$15,2,TRUE)/12,COUNTIF($I$27:I84,">0"),DurationofBonus,BonusAmount)*-1,0)),"") -> 26370 | F84: =IF(AND(ValuesEntered,ISNUMBER($C84)),IF($E$19="時間短縮",ROUND(PPMT(VLOOKUP($C84,変動金利設定!$F$8:$G$15,2,TRUE)/12,1,$R83,$D84)*-1,0),ROUND(PPMT(VLOOKUP($C84,変動金利設定!$F$8:$G$15,2,TRUE)/12,$B84,DurationOfLoan,LoanAmount-BonusAmount-SUM(extra_payments))*-1,0))+IF(I84=0,0,ROUND(PPMT(VLOOKUP($C84,変動金利設定!$F$8:$G$15,2,TRUE)/12,COUNTIF($I$27:I84,">0"),DurationofBonus,BonusAmount)*-1,0)),"") -> 74688 | I84: 0 | L84: =IF(AND(ValuesEntered,ISNUMBER($C84)),SUM(E84:H84,J84:K84),"") -> 101058 | O84: =IF(AND(ValuesEntered,ISNUMBER($C84)),D84-F84-J84,"") -> 43618929 | R84: 362
A85: 5 | B85: =ROWS($B$27:B85) -> 59 | C85: =IF(AND(ValuesEntered,R84>0),IF(AND(ISNUMBER(O84),R84>0),EDATE(C84,1),""),"") -> 2022-02-01 | D85: 43618929 | E85: =IF(AND(ValuesEntered,ISNUMBER(C85)),IF($E$19="時間短縮",ROUND(IPMT(VLOOKUP($C85,変動金利設定!$F$8:$G$15,2,TRUE)/12,1,$R84,$D85)*-1,0),ROUND(IPMT(VLOOKUP($C85,変動金利設定!$F$8:$G$15,2,TRUE)/12,$B85,DurationOfLoan,LoanAmount-BonusAmount-SUM(extra_payments))*-1,0))+IF($I85=0,0,ROUND(IPMT(VLOOKUP($C85,変動金利設定!$F$8:$G$15,2,TRUE)/12,COUNTIF($I$27:I85,">0"),DurationofBonus,BonusAmount)*-1,0)),"") -> 26308 | F85: =IF(AND(ValuesEntered,ISNUMBER($C85)),IF($E$19="時間短縮",ROUND(PPMT(VLOOKUP($C85,変動金利設定!$F$8:$G$15,2,TRUE)/12,1,$R84,$D85)*-1,0),ROUND(PPMT(VLOOKUP($C85,変動金利設定!$F$8:$G$15,2,TRUE)/12,$B85,DurationOfLoan,LoanAmount-BonusAmount-SUM(extra_payments))*-1,0))+IF(I85=0,0,ROUND(PPMT(VLOOKUP($C85,変動金利設定!$F$8:$G$15,2,TRUE)/12,COUNTIF($I$27:I85,">0"),DurationofBonus,BonusAmount)*-1,0)),"") -> 74751 | I85: 0 | L85: =IF(AND(ValuesEntered,ISNUMBER($C85)),SUM(E85:H85,J85:K85),"") -> 101059 | O85: =IF(AND(ValuesEntered,ISNUMBER($C85)),D85-F85-J85,"") -> 43544178 | R85: 361
A86: 5 | B86: =ROWS($B$27:B86) -> 60 | C86: =IF(AND(ValuesEntered,R85>0),IF(AND(ISNUMBER(O85),R85>0),EDATE(C85,1),""),"") -> 2022-03-01 | D86: 43544178 | E86: =IF(AND(ValuesEntered,ISNUMBER(C86)),IF($E$19="時間短縮",ROUND(IPMT(VLOOKUP($C86,変動金利設定!$F$8:$G$15,2,TRUE)/12,1,$R85,$D86)*-1,0),ROUND(IPMT(VLOOKUP($C86,変動金利設定!$F$8:$G$15,2,TRUE)/12,$B86,DurationOfLoan,LoanAmount-BonusAmount-SUM(extra_payments))*-1,0))+IF($I86=0,0,ROUND(IPMT(VLOOKUP($C86,変動金利設定!$F$8:$G$15,2,TRUE)/12,COUNTIF($I$27:I86,">0"),DurationofBonus,BonusAmount)*-1,0)),"") -> 26245 | F86: =IF(AND(ValuesEntered,ISNUMBER($C86)),IF($E$19="時間短縮",ROUND(PPMT(VLOOKUP($C86,変動金利設定!$F$8:$G$15,2,TRUE)/12,1,$R85,$D86)*-1,0),ROUND(PPMT(VLOOKUP($C86,変動金利設定!$F$8:$G$15,2,TRUE)/12,$B86,DurationOfLoan,LoanAmount-BonusAmount-SUM(extra_payments))*-1,0))+IF(I86=0,0,ROUND(PPMT(VLOOKUP($C86,変動金利設定!$F$8:$G$15,2,TRUE)/12,COUNTIF($I$27:I86,">0"),DurationofBonus,BonusAmount)*-1,0)),"") -> 74813 | I86: 0 | L86: =IF(AND(ValuesEntered,ISNUMBER($C86)),SUM(E86:H86,J86:K86),"") -> 101058 | O86: =IF(AND(ValuesEntered,ISNUMBER($C86)),D86-F86-J86,"") -> 43469365 | R86: 360
A87: 5 | B87: =ROWS($B$27:B87) -> 61 | C87: =IF(AND(ValuesEntered,R86>0),IF(AND(ISNUMBER(O86),R86>0),EDATE(C86,1),""),"") -> 2022-04-01 | D87: 43469365 | E87: =IF(AND(ValuesEntered,ISNUMBER(C87)),IF($E$19="時間短縮",ROUND(IPMT(VLOOKUP($C87,変動金利設定!$F$8:$G$15,2,TRUE)/12,1,$R86,$D87)*-1,0),ROUND(IPMT(VLOOKUP($C87,変動金利設定!$F$8:$G$15,2,TRUE)/12,$B87,DurationOfLoan,LoanAmount-BonusAmount-SUM(extra_payments))*-1,0))+IF($I87=0,0,ROUND(IPMT(VLOOKUP($C87,変動金利設定!$F$8:$G$15,2,TRUE)/12,COUNTIF($I$27:I87,">0"),DurationofBonus,BonusAmount)*-1,0)),"") -> 54794 | F87: =IF(AND(ValuesEntered,ISNUMBER($C87)),IF($E$19="時間短縮",ROUND(PPMT(VLOOKUP($C87,変動金利設定!$F$8:$G$15,2,TRUE)/12,1,$R86,$D87)*-1,0),ROUND(PPMT(VLOOKUP($C87,変動金利設定!$F$8:$G$15,2,TRUE)/12,$B87,DurationOfLoan,LoanAmount-BonusAmount-SUM(extra_payments))*-1,0))+IF(I87=0,0,ROUND(PPMT(VLOOKUP($C87,変動金利設定!$F$8:$G$15,2,TRUE)/12,COUNTIF($I$27:I87,">0"),DurationofBonus,BonusAmount)*-1,0)),"") -> 263823 | I87: 200000 | L87: =IF(AND(ValuesEntered,ISNUMBER($C87)),SUM(E87:H87,J87:K87),"") -> 318617 | O87: =IF(AND(ValuesEntered,ISNUMBER($C87)),D87-F87-J87,"") -> 43205542 | R87: 359
A88: 5 | B88: =ROWS($B$27:B88) -> 62 | C88: =IF(AND(ValuesEntered,R87>0),IF(AND(ISNUMBER(O87),R87>0),EDATE(C87,1),""),"") -> 2022-05-01 | D88: 43205542 | E88: =IF(AND(ValuesEntered,ISNUMBER(C88)),IF($E$19="時間短縮",ROUND(IPMT(VLOOKUP($C88,変動金利設定!$F$8:$G$15,2,TRUE)/12,1,$R87,$D88)*-1,0),ROUND(IPMT(VLOOKUP($C88,変動金利設定!$F$8:$G$15,2,TRUE)/12,$B88,DurationOfLoan,LoanAmount-BonusAmount-SUM(extra_payments))*-1,0))+IF($I88=0,0,ROUND(IPMT(VLOOKUP($C88,変動金利設定!$F$8:$G$15,2,TRUE)/12,COUNTIF($I$27:I88,">0"),DurationofBonus,BonusAmount)*-1,0)),"") -> 39614 | F88: =IF(AND(ValuesEntered,ISNUMBER($C88)),IF($E$19="時間短縮",ROUND(PPMT(VLOOKUP($C88,変動金利設定!$F$8:$G$15,2,TRUE)/12,1,$R87,$D88)*-1,0),ROUND(PPMT(VLOOKUP($C88,変動金利設定!$F$8:$G$15,2,TRUE)/12,$B88,DurationOfLoan,LoanAmount-BonusAmount-SUM(extra_payments))*-1,0))+IF(I88=0,0,ROUND(PPMT(VLOOKUP($C88,変動金利設定!$F$8:$G$15,2,TRUE)/12,COUNTIF($I$27:I88,">0"),DurationofBonus,BonusAmount)*-1,0)),"") -> 70000 | I88: 0 | L88: =IF(AND(ValuesEntered,ISNUMBER($C88)),SUM(E88:H88,J88:K88),"") -> 109614 | O88: =IF(AND(ValuesEntered,ISNUMBER($C88)),D88-F88-J88,"") -> 43135542 | R88: 358
A89: 5 | B89: =ROWS($B$27:B89) -> 63 | C89: =IF(AND(ValuesEntered,R88>0),IF(AND(ISNUMBER(O88),R88>0),EDATE(C88,1),""),"") -> 2022-06-01 | D89: 43135542 | E89: =IF(AND(ValuesEntered,ISNUMBER(C89)),IF($E$19="時間短縮",ROUND(IPMT(VLOOKUP($C89,変動金利設定!$F$8:$G$15,2,TRUE)/12,1,$R88,$D89)*-1,0),ROUND(IPMT(VLOOKUP($C89,変動金利設定!$F$8:$G$15,2,TRUE)/12,$B89,DurationOfLoan,LoanAmount-BonusAmount-SUM(extra_payments))*-1,0))+IF($I89=0,0,ROUND(IPMT(VLOOKUP($C89,変動金利設定!$F$8:$G$15,2,TRUE)/12,COUNTIF($I$27:I89,">0"),DurationofBonus,BonusAmount)*-1,0)),"") -> 39527 | F89: =IF(AND(ValuesEntered,ISNUMBER($C89)),IF($E$19="時間短縮",ROUND(PPMT(VLOOKUP($C89,変動金利設定!$F$8:$G$15,2,TRUE)/12,1,$R88,$D89)*-1,0),ROUND(PPMT(VLOOKUP($C89,変動金利設定!$F$8:$G$15,2,TRUE)/12,$B89,DurationOfLoan,LoanAmount-BonusAmount-SUM(extra_payments))*-1,0))+IF(I89=0,0,ROUND(PPMT(VLOOKUP($C89,変動金利設定!$F$8:$G$15,2,TRUE)/12,COUNTIF($I$27:I89,">0"),DurationofBonus,BonusAmount)*-1,0)),"") -> 70088 | I89: 0 | L89: =IF(AND(ValuesEntered,ISNUMBER($C89)),SUM(E89:H89,J89:K89),"") -> 109615 | O89: =IF(AND(ValuesEntered,ISNUMBER($C89)),D89-F89-J89,"") -> 43065454 | R89: 357
A90: 5 | B90: =ROWS($B$27:B90) -> 64 | C90: =IF(AND(ValuesEntered,R89>0),IF(AND(ISNUMBER(O89),R89>0),EDATE(C89,1),""),"") -> 2022-07-01 | D90: 43065454 | E90: =IF(AND(ValuesEntered,ISNUMBER(C90)),IF($E$19="時間短縮",ROUND(IPMT(VLOOKUP($C90,変動金利設定!$F$8:$G$15,2,TRUE)/12,1,$R89,$D90)*-1,0),ROUND(IPMT(VLOOKUP($C90,変動金利設定!$F$8:$G$15,2,TRUE)/12,$B90,DurationOfLoan,LoanAmount-BonusAmount-SUM(extra_payments))*-1,0))+IF($I90=0,0,ROUND(IPMT(VLOOKUP($C90,変動金利設定!$F$8:$G$15,2,TRUE)/12,COUNTIF($I$27:I90,">0"),DurationofBonus,BonusAmount)*-1,0)),"") -> 54289 | F90: =IF(AND(ValuesEntered,ISNUMBER($C90)),IF($E$19="時間短縮",ROUND(PPMT(VLOOKUP($C90,変動金利設定!$F$8:$G$15,2,TRUE)/12,1,$R89,$D90)*-1,0),ROUND(PPMT(VLOOKUP($C90,変動金利設定!$F$8:$G$15,2,TRUE)/12,$B90,DurationOfLoan,LoanAmount-BonusAmount-SUM(extra_payments))*-1,0))+IF(I90=0,0,ROUND(PPMT(VLOOKUP($C90,変動金利設定!$F$8:$G$15,2,TRUE)/12,COUNTIF($I$27:I90,">0"),DurationofBonus,BonusAmount)*-1,0)),"") -> 264327 | I90: 200000 | L90: =IF(AND(ValuesEntered,ISNUMBER($C90)),SUM(E90:H90,J90:K90),"") -> 318616 | O90: =IF(AND(ValuesEntered,ISNUMBER($C90)),D90-F90-J90,"") -> 42801127 | R90: 356
A91: 5 | B91: =ROWS($B$27:B91) -> 65 | C91: =IF(AND(ValuesEntered,R90>0),IF(AND(ISNUMBER(O90),R90>0),EDATE(C90,1),""),"") -> 2022-08-01 | D91: 42801127 | E91: =IF(AND(ValuesEntered,ISNUMBER(C91)),IF($E$19="時間短縮",ROUND(IPMT(VLOOKUP($C91,変動金利設定!$F$8:$G$15,2,TRUE)/12,1,$R90,$D91)*-1,0),ROUND(IPMT(VLOOKUP($C91,変動金利設定!$F$8:$G$15,2,TRUE)/12,$B91,DurationOfLoan,LoanAmount-BonusAmount-SUM(extra_payments))*-1,0))+IF($I91=0,0,ROUND(IPMT(VLOOKUP($C91,変動金利設定!$F$8:$G$15,2,TRUE)/12,COUNTIF($I$27:I91,">0"),DurationofBonus,BonusAmount)*-1,0)),"") -> 39351 | F91: =IF(AND(ValuesEntered,ISNUMBER($C91)),IF($E$19="時間短縮",ROUND(PPMT(VLOOKUP($C91,変動金利設定!$F$8:$G$15,2,TRUE)/12,1,$R90,$D91)*-1,0),ROUND(PPMT(VLOOKUP($C91,変動金利設定!$F$8:$G$15,2,TRUE)/12,$B91,DurationOfLoan,LoanAmount-BonusAmount-SUM(extra_payments))*-1,0))+IF(I91=0,0,ROUND(PPMT(VLOOKUP($C91,変動金利設定!$F$8:$G$15,2,TRUE)/12,COUNTIF($I$27:I91,">0"),DurationofBonus,BonusAmount)*-1,0)),"") -> 70263 | I91: =IF(ISNUMBER(C91)=FALSE,"",IF(AND(D91>$E$15,OR(MONTH(C91)=$E$16,MONTH(C91)=$E$17,MONTH(C91)=$E$18)),$E$15,0)) -> 0 | L91: =IF(AND(ValuesEntered,ISNUMBER($C91)),SUM(E91:H91,J91:K91),"") -> 109614 | O91: =IF(AND(ValuesEntered,ISNUMBER($C91)),D91-F91-J91,"") -> 42730864 | R91: 355
A92: =ABS(YEAR($C$27)-YEAR(C92)) -> 5 | B92: =ROWS($B$27:B92) -> 66 | C92: =IF(AND(ValuesEntered,R91>0),IF(AND(ISNUMBER(O91),R91>0),EDATE(C91,1),""),"") -> 2022-09-01 | D92: =IF(C92="",0,O91) -> 42730864 | E92: =IF(AND(ValuesEntered,ISNUMBER(C92)),IF($E$19="時間短縮",ROUND(IPMT(VLOOKUP($C92,変動金利設定!$F$8:$G$15,2,TRUE)/12,1,$R91,$D92)*-1,0),ROUND(IPMT(VLOOKUP($C92,変動金利設定!$F$8:$G$15,2,TRUE)/12,$B92,DurationOfLoan,LoanAmount-BonusAmount-SUM(extra_payments))*-1,0))+IF($I92=0,0,ROUND(IPMT(VLOOKUP($C92,変動金利設定!$F$8:$G$15,2,TRUE)/12,COUNTIF($I$27:I92,">0"),DurationofBonus,BonusAmount)*-1,0)),"") -> 39263 | F92: =IF(AND(ValuesEntered,ISNUMBER($C92)),IF($E$19="時間短縮",ROUND(PPMT(VLOOKUP($C92,変動金利設定!$F$8:$G$15,2,TRUE)/12,1,$R91,$D92)*-1,0),ROUND(PPMT(VLOOKUP($C92,変動金利設定!$F$8:$G$15,2,TRUE)/12,$B92,DurationOfLoan,LoanAmount-BonusAmount-SUM(extra_payments))*-1,0))+IF(I92=0,0,ROUND(PPMT(VLOOKUP($C92,変動金利設定!$F$8:$G$15,2,TRUE)/12,COUNTIF($I$27:I92,">0"),DurationofBonus,BonusAmount)*-1,0)),"") -> 70351 | I92: 0 | L92: =IF(AND(ValuesEntered,ISNUMBER($C92)),SUM(E92:H92,J92:K92),"") -> 109614 | O92: =IF(AND(ValuesEntered,ISNUMBER($C92)),D92-F92-J92,"") -> 42660513 | R92: =IF(AND($J92>0,$E$19="時間短縮"),Remain_Month,$R91-1) -> 354
A93: 5 | B93: =ROWS($B$27:B93) -> 67 | C93: =IF(AND(ValuesEntered,R92>0),IF(AND(ISNUMBER(O92),R92>0),EDATE(C92,1),""),"") -> 2022-10-01 | D93: 42660513 | E93: =IF(AND(ValuesEntered,ISNUMBER(C93)),IF($E$19="時間短縮",ROUND(IPMT(VLOOKUP($C93,変動金利設定!$F$8:$G$15,2,TRUE)/12,1,$R92,$D93)*-1,0),ROUND(IPMT(VLOOKUP($C93,変動金利設定!$F$8:$G$15,2,TRUE)/12,$B93,DurationOfLoan,LoanAmount-BonusAmount-SUM(extra_payments))*-1,0))+IF($I93=0,0,ROUND(IPMT(VLOOKUP($C93,変動金利設定!$F$8:$G$15,2,TRUE)/12,COUNTIF($I$27:I93,">0"),DurationofBonus,BonusAmount)*-1,0)),"") -> 39175 | F93: =IF(AND(ValuesEntered,ISNUMBER($C93)),IF($E$19="時間短縮",ROUND(PPMT(VLOOKUP($C93,変動金利設定!$F$8:$G$15,2,TRUE)/12,1,$R92,$D93)*-1,0),ROUND(PPMT(VLOOKUP($C93,変動金利設定!$F$8:$G$15,2,TRUE)/12,$B93,DurationOfLoan,LoanAmount-BonusAmount-SUM(extra_payments))*-1,0))+IF(I93=0,0,ROUND(PPMT(VLOOKUP($C93,変動金利設定!$F$8:$G$15,2,TRUE)/12,COUNTIF($I$27:I93,">0"),DurationofBonus,BonusAmount)*-1,0)),"") -> 70439 | I93: 0 | L93: =IF(AND(ValuesEntered,ISNUMBER($C93)),SUM(E93:H93,J93:K93),"") -> 109614 | O93: =IF(AND(ValuesEntered,ISNUMBER($C93)),D93-F93-J93,"") -> 42590074 | R93: 353
A94: 5 | B94: =ROWS($B$27:B94) -> 68 | C94: =IF(AND(ValuesEntered,R93>0),IF(AND(ISNUMBER(O93),R93>0),EDATE(C93,1),""),"") -> 2022-11-01 | D94: 42590074 | E94: =IF(AND(ValuesEntered,ISNUMBER(C94)),IF($E$19="時間短縮",ROUND(IPMT(VLOOKUP($C94,変動金利設定!$F$8:$G$15,2,TRUE)/12,1,$R93,$D94)*-1,0),ROUND(IPMT(VLOOKUP($C94,変動金利設定!$F$8:$G$15,2,TRUE)/12,$B94,DurationOfLoan,LoanAmount-BonusAmount-SUM(extra_payments))*-1,0))+IF($I94=0,0,ROUND(IPMT(VLOOKUP($C94,変動金利設定!$F$8:$G$15,2,TRUE)/12,COUNTIF($I$27:I94,">0"),DurationofBonus,BonusAmount)*-1,0)),"") -> 39087 | F94: =IF(AND(ValuesEntered,ISNUMBER($C94)),IF($E$19="時間短縮",ROUND(PPMT(VLOOKUP($C94,変動金利設定!$F$8:$G$15,2,TRUE)/12,1,$R93,$D94)*-1,0),ROUND(PPMT(VLOOKUP($C94,変動金利設定!$F$8:$G$15,2,TRUE)/12,$B94,DurationOfLoan,LoanAmount-BonusAmount-SUM(extra_payments))*-1,0))+IF(I94=0,0,ROUND(PPMT(VLOOKUP($C94,変動金利設定!$F$8:$G$15,2,TRUE)/12,COUNTIF($I$27:I94,">0"),DurationofBonus,BonusAmount)*-1,0)),"") -> 70527 | I94: 0 | L94: =IF(AND(ValuesEntered,ISNUMBER($C94)),SUM(E94:H94,J94:K94),"") -> 109614 | O94: =IF(AND(ValuesEntered,ISNUMBER($C94)),D94-F94-J94,"") -> 42519547 | R94: 352
A95: 5 | B95: =ROWS($B$27:B95) -> 69 | C95: =IF(AND(ValuesEntered,R94>0),IF(AND(ISNUMBER(O94),R94>0),EDATE(C94,1),""),"") -> 2022-12-01 | D95: 42519547 | E95: =IF(AND(ValuesEntered,ISNUMBER(C95)),IF($E$19="時間短縮",ROUND(IPMT(VLOOKUP($C95,変動金利設定!$F$8:$G$15,2,TRUE)/12,1,$R94,$D95)*-1,0),ROUND(IPMT(VLOOKUP($C95,変動金利設定!$F$8:$G$15,2,TRUE)/12,$B95,DurationOfLoan,LoanAmount-BonusAmount-SUM(extra_payments))*-1,0))+IF($I95=0,0,ROUND(IPMT(VLOOKUP($C95,変動金利設定!$F$8:$G$15,2,TRUE)/12,COUNTIF($I$27:I95,">0"),DurationofBonus,BonusAmount)*-1,0)),"") -> 38999 | F95: =IF(AND(ValuesEntered,ISNUMBER($C95)),IF($E$19="時間短縮",ROUND(PPMT(VLOOKUP($C95,変動金利設定!$F$8:$G$15,2,TRUE)/12,1,$R94,$D95)*-1,0),ROUND(PPMT(VLOOKUP($C95,変動金利設定!$F$8:$G$15,2,TRUE)/12,$B95,DurationOfLoan,LoanAmount-BonusAmount-SUM(extra_payments))*-1,0))+IF(I95=0,0,ROUND(PPMT(VLOOKUP($C95,変動金利設定!$F$8:$G$15,2,TRUE)/12,COUNTIF($I$27:I95,">0"),DurationofBonus,BonusAmount)*-1,0)),"") -> 70615 | I95: 0 | L95: =IF(AND(ValuesEntered,ISNUMBER($C95)),SUM(E95:H95,J95:K95),"") -> 109614 | O95: =IF(AND(ValuesEntered,ISNUMBER($C95)),D95-F95-J95,"") -> 42448932 | R95: 351
A96: 6 | B96: =ROWS($B$27:B96) -> 70 | C96: =IF(AND(ValuesEntered,R95>0),IF(AND(ISNUMBER(O95),R95>0),EDATE(C95,1),""),"") -> 2023-01-01 | D96: 42448932 | E96: =IF(AND(ValuesEntered,ISNUMBER(C96)),IF($E$19="時間短縮",ROUND(IPMT(VLOOKUP($C96,変動金利設定!$F$8:$G$15,2,TRUE)/12,1,$R95,$D96)*-1,0),ROUND(IPMT(VLOOKUP($C96,変動金利設定!$F$8:$G$15,2,TRUE)/12,$B96,DurationOfLoan,LoanAmount-BonusAmount-SUM(extra_payments))*-1,0))+IF($I96=0,0,ROUND(IPMT(VLOOKUP($C96,変動金利設定!$F$8:$G$15,2,TRUE)/12,COUNTIF($I$27:I96,">0"),DurationofBonus,BonusAmount)*-1,0)),"") -> 38911 | F96: =IF(AND(ValuesEntered,ISNUMBER($C96)),IF($E$19="時間短縮",ROUND(PPMT(VLOOKUP($C96,変動金利設定!$F$8:$G$15,2,TRUE)/12,1,$R95,$D96)*-1,0),ROUND(PPMT(VLOOKUP($C96,変動金利設定!$F$8:$G$15,2,TRUE)/12,$B96,DurationOfLoan,LoanAmount-BonusAmount-SUM(extra_payments))*-1,0))+IF(I96=0,0,ROUND(PPMT(VLOOKUP($C96,変動金利設定!$F$8:$G$15,2,TRUE)/12,COUNTIF($I$27:I96,">0"),DurationofBonus,BonusAmount)*-1,0)),"") -> 70703 | I96: 0 | L96: =IF(AND(ValuesEntered,ISNUMBER($C96)),SUM(E96:H96,J96:K96),"") -> 109614 | O96: =IF(AND(ValuesEntered,ISNUMBER($C96)),D96-F96-J96,"") -> 42378229 | R96: 350
A97: 6 | B97: =ROWS($B$27:B97) -> 71 | C97: =IF(AND(ValuesEntered,R96>0),IF(AND(ISNUMBER(O96),R96>0),EDATE(C96,1),""),"") -> 2023-02-01 | D97: 42378229 | E97: =IF(AND(ValuesEntered,ISNUMBER(C97)),IF($E$19="時間短縮",ROUND(IPMT(VLOOKUP($C97,変動金利設定!$F$8:$G$15,2,TRUE)/12,1,$R96,$D97)*-1,0),ROUND(IPMT(VLOOKUP($C97,変動金利設定!$F$8:$G$15,2,TRUE)/12,$B97,DurationOfLoan,LoanAmount-BonusAmount-SUM(extra_payments))*-1,0))+IF($I97=0,0,ROUND(IPMT(VLOOKUP($C97,変動金利設定!$F$8:$G$15,2,TRUE)/12,COUNTIF($I$27:I97,">0"),DurationofBonus,BonusAmount)*-1,0)),"") -> 38823 | F97: =IF(AND(ValuesEntered,ISNUMBER($C97)),IF($E$19="時間短縮",ROUND(PPMT(VLOOKUP($C97,変動金利設定!$F$8:$G$15,2,TRUE)/12,1,$R96,$D97)*-1,0),ROUND(PPMT(VLOOKUP($C97,変動金利設定!$F$8:$G$15,2,TRUE)/12,$B97,DurationOfLoan,LoanAmount-BonusAmount-SUM(extra_payments))*-1,0))+IF(I97=0,0,ROUND(PPMT(VLOOKUP($C97,変動金利設定!$F$8:$G$15,2,TRUE)/12,COUNTIF($I$27:I97,">0"),DurationofBonus,BonusAmount)*-1,0)),"") -> 70791 | I97: 0 | L97: =IF(AND(ValuesEntered,ISNUMBER($C97)),SUM(E97:H97,J97:K97),"") -> 109614 | O97: =IF(AND(ValuesEntered,ISNUMBER($C97)),D97-F97-J97,"") -> 42307438 | R97: 349
A98: 6 | B98: =ROWS($B$27:B98) -> 72 | C98: =IF(AND(ValuesEntered,R97>0),IF(AND(ISNUMBER(O97),R97>0),EDATE(C97,1),""),"") -> 2023-03-01 | D98: 42307438 | E98: =IF(AND(ValuesEntered,ISNUMBER(C98)),IF($E$19="時間短縮",ROUND(IPMT(VLOOKUP($C98,変動金利設定!$F$8:$G$15,2,TRUE)/12,1,$R97,$D98)*-1,0),ROUND(IPMT(VLOOKUP($C98,変動金利設定!$F$8:$G$15,2,TRUE)/12,$B98,DurationOfLoan,LoanAmount-BonusAmount-SUM(extra_payments))*-1,0))+IF($I98=0,0,ROUND(IPMT(VLOOKUP($C98,変動金利設定!$F$8:$G$15,2,TRUE)/12,COUNTIF($I$27:I98,">0"),DurationofBonus,BonusAmount)*-1,0)),"") -> 38734 | F98: =IF(AND(ValuesEntered,ISNUMBER($C98)),IF($E$19="時間短縮",ROUND(PPMT(VLOOKUP($C98,変動金利設定!$F$8:$G$15,2,TRUE)/12,1,$R97,$D98)*-1,0),ROUND(PPMT(VLOOKUP($C98,変動金利設定!$F$8:$G$15,2,TRUE)/12,$B98,DurationOfLoan,LoanAmount-BonusAmount-SUM(extra_payments))*-1,0))+IF(I98=0,0,ROUND(PPMT(VLOOKUP($C98,変動金利設定!$F$8:$G$15,2,TRUE)/12,COUNTIF($I$27:I98,">0"),DurationofBonus,BonusAmount)*-1,0)),"") -> 70880 | I98: 0 | L98: =IF(AND(ValuesEntered,ISNUMBER($C98)),SUM(E98:H98,J98:K98),"") -> 109614 | O98: =IF(AND(ValuesEntered,ISNUMBER($C98)),D98-F98-J98,"") -> 42236558 | R98: 348
A99: 6 | B99: =ROWS($B$27:B99) -> 73 | C99: =IF(AND(ValuesEntered,R98>0),IF(AND(ISNUMBER(O98),R98>0),EDATE(C98,1),""),"") -> 2023-04-01 | D99: 42236558 | E99: =IF(AND(ValuesEntered,ISNUMBER(C99)),IF($E$19="時間短縮",ROUND(IPMT(VLOOKUP($C99,変動金利設定!$F$8:$G$15,2,TRUE)/12,1,$R98,$D99)*-1,0),ROUND(IPMT(VLOOKUP($C99,変動金利設定!$F$8:$G$15,2,TRUE)/12,$B99,DurationOfLoan,LoanAmount-BonusAmount-SUM(extra_payments))*-1,0))+IF($I99=0,0,ROUND(IPMT(VLOOKUP($C99,変動金利設定!$F$8:$G$15,2,TRUE)/12,COUNTIF($I$27:I99,">0"),DurationofBonus,BonusAmount)*-1,0)),"") -> 53253 | F99: =IF(AND(ValuesEntered,ISNUMBER($C99)),IF($E$19="時間短縮",ROUND(PPMT(VLOOKUP($C99,変動金利設定!$F$8:$G$15,2,TRUE)/12,1,$R98,$D99)*-1,0),ROUND(PPMT(VLOOKUP($C99,変動金利設定!$F$8:$G$15,2,TRUE)/12,$B99,DurationOfLoan,LoanAmount-BonusAmount-SUM(extra_payments))*-1,0))+IF(I99=0,0,ROUND(PPMT(VLOOKUP($C99,変動金利設定!$F$8:$G$15,2,TRUE)/12,COUNTIF($I$27:I99,">0"),DurationofBonus,BonusAmount)*-1,0)),"") -> 265364 | I99: 200000 | L99: =IF(AND(ValuesEntered,ISNUMBER($C99)),SUM(E99:H99,J99:K99),"") -> 318617 | O99: =IF(AND(ValuesEntered,ISNUMBER($C99)),D99-F99-J99,"") -> 41971194 | R99: 347
A100: 6 | B100: =ROWS($B$27:B100) -> 74 | C100: =IF(AND(ValuesEntered,R99>0),IF(AND(ISNUMBER(O99),R99>0),EDATE(C99,1),""),"") -> 2023-05-01 | D100: 41971194 | E100: =IF(AND(ValuesEntered,ISNUMBER(C100)),IF($E$19="時間短縮",ROUND(IPMT(VLOOKUP($C100,変動金利設定!$F$8:$G$15,2,TRUE)/12,1,$R99,$D100)*-1,0),ROUND(IPMT(VLOOKUP($C100,変動金利設定!$F$8:$G$15,2,TRUE)/12,$B100,DurationOfLoan,LoanAmount-BonusAmount-SUM(extra_payments))*-1,0))+IF($I100=0,0,ROUND(IPMT(VLOOKUP($C100,変動金利設定!$F$8:$G$15,2,TRUE)/12,COUNTIF($I$27:I100,">0"),DurationofBonus,BonusAmount)*-1,0)),"") -> 38557 | F100: =IF(AND(ValuesEntered,ISNUMBER($C100)),IF($E$19="時間短縮",ROUND(PPMT(VLOOKUP($C100,変動金利設定!$F$8:$G$15,2,TRUE)/12,1,$R99,$D100)*-1,0),ROUND(PPMT(VLOOKUP($C100,変動金利設定!$F$8:$G$15,2,TRUE)/12,$B100,DurationOfLoan,LoanAmount-BonusAmount-SUM(extra_payments))*-1,0))+IF(I100=0,0,ROUND(PPMT(VLOOKUP($C100,変動金利設定!$F$8:$G$15,2,TRUE)/12,COUNTIF($I$27:I100,">0"),DurationofBonus,BonusAmount)*-1,0)),"") -> 71057 | I100: 0 | L100: =IF(AND(ValuesEntered,ISNUMBER($C100)),SUM(E100:H100,J100:K100),"") -> 109614 | O100: =IF(AND(ValuesEntered,ISNUMBER($C100)),D100-F100-J100,"") -> 41900137 | R100: 346
A101: 6 | B101: =ROWS($B$27:B101) -> 75 | C101: =IF(AND(ValuesEntered,R100>0),IF(AND(ISNUMBER(O100),R100>0),EDATE(C100,1),""),"") -> 2023-06-01 | D101: 41900137 | E101: =IF(AND(ValuesEntered,ISNUMBER(C101)),IF($E$19="時間短縮",ROUND(IPMT(VLOOKUP($C101,変動金利設定!$F$8:$G$15,2,TRUE)/12,1,$R100,$D101)*-1,0),ROUND(IPMT(VLOOKUP($C101,変動金利設定!$F$8:$G$15,2,TRUE)/12,$B101,DurationOfLoan,LoanAmount-BonusAmount-SUM(extra_payments))*-1,0))+IF($I101=0,0,ROUND(IPMT(VLOOKUP($C101,変動金利設定!$F$8:$G$15,2,TRUE)/12,COUNTIF($I$27:I101,">0"),DurationofBonus,BonusAmount)*-1,0)),"") -> 38468 | F101: =IF(AND(ValuesEntered,ISNUMBER($C101)),IF($E$19="時間短縮",ROUND(PPMT(VLOOKUP($C101,変動金利設定!$F$8:$G$15,2,TRUE)/12,1,$R100,$D101)*-1,0),ROUND(PPMT(VLOOKUP($C101,変動金利設定!$F$8:$G$15,2,TRUE)/12,$B101,DurationOfLoan,LoanAmount-BonusAmount-SUM(extra_payments))*-1,0))+IF(I101=0,0,ROUND(PPMT(VLOOKUP($C101,変動金利設定!$F$8:$G$15,2,TRUE)/12,COUNTIF($I$27:I101,">0"),DurationofBonus,BonusAmount)*-1,0)),"") -> 71146 | I101: 0 | L101: =IF(AND(ValuesEntered,ISNUMBER($C101)),SUM(E101:H101,J101:K101),"") -> 109614 | O101: =IF(AND(ValuesEntered,ISNUMBER($C101)),D101-F101-J101,"") -> 41828991 | R101: 345
